Workbook

Sheet LDC Info (hidden)
AA3: Algoma Power Inc.
AA4: Atikokan Hydro Inc.
AA5: Attawapiskat Power Corporation
AA6: Bluewater Power Distribution Corp.
AA7: Brant County Power
AA8: Brantford Power Inc.
AA9: Burlington Hydro Inc.
AA10: Cambridge and North Dumfries Hydro
AA11: Canadian Niagara Power Inc. – Eastern Ontario Power/Fort Erie/Port Colborne
AA12: Centre Wellington Hydro Ltd.
N13: Version 1.1 | AA13: Chapleau Public Utilities Corporation
D14: Utility Name | E14: Westario Power Inc. | AA14: COLLUS Power Corp.
AA15: Cooperative Hydro Embrun Inc.
D16: Service Territory | AA16: E.L.K. Energy Inc.
AA17: Enersource Hydro Mississauga Inc.
D18: Assigned EB Number | E18: EB2012-0176 | AA18: Entegrus Powerlines Inc.
AA19: ENWIN Utilities Ltd.
D20: Name of Contact and Title | E20: Lisa Milne, President/CEO | AA20: Erie Thames Powerlines Corp.
AA21: Espanola Regional Hydro Distribution Corporation
D22: Phone Number | E22: 519-507-6666 Ext. 216 | AA22: Essex Powerlines Corporation
AA23: Festival Hydro Inc.
D24: Email Address | E24: lisa.milne@westario.com | AA24: Fort Albany Power Corporation
AA25: Fort Frances Power Corporation
D26: Bridge Year | E26: 2012 | AA26: Greater Sudbury Hydro Inc.
AA27: Grimsby Power Inc.
D28: Test Year | E28: 2013 | AA28: Guelph Hydro Electric Systems Inc.
AA29: Haldimand County Hydro Inc.
D30: Last Rebasing Year | E30: 2009 | AA30: Guelph Hydro Electric Systems Inc.
AA31: Halton Hills Hydro Inc.
B32: Notes | AA32: Hearst Power Distribution Co. Ltd.
AA33: Horizon Utilities Corporation
C34: Pale green cells represent input cells. | AA34: Hydro 2000 Inc.
AA35: Hydro Hawkesbury Inc.
C36: Pale blue cells represent drop-down lists. The applicant should select the appropriate item from the drop-down list. | AA36: Hydro One Brampton Networks Inc.
AA37: Hydro One Networks Inc.
C38: White cells contain fixed values, automatically generated values or formulae. | AA38: Hydro One Remote Communities Inc.
AA39: Hydro Ottawa Limited
AA40: Innisfil Hydro Dist. Systems Limited
AA41: Kashechewan Power Corporation
AA42: Kenora Hydro Electric Corporation Ltd.
AA43: Kingston Hydro Corporation
AA44: Kitchener-Wilmot Hydro Inc.
AA45: Lakefront Utilities Inc.
AA46: Lakeland Power Distribution Ltd.
AA47: London Hydro Inc.
AA48: Midland Power Utility Corporation
AA49: Milton Hydro Distribution Inc.
AA50: Newmarket – Tay Power Distribution Ltd.
AA51: Niagara Peninsula Energy Inc.
AA52: Niagara-on-the-Lake Hydro Inc.
AA53: Norfolk Power Distribution Ltd.
AA54: North Bay Hydro Distribution Limited
AA55: Northern Ontario Wires Inc.
AA56: Oakville Hydro Distribution Inc.
AA57: Orangeville Hydro Limited
AA58: Orillia Power Distribution Corp.
AA59: Oshawa PUC Networks Inc.
AA60: Ottawa River Power Corporation
AA61: Parry Sound Power Corporation
AA62: Peterborough Distribution Inc.
AA63: PowerStream Inc.
AA64: PUC Distribution Inc.
AA65: Renfrew Hydro Inc.
AA66: Rideau St. Lawrence Distribution Inc.
AA67: St. Thomas Energy Inc.
AA68: Sioux Lookout Hydro Inc.
AA69: Thunder Bay Hydro Electricity Distribution
AA70: Tillsonburg Hydro Inc.
AA71: Toronto Hydro-Electric System Limited
AA72: Veridian Connections Inc.
AA73: Wasaga Distribution Inc.
AA74: Waterloo North Hydro Inc.
AA75: Welland Hydro Electric System Corp.
AA76: Wellington North Power Inc.
AA77: West Coast Huron Energy Inc.
AA78: Westario Power Inc.
AA79: Whitby Hydro Electric Corporation
AA80: Woodstock Hydro Services Inc.

Sheet Index (hidden)
A15: 1 | B15: LDC Information Sheet | E15: 19 | F15: Appendix 2-H OM&A Detailed Analysis
A16: 2 | B16: Index | E16: 20 | F16: Appendix 2-I OM&A Summary Analysis
A17: 3 | B17: Appendix 2-A Capital Projects | E17: 21 | F17: Appendix 2-J OM&A Cost Drivers
A18: 4 | B18: Appendix 2-B Fixed Asset Continuity | E18: 22 | F18: Appendix 2-K Employee Costs
A19: 5 | B19: Appendix 2-CA CGAAP Depreciation Expense 2011 | E19: 23 | F19: Appendix 2-L OM&A per Cust FTEE
A20: 6 | B20: Appendix 2-CB MIFRS Depreciation Expense 2011 | E20: 24 | F20: Appendix 2-M Regulatory Costs
A21: 7 | B21: Appendix 2-CC MIFRS Depreciation Expense 2012 | E21: 25 | F21: Appendix 2-N Corp Cost Allocation
A22: 8 | B22: Appendix 2-CD MIFRS Depreciation Expense 2013 | E22: 26 | F22: Appendix 2-OA Capital Structure and Cost of Capital
A23: 9 | B23: Appendix 2-CE CGAAP Depreciation Expense 2011 | E23: 27 | F23: Appendix 2-OB Debt Instruments
A24: 10 | B24: Appendix 2-CF CGAAP Depreciation Expense 2012 | E24: 28 | F24: Appendix 2-P Cost Allocation
A25: 11 | B25: Appendix 2-CG MIFRS Depreciation Expense 2012 | E25: 29 | F25: Appendix 2-Q Cost of Service Embedded Distributor
A26: 12 | B26: Appendix 2-CH MIFRS Depreciation Expense 2013 | E26: 30 | F26: Appendix 2-R Loss Factors
A27: 13 | B27: Appendix 2-CI Alternative Accounting Standards Depreciation Expense | E27: 31 | F27: Appendix 2-S Stranded Meters
A28: 14 | B28: Appendix 2-D Overhead | E28: 32 | F28: Appendix 2-T 1592 Tax Variance
A29: 15 | B29: Appendix 2-EA PP&E Deferral Account - 2012 IFRS Adopters | E29: 33 | F29: Appendix 2-U IFRS Transition Costs
A30: 16 | B30: Appendix 2-EB PP&E Deferral Account - 2013 IFRS Adopters | E30: 34 | F30: Appendix 2-V Rev Reconciliation
A31: 17 | B31: Appendix 2-F Other Operating Revenue | E31: 35 | F31: Appendix 2-W Bill Impacts
A32: 18 | B32: Appendix 2-G Detailed OM&A Expenses | E32: 36 | F32: Appendix 2-X CoS Flowchart

Sheet App.2-A_Capital Projects (hidden)
H1: File Number: | I1: ='LDC Info'!$E$18 -> EB2012-0176
A8: Appendix 2-A
A9: Capital Projects Table
D10: **2013 MIFRS Added In**
A12: Projects | B12: =IF(ISBLANK('LDC Info'!E26), "Year 1", 'LDC Info'!E26-5) -> 2007 | C12: =IF(ISBLANK('LDC Info'!E26), "Year 2", 'LDC Info'!E26-4) -> 2008 | D12: =IF(ISBLANK('LDC Info'!E26), "Year 3", 'LDC Info'!E26-3) -> 2009 | E12: =IF(ISBLANK('LDC Info'!E26), "Year 4", 'LDC Info'!E26-2) -> 2010 | F12: =IF(ISBLANK('LDC Info'!E26), "Year 5", 'LDC Info'!E26-1) -> 2011 | G12: ='LDC Info'!E26 & " Bridge Year" -> 2012 Bridge Year | H12: ='LDC Info'!E28 & " Test Year" -> 2013 Test Year | I12: ='LDC Info'!F28 & " Test Year" -> Test Year
A13: Reporting Basis | B13: CGAAP | C13: CGAAP | D13: CGAAP | E13: CGAAP | F13: CGAAP | G13: CGAAP | H13: CGAAP | I13: MIFRS
A14: Capital #6 Primary Replacement
A15: Poles, Towers & Fixtures | D15: 143729 | E15: 182424 | F15: 224903 | G15: 322551 | H15: 351114 | I15: 331257
A16: Overhead Conductors & Devices | D16: 201622 | E16: 201865 | F16: 295784 | G16: 387061 | H16: 421338 | I16: 397509
A17: Underground Conduit | D17: 10799 | E17: 7802 | F17: 4070
A18: Underground Conductors & Devices | D18: 82044 | E18: 36147 | F18: 58496 | G18: 64510 | H18: 70223 | I18: 66252
A19: Line Transformers | D19: 137421 | E19: 23617 | F19: 136620 | G19: 258040 | H19: 280892 | I19: 265006
A20: Services | D20: 75775 | E20: 60143 | F20: 163793 | G20: 258040 | H20: 280892 | I20: 265006
A21: Meters | D21: 782 | E21: 947
A22: Sub-Total | B22: =SUM(B15:B21) -> 0 | C22: =SUM(C15:C21) -> 0 | D22: 652172 | E22: 512945 | F22: 883666 | G22: 1290202 | H22: 1404459 | I22: =SUM(I15:I21) -> 1325030
A24: Capital Poles - Priority Level 5
A25: Poles, Towers & Fixtures | D25: 204510 | E25: 151385 | F25: 182403 | G25: 200696 | H25: 198504 | I25: 145533
A26: Overhead Conductors & Devices | D26: 259122 | E26: 120732 | F26: 243633 | G26: 229367 | H26: 226862 | I26: 166323
A27: Underground Conduit | D27: 9848 | E27: 4364 | F27: 6823 | G27: 14336 | H27: 14179 | I27: 10395
A28: Underground Conductors & Devices | D28: 124252 | E28: 5468 | F28: 21975 | G28: 43006 | H28: 42537 | I28: 31186
A29: Line Transformers | D29: 133695 | E29: 10252 | F29: 140419 | G29: 28671 | H29: 28358 | I29: 20790
A30: Services | D30: 78986 | E30: 15413 | F30: 72855 | G30: 57342 | H30: 56715 | I30: 41581
A31: Meters | D31: 58 | E31: 5071 | F31: 1057
A32: Sub-Total | B32: =SUM(B25:B31) -> 0 | C32: 0 | D32: 810471 | E32: 312685 | F32: 669165 | G32: 573418 | H32: 567155 | I32: =SUM(I25:I31) -> 415808
A34: Capital Poles
A35: Capital Cost | B35: 295760 | C35: 155438
A36: Poles, Towers & Fixtures | D36: 84835 | E36: 71400 | F36: 105344 | G36: 283535 | H36: 286173 | I36: 205570
A37: Overhead Conductors & Devices | D37: 41557 | E37: 45296 | F37: 42486 | G37: 118139 | H37: 119238 | I37: 85654
A38: Underground Conduit | D38: 1964 | E38: 3166 | F38: 530
A39: Underground Conductors & Devices | D39: 10320 | E39: 11525 | F39: 2835 | G39: 11814 | H39: 11924 | I39: 8565
A40: Line Transformers | D40: 21938 | E40: 14319 | F40: 12098 | G40: 35442 | H40: 35771 | I40: 25696
A41: Services | D41: 9837 | E41: 5685 | F41: 9514 | G41: 23628 | H41: 23848 | I41: 17131
A42: Meters | E42: 499 | F42: 1302
A43: Sub-Total | B43: =SUM(B35:B42) -> 295760 | C43: =SUM(C35:C42) -> 155438 | D43: =SUM(D36:D42) -> 170451 | E43: 151890 | F43: 174109 | G43: 472558 | H43: 476954 | I43: =SUM(I36:I42) -> 342616
A45: Southampton Saugeen Street
A46: Capital Cost | C46: 39600
A47: Poles, Towers & Fixtures | D47: 5600
A48: Overhead Conductors & Devices | D48: 8538
A49: Underground Conduit | D49: 241
A50: Underground Conductors & Devices | D50: 19396
A51: Line Transformers | D51: 51044
A52: Services | D52: 12620
A53: Meters | D53: 1503
A54: Sub-Total | B54: =SUM(B47:B53) -> 0 | C54: =SUM(C46:C53) -> 39600 | D54: 98942 | E54: 0 | F54: 0 | G54: 0 | H54: 0 | I54: =SUM(I47:I53) -> 0
A56: Kincardine Saugeen Street Rebuild
A57: Capital Cost | B57: 115402
A58: Sub-Total | B58: =SUM(B57:B57) -> 115402 | C58: 0 | D58: 0 | E58: 0 | F58: 0 | G58: 0 | H58: 0 | I58: =SUM(I57:I57) -> 0
A60: Harriston Substation Contingency 2 MVA
A61: Distribution Station Equipment | D61: 4094 | E61: 81230
A62: Poles, Towers & Fixtures | D62: 11655
A63: Overhead Conductors & Devices | D63: 8341 | E63: 4015
A64: Underground Conduit | D64: 924 | E64: 469
A65: Underground Conductors & Devices | D65: 55553 | E65: 6351
A66: Line Transformers | D66: 1007 | E66: 1807
A67: Services
A68: Meters | E68: 32243
A69: Sub-Total | B69: =SUM(B61:B68) -> 0 | C69: =SUM(C61:C68) -> 0 | D69: 81574 | E69: 126115 | F69: 0 | G69: 0 | H69: 0 | I69: =SUM(I61:I68) -> 0
A71: Wingham MS1 Reclosure Replacement
A72: Distribution Station Equipment | D72: 113046
A73: Poles, Towers & Fixtures
A74: Overhead Conductors & Devices | D74: 224
A75: Underground Conduit
A76: Underground Conductors & Devices | D76: 13726
A77: Line Transformers
A78: Services
A79: Meters
A80: Sub-Total | B80: =SUM(B72:B79) -> 0 | C80: =SUM(C72:C79) -> 0 | D80: 126996 | E80: 0 | F80: 0 | G80: 0 | H80: 0 | I80: =SUM(I72:I79) -> 0
A82: Southampton MS1 Structure Rebuild
A83: Poles, Towers & Fixtures | E83: 17082 | F83: 84318
A84: Overhead Conductors & Devices | E84: 35587
A85: Underground Conduit | E85: 1495
A86: Underground Conductors & Devices | E86: 1924
A87: Line Transformers
A88: Services
A89: Meters
A90: Sub-Total | B90: =SUM(B83:B89) -> 0 | C90: 0 | D90: 0 | E90: 56088 | F90: 84318 | G90: 0 | H90: 0 | I90: =SUM(I83:I89) -> 0
A92: Emergency Transformer Refurb & Ready Stations
A93: Capital Cost
A94: Distribution Station Equipment | H94: 256064 | I94: 217758
A95: Poles, Towers & Fixtures | H95: 30125 | I95: 25619
A96: Overhead Conductors & Devices | H96: 15063 | I96: 12809
A97: Sub-Total | B97: =SUM(B93:B93) -> 0 | C97: 0 | D97: 0 | E97: 0 | F97: 0 | G97: 0 | H97: =SUM(H93:H96) -> 301252 | I97: =SUM(I93:I96) -> 256186
A99: Hanover MS2 Cable Replacement
A100: Capital Cost | C100: 41250
A101: Sub-Total | B101: =SUM(B100:B100) -> 0 | C101: 41250 | D101: 0 | E101: 0 | F101: 0 | G101: 0 | H101: 0 | I101: =SUM(I100:I100) -> 0
A103: Hanover MS2 Ground Grid Reactor
A104: Distribution Station Equipment | F104: 169049
A105: Sub-Total | B105: =SUM(B104:B104) -> 0 | C105: 0 | D105: 0 | E105: 0 | F105: 169049 | G105: 0 | H105: 0 | I105: =SUM(I104:I104) -> 0
A107: Upgrade Station Metering
A108: Distribution Station Equipment | H108: 129422 | I108: 114638
A109: Sub-Total | B109: =SUM(B108:B108) -> 0 | C109: 0 | D109: 0 | E109: 0 | F109: 0 | G109: 0 | H109: 129422 | I109: =SUM(I108:I108) -> 114638
A111: Hanover MS1 Reactor Installation
A112: Distribution Station Equipment | G112: 242020
A113: Sub-Total | B113: =SUM(B112:B112) -> 0 | C113: 0 | D113: 0 | E113: 0 | F113: 0 | G113: 242020 | H113: 0 | I113: =SUM(I112:I112) -> 0
A115: Palmerston MS Recloser Replacement
A116: Capital Cost | C116: 143325
A117: Sub-Total | B117: =SUM(B116:B116) -> 0 | C117: 143325 | D117: 0 | E117: 0 | F117: 0 | G117: 0 | H117: 0 | I117: =SUM(I116:I116) -> 0
A119: Substation Fencing
A120: Building | E120: 3263
A121: Distribution Station Equipment | E121: 13760
A122: Poles, Towers & Fixtures
A123: Overhead Conductors & Devices
A124: Underground Conduit
A125: Underground Conductors & Devices
A126: Line Transformers
A127: Services
A128: Meters
A129: Sub-Total | B129: =SUM(B122:B128) -> 0 | C129: 0 | D129: 0 | E129: =SUM(E120:E128) -> 17023 | F129: 0 | G129: 0 | H129: 0 | I129: =SUM(I122:I128) -> 0
A131: Station Grid Upgrade - 25 Stations
A132: Distribution Station Equipment | E132: 102543 | F132: 147139 | G132: 120928 | H132: 209369 | I132: 187725
A133: Sub-Total | B133: =SUM(B132:B132) -> 0 | C133: 0 | D133: 0 | E133: 102543 | F133: 147139 | G133: 120928 | H133: 209369 | I133: =SUM(I132:I132) -> 187725
A135: Substation Transformer Refurbishment
A136: Capital Cost | B136: 47196
A137: Sub-Total | B137: =SUM(B136:B136) -> 47196 | C137: 0 | D137: 0 | E137: 0 | F137: 0 | G137: 0 | H137: 0 | I137: =SUM(I136:I136) -> 0
A139: Harriston MS Spare Substation Transformer
A140: Capital Cost | C140: 64433
A141: Sub-Total | B141: =SUM(B140:B140) -> 0 | C141: 64433 | D141: 0 | E141: 0 | F141: 0 | G141: 0 | H141: 0 | I141: =SUM(I140:I140) -> 0
A143: Harriston T2 Upgrade
A144: Distribution Substation Equipment | G144: 143891
A145: Sub-Total | B145: =SUM(B144:B144) -> 0 | C145: 0 | D145: 0 | E145: 0 | F145: 0 | G145: 143891 | H145: 0 | I145: =SUM(I144:I144) -> 0
A147: Walkerton MS1 New Substation Transformer
A148: Capital Cost | C148: 175176
A149: Sub-Total | B149: =SUM(B148:B148) -> 0 | C149: 175176 | D149: 0 | E149: 0 | F149: 0 | G149: 0 | H149: 0 | I149: =SUM(I148:I148) -> 0
A151: Live Line Openers
A152: Capital Cost | C152: 21299
A153: Sub-Total | B153: =SUM(B152:B152) -> 0 | C153: 21299 | D153: 0 | E153: 0 | F153: 0 | G153: 0 | H153: 0 | I153: =SUM(I152:I152) -> 0
A155: Lucknow 6-Plex
A156: Capital Cost | C156: 3897
A157: Sub-Total | B157: =SUM(B156:B156) -> 0 | C157: 3897 | D157: 0 | E157: 0 | F157: 0 | G157: 0 | H157: 0 | I157: =SUM(I156:I156) -> 0
A159: Port Elgin 5KV Cable & Poletran Replacement
A160: Poles, Towers & Fixtures | E160: 5708 | F160: 12234 | G160: 24503 | H160: 37068 | I160: 30617
A161: Overhead Conductors & Devices | E161: 14637 | F161: 18862 | G161: 24503 | H161: 37068 | I161: 30617
A162: Underground Conduit | E162: 1454 | F162: 259280 | G162: 220529 | H162: 333610 | I162: 275555
A163: Underground Conductors & Devices | E163: 194247 | F163: 113176 | G163: 122516 | H163: 185339 | I163: 153086
A164: Line Transformers | E164: 37217 | F164: 34568 | G164: 49007 | H164: 74135 | I164: 61235
A165: Services | E165: 6086 | F165: 12463 | G165: 49007 | H165: 74135 | I165: 61235
A166: Meters
A167: Sub-Total | B167: =SUM(B160:B166) -> 0 | C167: 0 | D167: 0 | E167: 259349 | F167: 450583 | G167: 490065 | H167: 741355 | I167: =SUM(I160:I166) -> 612345
A169: Kincardine Poletran & BRI Cable Replacement
A170: Capital Cost | B170: 344866 | C170: 411744
A171: Sub-Total | B171: =SUM(B170:B170) -> 344866 | C171: 411744 | D171: 0 | E171: 0 | F171: 0 | G171: 0 | H171: 0 | I171: =SUM(I170:I170) -> 0
A173: Harriston Poletran Rebuild
A174: Capital Cost | B174: 49798
A175: Sub-Total | B175: =SUM(B174:B174) -> 49798 | C175: 0 | D175: 0 | E175: 0 | F175: 0 | G175: 0 | H175: 0 | I175: =SUM(I174:I174) -> 0
A177: Kincardine Hunter Street Defective Transformer Foundations
A178: Capital Cost | C178: 54334
A179: Sub-Total | B179: =SUM(B178:B178) -> 0 | C179: 54334 | D179: 0 | E179: 0 | F179: 0 | G179: 0 | H179: 0 | I179: =SUM(I178:I178) -> 0
A181: Padmount Transformers with no Ground Gradient
A182: Distribution Station Equipment | F182: 2176
A183: Poles, Towers & Fixtures | E183: 467 | F183: 1798
A184: Overhead Conductors & Devices | D184: 2398 | F184: 3555
A185: Underground Conduit | D185: 525 | F185: 468
A186: Underground Conductors & Devices | D186: 17427 | E186: 678 | F186: 7593
A187: Line Transformers | D187: 16434 | E187: 1427 | F187: 38492
A188: Services | E188: 2205 | F188: 5658
A189: Meters | F189: 2523
A190: Sub-Total | B190: =SUM(B183:B189) -> 0 | C190: 0 | D190: 36784 | E190: 4777 | F190: =SUM(F182:F189) -> 62263 | G190: 0 | H190: 0 | I190: =SUM(I183:I189) -> 0
A192: New 3 Phase Customers
A193: Capital Cost | B193: 214345 | C193: 119891
A194: Poles, Towers & Fixtures | D194: 3265 | E194: 14108 | F194: 18287 | G194: 32009 | H194: 30389 | I194: 22997
A195: Overhead Conductors & Devices | D195: 9506 | E195: 19505 | F195: 18824 | G195: 32009 | H195: 30389 | I195: 22997
A196: Underground Conduit | D196: 707 | E196: 2142 | F196: 216 | G196: 8002 | H196: 7597 | I196: 5749
A197: Underground Conductors & Devices | D197: 7595 | E197: 20760 | F197: 30342 | G197: 48014 | H197: 45584 | I197: 34495
A198: Line Transformers | D198: 114813 | E198: 79551 | F198: 94318 | G198: 160046 | H198: 151946 | I198: 114985
A199: Services | D199: 2302 | E199: 7825 | F199: 9620 | G199: 16005 | H199: 15195 | I199: 11499
A200: Meters | D200: 7426 | E200: 11236 | F200: =5567+1945 -> 7512 | G200: 24006 | H200: 22793 | I200: 17248
A201: Sub-Total | B201: =SUM(B193:B200) -> 214345 | C201: =SUM(C193:C200) -> 119891 | D201: =SUM(D194:D200) -> 145614 | E201: 155127 | F201: 179119 | G201: 320091 | H201: 303893 | I201: =SUM(I194:I200) -> 229970
A203: New low voltage services
A204: Capital Cost | B204: =43180+200000 -> 243180 | C204: 200000
A205: Poles, Towers & Fixtures | D205: 7074 | E205: 396 | F205: 2723 | G205: 7323 | H205: 6496 | I205: 4229
A206: Overhead Conductors & Devices | D206: 2261 | E206: 9278 | F206: 3358 | G206: 7323 | H206: 6496 | I206: 4229
A207: Underground Conduit | D207: 442 | E207: 3763 | F207: 566 | G207: 7323 | H207: 6496
A208: Underground Conductors & Devices | D208: 27053 | E208: 19508 | F208: 29192 | G208: 29293 | H208: 25983 | I208: 16914
A209: Line Transformers | D209: 77586 | E209: 9793 | F209: 831 | G209: 7323 | H209: 6496 | I209: 4229
A210: Services | D210: 264 | E210: 101079 | F210: 122044 | G210: 219703 | H210: 194874 | I210: 126856
A211: Meters | E211: 2858 | F211: =5191+1542 -> 6733 | G211: 14646 | H211: 12991 | I211: 12684
A212: Sub-Total | B212: =SUM(B204:B211) -> 243180 | C212: =SUM(C204:C211) -> 200000 | D212: =SUM(D205:D211) -> 114680 | E212: 146675 | F212: 165447 | G212: 292934 | H212: 259832 | I212: =SUM(I205:I211) -> 169141
A214: Non-demarcation Customers
A215: Capital Cost | B215: 22744
A216: Poles, Towers & Fixtures | E216: 33863 | F216: 2922 | G216: 4757 | H216: 6300 | I216: 6000
A217: Overhead Conductors & Devices
A218: Underground Conduit | D218: 10849 | E218: 2310 | F218: 18556 | G218: 26959 | H218: 35700 | I218: 34000
A219: Underground Conductors & Devices
A220: Line Transformers
A221: Services
A222: Meters
A223: Sub-Total | B223: =SUM(B215:B222) -> 22744 | C223: =SUM(C216:C222) -> 0 | D223: 10849 | E223: 36173 | F223: 21478 | G223: 31716 | H223: 42000 | I223: =SUM(I216:I222) -> 40000
A225: New Lots Developed
A226: Capital Cost | B226: 30832 | C226: 262618
A227: Poles, Towers & Fixtures | D227: 226 | E227: 973 | F227: 29337 | G227: 13532 | H227: 12407 | I227: 9357
A228: Overhead Conductors & Devices | D228: 15955 | E228: 5586 | F228: 42783 | G228: 40595 | H228: 37221 | I228: 28073
A229: Underground Conduit | D229: 4575 | E229: 973 | F229: 2559 | G229: 13532 | H229: 12407 | I229: 9358
A230: Underground Conductors & Devices | D230: 106235 | E230: 42688 | F230: 154318 | G230: 135315 | H230: 124071 | I230: 93575
A231: Line Transformers | D231: 194308 | E231: 9887 | F231: 63511 | G231: 54127 | H231: 49629 | I231: 37430
A232: Services | D232: 3239 | E232: 486 | F232: 10219 | G232: 13532 | H232: 12407 | I232: 9357
A233: Meters
A234: Sub-Total | B234: =SUM(B226:B233) -> 30832 | C234: =SUM(C226:C233) -> 262618 | D234: =SUM(D227:D233) -> 324538 | E234: 60593 | F234: 302727 | G234: 270633 | H234: 248142 | I234: =SUM(I227:I233) -> 187150
A236: Registered Meter Point Resealing
A237: Poles, Towers & Fixtures
A238: Overhead Conductors & Devices
... 364 more rows

Sheet App.2-B_Fixed Asset Cont 2007 (hidden)
M1: File Number: | N1: ='LDC Info'!$E$18 -> EB2012-0176
M2: Exhibit:
M3: Tab:
M4: Schedule:
M5: Page:
M7: Date:
A9: Appendix 2-B
A10: Fixed Asset Continuity Schedule
F12: Year | G12: 2007
E14: Cost | K14: Accumulated Depreciation
A15: CCA Class | B15: OEB | C15: Description | D15: Depreciation Rate | E15: Opening Balance | F15: Additions | G15: Disposals | H15: Closing Balance | J15: Opening Balance | K15: Additions | L15: Disposals | M15: Closing Balance | N15: Net Book Value
A16: 12 | B16: 1611 | C16: Computer Software (Formally known as Account 1925) | H16: =E16+F16+G16 -> 0 | M16: =J16+K16+L16 -> 0 | N16: =H16+M16 -> 0
A17: CEC | B17: 1612 | C17: Land Rights (Formally known as Account 1906) | H17: =E17+F17+G17 -> 0 | M17: =J17+K17+L17 -> 0 | N17: =H17+M17 -> 0
A18: N/A | B18: 1805 | C18: Land | E18: 242769 | G18: -15000 | H18: =E18+F18+G18 -> 227769 | M18: =J18+K18+L18 -> 0 | N18: =H18+M18 -> 227769
A19: 47 | B19: 1808 | C19: Buildings | D19: 0.02 | E19: 6517 | F19: 2443787 | H19: =E19+F19+G19 -> 2450304 | J19: -2023 | K19: -24758 | M19: =J19+K19+L19 -> -26781 | N19: =H19+M19 -> 2423523
A20: 13 | B20: 1810 | C20: Leasehold Improvements | H20: 0 | M20: 0 | N20: 0
A21: 47 | B21: 1815 | C21: Transformer Station Equipment >50 kV | H21: 0 | M21: 0 | N21: 0
A22: 47 | B22: 1820 | C22: Distribution Station Equipment <50 kV | D22: 0.0333 | E22: 3073798 | F22: 83593 | H22: 3157391 | J22: -862166 | K22: -143364 | M22: -1005530 | N22: 2151861
A23: 47 | B23: 1825 | C23: Storage Battery Equipment | H23: 0 | M23: 0 | N23: 0
A24: 47 | B24: 1830 | C24: Poles, Towers & Fixtures | D24: 0.04 | E24: 4811058 | F24: 194258 | H24: 5005316 | J24: -1094849 | K24: -217108 | M24: -1311957 | N24: 3693359
A25: 47 | B25: 1835 | C25: Overhead Conductors & Devices | D25: 0.04 | E25: 6734937 | F25: 622265 | H25: 7357202 | J25: -1442428 | K25: -316175 | M25: -1758603 | N25: 5598599
A26: 47 | B26: 1840 | C26: Underground Conduit | D26: 0.04 | E26: 2094546 | F26: 389798 | H26: 2484344 | J26: -393133 | K26: -100545 | M26: -493678 | N26: 1990666
A27: 47 | B27: 1845 | C27: Underground Conductors & Devices | D27: 0.04 | E27: 5563155 | F27: 695407 | H27: 6258562 | J27: -1130311 | K27: -265053 | M27: -1395364 | N27: 4863198
A28: 47 | B28: 1850 | C28: Line Transformers | D28: 0.04 | E28: 5896988 | F28: 624935 | H28: 6521923 | J28: -1143249 | K28: -276309 | M28: -1419558 | N28: 5102365
A29: 47 | B29: 1855 | C29: Services (Overhead & Underground) | D29: 0.04 | E29: 2727052 | F29: 277646 | H29: 3004698 | J29: -555934 | K29: -125438 | M29: -681372 | N29: 2323326
A30: 47 | B30: 1860 | C30: Meters | D30: 0.04 | E30: 2302027 | F30: 136217 | G30: -61140 | H30: 2377104 | J30: -490587 | K30: -105800 | M30: -596387 | N30: 1780717
A31: 8 | B31: 1860 | C31: Meters (Smart Meters) | D31: 0.04 | F31: 61140 | H31: 61140 | M31: 0 | N31: 61140
A32: N/A | B32: 1905 | C32: Land | H32: 0 | M32: 0 | N32: 0
A33: 47 | B33: 1908 | C33: Buildings & Fixtures | H33: 0 | M33: 0 | N33: 0
A34: 13 | B34: 1910 | C34: Leasehold Improvements | H34: 0 | M34: 0 | N34: 0
A35: 8 | B35: 1915 | C35: Office Furniture & Equipment (10 years) | H35: 0 | M35: 0 | N35: 0
A36: 8 | B36: 1915 | C36: Office Furniture & Equipment (5 years) | H36: 0 | M36: 0 | N36: 0
A37: 10 | B37: 1920 | C37: Computer Equipment - Hardware | H37: 0 | M37: 0 | N37: 0
A38: 45 | B38: 1920 | C38: Computer Equip.-Hardware(Post Mar. 22/04) | H38: 0 | M38: 0 | N38: 0
A39: 45.1 | B39: 1920 | C39: Computer Equip.-Hardware(Post Mar. 19/07) | H39: 0 | M39: 0 | N39: 0
A40: 12 | B40: 1925 | C40: Computer Software (Formally known as Account 1925) | D40: 0.2 | E40: 267519 | H40: 267519 | J40: -209098 | K40: -53503 | M40: -262601 | N40: 4918
A41: 10 | B41: 1930 | C41: Transportation Equipment | H41: 0 | M41: 0 | N41: 0
A42: 8 | B42: 1935 | C42: Stores Equipment | H42: 0 | M42: 0 | N42: 0
A43: 8 | B43: 1940 | C43: Tools, Shop & Garage Equipment | H43: 0 | M43: 0 | N43: 0
A44: 8 | B44: 1945 | C44: Measurement & Testing Equipment | H44: 0 | M44: 0 | N44: 0
A45: 8 | B45: 1950 | C45: Power Operated Equipment | H45: 0 | M45: 0 | N45: 0
A46: 8 | B46: 1955 | C46: Communications Equipment | H46: 0 | M46: 0 | N46: 0
A47: 8 | B47: 1955 | C47: Communication Equipment (Smart Meters) | H47: 0 | M47: 0 | N47: 0
A48: 8 | B48: 1960 | C48: Miscellaneous Equipment | H48: 0 | M48: 0 | N48: 0
A49: 47 | B49: 1975 | C49: Load Management Controls Utility Premises | D49: 0.1 | E49: 258631 | H49: 258631 | J49: -258631 | M49: -258631 | N49: 0
A50: 47 | B50: 1980 | C50: System Supervisor Equipment | H50: 0 | M50: 0 | N50: 0
A51: 47 | B51: 1985 | C51: Miscellaneous Fixed Assets | H51: 0 | M51: 0 | N51: 0
A52: 47 | B52: 1995 | C52: Contributions & Grants | D52: 0.04 | E52: -4437179 | F52: -677549 | H52: -5114728 | J52: 424159 | K52: 194413 | M52: 618572 | N52: -4496156
B53: etc. | H53: 0 | M53: 0 | N53: 0
C55: Total | E55: =SUM(E16:E54) -> 29541818 | F55: =SUM(F16:F54) -> 4851497 | G55: -76140 | H55: 34317175 | J55: =SUM(J16:J54) -> -7158250 | K55: =SUM(K16:K54) -> -1433640 | L55: 0 | M55: -8591890 | N55: 25725285
J57: Less: Fully Allocated Depreciation
A58: 10 | C58: Transportation | J58: Transportation
A59: 8 | C59: Stores Equipment | J59: Stores Equipment
J60: Net Depreciation | L60: =L55-L58-L59 -> 0
A62: Notes:
A64: 1 | B64: Tables in the format outlined above covering all fixed asset accounts should be submitted for the Test Year, Bridge Year and all relevant historical years. At a minimum , the applicant must provide data for the earlier of: 1) all historical years back to its last rebasing; or 2) at least three years of historical actuals, in addition to Bridge Year and Test Year forecasts.
A67: 2 | B67: The "CCA Class" for fixed assets should agree with the CCA Class used for tax purposes in Tax Returns. Fixed Assets sub-components may be used where the underlying asset components are classified under multiple CCA Classes for tax purposes. If an applicant uses any different classes from those shown in the table, an explanation should be provided. (also see note 3 below).
A70: 3 | B70: The table may need to be customized for a utility's asset categories or for any new asset accounts announced or authorized by the Board.
A72: 4 | B72: The depreciation column (D) is not required as the relevant information will be provided in the following 2-C series of appendices.

Sheet App.2-B_Fixed Asset Cont 2008 (hidden)
M1: File Number: | N1: ='LDC Info'!$E$18 -> EB2012-0176
M2: Exhibit:
M3: Tab:
M4: Schedule:
M5: Page:
M7: Date:
A9: Appendix 2-B
A10: Fixed Asset Continuity Schedule
F12: Year | G12: 2008
E14: Cost | K14: Accumulated Depreciation
A15: CCA Class | B15: OEB | C15: Description | D15: Depreciation Rate | E15: Opening Balance | F15: Additions | G15: Disposals | H15: Closing Balance | J15: Opening Balance | K15: Additions | L15: Disposals | M15: Closing Balance | N15: Net Book Value
A16: 12 | B16: 1611 | C16: Computer Software (Formally known as Account 1925) | H16: =E16+F16+G16 -> 0 | M16: =J16+K16+L16 -> 0 | N16: =H16+M16 -> 0
A17: CEC | B17: 1612 | C17: Land Rights (Formally known as Account 1906) | H17: =E17+F17+G17 -> 0 | M17: =J17+K17+L17 -> 0 | N17: =H17+M17 -> 0
A18: N/A | B18: 1805 | C18: Land | E18: =+'App.2-B_Fixed Asset Cont 2007'!H18 -> 227769 | H18: =E18+F18+G18 -> 227769 | M18: =J18+K18+L18 -> 0 | N18: =H18+M18 -> 227769
A19: 47 | B19: 1808 | C19: Buildings | D19: 0.02 | E19: =+'App.2-B_Fixed Asset Cont 2007'!H19 -> 2450304 | H19: =E19+F19+G19 -> 2450304 | J19: =+'App.2-B_Fixed Asset Cont 2007'!M19 -> -26781 | K19: =-24130-25066 -> -49196 | M19: =J19+K19+L19 -> -75977 | N19: =H19+M19 -> 2374327
A20: 13 | B20: 1810 | C20: Leasehold Improvements | H20: 0 | M20: 0 | N20: 0
A21: 47 | B21: 1815 | C21: Transformer Station Equipment >50 kV | H21: 0 | M21: 0 | N21: 0
A22: 47 | B22: 1820 | C22: Distribution Station Equipment <50 kV | D22: 0.0333 | E22: =+'App.2-B_Fixed Asset Cont 2007'!H22 -> 3157391 | F22: 387320 | H22: 3544711 | J22: =+'App.2-B_Fixed Asset Cont 2007'!M22 -> -1005530 | K22: =-148825-1394 -> -150219 | M22: -1155749 | N22: 2388962
A23: 47 | B23: 1825 | C23: Storage Battery Equipment | H23: 0 | M23: 0 | N23: 0
A24: 47 | B24: 1830 | C24: Poles, Towers & Fixtures | D24: 0.04 | E24: =+'App.2-B_Fixed Asset Cont 2007'!H24 -> 5005316 | F24: 284012 | H24: 5289328 | J24: =+'App.2-B_Fixed Asset Cont 2007'!M24 -> -1311957 | K24: =-207410-19268 -> -226678 | M24: -1538635 | N24: 3750693
A25: 47 | B25: 1835 | C25: Overhead Conductors & Devices | D25: 0.04 | E25: =+'App.2-B_Fixed Asset Cont 2007'!H25 -> 7357202 | F25: 325395 | H25: 7682597 | J25: =+'App.2-B_Fixed Asset Cont 2007'!M25 -> -1758603 | K25: =-322873-170479 -> -493352 | M25: -2251955 | N25: 5430642
A26: 47 | B26: 1840 | C26: Underground Conduit | D26: 0.04 | E26: =+'App.2-B_Fixed Asset Cont 2007'!H26 -> 2484344 | F26: 113840 | H26: 2598184 | J26: =+'App.2-B_Fixed Asset Cont 2007'!M26 -> -493678 | K26: =-90910-19700 -> -110610 | M26: -604288 | N26: 1993896
A27: 47 | B27: 1845 | C27: Underground Conductors & Devices | D27: 0.04 | E27: =+'App.2-B_Fixed Asset Cont 2007'!H27 -> 6258562 | F27: 523410 | H27: 6781972 | J27: =+'App.2-B_Fixed Asset Cont 2007'!M27 -> -1395364 | K27: =-211970+80718 -> -131252 | M27: -1526616 | N27: 5255356
A28: 47 | B28: 1850 | C28: Line Transformers | D28: 0.04 | E28: =+'App.2-B_Fixed Asset Cont 2007'!H28 -> 6521923 | F28: 699162 | H28: 7221085 | J28: =+'App.2-B_Fixed Asset Cont 2007'!M28 -> -1419558 | K28: =-253079-49709 -> -302788 | M28: -1722346 | N28: 5498739
A29: 47 | B29: 1855 | C29: Services (Overhead & Underground) | D29: 0.04 | E29: =+'App.2-B_Fixed Asset Cont 2007'!H29 -> 3004698 | F29: 356816 | H29: 3361514 | J29: =+'App.2-B_Fixed Asset Cont 2007'!M29 -> -681372 | K29: =-122218-15906 -> -138124 | M29: -819496 | N29: 2542018
A30: 47 | B30: 1860 | C30: Meters | D30: 0.04 | E30: =+'App.2-B_Fixed Asset Cont 2007'!H30 -> 2377104 | F30: 151290 | H30: 2528394 | J30: =+'App.2-B_Fixed Asset Cont 2007'!M30 -> -596387 | K30: =-98806-3011 -> -101817 | M30: -698204 | N30: 1830190
A31: 8 | B31: 1860 | C31: Meters (Smart Meters) | D31: 0.04 | E31: =+'App.2-B_Fixed Asset Cont 2007'!H31 -> 61140 | H31: 61140 | K31: -9774 | M31: -9774 | N31: 51366
A32: N/A | B32: 1905 | C32: Land | H32: 0 | M32: 0 | N32: 0
A33: 47 | B33: 1908 | C33: Buildings & Fixtures | H33: 0 | M33: 0 | N33: 0
A34: 13 | B34: 1910 | C34: Leasehold Improvements | H34: 0 | M34: 0 | N34: 0
A35: 8 | B35: 1915 | C35: Office Furniture & Equipment (10 years) | D35: 0.1 | F35: 244053 | H35: 244053 | K35: -133197 | M35: -133197 | N35: 110856
A36: 8 | B36: 1915 | C36: Office Furniture & Equipment (5 years) | H36: 0 | M36: 0 | N36: 0
A37: 10 | B37: 1920 | C37: Computer Equipment - Hardware | D37: 0.2 | F37: 69332 | H37: 69332 | K37: -152871 | M37: -152871 | N37: -83539
A38: 45 | B38: 1920 | C38: Computer Equip.-Hardware(Post Mar. 22/04) | D38: 0.2 | F38: 275946 | H38: 275946 | K38: -132138 | M38: -132138 | N38: 143808
A39: 45.1 | B39: 1920 | C39: Computer Equip.-Hardware(Post Mar. 19/07) | D39: 0.2 | F39: 52212 | H39: 52212 | K39: -44775 | M39: -44775 | N39: 7437
A40: 12 | B40: 1925 | C40: Computer Software (Formally known as Account 1925) | D40: 0.3333 | E40: =+'App.2-B_Fixed Asset Cont 2007'!H40 -> 267519 | F40: 459353 | H40: 726872 | J40: =+'App.2-B_Fixed Asset Cont 2007'!M40 -> -262601 | K40: -408731 | M40: -671332 | N40: 55540
A41: 10 | B41: 1930 | C41: Transportation Equipment | D41: 0.125 | F41: 1648262 | G41: -30000 | H41: 1618262 | K41: -978880 | L41: 30000 | M41: -948880 | N41: 669382
A42: 8 | B42: 1935 | C42: Stores Equipment | D42: 0.1 | F42: 23501 | H42: 23501 | K42: -7006 | M42: -7006 | N42: 16495
A43: 8 | B43: 1940 | C43: Tools, Shop & Garage Equipment | D43: 0.1 | F43: 214184 | H43: 214184 | K43: -136811 | M43: -136811 | N43: 77373
A44: 8 | B44: 1945 | C44: Measurement & Testing Equipment | D44: 0.1 | F44: 59760 | H44: 59760 | K44: -16339 | M44: -16339 | N44: 43421
A45: 8 | B45: 1950 | C45: Power Operated Equipment | D45: 0.125 | F45: 66947 | H45: 66947 | K45: -26037 | M45: -26037 | N45: 40910
A46: 8 | B46: 1955 | C46: Communications Equipment | D46: 0.1 | F46: 102070 | H46: 102070 | K46: -86622 | M46: -86622 | N46: 15448
A47: 8 | B47: 1955 | C47: Communication Equipment (Smart Meters) | H47: 0 | M47: 0 | N47: 0
A48: 8 | B48: 1960 | C48: Miscellaneous Equipment | D48: 0.1 | F48: 32903 | H48: 32903 | K48: -18442 | M48: -18442 | N48: 14461
A49: 47 | B49: 1975 | C49: Load Management Controls Utility Premises | D49: 0.1 | E49: =+'App.2-B_Fixed Asset Cont 2007'!H49 -> 258631 | H49: 258631 | J49: =+'App.2-B_Fixed Asset Cont 2007'!M49 -> -258631 | M49: -258631 | N49: 0
A50: 47 | B50: 1980 | C50: System Supervisor Equipment | H50: 0 | M50: 0 | N50: 0
A51: 47 | B51: 1985 | C51: Miscellaneous Fixed Assets | D51: 0.1 | F51: 1427 | H51: 1427 | K51: -1427 | M51: -1427 | N51: 0
A52: 47 | B52: 1995 | C52: Contributions & Grants | D52: 0.04 | E52: =+'App.2-B_Fixed Asset Cont 2007'!H52 -> -5114728 | F52: -892416 | H52: -6007144 | J52: =+'App.2-B_Fixed Asset Cont 2007'!M52 -> 618572 | K52: =160815+62401 -> 223216 | M52: 841788 | N52: -5165356
B53: etc. | H53: 0 | M53: 0 | N53: 0
C55: Total | E55: =SUM(E16:E54) -> 34317175 | F55: =SUM(F16:F54) -> 5198779 | G55: -30000 | H55: 39485954 | J55: =SUM(J16:J54) -> -8591890 | K55: =SUM(K16:K54) -> -3633870 | L55: 30000 | M55: -12195760 | N55: 27290194
J57: Less: Fully Allocated Depreciation
A58: 10 | C58: Transportation | J58: Transportation
A59: 8 | C59: Stores Equipment | J59: Stores Equipment
J60: Net Depreciation | L60: =L55-L58-L59 -> 30000
A62: Notes:
A64: 1 | B64: Tables in the format outlined above covering all fixed asset accounts should be submitted for the Test Year, Bridge Year and all relevant historical years. At a minimum , the applicant must provide data for the earlier of: 1) all historical years back to its last rebasing; or 2) at least three years of historical actuals, in addition to Bridge Year and Test Year forecasts.
A67: 2 | B67: The "CCA Class" for fixed assets should agree with the CCA Class used for tax purposes in Tax Returns. Fixed Assets sub-components may be used where the underlying asset components are classified under multiple CCA Classes for tax purposes. If an applicant uses any different classes from those shown in the table, an explanation should be provided. (also see note 3 below).
A70: 3 | B70: The table may need to be customized for a utility's asset categories or for any new asset accounts announced or authorized by the Board.
A72: 4 | B72: The depreciation column (D) is not required as the relevant information will be provided in the following 2-C series of appendices.

Sheet App.2-B_Fixed Asset Cont 2009 (hidden)
M1: File Number: | N1: ='LDC Info'!$E$18 -> EB2012-0176
M2: Exhibit:
M3: Tab:
M4: Schedule:
M5: Page:
M7: Date:
A9: Appendix 2-B
A10: Fixed Asset Continuity Schedule
F12: Year | G12: 2009
E14: Cost | K14: Accumulated Depreciation
A15: CCA Class | B15: OEB | C15: Description | D15: Depreciation Rate | E15: Opening Balance | F15: Additions | G15: Disposals | H15: Closing Balance | J15: Opening Balance | K15: Additions | L15: Disposals | M15: Closing Balance | N15: Net Book Value
A16: 12 | B16: 1611 | C16: Computer Software (Formally known as Account 1925) | H16: =E16+F16+G16 -> 0 | M16: =J16+K16+L16 -> 0 | N16: =H16+M16 -> 0
A17: CEC | B17: 1612 | C17: Land Rights (Formally known as Account 1906) | H17: =E17+F17+G17 -> 0 | M17: =J17+K17+L17 -> 0 | N17: =H17+M17 -> 0
A18: N/A | B18: 1805 | C18: Land | E18: 227768.86 | H18: =E18+F18+G18 -> 227768.86 | M18: =J18+K18+L18 -> 0 | N18: =H18+M18 -> 227768.86
A19: 47 | B19: 1808 | C19: Buildings | D19: 0.02 | E19: 2450303.9 | F19: 30908 | H19: =E19+F19+G19 -> 2481211.9 | J19: -75977.2 | K19: -49513 | M19: =J19+K19+L19 -> -125490.2 | N19: =H19+M19 -> 2355721.7
A20: 13 | B20: 1810 | C20: Leasehold Improvements | H20: 0 | M20: 0 | N20: 0
A21: 47 | B21: 1815 | C21: Transformer Station Equipment >50 kV | H21: 0 | M21: 0 | N21: 0
A22: 47 | B22: 1820 | C22: Distribution Station Equipment <50 kV | D22: 0.0333 | E22: 3544711.27 | F22: 123140.78 | H22: 3667852.05 | J22: -1155748.69 | K22: -158695.02 | M22: -1314443.71 | N22: 2353408.34
A23: 47 | B23: 1825 | C23: Storage Battery Equipment | H23: 0 | M23: 0 | N23: 0
A24: 47 | B24: 1830 | C24: Poles, Towers & Fixtures | D24: 0.04 | E24: 5289327.3 | F24: 591965.42 | H24: 5881292.72 | J24: -1538635.3 | K24: -244175.92 | M24: -1782811.22 | N24: 4098481.5
A25: 47 | B25: 1835 | C25: Overhead Conductors & Devices | D25: 0.04 | E25: 8884640.14 | F25: 664080.74 | G25: -1202043 | H25: 8346677.88 | J25: -2251955.14 | K25: -403032.24 | M25: -2654987.38 | N25: 5691690.5
A26: 47 | B26: 1840 | C26: Underground Conduit | D26: 0.04 | E26: 2598184.09 | F26: 72698.66 | H26: 2670882.75 | J26: -604287.79 | K26: -114349.66 | M26: -718637.45 | N26: 1952245.3
A27: 47 | B27: 1845 | C27: Underground Conductors & Devices | D27: 0.04 | E27: 5229426 | F27: 2435317.39 | H27: 7664743.39 | J27: -1526615.59 | K27: -262472.8 | M27: -1789088.39 | N27: 5875655
A28: 47 | B28: 1850 | C28: Line Transformers | D28: 0.04 | E28: 7571587 | F28: 29689.07 | H28: 7601276.07 | J28: =-1066643.91-655701.6 -> -1722345.51 | K28: =-171567.6-159849.46 -> -331417.06 | M28: -2053762.57 | N28: 5547513.5
A29: 47 | B29: 1855 | C29: Services (Overhead & Underground) | D29: 0.04 | E29: =1227525.5+2133987.74 -> 3361513.24 | F29: =131842.68+212805.08 -> 344647.76 | H29: 3706161 | J29: =-342638.5-476857.24 -> -819495.74 | K29: =-57062.68-95097.08 -> -152159.76 | M29: -971655.5 | N29: 2734505.5
A30: 47 | B30: 1860 | C30: Meters | D30: 0.04 | E30: =1766764.43+761629.61 -> 2528394.04 | F30: =26507.75-125726.72+181591.75 -> 82372.78 | G30: -602915.32 | H30: 2007851.5 | J30: =-707978.02+0+9773.98 -> -698204.04 | K30: -87460 | L30: =246719-9774 -> 236945 | M30: -548719.04 | N30: 1459132.46
A31: 8 | B31: 1860 | C31: Meters (Smart Meters) | D31: 0.04 | E31: 61139.98 | G31: -61140 | H31: -0.02 | J31: -9773.98 | L31: 9773.98 | M31: 0 | N31: -0.02
A32: N/A | B32: 1905 | C32: Land | H32: 0 | M32: 0 | N32: 0
A33: 47 | B33: 1908 | C33: Buildings & Fixtures | H33: 0 | M33: 0 | N33: 0
A34: 13 | B34: 1910 | C34: Leasehold Improvements | H34: 0 | M34: 0 | N34: 0
A35: 8 | B35: 1915 | C35: Office Furniture & Equipment (10 years) | D35: 0.1 | E35: 244053.3 | H35: 244053.3 | J35: -133196.8 | K35: -18953 | M35: -152149.8 | N35: 91903.5
A36: 8 | B36: 1915 | C36: Office Furniture & Equipment (5 years) | H36: 0 | M36: 0 | N36: 0
A37: 10 | B37: 1920 | C37: Computer Equipment - Hardware | D37: 0.2 | E37: =156649.36+70507.42+18173.17-6425.08-3780+40821.16 -> 275946.03 | H37: 275946.03 | J37: -152871.07 | M37: -152871.07 | N37: 123074.96
A38: 45 | B38: 1920 | C38: Computer Equip.-Hardware(Post Mar. 22/04) | D38: 0.2 | E38: =6328.34+21247.41+24635.88 -> 52211.63 | H38: 52211.63 | J38: =-56456.32-55482.39-20198.88 -> -132137.59 | K38: =-4249-4927 -> -9176 | M38: -141313.59 | N38: -89101.96
A39: 45.1 | B39: 1920 | C39: Computer Equip.-Hardware(Post Mar. 19/07) | D39: 0.2 | E39: =29316.41+40015.48 -> 69331.89 | F39: 24238.11 | H39: 93570 | J39: =-24469.41-20306 -> -44775.41 | K39: =-5863-8003-2422.11 -> -16288.11 | M39: -61063.52 | N39: 32506.48
A40: 12 | B40: 1925 | C40: Computer Software (Formally known as Account 1925) | D40: 0.3333 | E40: 726871.27 | F40: 23487.95 | H40: 750359.22 | J40: -671331.77 | K40: -34565.45 | M40: -705897.22 | N40: 44462
A41: 10 | B41: 1930 | C41: Transportation Equipment | D41: 0.125 | E41: 1618262.33 | F41: 28861.91 | H41: 1647124.24 | J41: -948879.83 | K41: -130149.41 | M41: -1079029.24 | N41: 568095
A42: 8 | B42: 1935 | C42: Stores Equipment | D42: 0.1 | E42: 23501.39 | F42: 67435.82 | H42: 90937.21 | J42: -7005.89 | K42: -5518.32 | M42: -12524.21 | N42: 78413
A43: 8 | B43: 1940 | C43: Tools, Shop & Garage Equipment | D43: 0.1 | E43: 214184.3 | F43: 27924.48 | H43: 242108.78 | J43: -136811.3 | K43: -12919.48 | M43: -149730.78 | N43: 92378
A44: 8 | B44: 1945 | C44: Measurement & Testing Equipment | D44: 0.1 | E44: 59760 | H44: 59760 | J44: -16338.5 | K44: -5973 | M44: -22311.5 | N44: 37448.5
A45: 8 | B45: 1950 | C45: Power Operated Equipment | D45: 0.125 | E45: 66946.94 | F45: 33325.02 | H45: 100271.96 | J45: -26037.44 | K45: -6335.02 | M45: -32372.46 | N45: 67899.5
A46: 8 | B46: 1955 | C46: Communications Equipment | D46: 0.1 | E46: 102070.39 | H46: 102070.39 | J46: -86622.39 | K46: -10862 | M46: -97484.39 | N46: 4586
A47: 8 | B47: 1955 | C47: Communication Equipment (Smart Meters) | H47: 0 | M47: 0 | N47: 0
A48: 8 | B48: 1960 | C48: Miscellaneous Equipment | D48: 0.1 | E48: 32903.48 | F48: 4889.78 | H48: 37793.26 | J48: -18441.98 | K48: -3542.78 | M48: -21984.76 | N48: 15808.5
A49: 47 | B49: 1975 | C49: Load Management Controls Utility Premises | D49: 0.1 | E49: 258630.5 | H49: 258630.5 | J49: -258630.5 | M49: -258630.5 | N49: 0
A50: 47 | B50: 1980 | C50: System Supervisor Equipment | H50: 0 | M50: 0 | N50: 0
A51: 47 | B51: 1985 | C51: Miscellaneous Fixed Assets | D51: 0.1 | F51: 1427 | H51: 1427 | J51: -1426.68 | M51: -1426.68 | N51: 0.32
A52: 47 | B52: 1995 | C52: Contributions & Grants | D52: 0.04 | E52: =-(299558.47+2352820.34+558004.61+960617.92+1765272.85+70869.96) -> -6007144.15 | F52: =-(225705.82+245178.6+205755.75+423828.02+114813.85+45697.49)-3377.87 -> -1264357.4 | G52: 3377.87 | H52: -7268123.68 | J52: =(346134.31+134650.61+97959.92+252045.85+10996.96) -> 841787.65 | K52: =(116061.92+26486.75+47036.52+72916.85+3091.88)+720.98 -> 266314.9 | L52: -720.98 | M52: 1107381.57 | N52: -6160742.11
B53: etc. | H53: 0 | M53: 0 | N53: 0
C55: Total | E55: =SUM(E16:E54) -> 39484525.12 | F55: =SUM(F16:F54) -> 3322053.27 | G55: -1862720.45 | H55: 40943857.94 | J55: =SUM(J16:J54) -> -12195758.48 | K55: =SUM(K16:K54) -> -1791243.13 | L55: 245998 | M55: -13741003.61 | N55: 27202854.33
J57: Less: Fully Allocated Depreciation
A58: 10 | C58: Transportation | J58: Transportation
A59: 8 | C59: Stores Equipment | J59: Stores Equipment
J60: Net Depreciation | L60: =L55-L58-L59 -> 245998
A62: Notes:
A64: 1 | B64: Tables in the format outlined above covering all fixed asset accounts should be submitted for the Test Year, Bridge Year and all relevant historical years. At a minimum , the applicant must provide data for the earlier of: 1) all historical years back to its last rebasing; or 2) at least three years of historical actuals, in addition to Bridge Year and Test Year forecasts.
A67: 2 | B67: The "CCA Class" for fixed assets should agree with the CCA Class used for tax purposes in Tax Returns. Fixed Assets sub-components may be used where the underlying asset components are classified under multiple CCA Classes for tax purposes. If an applicant uses any different classes from those shown in the table, an explanation should be provided. (also see note 3 below).
A70: 3 | B70: The table may need to be customized for a utility's asset categories or for any new asset accounts announced or authorized by the Board.
A72: 4 | B72: The depreciation column (D) is not required as the relevant information will be provided in the following 2-C series of appendices.

Sheet App.2-B_Fixed Asset Cont 2009SM (hidden)
M1: File Number: | N1: ='LDC Info'!$E$18 -> EB2012-0176
M2: Exhibit:
M3: Tab:
M4: Schedule:
M5: Page:
M7: Date:
A9: Appendix 2-B
A10: Fixed Asset Continuity Schedule - Smart Meter Capital Additions Included In Schedule
F12: Year | G12: 2009
E14: Cost | K14: Accumulated Depreciation
A15: CCA Class | B15: OEB | C15: Description | D15: Depreciation Rate | E15: Opening Balance | F15: Additions | G15: Disposals | H15: Closing Balance | J15: Opening Balance | K15: Additions | L15: Disposals | M15: Closing Balance | N15: Net Book Value
A16: 12 | B16: 1611 | C16: Computer Software (Formally known as Account 1925) | H16: =E16+F16+G16 -> 0 | M16: =J16+K16+L16 -> 0 | N16: =H16+M16 -> 0
A17: CEC | B17: 1612 | C17: Land Rights (Formally known as Account 1906) | H17: =E17+F17+G17 -> 0 | M17: =J17+K17+L17 -> 0 | N17: =H17+M17 -> 0
A18: N/A | B18: 1805 | C18: Land | E18: 227768.86 | H18: =E18+F18+G18 -> 227768.86 | M18: =J18+K18+L18 -> 0 | N18: =H18+M18 -> 227768.86
A19: 47 | B19: 1808 | C19: Buildings | D19: 0.02 | E19: 2450303.9 | F19: 30908 | H19: =E19+F19+G19 -> 2481211.9 | J19: -75977.2 | K19: -49513 | M19: =J19+K19+L19 -> -125490.2 | N19: =H19+M19 -> 2355721.7
A20: 13 | B20: 1810 | C20: Leasehold Improvements | H20: 0 | M20: 0 | N20: 0
A21: 47 | B21: 1815 | C21: Transformer Station Equipment >50 kV | H21: 0 | M21: 0 | N21: 0
A22: 47 | B22: 1820 | C22: Distribution Station Equipment <50 kV | D22: 0.0333 | E22: 3544711.27 | F22: 123140.78 | H22: 3667852.05 | J22: -1155748.69 | K22: -158695.02 | M22: -1314443.71 | N22: 2353408.34
A23: 47 | B23: 1825 | C23: Storage Battery Equipment | H23: 0 | M23: 0 | N23: 0
A24: 47 | B24: 1830 | C24: Poles, Towers & Fixtures | D24: 0.04 | E24: 5289327.3 | F24: 591965.42 | H24: 5881292.72 | J24: -1538635.3 | K24: -244175.92 | M24: -1782811.22 | N24: 4098481.5
A25: 47 | B25: 1835 | C25: Overhead Conductors & Devices | D25: 0.04 | E25: 8884640.14 | F25: 664080.74 | G25: -1202043 | H25: 8346677.88 | J25: -2251955.14 | K25: -403032.24 | M25: -2654987.38 | N25: 5691690.5
A26: 47 | B26: 1840 | C26: Underground Conduit | D26: 0.04 | E26: 2598184.09 | F26: 72698.66 | H26: 2670882.75 | J26: -604287.79 | K26: -114349.66 | M26: -718637.45 | N26: 1952245.3
A27: 47 | B27: 1845 | C27: Underground Conductors & Devices | D27: 0.04 | E27: 5229426 | F27: 2435317.39 | H27: 7664743.39 | J27: -1526615.59 | K27: -262472.8 | M27: -1789088.39 | N27: 5875655
A28: 47 | B28: 1850 | C28: Line Transformers | D28: 0.04 | E28: 7571587 | F28: 29689.07 | H28: 7601276.07 | J28: =-1066643.91-655701.6 -> -1722345.51 | K28: =-171567.6-159849.46 -> -331417.06 | M28: -2053762.57 | N28: 5547513.5
A29: 47 | B29: 1855 | C29: Services (Overhead & Underground) | D29: 0.04 | E29: =1227525.5+2133987.74 -> 3361513.24 | F29: =131842.68+212805.08 -> 344647.76 | H29: 3706161 | J29: =-342638.5-476857.24 -> -819495.74 | K29: =-57062.68-95097.08 -> -152159.76 | M29: -971655.5 | N29: 2734505.5
A30: 47 | B30: 1860 | C30: Meters | D30: 0.04 | E30: =1766764.43+761629.61 -> 2528394.04 | F30: =26507.75-125726.72+181591.75 -> 82372.78 | G30: -602915.32 | H30: 2007851.5 | J30: =-707978.02+0+9773.98 -> -698204.04 | K30: -87460 | L30: =246719-9774 -> 236945 | M30: -548719.04 | N30: 1459132.46
A31: 8 | B31: 1860 | C31: Meters (Smart Meters) | D31: 0.04 | E31: 61139.98 | G31: -61140 | H31: -0.02 | J31: -9773.98 | L31: 9773.98 | M31: 0 | N31: -0.02
B32: 3 Lines | C32: Smart Meter Additions Recorded in 1555
A33: 8 | B33: 1860 | C33: Meters (Smart Meters) | D33: 0.04 | E33: 0 | F33: 2092675 | H33: 2092675 | K33: -73097 | M33: -73097 | N33: 2019578
A34: 45.1 | B34: 1920 | C34: Computer Hardware (Smart Meters) | D34: 0.2 | E34: 0 | F34: 19880 | H34: 19880 | K34: -1988 | M34: -1988 | N34: 17892
A35: 12 | B35: 1925 | C35: Computer Software (Smart Meters) | D35: 0.3333 | E35: 0 | F35: 43754 | H35: 43754 | K35: -4375 | M35: -4375 | N35: 39379
A36: N/A | B36: 1905 | C36: Land | H36: 0 | M36: 0 | N36: 0
A37: 47 | B37: 1908 | C37: Buildings & Fixtures | H37: 0 | M37: 0 | N37: 0
A38: 13 | B38: 1910 | C38: Leasehold Improvements | H38: 0 | M38: 0 | N38: 0
A39: 8 | B39: 1915 | C39: Office Furniture & Equipment (10 years) | D39: 0.1 | E39: 244053.3 | H39: 244053.3 | J39: -133196.8 | K39: -18953 | M39: -152149.8 | N39: 91903.5
A40: 8 | B40: 1915 | C40: Office Furniture & Equipment (5 years) | H40: 0 | M40: 0 | N40: 0
A41: 10 | B41: 1920 | C41: Computer Equipment - Hardware | D41: 0.2 | E41: =156649.36+70507.42+18173.17-6425.08-3780+40821.16 -> 275946.03 | H41: 275946.03 | J41: -152871.07 | M41: -152871.07 | N41: 123074.96
A42: 45 | B42: 1920 | C42: Computer Equip.-Hardware(Post Mar. 22/04) | D42: 0.2 | E42: =6328.34+21247.41+24635.88 -> 52211.63 | H42: 52211.63 | J42: =-56456.32-55482.39-20198.88 -> -132137.59 | K42: =-4249-4927 -> -9176 | M42: -141313.59 | N42: -89101.96
A43: 45.1 | B43: 1920 | C43: Computer Equip.-Hardware(Post Mar. 19/07) | D43: 0.2 | E43: =29316.41+40015.48 -> 69331.89 | F43: 24238.11 | H43: 93570 | J43: =-24469.41-20306 -> -44775.41 | K43: =-5863-8003-2422.11 -> -16288.11 | M43: -61063.52 | N43: 32506.48
A44: 12 | B44: 1925 | C44: Computer Software (Formally known as Account 1925) | D44: 0.3333 | E44: 726871.27 | F44: 23487.95 | H44: 750359.22 | J44: -671331.77 | K44: -34565.45 | M44: -705897.22 | N44: 44462
A45: 10 | B45: 1930 | C45: Transportation Equipment | D45: 0.125 | E45: 1618262.33 | F45: 28861.91 | H45: 1647124.24 | J45: -948879.83 | K45: -130149.41 | M45: -1079029.24 | N45: 568095
A46: 8 | B46: 1935 | C46: Stores Equipment | D46: 0.1 | E46: 23501.39 | F46: 67435.82 | H46: 90937.21 | J46: -7005.89 | K46: -5518.32 | M46: -12524.21 | N46: 78413
A47: 8 | B47: 1940 | C47: Tools, Shop & Garage Equipment | D47: 0.1 | E47: 214184.3 | F47: 27924.48 | H47: 242108.78 | J47: -136811.3 | K47: -12919.48 | M47: -149730.78 | N47: 92378
A48: 8 | B48: 1945 | C48: Measurement & Testing Equipment | D48: 0.1 | E48: 59760 | H48: 59760 | J48: -16338.5 | K48: -5973 | M48: -22311.5 | N48: 37448.5
A49: 8 | B49: 1950 | C49: Power Operated Equipment | D49: 0.125 | E49: 66946.94 | F49: 33325.02 | H49: 100271.96 | J49: -26037.44 | K49: -6335.02 | M49: -32372.46 | N49: 67899.5
A50: 8 | B50: 1955 | C50: Communications Equipment | D50: 0.1 | E50: 102070.39 | H50: 102070.39 | J50: -86622.39 | K50: -10862 | M50: -97484.39 | N50: 4586
A51: 8 | B51: 1955 | C51: Communication Equipment (Smart Meters) | H51: 0 | M51: 0 | N51: 0
A52: 8 | B52: 1960 | C52: Miscellaneous Equipment | D52: 0.1 | E52: 32903.48 | F52: 4889.78 | H52: 37793.26 | J52: -18441.98 | K52: -3542.78 | M52: -21984.76 | N52: 15808.5
A53: 47 | B53: 1975 | C53: Load Management Controls Utility Premises | D53: 0.1 | E53: 258630.5 | H53: 258630.5 | J53: -258630.5 | M53: -258630.5 | N53: 0
A54: 47 | B54: 1980 | C54: System Supervisor Equipment | H54: 0 | M54: 0 | N54: 0
A55: 47 | B55: 1985 | C55: Miscellaneous Fixed Assets | D55: 0.1 | F55: 1427 | H55: 1427 | J55: -1426.68 | M55: -1426.68 | N55: 0.32
A56: 47 | B56: 1995 | C56: Contributions & Grants | D56: 0.04 | E56: =-(299558.47+2352820.34+558004.61+960617.92+1765272.85+70869.96) -> -6007144.15 | F56: =-(225705.82+245178.6+205755.75+423828.02+114813.85+45697.49)-3377.87 -> -1264357.4 | G56: 3377.87 | H56: -7268123.68 | J56: =(346134.31+134650.61+97959.92+252045.85+10996.96) -> 841787.65 | K56: =(116061.92+26486.75+47036.52+72916.85+3091.88)+720.98 -> 266314.9 | L56: -720.98 | M56: 1107381.57 | N56: -6160742.11
B57: etc. | H57: 0 | M57: 0 | N57: 0
C59: Total | E59: =SUM(E16:E58) -> 39484525.12 | F59: =SUM(F16:F58) -> 5478362.27 | G59: -1862720.45 | H59: 43100166.94 | J59: =SUM(J16:J58) -> -12195758.48 | K59: =SUM(K16:K58) -> -1870703.13 | L59: 245998 | M59: -13820463.61 | N59: 29279703.33
J61: Less: Fully Allocated Depreciation
A62: 10 | C62: Transportation | J62: Transportation
A63: 8 | C63: Stores Equipment | J63: Stores Equipment
J64: Net Depreciation | L64: =L59-L62-L63 -> 245998
A66: Notes:
A68: 1 | B68: Tables in the format outlined above covering all fixed asset accounts should be submitted for the Test Year, Bridge Year and all relevant historical years. At a minimum , the applicant must provide data for the earlier of: 1) all historical years back to its last rebasing; or 2) at least three years of historical actuals, in addition to Bridge Year and Test Year forecasts.
A71: 2 | B71: The "CCA Class" for fixed assets should agree with the CCA Class used for tax purposes in Tax Returns. Fixed Assets sub-components may be used where the underlying asset components are classified under multiple CCA Classes for tax purposes. If an applicant uses any different classes from those shown in the table, an explanation should be provided. (also see note 3 below).
A74: 3 | B74: The table may need to be customized for a utility's asset categories or for any new asset accounts announced or authorized by the Board.
A76: 4 | B76: The depreciation column (D) is not required as the relevant information will be provided in the following 2-C series of appendices.

Sheet App.2-B_Fixed Asset Cont 2010 (hidden)
M1: File Number: | N1: ='LDC Info'!$E$18 -> EB2012-0176
M2: Exhibit:
M3: Tab:
M4: Schedule:
M5: Page:
M7: Date:
A9: Appendix 2-B
A10: Fixed Asset Continuity Schedule
F12: Year | G12: 2010
E14: Cost | K14: Accumulated Depreciation
A15: CCA Class | B15: OEB | C15: Description | D15: Depreciation Rate | E15: Opening Balance | F15: Additions | G15: Disposals | H15: Closing Balance | J15: Opening Balance | K15: Additions | L15: Disposals | M15: Closing Balance | N15: Net Book Value
A16: 12 | B16: 1611 | C16: Computer Software (Formally known as Account 1925) | H16: =E16+F16+G16 -> 0 | M16: =J16+K16+L16 -> 0 | N16: =H16+M16 -> 0
A17: CEC | B17: 1612 | C17: Land Rights (Formally known as Account 1906) | H17: =E17+F17+G17 -> 0 | M17: =J17+K17+L17 -> 0 | N17: =H17+M17 -> 0
A18: N/A | B18: 1805 | C18: Land | E18: =+'App.2-B_Fixed Asset Cont 2009'!H18 -> 227768.86 | H18: =E18+F18+G18 -> 227768.86 | M18: =J18+K18+L18 -> 0 | N18: =H18+M18 -> 227768.86
A19: 47 | B19: 1808 | C19: Buildings | D19: 0.02 | E19: =+'App.2-B_Fixed Asset Cont 2009'!H19 -> 2481211.9 | F19: 5106.1 | H19: =E19+F19+G19 -> 2486318 | J19: =+'App.2-B_Fixed Asset Cont 2009'!M19 -> -125490.2 | K19: -49820.62 | M19: =J19+K19+L19 -> -175310.82 | N19: =H19+M19 -> 2311007.18
A20: 13 | B20: 1810 | C20: Leasehold Improvements | H20: 0 | M20: 0 | N20: 0
A21: 47 | B21: 1815 | C21: Transformer Station Equipment >50 kV | H21: 0 | M21: 0 | N21: 0
A22: 47 | B22: 1820 | C22: Distribution Station Equipment <50 kV | D22: 0.0333 | E22: =+'App.2-B_Fixed Asset Cont 2009'!H22 -> 3667852.05 | F22: 150637.49 | H22: 3818489.54 | J22: =+'App.2-B_Fixed Asset Cont 2009'!M22 -> -1314443.71 | K22: -124772.33 | M22: -1439216.04 | N22: 2379273.5
A23: 47 | B23: 1825 | C23: Storage Battery Equipment | H23: 0 | M23: 0 | N23: 0
A24: 47 | B24: 1830 | C24: Poles, Towers & Fixtures | D24: 0.04 | E24: =+'App.2-B_Fixed Asset Cont 2009'!H24 -> 5881292.72 | F24: 682474.67 | H24: 6563767.39 | J24: =+'App.2-B_Fixed Asset Cont 2009'!M24 -> -1782811.22 | K24: -270377.23 | M24: -2053188.45 | N24: 4510578.94
A25: 47 | B25: 1835 | C25: Overhead Conductors & Devices | D25: 0.04 | E25: =+'App.2-B_Fixed Asset Cont 2009'!H25 -> 8346677.88 | F25: 726856.4 | H25: 9073534.28 | J25: =+'App.2-B_Fixed Asset Cont 2009'!M25 -> -2654987.38 | K25: -273416.42 | M25: -2928403.8 | N25: 6145130.48
A26: 47 | B26: 1840 | C26: Underground Conduit | D26: 0.04 | E26: =+'App.2-B_Fixed Asset Cont 2009'!H26 -> 2670882.75 | F26: 35402.84 | H26: 2706285.59 | J26: =+'App.2-B_Fixed Asset Cont 2009'!M26 -> -718637.45 | K26: -116732.16 | M26: -835369.61 | N26: 1870915.98
A27: 47 | B27: 1845 | C27: Underground Conductors & Devices | D27: 0.04 | E27: =+'App.2-B_Fixed Asset Cont 2009'!H27 -> 7664743.39 | F27: 632802.96 | H27: 8297546.35 | J27: =+'App.2-B_Fixed Asset Cont 2009'!M27 -> -1789088.39 | K27: -490426 | M27: -2279514.39 | N27: 6018031.96
A28: 47 | B28: 1850 | C28: Line Transformers | D28: 0.04 | E28: =+'App.2-B_Fixed Asset Cont 2009'!H28 -> 7601276.07 | F28: =-100985.31 -> -100985.31 | H28: 7500290.76 | J28: =+'App.2-B_Fixed Asset Cont 2009'!M28 -> -2053762.57 | K28: =-1114546.34+815551.06 -> -298995.28 | M28: -2352757.85 | N28: 5147532.91
A29: 47 | B29: 1855 | C29: Services (Overhead & Underground) | D29: 0.04 | E29: =+'App.2-B_Fixed Asset Cont 2009'!H29 -> 3706161 | F29: =2597670.14-2346792.82 -> 250877.32 | H29: 3957038.32 | J29: =+'App.2-B_Fixed Asset Cont 2009'!M29 -> -971655.5 | K29: =-736293.57+571954.32 -> -164339.25 | M29: -1135994.75 | N29: 2821043.57
A30: 47 | B30: 1860 | C30: Meters | D30: 0.04 | E30: =+'App.2-B_Fixed Asset Cont 2009'!H30 -> 2007851.5 | F30: =755419.4-943221.36+286176.86 -> 98374.9 | G30: -286176.86 | H30: 1820049.54 | J30: =+'App.2-B_Fixed Asset Cont 2009'!M30 -> -548719.04 | K30: -74019 | L30: 154488 | M30: -468250.04 | N30: 1351799.5
A31: 8 | B31: 1860 | C31: Meters (Smart Meters) | D31: 0.04 | H31: 0 | M31: 0 | N31: 0
A32: N/A | B32: 1905 | C32: Land | H32: 0 | M32: 0 | N32: 0
A33: 47 | B33: 1908 | C33: Buildings & Fixtures | H33: 0 | M33: 0 | N33: 0
A34: 13 | B34: 1910 | C34: Leasehold Improvements | H34: 0 | M34: 0 | N34: 0
A35: 8 | B35: 1915 | C35: Office Furniture & Equipment (10 years) | D35: 0.1 | E35: =+'App.2-B_Fixed Asset Cont 2009'!H35 -> 244053.3 | F35: 7834.05 | H35: 251887.35 | J35: =+'App.2-B_Fixed Asset Cont 2009'!M35 -> -152149.8 | K35: -19348.2 | M35: -171498 | N35: 80389.35
A36: 8 | B36: 1915 | C36: Office Furniture & Equipment (5 years) | H36: 0 | M36: 0 | N36: 0
A37: 10 | B37: 1920 | C37: Computer Equipment - Hardware | D37: 0.2 | E37: =+'App.2-B_Fixed Asset Cont 2009'!H37 -> 275946.03 | H37: 275946.03 | J37: =+'App.2-B_Fixed Asset Cont 2009'!M37 -> -152871.07 | M37: -152871.07 | N37: 123074.96
A38: 45 | B38: 1920 | C38: Computer Equip.-Hardware(Post Mar. 22/04) | D38: 0.2 | E38: =+'App.2-B_Fixed Asset Cont 2009'!H38 -> 52211.63 | H38: 52211.63 | J38: =+'App.2-B_Fixed Asset Cont 2009'!M38 -> -141313.59 | K38: =-4927 -> -4927 | M38: -146240.59 | N38: -94028.96
A39: 45.1 | B39: 1920 | C39: Computer Equip.-Hardware(Post Mar. 19/07) | D39: 0.2 | E39: =+'App.2-B_Fixed Asset Cont 2009'!H39 -> 93570 | F39: 14881.22 | H39: 108451.22 | J39: =+'App.2-B_Fixed Asset Cont 2009'!M39 -> -61063.52 | K39: =-25129.12+4927 -> -20202.12 | M39: -81265.64 | N39: 27185.58
A40: 12 | B40: 1925 | C40: Computer Software (Formally known as Account 1925) | D40: 0.3333 | E40: =+'App.2-B_Fixed Asset Cont 2009'!H40 -> 750359.22 | F40: 104332.02 | H40: 854691.24 | J40: =+'App.2-B_Fixed Asset Cont 2009'!M40 -> -705897.22 | K40: -41811.68 | M40: -747708.9 | N40: 106982.34
A41: 10 | B41: 1930 | C41: Transportation Equipment | D41: 0.125 | E41: =+'App.2-B_Fixed Asset Cont 2009'!H41 -> 1647124.24 | F41: =191546.79+85000 -> 276546.79 | G41: -85000 | H41: 1838671.03 | J41: =+'App.2-B_Fixed Asset Cont 2009'!M41 -> -1079029.24 | K41: =-64235.83-85000 -> -149235.83 | L41: 85000 | M41: -1143265.07 | N41: 695405.96
A42: 8 | B42: 1935 | C42: Stores Equipment | D42: 0.1 | E42: =+'App.2-B_Fixed Asset Cont 2009'!H42 -> 90937.21 | H42: 90937.21 | J42: =+'App.2-B_Fixed Asset Cont 2009'!M42 -> -12524.21 | K42: -8885.89 | M42: -21410.1 | N42: 69527.11
A43: 8 | B43: 1940 | C43: Tools, Shop & Garage Equipment | D43: 0.1 | E43: =+'App.2-B_Fixed Asset Cont 2009'!H43 -> 242108.78 | F43: 36167.24 | H43: 278276.02 | J43: =+'App.2-B_Fixed Asset Cont 2009'!M43 -> -149730.78 | K43: -16123.03 | M43: -165853.81 | N43: 112422.21
A44: 8 | B44: 1945 | C44: Measurement & Testing Equipment | D44: 0.1 | E44: =+'App.2-B_Fixed Asset Cont 2009'!H44 -> 59760 | F44: 3378.5 | H44: 63138.5 | J44: =+'App.2-B_Fixed Asset Cont 2009'!M44 -> -22311.5 | K44: -6144.93 | M44: -28456.43 | N44: 34682.07
A45: 8 | B45: 1950 | C45: Power Operated Equipment | D45: 0.125 | E45: =+'App.2-B_Fixed Asset Cont 2009'!H45 -> 100271.96 | H45: 100271.96 | J45: =+'App.2-B_Fixed Asset Cont 2009'!M45 -> -32372.46 | K45: -7997.33 | M45: -40369.79 | N45: 59902.17
A46: 8 | B46: 1955 | C46: Communications Equipment | D46: 0.1 | E46: =+'App.2-B_Fixed Asset Cont 2009'!H46 -> 102070.39 | F46: =74102.85+24925.26 -> 99028.11 | G46: -24925.26 | H46: 176173.24 | J46: =+'App.2-B_Fixed Asset Cont 2009'!M46 -> -97484.39 | K46: =11875.97-22355.26 -> -10479.29 | L46: 22355.26 | M46: -85608.42 | N46: 90564.82
A47: 8 | B47: 1955 | C47: Communication Equipment (Smart Meters) | H47: 0 | M47: 0 | N47: 0
A48: 8 | B48: 1960 | C48: Miscellaneous Equipment | D48: 0.1 | E48: =+'App.2-B_Fixed Asset Cont 2009'!H48 -> 37793.26 | F48: 5700.21 | H48: 43493.47 | J48: =+'App.2-B_Fixed Asset Cont 2009'!M48 -> -21984.76 | K48: -4064.17 | M48: -26048.93 | N48: 17444.54
A49: 47 | B49: 1975 | C49: Load Management Controls Utility Premises | D49: 0.1 | E49: =+'App.2-B_Fixed Asset Cont 2009'!H49 -> 258630.5 | H49: 258630.5 | J49: =+'App.2-B_Fixed Asset Cont 2009'!M49 -> -258630.5 | M49: -258630.5 | N49: 0
A50: 47 | B50: 1980 | C50: System Supervisor Equipment | H50: 0 | M50: 0 | N50: 0
A51: 47 | B51: 1985 | C51: Miscellaneous Fixed Assets | D51: 0.1 | E51: =+'App.2-B_Fixed Asset Cont 2009'!H51 -> 1427 | H51: 1427 | J51: =+'App.2-B_Fixed Asset Cont 2009'!M51 -> -1426.68 | M51: -1426.68 | N51: 0.32
A52: 47 | B52: 1995 | C52: Contributions & Grants | D52: 0.04 | E52: =+'App.2-B_Fixed Asset Cont 2009'!H52 -> -7268123.68 | F52: =-7030472.68+2597998.94+763760.36+1384445.94+1880086.7+116567.45 -> -287613.29 | H52: -7555736.97 | J52: =+'App.2-B_Fixed Asset Cont 2009'!M52 -> 1107381.57 | K52: =941979.13-161137.36-144996.44-324962.7-14088.84 -> 296793.79 | M52: 1404175.36 | N52: -6151561.61
B53: etc. | H53: 0 | M53: 0 | N53: 0
C55: Total | E55: =SUM(E16:E54) -> 40943857.96 | F55: =SUM(F16:F54) -> 2741802.22 | G55: -396102.12 | H55: 43289558.06 | J55: =SUM(J16:J54) -> -13741003.61 | K55: =SUM(K16:K54) -> -1855323.97 | L55: 261843.26 | M55: -15334484.32 | N55: 27955073.74
J57: Less: Fully Allocated Depreciation
A58: 10 | C58: Transportation | J58: Transportation
A59: 8 | C59: Stores Equipment | J59: Stores Equipment
J60: Net Depreciation | L60: =L55-L58-L59 -> 261843.26
A62: Notes:
A64: 1 | B64: Tables in the format outlined above covering all fixed asset accounts should be submitted for the Test Year, Bridge Year and all relevant historical years. At a minimum , the applicant must provide data for the earlier of: 1) all historical years back to its last rebasing; or 2) at least three years of historical actuals, in addition to Bridge Year and Test Year forecasts.
A67: 2 | B67: The "CCA Class" for fixed assets should agree with the CCA Class used for tax purposes in Tax Returns. Fixed Assets sub-components may be used where the underlying asset components are classified under multiple CCA Classes for tax purposes. If an applicant uses any different classes from those shown in the table, an explanation should be provided. (also see note 3 below).
A70: 3 | B70: The table may need to be customized for a utility's asset categories or for any new asset accounts announced or authorized by the Board.
A72: 4 | B72: The depreciation column (D) is not required as the relevant information will be provided in the following 2-C series of appendices.

Sheet App.2-B_Fixed Asset Cont 2010SM (hidden)
M1: File Number: | N1: ='LDC Info'!$E$18 -> EB2012-0176
M2: Exhibit:
M3: Tab:
M4: Schedule:
M5: Page:
M7: Date:
A9: Appendix 2-B
A10: Fixed Asset Continuity Schedule - Smart Meter Capital Additions Included In Schedule
F12: Year | G12: 2010
E14: Cost | K14: Accumulated Depreciation
A15: CCA Class | B15: OEB | C15: Description | D15: Depreciation Rate | E15: Opening Balance | F15: Additions | G15: Disposals | H15: Closing Balance | J15: Opening Balance | K15: Additions | L15: Disposals | M15: Closing Balance | N15: Net Book Value
A16: 12 | B16: 1611 | C16: Computer Software (Formally known as Account 1925) | H16: =E16+F16+G16 -> 0 | M16: =J16+K16+L16 -> 0 | N16: =H16+M16 -> 0
A17: CEC | B17: 1612 | C17: Land Rights (Formally known as Account 1906) | H17: =E17+F17+G17 -> 0 | M17: =J17+K17+L17 -> 0 | N17: =H17+M17 -> 0
A18: N/A | B18: 1805 | C18: Land | E18: =+'App.2-B_Fixed Asset Cont 2009'!H18 -> 227768.86 | H18: =E18+F18+G18 -> 227768.86 | M18: =J18+K18+L18 -> 0 | N18: =H18+M18 -> 227768.86
A19: 47 | B19: 1808 | C19: Buildings | D19: 0.02 | E19: =+'App.2-B_Fixed Asset Cont 2009'!H19 -> 2481211.9 | F19: 5106.1 | H19: =E19+F19+G19 -> 2486318 | J19: =+'App.2-B_Fixed Asset Cont 2009'!M19 -> -125490.2 | K19: -49820.62 | M19: =J19+K19+L19 -> -175310.82 | N19: =H19+M19 -> 2311007.18
A20: 13 | B20: 1810 | C20: Leasehold Improvements | H20: 0 | M20: 0 | N20: 0
A21: 47 | B21: 1815 | C21: Transformer Station Equipment >50 kV | H21: 0 | M21: 0 | N21: 0
A22: 47 | B22: 1820 | C22: Distribution Station Equipment <50 kV | D22: 0.0333 | E22: =+'App.2-B_Fixed Asset Cont 2009'!H22 -> 3667852.05 | F22: 150637.49 | H22: 3818489.54 | J22: =+'App.2-B_Fixed Asset Cont 2009'!M22 -> -1314443.71 | K22: -124772.33 | M22: -1439216.04 | N22: 2379273.5
A23: 47 | B23: 1825 | C23: Storage Battery Equipment | H23: 0 | M23: 0 | N23: 0
A24: 47 | B24: 1830 | C24: Poles, Towers & Fixtures | D24: 0.04 | E24: =+'App.2-B_Fixed Asset Cont 2009'!H24 -> 5881292.72 | F24: 682474.67 | H24: 6563767.39 | J24: =+'App.2-B_Fixed Asset Cont 2009'!M24 -> -1782811.22 | K24: -270377.23 | M24: -2053188.45 | N24: 4510578.94
A25: 47 | B25: 1835 | C25: Overhead Conductors & Devices | D25: 0.04 | E25: =+'App.2-B_Fixed Asset Cont 2009'!H25 -> 8346677.88 | F25: 726856.4 | H25: 9073534.28 | J25: =+'App.2-B_Fixed Asset Cont 2009'!M25 -> -2654987.38 | K25: -273416.42 | M25: -2928403.8 | N25: 6145130.48
A26: 47 | B26: 1840 | C26: Underground Conduit | D26: 0.04 | E26: =+'App.2-B_Fixed Asset Cont 2009'!H26 -> 2670882.75 | F26: 35402.84 | H26: 2706285.59 | J26: =+'App.2-B_Fixed Asset Cont 2009'!M26 -> -718637.45 | K26: -116732.16 | M26: -835369.61 | N26: 1870915.98
A27: 47 | B27: 1845 | C27: Underground Conductors & Devices | D27: 0.04 | E27: =+'App.2-B_Fixed Asset Cont 2009'!H27 -> 7664743.39 | F27: 632802.96 | H27: 8297546.35 | J27: =+'App.2-B_Fixed Asset Cont 2009'!M27 -> -1789088.39 | K27: -490426 | M27: -2279514.39 | N27: 6018031.96
A28: 47 | B28: 1850 | C28: Line Transformers | D28: 0.04 | E28: =+'App.2-B_Fixed Asset Cont 2009'!H28 -> 7601276.07 | F28: =-100985.31 -> -100985.31 | H28: 7500290.76 | J28: =+'App.2-B_Fixed Asset Cont 2009'!M28 -> -2053762.57 | K28: =-1114546.34+815551.06 -> -298995.28 | M28: -2352757.85 | N28: 5147532.91
A29: 47 | B29: 1855 | C29: Services (Overhead & Underground) | D29: 0.04 | E29: =+'App.2-B_Fixed Asset Cont 2009'!H29 -> 3706161 | F29: =2597670.14-2346792.82 -> 250877.32 | H29: 3957038.32 | J29: =+'App.2-B_Fixed Asset Cont 2009'!M29 -> -971655.5 | K29: =-736293.57+571954.32 -> -164339.25 | M29: -1135994.75 | N29: 2821043.57
A30: 47 | B30: 1860 | C30: Meters | D30: 0.04 | E30: =+'App.2-B_Fixed Asset Cont 2009'!H30 -> 2007851.5 | F30: =755419.4-943221.36+286176.86 -> 98374.9 | G30: -286176.86 | H30: 1820049.54 | J30: =+'App.2-B_Fixed Asset Cont 2009'!M30 -> -548719.04 | K30: -74019 | L30: 154488 | M30: -468250.04 | N30: 1351799.5
A31: 8 | B31: 1860 | C31: Meters (Smart Meters) | D31: 0.04 | E31: =+'App.2-B_Fixed Asset Cont 2009'!H31 -> -0.02 | H31: -0.02 | J31: =+'App.2-B_Fixed Asset Cont 2009'!M31 -> 0 | M31: 0 | N31: -0.02
B32: 3 Lines | C32: Smart Meter Additions Recorded in 1555
A33: 8 | B33: 1860 | C33: Meters (Smart Meters) | D33: 0.04 | E33: =+'App.2-B_Fixed Asset Cont 2009SM'!H33 -> 2092675 | F33: 510528 | H33: 2603203 | J33: =+'App.2-B_Fixed Asset Cont 2009SM'!M33 -> -73097 | K33: -156529 | M33: -229626 | N33: 2373577
A34: 45.1 | B34: 1920 | C34: Computer Hardware (Smart Meters) | D34: 0.2 | E34: =+'App.2-B_Fixed Asset Cont 2009SM'!H34 -> 19880 | F34: 41893 | H34: 61773 | J34: =+'App.2-B_Fixed Asset Cont 2009SM'!M34 -> -1988 | K34: -8165 | M34: -10153 | N34: 51620
A35: 12 | B35: 1925 | C35: Computer Software (Smart Meters) | D35: 0.3333 | E35: =+'App.2-B_Fixed Asset Cont 2009SM'!H35 -> 43754 | F35: =65463-43754 -> 21709 | H35: 65463 | J35: =+'App.2-B_Fixed Asset Cont 2009SM'!M35 -> -4375 | K35: -10922 | M35: -15297 | N35: 50166
A36: N/A | B36: 1905 | C36: Land | M36: 0 | N36: 0
A37: 47 | B37: 1908 | C37: Buildings & Fixtures | H37: 0 | M37: 0 | N37: 0
A38: 13 | B38: 1910 | C38: Leasehold Improvements | H38: 0 | M38: 0 | N38: 0
A39: 8 | B39: 1915 | C39: Office Furniture & Equipment (10 years) | D39: 0.1 | E39: =+'App.2-B_Fixed Asset Cont 2009'!H35 -> 244053.3 | F39: 7834.05 | H39: 251887.35 | J39: =+'App.2-B_Fixed Asset Cont 2009'!M35 -> -152149.8 | K39: -19348.2 | M39: -171498 | N39: 80389.35
A40: 8 | B40: 1915 | C40: Office Furniture & Equipment (5 years) | H40: 0 | M40: 0 | N40: 0
A41: 10 | B41: 1920 | C41: Computer Equipment - Hardware | D41: 0.2 | E41: =+'App.2-B_Fixed Asset Cont 2009'!H37 -> 275946.03 | H41: 275946.03 | J41: =+'App.2-B_Fixed Asset Cont 2009'!M37 -> -152871.07 | M41: -152871.07 | N41: 123074.96
A42: 45 | B42: 1920 | C42: Computer Equip.-Hardware(Post Mar. 22/04) | D42: 0.2 | E42: =+'App.2-B_Fixed Asset Cont 2009'!H38 -> 52211.63 | H42: 52211.63 | J42: =+'App.2-B_Fixed Asset Cont 2009'!M38 -> -141313.59 | K42: =-4927 -> -4927 | M42: -146240.59 | N42: -94028.96
A43: 45.1 | B43: 1920 | C43: Computer Equip.-Hardware(Post Mar. 19/07) | D43: 0.2 | E43: =+'App.2-B_Fixed Asset Cont 2009'!H39 -> 93570 | F43: 14881.22 | H43: 108451.22 | J43: =+'App.2-B_Fixed Asset Cont 2009'!M39 -> -61063.52 | K43: =-25129.12+4927 -> -20202.12 | M43: -81265.64 | N43: 27185.58
A44: 12 | B44: 1925 | C44: Computer Software (Formally known as Account 1925) | D44: 0.3333 | E44: =+'App.2-B_Fixed Asset Cont 2009'!H40 -> 750359.22 | F44: 104332.02 | H44: 854691.24 | J44: =+'App.2-B_Fixed Asset Cont 2009'!M40 -> -705897.22 | K44: -41811.68 | M44: -747708.9 | N44: 106982.34
A45: 10 | B45: 1930 | C45: Transportation Equipment | D45: 0.125 | E45: =+'App.2-B_Fixed Asset Cont 2009'!H41 -> 1647124.24 | F45: =191546.79+85000 -> 276546.79 | G45: -85000 | H45: 1838671.03 | J45: =+'App.2-B_Fixed Asset Cont 2009'!M41 -> -1079029.24 | K45: =-64235.83-85000 -> -149235.83 | L45: 85000 | M45: -1143265.07 | N45: 695405.96
A46: 8 | B46: 1935 | C46: Stores Equipment | D46: 0.1 | E46: =+'App.2-B_Fixed Asset Cont 2009'!H42 -> 90937.21 | H46: 90937.21 | J46: =+'App.2-B_Fixed Asset Cont 2009'!M42 -> -12524.21 | K46: -8885.89 | M46: -21410.1 | N46: 69527.11
A47: 8 | B47: 1940 | C47: Tools, Shop & Garage Equipment | D47: 0.1 | E47: =+'App.2-B_Fixed Asset Cont 2009'!H43 -> 242108.78 | F47: 36167.24 | H47: 278276.02 | J47: =+'App.2-B_Fixed Asset Cont 2009'!M43 -> -149730.78 | K47: -16123.03 | M47: -165853.81 | N47: 112422.21
A48: 8 | B48: 1945 | C48: Measurement & Testing Equipment | D48: 0.1 | E48: =+'App.2-B_Fixed Asset Cont 2009'!H44 -> 59760 | F48: 3378.5 | H48: 63138.5 | J48: =+'App.2-B_Fixed Asset Cont 2009'!M44 -> -22311.5 | K48: -6144.93 | M48: -28456.43 | N48: 34682.07
A49: 8 | B49: 1950 | C49: Power Operated Equipment | D49: 0.125 | E49: =+'App.2-B_Fixed Asset Cont 2009'!H45 -> 100271.96 | H49: 100271.96 | J49: =+'App.2-B_Fixed Asset Cont 2009'!M45 -> -32372.46 | K49: -7997.33 | M49: -40369.79 | N49: 59902.17
A50: 8 | B50: 1955 | C50: Communications Equipment | D50: 0.1 | E50: =+'App.2-B_Fixed Asset Cont 2009'!H46 -> 102070.39 | F50: =74102.85+24925.26 -> 99028.11 | G50: -24925.26 | H50: 176173.24 | J50: =+'App.2-B_Fixed Asset Cont 2009'!M46 -> -97484.39 | K50: =11875.97-22355.26 -> -10479.29 | L50: 22355.26 | M50: -85608.42 | N50: 90564.82
A51: 8 | B51: 1955 | C51: Communication Equipment (Smart Meters) | H51: 0 | M51: 0 | N51: 0
A52: 8 | B52: 1960 | C52: Miscellaneous Equipment | D52: 0.1 | E52: =+'App.2-B_Fixed Asset Cont 2009'!H48 -> 37793.26 | F52: 5700.21 | H52: 43493.47 | J52: =+'App.2-B_Fixed Asset Cont 2009'!M48 -> -21984.76 | K52: -4064.17 | M52: -26048.93 | N52: 17444.54
A53: 47 | B53: 1975 | C53: Load Management Controls Utility Premises | D53: 0.1 | E53: =+'App.2-B_Fixed Asset Cont 2009'!H49 -> 258630.5 | H53: 258630.5 | J53: =+'App.2-B_Fixed Asset Cont 2009'!M49 -> -258630.5 | M53: -258630.5 | N53: 0
A54: 47 | B54: 1980 | C54: System Supervisor Equipment | H54: 0 | M54: 0 | N54: 0
A55: 47 | B55: 1985 | C55: Miscellaneous Fixed Assets | D55: 0.1 | E55: =+'App.2-B_Fixed Asset Cont 2009'!H51 -> 1427 | H55: 1427 | J55: =+'App.2-B_Fixed Asset Cont 2009'!M51 -> -1426.68 | M55: -1426.68 | N55: 0.32
A56: 47 | B56: 1995 | C56: Contributions & Grants | D56: 0.04 | E56: =+'App.2-B_Fixed Asset Cont 2009'!H52 -> -7268123.68 | F56: =-7030472.68+2597998.94+763760.36+1384445.94+1880086.7+116567.45 -> -287613.29 | H56: -7555736.97 | J56: =+'App.2-B_Fixed Asset Cont 2009'!M52 -> 1107381.57 | K56: =941979.13-161137.36-144996.44-324962.7-14088.84 -> 296793.79 | M56: 1404175.36 | N56: -6151561.61
B57: etc. | H57: 0 | M57: 0 | N57: 0
C59: Total | E59: =SUM(E16:E58) -> 43100166.94 | F59: =SUM(F16:F58) -> 3315932.22 | G59: -396102.12 | H59: 46019997.04 | J59: =SUM(J16:J58) -> -13820463.61 | K59: =SUM(K16:K58) -> -2030939.97 | L59: 261843.26 | M59: -15589560.32 | N59: 30430436.72
J61: Less: Fully Allocated Depreciation
A62: 10 | C62: Transportation | J62: Transportation
A63: 8 | C63: Stores Equipment | J63: Stores Equipment
J64: Net Depreciation | L64: =L59-L62-L63 -> 261843.26
A66: Notes:
A68: 1 | B68: Tables in the format outlined above covering all fixed asset accounts should be submitted for the Test Year, Bridge Year and all relevant historical years. At a minimum , the applicant must provide data for the earlier of: 1) all historical years back to its last rebasing; or 2) at least three years of historical actuals, in addition to Bridge Year and Test Year forecasts.
A71: 2 | B71: The "CCA Class" for fixed assets should agree with the CCA Class used for tax purposes in Tax Returns. Fixed Assets sub-components may be used where the underlying asset components are classified under multiple CCA Classes for tax purposes. If an applicant uses any different classes from those shown in the table, an explanation should be provided. (also see note 3 below).
A74: 3 | B74: The table may need to be customized for a utility's asset categories or for any new asset accounts announced or authorized by the Board.
A76: 4 | B76: The depreciation column (D) is not required as the relevant information will be provided in the following 2-C series of appendices.

Sheet App.2-B_Fixed Asset Cont 2011 (hidden)
M1: File Number: | N1: ='LDC Info'!$E$18 -> EB2012-0176
M2: Exhibit:
M3: Tab:
M4: Schedule:
M5: Page:
M7: Date:
A9: Appendix 2-B
A10: Fixed Asset Continuity Schedule
F12: Year | G12: 2011
E14: Cost | K14: Accumulated Depreciation
A15: CCA Class | B15: OEB | C15: Description | D15: Depreciation Rate | E15: Opening Balance | F15: Additions | G15: Disposals | H15: Closing Balance | J15: Opening Balance | K15: Additions | L15: Disposals | M15: Closing Balance | N15: Net Book Value
A16: 12 | B16: 1611 | C16: Computer Software (Formally known as Account 1925) | H16: =E16+F16+G16 -> 0 | M16: =J16+K16+L16 -> 0 | N16: =H16+M16 -> 0
A17: CEC | B17: 1612 | C17: Land Rights (Formally known as Account 1906) | H17: =E17+F17+G17 -> 0 | M17: =J17+K17+L17 -> 0 | N17: =H17+M17 -> 0
A18: N/A | B18: 1805 | C18: Land | E18: =+'App.2-B_Fixed Asset Cont 2010'!H18 -> 227768.86 | H18: =E18+F18+G18 -> 227768.86 | M18: =J18+K18+L18 -> 0 | N18: =H18+M18 -> 227768.86
A19: 47 | B19: 1808 | C19: Buildings | D19: 0.02 | E19: =+'App.2-B_Fixed Asset Cont 2010'!H19 -> 2486318 | H19: =E19+F19+G19 -> 2486318 | J19: =+'App.2-B_Fixed Asset Cont 2010'!M19 -> -175310.82 | K19: -49886.67 | M19: =J19+K19+L19 -> -225197.49 | N19: =H19+M19 -> 2261120.51
A20: 13 | B20: 1810 | C20: Leasehold Improvements | H20: 0 | M20: 0 | N20: 0
A21: 47 | B21: 1815 | C21: Transformer Station Equipment >50 kV | H21: 0 | M21: 0 | N21: 0
A22: 47 | B22: 1820 | C22: Distribution Station Equipment <50 kV | D22: 0.0333 | E22: =+'App.2-B_Fixed Asset Cont 2010'!H22 -> 3818489.54 | F22: 450639.48 | H22: 4269129.02 | J22: =+'App.2-B_Fixed Asset Cont 2010'!M22 -> -1439216.04 | K22: -136439.37 | M22: -1575655.41 | N22: 2693473.61
A23: 47 | B23: 1825 | C23: Storage Battery Equipment | H23: 0 | M23: 0 | N23: 0
A24: 47 | B24: 1830 | C24: Poles, Towers & Fixtures | D24: 0.04 | E24: =+'App.2-B_Fixed Asset Cont 2010'!H24 -> 6563767.39 | F24: 542315.17 | H24: 7106082.56 | J24: =+'App.2-B_Fixed Asset Cont 2010'!M24 -> -2053188.45 | K24: -294873 | M24: -2348061.45 | N24: 4758021.11
A25: 47 | B25: 1835 | C25: Overhead Conductors & Devices | D25: 0.04 | E25: =+'App.2-B_Fixed Asset Cont 2010'!H25 -> 9073534.28 | F25: 673323.17 | H25: 9746857.45 | J25: =+'App.2-B_Fixed Asset Cont 2010'!M25 -> -2928403.8 | K25: -411444.53 | M25: -3339848.33 | N25: 6407009.12
A26: 47 | B26: 1840 | C26: Underground Conduit | D26: 0.04 | E26: =+'App.2-B_Fixed Asset Cont 2010'!H26 -> 2706285.59 | F26: 338350.33 | H26: 3044635.92 | J26: =+'App.2-B_Fixed Asset Cont 2010'!M26 -> -835369.61 | K26: -124188.43 | M26: -959558.04 | N26: 2085077.88
A27: 47 | B27: 1845 | C27: Underground Conductors & Devices | D27: 0.04 | E27: =+'App.2-B_Fixed Asset Cont 2010'!H27 -> 8297546.35 | F27: 551064.44 | H27: 8848610.79 | J27: =+'App.2-B_Fixed Asset Cont 2010'!M27 -> -2279514.39 | K27: -372006.35 | M27: -2651520.74 | N27: 6197090.05
A28: 47 | B28: 1850 | C28: Line Transformers | D28: 0.04 | E28: =+'App.2-B_Fixed Asset Cont 2010'!H28 -> 7500290.76 | F28: 507269.99 | H28: 8007560.75 | J28: =+'App.2-B_Fixed Asset Cont 2010'!M28 -> -2352757.85 | K28: -338711.37 | M28: -2691469.22 | N28: 5316091.53
A29: 47 | B29: 1855 | C29: Services (Overhead & Underground) | D29: 0.04 | E29: =+'App.2-B_Fixed Asset Cont 2010'!H29 -> 3957038.32 | F29: 473443.88 | H29: 4430482.2 | J29: =+'App.2-B_Fixed Asset Cont 2010'!M29 -> -1135994.75 | K29: -178825.3 | M29: -1314820.05 | N29: 3115662.15
A30: 47 | B30: 1860 | C30: Meters | D30: 0.04 | E30: =+'App.2-B_Fixed Asset Cont 2010'!H30 -> 1820049.54 | F30: 64884 | G30: -305369.88 | H30: 1579563.66 | J30: =+'App.2-B_Fixed Asset Cont 2010'!M30 -> -468250.04 | K30: =-61785 -> -61785 | L30: =110230+2522 -> 112752 | M30: -417283.04 | N30: 1162280.62
A31: 8 | B31: 1860 | C31: Meters (Smart Meters) | D31: 0.04 | F31: 105634 | H31: 105634 | K31: -2150.23 | M31: -2150.23 | N31: 103483.77
A32: N/A | B32: 1905 | C32: Land | H32: 0 | M32: 0 | N32: 0
A33: 47 | B33: 1908 | C33: Buildings & Fixtures | H33: 0 | M33: 0 | N33: 0
A34: 13 | B34: 1910 | C34: Leasehold Improvements | H34: 0 | M34: 0 | N34: 0
A35: 8 | B35: 1915 | C35: Office Furniture & Equipment (10 years) | D35: 0.1 | E35: =+'App.2-B_Fixed Asset Cont 2010'!H35 -> 251887.35 | F35: 10588.8 | H35: 262476.15 | J35: =+'App.2-B_Fixed Asset Cont 2010'!M35 -> -171498 | K35: -14530.6 | M35: -186028.6 | N35: 76447.55
A36: 8 | B36: 1915 | C36: Office Furniture & Equipment (5 years) | H36: 0 | M36: 0 | N36: 0
A37: 10 | B37: 1920 | C37: Computer Equipment - Hardware | D37: 0.2 | E37: =+'App.2-B_Fixed Asset Cont 2010'!H37 -> 275946.03 | H37: 275946.03 | J37: =+'App.2-B_Fixed Asset Cont 2010'!M37 -> -152871.07 | M37: -152871.07 | N37: 123074.96
A38: 45 | B38: 1920 | C38: Computer Equip.-Hardware(Post Mar. 22/04) | D38: 0.2 | E38: =+'App.2-B_Fixed Asset Cont 2010'!H38 -> 52211.63 | H38: 52211.63 | J38: =+'App.2-B_Fixed Asset Cont 2010'!M38 -> -146240.59 | M38: -146240.59 | N38: -94028.96
A39: 45.1 | B39: 1920 | C39: Computer Equip.-Hardware(Post Mar. 19/07) | D39: 0.2 | E39: =+'App.2-B_Fixed Asset Cont 2010'!H39 -> 108451.22 | F39: 45385.48 | H39: 153836.7 | J39: =+'App.2-B_Fixed Asset Cont 2010'!M39 -> -81265.64 | K39: -26228.24 | M39: -107493.88 | N39: 46342.82
A40: 12 | B40: 1925 | C40: Computer Software (Formally known as Account 1925) | D40: 0.3333333333 | E40: =+'App.2-B_Fixed Asset Cont 2010'!H40 -> 854691.24 | F40: 89764.83 | H40: 944456.07 | J40: =+'App.2-B_Fixed Asset Cont 2010'!M40 -> -747708.9 | K40: -65863.26 | M40: -813572.16 | N40: 130883.91
A41: 10 | B41: 1930 | C41: Transportation Equipment | D41: 0.125 | E41: =+'App.2-B_Fixed Asset Cont 2010'!H41 -> 1838671.03 | F41: 284250 | G41: -138750 | H41: 1984171.03 | J41: =+'App.2-B_Fixed Asset Cont 2010'!M41 -> -1143265.07 | K41: =-45358.13-138750 -> -184108.13 | L41: 138750 | M41: -1188623.2 | N41: 795547.83
A42: 8 | B42: 1935 | C42: Stores Equipment | D42: 0.1 | E42: =+'App.2-B_Fixed Asset Cont 2010'!H42 -> 90937.21 | G42: -5900 | H42: 85037.21 | J42: =+'App.2-B_Fixed Asset Cont 2010'!M42 -> -21410.1 | K42: =-4755.89-3540 -> -8295.89 | L42: 3540 | M42: -26165.99 | N42: 58871.22
A43: 8 | B43: 1940 | C43: Tools, Shop & Garage Equipment | D43: 0.1 | E43: =+'App.2-B_Fixed Asset Cont 2010'!H43 -> 278276.02 | F43: 18504.95 | H43: 296780.97 | J43: =+'App.2-B_Fixed Asset Cont 2010'!M43 -> -165853.81 | K43: -18526.1 | M43: -184379.91 | N43: 112401.06
A44: 8 | B44: 1945 | C44: Measurement & Testing Equipment | D44: 0.1 | E44: =+'App.2-B_Fixed Asset Cont 2010'!H44 -> 63138.5 | F44: 4405.08 | H44: 67543.58 | J44: =+'App.2-B_Fixed Asset Cont 2010'!M44 -> -28456.43 | K44: -6533.03 | M44: -34989.46 | N44: 32554.12
A45: 8 | B45: 1950 | C45: Power Operated Equipment | D45: 0.125 | E45: =+'App.2-B_Fixed Asset Cont 2010'!H45 -> 100271.96 | G45: -11000 | H45: 89271.96 | J45: =+'App.2-B_Fixed Asset Cont 2010'!M45 -> -40369.79 | K45: -7997.33 | L45: 11000 | M45: -37367.12 | N45: 51904.84
A46: 8 | B46: 1955 | C46: Communications Equipment | D46: 0.1 | E46: =+'App.2-B_Fixed Asset Cont 2010'!H46 -> 176173.24 | H46: 176173.24 | J46: =+'App.2-B_Fixed Asset Cont 2010'!M46 -> -85608.42 | K46: -20382.11 | M46: -105990.53 | N46: 70182.71
A47: 8 | B47: 1955 | C47: Communication Equipment (Smart Meters) | H47: 0 | M47: 0 | N47: 0
A48: 8 | B48: 1960 | C48: Miscellaneous Equipment | D48: 0.1 | E48: =+'App.2-B_Fixed Asset Cont 2010'!H48 -> 43493.47 | H48: 43493.47 | J48: =+'App.2-B_Fixed Asset Cont 2010'!M48 -> -26048.93 | K48: -3693.18 | M48: -29742.11 | N48: 13751.36
A49: 47 | B49: 1975 | C49: Load Management Controls Utility Premises | D49: 0.1 | E49: =+'App.2-B_Fixed Asset Cont 2010'!H49 -> 258630.5 | H49: 258630.5 | J49: =+'App.2-B_Fixed Asset Cont 2010'!M49 -> -258630.5 | M49: -258630.5 | N49: 0
A50: 47 | B50: 1980 | C50: System Supervisor Equipment | H50: 0 | M50: 0 | N50: 0
A51: 47 | B51: 1985 | C51: Miscellaneous Fixed Assets | D51: 0.1 | E51: =+'App.2-B_Fixed Asset Cont 2010'!H51 -> 1427 | H51: 1427 | J51: =+'App.2-B_Fixed Asset Cont 2010'!M51 -> -1426.68 | M51: -1426.68 | N51: 0.32
A52: 47 | B52: 1995 | C52: Contributions & Grants | D52: 0.04 | E52: =+'App.2-B_Fixed Asset Cont 2010'!H52 -> -7555736.97 | F52: -632720.38 | H52: -8188457.35 | J52: =+'App.2-B_Fixed Asset Cont 2010'!M52 -> 1404175.36 | K52: 315631.19 | M52: 1719806.55 | N52: -6468650.8
B53: etc. | H53: 0 | M53: 0 | N53: 0
C55: Total | E55: =SUM(E16:E54) -> 43289558.06 | F55: =SUM(F16:F54) -> 3527103.22 | G55: -461019.88 | H55: 46355641.4 | J55: =SUM(J16:J54) -> -15334484.32 | K55: =SUM(K16:K54) -> -2010836.93 | L55: 266042 | M55: -17079279.25 | N55: 29276362.15
J57: Less: Fully Allocated Depreciation
A58: 10 | C58: Transportation | J58: Transportation
A59: 8 | C59: Stores Equipment | J59: Stores Equipment
J60: Net Depreciation | L60: =L55-L58-L59 -> 266042
A62: Notes:
A64: 1 | B64: Tables in the format outlined above covering all fixed asset accounts should be submitted for the Test Year, Bridge Year and all relevant historical years. At a minimum , the applicant must provide data for the earlier of: 1) all historical years back to its last rebasing; or 2) at least three years of historical actuals, in addition to Bridge Year and Test Year forecasts.
A67: 2 | B67: The "CCA Class" for fixed assets should agree with the CCA Class used for tax purposes in Tax Returns. Fixed Assets sub-components may be used where the underlying asset components are classified under multiple CCA Classes for tax purposes. If an applicant uses any different classes from those shown in the table, an explanation should be provided. (also see note 3 below).
A70: 3 | B70: The table may need to be customized for a utility's asset categories or for any new asset accounts announced or authorized by the Board.
A72: 4 | B72: The depreciation column (D) is not required as the relevant information will be provided in the following 2-C series of appendices.

Sheet App.2-B_Fixed Asset Cont 2011SM (hidden)
M1: File Number: | N1: ='LDC Info'!$E$18 -> EB2012-0176
M2: Exhibit:
M3: Tab:
M4: Schedule:
M5: Page:
M7: Date:
A9: Appendix 2-B
A10: Fixed Asset Continuity Schedule - Smart Meter Capital Additions Included In Schedule
F12: Year | G12: 2011
E14: Cost | K14: Accumulated Depreciation
A15: CCA Class | B15: OEB | C15: Description | D15: Depreciation Rate | E15: Opening Balance | F15: Additions | G15: Disposals | H15: Closing Balance | J15: Opening Balance | K15: Additions | L15: Disposals | M15: Closing Balance | N15: Net Book Value
A16: 12 | B16: 1611 | C16: Computer Software (Formally known as Account 1925) | H16: =E16+F16+G16 -> 0 | M16: =J16+K16+L16 -> 0 | N16: =H16+M16 -> 0
A17: CEC | B17: 1612 | C17: Land Rights (Formally known as Account 1906) | H17: =E17+F17+G17 -> 0 | M17: =J17+K17+L17 -> 0 | N17: =H17+M17 -> 0
A18: N/A | B18: 1805 | C18: Land | E18: =+'App.2-B_Fixed Asset Cont 2010'!H18 -> 227768.86 | H18: =E18+F18+G18 -> 227768.86 | M18: =J18+K18+L18 -> 0 | N18: =H18+M18 -> 227768.86
A19: 47 | B19: 1808 | C19: Buildings | D19: 0.02 | E19: =+'App.2-B_Fixed Asset Cont 2010'!H19 -> 2486318 | H19: =E19+F19+G19 -> 2486318 | J19: =+'App.2-B_Fixed Asset Cont 2010'!M19 -> -175310.82 | K19: -49886.67 | M19: =J19+K19+L19 -> -225197.49 | N19: =H19+M19 -> 2261120.51
A20: 13 | B20: 1810 | C20: Leasehold Improvements | H20: 0 | M20: 0 | N20: 0
A21: 47 | B21: 1815 | C21: Transformer Station Equipment >50 kV | H21: 0 | M21: 0 | N21: 0
A22: 47 | B22: 1820 | C22: Distribution Station Equipment <50 kV | D22: 0.0333 | E22: =+'App.2-B_Fixed Asset Cont 2010'!H22 -> 3818489.54 | F22: 450639.48 | H22: 4269129.02 | J22: =+'App.2-B_Fixed Asset Cont 2010'!M22 -> -1439216.04 | K22: -136439.37 | M22: -1575655.41 | N22: 2693473.61
A23: 47 | B23: 1825 | C23: Storage Battery Equipment | H23: 0 | M23: 0 | N23: 0
A24: 47 | B24: 1830 | C24: Poles, Towers & Fixtures | D24: 0.04 | E24: =+'App.2-B_Fixed Asset Cont 2010'!H24 -> 6563767.39 | F24: 542315.17 | H24: 7106082.56 | J24: =+'App.2-B_Fixed Asset Cont 2010'!M24 -> -2053188.45 | K24: -294873 | M24: -2348061.45 | N24: 4758021.11
A25: 47 | B25: 1835 | C25: Overhead Conductors & Devices | D25: 0.04 | E25: =+'App.2-B_Fixed Asset Cont 2010'!H25 -> 9073534.28 | F25: 673323.17 | H25: 9746857.45 | J25: =+'App.2-B_Fixed Asset Cont 2010'!M25 -> -2928403.8 | K25: -411444.53 | M25: -3339848.33 | N25: 6407009.12
A26: 47 | B26: 1840 | C26: Underground Conduit | D26: 0.04 | E26: =+'App.2-B_Fixed Asset Cont 2010'!H26 -> 2706285.59 | F26: 338350.33 | H26: 3044635.92 | J26: =+'App.2-B_Fixed Asset Cont 2010'!M26 -> -835369.61 | K26: -124188.43 | M26: -959558.04 | N26: 2085077.88
A27: 47 | B27: 1845 | C27: Underground Conductors & Devices | D27: 0.04 | E27: =+'App.2-B_Fixed Asset Cont 2010'!H27 -> 8297546.35 | F27: 551064.44 | H27: 8848610.79 | J27: =+'App.2-B_Fixed Asset Cont 2010'!M27 -> -2279514.39 | K27: -372006.35 | M27: -2651520.74 | N27: 6197090.05
A28: 47 | B28: 1850 | C28: Line Transformers | D28: 0.04 | E28: =+'App.2-B_Fixed Asset Cont 2010'!H28 -> 7500290.76 | F28: 507269.99 | H28: 8007560.75 | J28: =+'App.2-B_Fixed Asset Cont 2010'!M28 -> -2352757.85 | K28: -338711.37 | M28: -2691469.22 | N28: 5316091.53
A29: 47 | B29: 1855 | C29: Services (Overhead & Underground) | D29: 0.04 | E29: =+'App.2-B_Fixed Asset Cont 2010'!H29 -> 3957038.32 | F29: 473443.88 | H29: 4430482.2 | J29: =+'App.2-B_Fixed Asset Cont 2010'!M29 -> -1135994.75 | K29: -178825.3 | M29: -1314820.05 | N29: 3115662.15
A30: 47 | B30: 1860 | C30: Meters | D30: 0.04 | E30: =+'App.2-B_Fixed Asset Cont 2010'!H30 -> 1820049.54 | F30: 64884 | G30: -305369.88 | H30: 1579563.66 | J30: =+'App.2-B_Fixed Asset Cont 2010'!M30 -> -468250.04 | K30: =-61785 -> -61785 | L30: =110230+2522 -> 112752 | M30: -417283.04 | N30: 1162280.62
A31: 8 | B31: 1860 | C31: Meters (Smart Meters) | D31: 0.04 | F31: 105634 | H31: 105634 | K31: -2150.23 | M31: -2150.23 | N31: 103483.77
B32: 3 Lines | C32: Smart Meter Additions Recorded in 1555
A33: 8 | B33: 1860 | C33: Meters (Smart Meters) | D33: 0.04 | E33: =+'App.2-B_Fixed Asset Cont 2010SM'!H33 -> 2603203 | F33: =771849-2956 -> 768893 | G33: -2955 | H33: 3369141 | J33: =+'App.2-B_Fixed Asset Cont 2010SM'!M33 -> -229626 | K33: -199177 | M33: -428803 | N33: 2940338
A34: 45.1 | B34: 1920 | C34: Computer Hardware (Smart Meters) | D34: 0.2 | E34: =+'App.2-B_Fixed Asset Cont 2010SM'!H34 -> 61773 | F34: 1100 | H34: 62873 | J34: =+'App.2-B_Fixed Asset Cont 2010SM'!M34 -> -10153 | K34: -12465 | M34: -22618 | N34: 40255
A35: 12 | B35: 1925 | C35: Computer Software (Smart Meters) | D35: 0.3333 | E35: =+'App.2-B_Fixed Asset Cont 2010SM'!H35 -> 65463 | F35: 97450 | H35: 162913 | J35: =+'App.2-B_Fixed Asset Cont 2010SM'!M35 -> -15297 | K35: -22838 | M35: -38135 | N35: 124778
A36: N/A | B36: 1905 | C36: Land | H36: 0 | M36: 0 | N36: 0
A37: 47 | B37: 1908 | C37: Buildings & Fixtures | H37: 0 | M37: 0 | N37: 0
A38: 13 | B38: 1910 | C38: Leasehold Improvements | H38: 0 | M38: 0 | N38: 0
A39: 8 | B39: 1915 | C39: Office Furniture & Equipment (10 years) | D39: 0.1 | E39: =+'App.2-B_Fixed Asset Cont 2010'!H35 -> 251887.35 | F39: 10588.8 | H39: 262476.15 | J39: =+'App.2-B_Fixed Asset Cont 2010'!M35 -> -171498 | K39: -14530.6 | M39: -186028.6 | N39: 76447.55
A40: 8 | B40: 1915 | C40: Office Furniture & Equipment (5 years) | H40: 0 | M40: 0 | N40: 0
A41: 10 | B41: 1920 | C41: Computer Equipment - Hardware | D41: 0.2 | E41: =+'App.2-B_Fixed Asset Cont 2010'!H37 -> 275946.03 | H41: 275946.03 | J41: =+'App.2-B_Fixed Asset Cont 2010'!M37 -> -152871.07 | M41: -152871.07 | N41: 123074.96
A42: 45 | B42: 1920 | C42: Computer Equip.-Hardware(Post Mar. 22/04) | D42: 0.2 | E42: =+'App.2-B_Fixed Asset Cont 2010'!H38 -> 52211.63 | H42: 52211.63 | J42: =+'App.2-B_Fixed Asset Cont 2010'!M38 -> -146240.59 | M42: -146240.59 | N42: -94028.96
A43: 45.1 | B43: 1920 | C43: Computer Equip.-Hardware(Post Mar. 19/07) | D43: 0.2 | E43: =+'App.2-B_Fixed Asset Cont 2010'!H39 -> 108451.22 | F43: 45385.48 | H43: 153836.7 | J43: =+'App.2-B_Fixed Asset Cont 2010'!M39 -> -81265.64 | K43: -26228.24 | M43: -107493.88 | N43: 46342.82
A44: 12 | B44: 1925 | C44: Computer Software (Formally known as Account 1925) | D44: 0.3333333333 | E44: =+'App.2-B_Fixed Asset Cont 2010'!H40 -> 854691.24 | F44: 89764.83 | H44: 944456.07 | J44: =+'App.2-B_Fixed Asset Cont 2010'!M40 -> -747708.9 | K44: -65863.26 | M44: -813572.16 | N44: 130883.91
A45: 10 | B45: 1930 | C45: Transportation Equipment | D45: 0.125 | E45: =+'App.2-B_Fixed Asset Cont 2010'!H41 -> 1838671.03 | F45: 284250 | G45: -138750 | H45: 1984171.03 | J45: =+'App.2-B_Fixed Asset Cont 2010'!M41 -> -1143265.07 | K45: =-45358.13-138750 -> -184108.13 | L45: 138750 | M45: -1188623.2 | N45: 795547.83
A46: 8 | B46: 1935 | C46: Stores Equipment | D46: 0.1 | E46: =+'App.2-B_Fixed Asset Cont 2010'!H42 -> 90937.21 | G46: -5900 | H46: 85037.21 | J46: =+'App.2-B_Fixed Asset Cont 2010'!M42 -> -21410.1 | K46: =-4755.89-3540 -> -8295.89 | L46: 3540 | M46: -26165.99 | N46: 58871.22
A47: 8 | B47: 1940 | C47: Tools, Shop & Garage Equipment | D47: 0.1 | E47: =+'App.2-B_Fixed Asset Cont 2010'!H43 -> 278276.02 | F47: 18504.95 | H47: 296780.97 | J47: =+'App.2-B_Fixed Asset Cont 2010'!M43 -> -165853.81 | K47: -18526.1 | M47: -184379.91 | N47: 112401.06
A48: 8 | B48: 1945 | C48: Measurement & Testing Equipment | D48: 0.1 | E48: =+'App.2-B_Fixed Asset Cont 2010'!H44 -> 63138.5 | F48: 4405.08 | H48: 67543.58 | J48: =+'App.2-B_Fixed Asset Cont 2010'!M44 -> -28456.43 | K48: -6533.03 | M48: -34989.46 | N48: 32554.12
A49: 8 | B49: 1950 | C49: Power Operated Equipment | D49: 0.125 | E49: =+'App.2-B_Fixed Asset Cont 2010'!H45 -> 100271.96 | G49: -11000 | H49: 89271.96 | J49: =+'App.2-B_Fixed Asset Cont 2010'!M45 -> -40369.79 | K49: -7997.33 | L49: 11000 | M49: -37367.12 | N49: 51904.84
A50: 8 | B50: 1955 | C50: Communications Equipment | D50: 0.1 | E50: =+'App.2-B_Fixed Asset Cont 2010'!H46 -> 176173.24 | H50: 176173.24 | J50: =+'App.2-B_Fixed Asset Cont 2010'!M46 -> -85608.42 | K50: -20382.11 | M50: -105990.53 | N50: 70182.71
A51: 8 | B51: 1955 | C51: Communication Equipment (Smart Meters) | H51: 0 | M51: 0 | N51: 0
A52: 8 | B52: 1960 | C52: Miscellaneous Equipment | D52: 0.1 | E52: =+'App.2-B_Fixed Asset Cont 2010'!H48 -> 43493.47 | H52: 43493.47 | J52: =+'App.2-B_Fixed Asset Cont 2010'!M48 -> -26048.93 | K52: -3693.18 | M52: -29742.11 | N52: 13751.36
A53: 47 | B53: 1975 | C53: Load Management Controls Utility Premises | D53: 0.1 | E53: =+'App.2-B_Fixed Asset Cont 2010'!H49 -> 258630.5 | H53: 258630.5 | J53: =+'App.2-B_Fixed Asset Cont 2010'!M49 -> -258630.5 | M53: -258630.5 | N53: 0
A54: 47 | B54: 1980 | C54: System Supervisor Equipment | H54: 0 | M54: 0 | N54: 0
A55: 47 | B55: 1985 | C55: Miscellaneous Fixed Assets | D55: 0.1 | E55: =+'App.2-B_Fixed Asset Cont 2010'!H51 -> 1427 | H55: 1427 | J55: =+'App.2-B_Fixed Asset Cont 2010'!M51 -> -1426.68 | M55: -1426.68 | N55: 0.32
A56: 47 | B56: 1995 | C56: Contributions & Grants | D56: 0.04 | E56: =+'App.2-B_Fixed Asset Cont 2010'!H52 -> -7555736.97 | F56: -632720.38 | H56: -8188457.35 | J56: =+'App.2-B_Fixed Asset Cont 2010'!M52 -> 1404175.36 | K56: 315631.19 | M56: 1719806.55 | N56: -6468650.8
B57: etc. | H57: 0 | M57: 0 | N57: 0
C59: Total | E59: =SUM(E16:E58) -> 46019997.06 | F59: =SUM(F16:F58) -> 4394546.22 | G59: -463974.88 | H59: 49950568.4 | J59: =SUM(J16:J58) -> -15589560.32 | K59: =SUM(K16:K58) -> -2245316.93 | L59: 266042 | M59: -17568835.25 | N59: 32381733.15
J61: Less: Fully Allocated Depreciation
A62: 10 | C62: Transportation | J62: Transportation
A63: 8 | C63: Stores Equipment | J63: Stores Equipment
J64: Net Depreciation | L64: =L59-L62-L63 -> 266042
A66: Notes:
A68: 1 | B68: Tables in the format outlined above covering all fixed asset accounts should be submitted for the Test Year, Bridge Year and all relevant historical years. At a minimum , the applicant must provide data for the earlier of: 1) all historical years back to its last rebasing; or 2) at least three years of historical actuals, in addition to Bridge Year and Test Year forecasts.
A71: 2 | B71: The "CCA Class" for fixed assets should agree with the CCA Class used for tax purposes in Tax Returns. Fixed Assets sub-components may be used where the underlying asset components are classified under multiple CCA Classes for tax purposes. If an applicant uses any different classes from those shown in the table, an explanation should be provided. (also see note 3 below).
A74: 3 | B74: The table may need to be customized for a utility's asset categories or for any new asset accounts announced or authorized by the Board.
A76: 4 | B76: The depreciation column (D) is not required as the relevant information will be provided in the following 2-C series of appendices.

Sheet App.2-B_Fixed Asset Cont 2012
M1: File Number: | N1: ='LDC Info'!$E$18 -> EB2012-0176
M2: Exhibit:
M3: Tab:
M4: Schedule:
M5: Page:
M7: Date:
A9: Appendix 2-B
A10: Fixed Asset Continuity Schedule - CGAAP
F12: Year | G12: 2012
E14: Cost | K14: Accumulated Depreciation
A15: CCA Class | B15: OEB | C15: Description | D15: Depreciation Rate | E15: Opening Balance | F15: Additions | G15: Disposals | H15: Closing Balance | J15: Opening Balance | K15: Additions | L15: Disposals | M15: Closing Balance | N15: Net Book Value
A16: 12 | B16: 1611 | C16: Computer Software (Formally known as Account 1925) | H16: =E16+F16+G16 -> 0 | M16: =J16+K16+L16 -> 0 | N16: =H16+M16 -> 0
A17: CEC | B17: 1612 | C17: Land Rights (Formally known as Account 1906) | H17: =E17+F17+G17 -> 0 | M17: =J17+K17+L17 -> 0 | N17: =H17+M17 -> 0
A18: N/A | B18: 1805 | C18: Land | E18: =+'App.2-B_Fixed Asset Cont 2011'!H18 -> 227768.86 | H18: =E18+F18+G18 -> 227768.86 | M18: =J18+K18+L18 -> 0 | N18: =H18+M18 -> 227768.86
A19: 47 | B19: 1808 | C19: Buildings | D19: 0.02 | E19: =+'App.2-B_Fixed Asset Cont 2011'!H19 -> 2486318 | F19: =5000-5000 -> 0 | H19: =E19+F19+G19 -> 2486318 | J19: =+'App.2-B_Fixed Asset Cont 2011'!M19 -> -225197.49 | K19: =-49937+(5000/100) -> -49887 | M19: =J19+K19+L19 -> -275084.49 | N19: =H19+M19 -> 2211233.51
A20: 13 | B20: 1810 | C20: Leasehold Improvements | H20: 0 | J20: =+'App.2-B_Fixed Asset Cont 2011'!M20 -> 0 | M20: 0 | N20: 0
A21: 47 | B21: 1815 | C21: Transformer Station Equipment >50 kV | H21: 0 | J21: =+'App.2-B_Fixed Asset Cont 2011'!M21 -> 0 | M21: 0 | N21: 0
A22: 47 | B22: 1820 | C22: Distribution Station Equipment <50 kV | D22: 0.0333 | E22: =+'App.2-B_Fixed Asset Cont 2011'!H22 -> 4269129.02 | F22: =506839-506839 -> 0 | H22: 4269129.02 | J22: =+'App.2-B_Fixed Asset Cont 2011'!M22 -> -1575655.41 | K22: =-147775+506839/60 -> -139327.6833 | M22: -1714983.093 | N22: 2554145.927
A23: 47 | B23: 1825 | C23: Storage Battery Equipment | H23: 0 | J23: =+'App.2-B_Fixed Asset Cont 2011'!M23 -> 0 | M23: 0 | N23: 0
A24: 47 | B24: 1830 | C24: Poles, Towers & Fixtures | D24: 0.04 | E24: =+'App.2-B_Fixed Asset Cont 2011'!H24 -> 7106082.56 | F24: =888906-257153 -> 631753 | H24: 7737835.56 | J24: =+'App.2-B_Fixed Asset Cont 2011'!M24 -> -2348061.45 | K24: =-327658+(631753/50) -> -315022.94 | M24: -2663084.39 | N24: 5074751.17
A25: 47 | B25: 1835 | C25: Overhead Conductors & Devices | D25: 0.04 | E25: =+'App.2-B_Fixed Asset Cont 2011'!H25 -> 9746857.45 | F25: =838997-143407 -> 695590 | H25: 10442447.45 | J25: =+'App.2-B_Fixed Asset Cont 2011'!M25 -> -3339848.33 | K25: =-441852+(143407/50) -> -438983.86 | M25: -3778832.19 | N25: 6663615.26
A26: 47 | B26: 1840 | C26: Underground Conduit | D26: 0.04 | E26: =+'App.2-B_Fixed Asset Cont 2011'!H26 -> 3044635.92 | F26: =290681-41939 -> 248742 | H26: 3293377.92 | J26: =+'App.2-B_Fixed Asset Cont 2011'!M26 -> -959558.04 | K26: =-136788+(41939/50) -> -135949.22 | M26: -1095507.26 | N26: 2197870.66
A27: 47 | B27: 1845 | C27: Underground Conductors & Devices | D27: 0.04 | E27: =+'App.2-B_Fixed Asset Cont 2011'!H27 -> 8848610.79 | F27: =454468-13868 -> 440600 | H27: 9289210.79 | J27: =+'App.2-B_Fixed Asset Cont 2011'!M27 -> -2651520.74 | K27: =-392366+(13868/50) -> -392088.64 | M27: -3043609.38 | N27: 6245601.41
A28: 47 | B28: 1850 | C28: Line Transformers | D28: 0.04 | E28: =+'App.2-B_Fixed Asset Cont 2011'!H28 -> 8007560.75 | F28: =592656-100013 -> 492643 | H28: 8500203.75 | J28: =+'App.2-B_Fixed Asset Cont 2011'!M28 -> -2691469.22 | K28: =-360782+(100013/50) -> -358781.74 | M28: -3050250.96 | N28: 5449952.79
A29: 47 | B29: 1855 | C29: Services (Overhead & Underground) | D29: 0.04 | E29: =+'App.2-B_Fixed Asset Cont 2011'!H29 -> 4430482.2 | F29: =637257+89457 -> 726714 | H29: 5157196.2 | J29: =+'App.2-B_Fixed Asset Cont 2011'!M29 -> -1314820.05 | K29: =-201040-(89457/50) -> -202829.14 | M29: -1517649.19 | N29: 3639547.01
A30: 47 | B30: 1860 | C30: Meters | D30: 0.04 | E30: =+'App.2-B_Fixed Asset Cont 2011'!H30 -> 1579563.66 | H30: 1579563.66 | J30: =+'App.2-B_Fixed Asset Cont 2011'!M30 -> -417283.04 | K30: -67812 | M30: -485095.04 | N30: 1094468.62
A31: 8 | B31: 1860 | C31: Meters (Smart Meters) | D31: 0.0667 | E31: =+'App.2-B_Fixed Asset Cont 2011'!H31 -> 105634 | F31: =38652-6059 -> 32593 | H31: 138227 | J31: =+'App.2-B_Fixed Asset Cont 2011'!M31 -> -2150.23 | K31: =-8418+(6059/30) -> -8216.033333 | M31: -10366.26333 | N31: 127860.7367
A32: N/A | B32: 1905 | C32: Land | H32: 0 | J32: =+'App.2-B_Fixed Asset Cont 2011'!M32 -> 0 | M32: 0 | N32: 0
A33: 47 | B33: 1908 | C33: Buildings & Fixtures | H33: 0 | J33: =+'App.2-B_Fixed Asset Cont 2011'!M33 -> 0 | M33: 0 | N33: 0
A34: 13 | B34: 1910 | C34: Leasehold Improvements | H34: 0 | J34: =+'App.2-B_Fixed Asset Cont 2011'!M34 -> 0 | M34: 0 | N34: 0
A35: 8 | B35: 1915 | C35: Office Furniture & Equipment (10 years) | D35: 0.1 | E35: =+'App.2-B_Fixed Asset Cont 2011'!H35 -> 262476.15 | F35: =5000-2358 -> 2642 | H35: 265118.15 | J35: =+'App.2-B_Fixed Asset Cont 2011'!M35 -> -186028.6 | K35: =-15084+(2358/20) -> -14966.1 | M35: -200994.7 | N35: 64123.45
A36: 8 | B36: 1915 | C36: Office Furniture & Equipment (5 years) | H36: 0 | J36: =+'App.2-B_Fixed Asset Cont 2011'!M36 -> 0 | M36: 0 | N36: 0
A37: 10 | B37: 1920 | C37: Computer Equipment - Hardware | D37: 0.2 | E37: =+'App.2-B_Fixed Asset Cont 2011'!H37 -> 275946.03 | H37: 275946.03 | J37: =+'App.2-B_Fixed Asset Cont 2011'!M37 -> -152871.07 | M37: -152871.07 | N37: 123074.96
A38: 45 | B38: 1920 | C38: Computer Equip.-Hardware(Post Mar. 22/04) | D38: 0.2 | E38: =+'App.2-B_Fixed Asset Cont 2011'!H38 -> 52211.63 | H38: 52211.63 | J38: =+'App.2-B_Fixed Asset Cont 2011'!M38 -> -146240.59 | M38: -146240.59 | N38: -94028.96
A39: 45.1 | B39: 1920 | C39: Computer Equip.-Hardware(Post Mar. 19/07) | D39: 0.2 | E39: =+'App.2-B_Fixed Asset Cont 2011'!H39 -> 153836.7 | F39: =22000-12742 -> 9258 | H39: 163094.7 | J39: =+'App.2-B_Fixed Asset Cont 2011'!M39 -> -107493.88 | K39: =-27104+(12742/10) -> -25829.8 | M39: -133323.68 | N39: 29771.02
A40: 12 | B40: 1925 | C40: Computer Software (Formally known as Account 1925) | D40: 0.3333 | E40: =+'App.2-B_Fixed Asset Cont 2011'!H40 -> 944456.07 | F40: =50000-25821 -> 24179 | H40: 968635.07 | J40: =+'App.2-B_Fixed Asset Cont 2011'!M40 -> -813572.16 | K40: =-70279+(25821/6) -> -65975.5 | M40: -879547.66 | N40: 89087.41
A41: 10 | B41: 1930 | C41: Transportation Equipment | D41: 0.125 | E41: =+'App.2-B_Fixed Asset Cont 2011'!H41 -> 1984171.03 | F41: =450000-56831 -> 393169 | G41: -126000 | H41: 2251340.03 | J41: =+'App.2-B_Fixed Asset Cont 2011'!M41 -> -1188623.2 | K41: =-229861+(56831/16) -> -226309.0625 | L41: 126000 | M41: -1288932.263 | N41: 962407.7675
A42: 8 | B42: 1935 | C42: Stores Equipment | D42: 0.1 | E42: =+'App.2-B_Fixed Asset Cont 2011'!H42 -> 85037.21 | H42: 85037.21 | J42: =+'App.2-B_Fixed Asset Cont 2011'!M42 -> -26165.99 | K42: -8296 | M42: -34461.99 | N42: 50575.22
A43: 8 | B43: 1940 | C43: Tools, Shop & Garage Equipment | D43: 0.1 | E43: =+'App.2-B_Fixed Asset Cont 2011'!H43 -> 296780.97 | F43: =72000-56437 -> 15563 | H43: 312343.97 | J43: =+'App.2-B_Fixed Asset Cont 2011'!M43 -> -184379.91 | K43: =-22364+(56437/20) -> -19542.15 | M43: -203922.06 | N43: 108421.91
A44: 8 | B44: 1945 | C44: Measurement & Testing Equipment | D44: 0.1 | E44: =+'App.2-B_Fixed Asset Cont 2011'!H44 -> 67543.58 | H44: 67543.58 | J44: =+'App.2-B_Fixed Asset Cont 2011'!M44 -> -34989.46 | K44: -6645 | M44: -41634.46 | N44: 25909.12
A45: 8 | B45: 1950 | C45: Power Operated Equipment | D45: 0.125 | E45: =+'App.2-B_Fixed Asset Cont 2011'!H45 -> 89271.96 | H45: 89271.96 | J45: =+'App.2-B_Fixed Asset Cont 2011'!M45 -> -37367.12 | K45: -7997 | M45: -45364.12 | N45: 43907.84
A46: 8 | B46: 1955 | C46: Communications Equipment | D46: 0.1 | E46: =+'App.2-B_Fixed Asset Cont 2011'!H46 -> 176173.24 | H46: 176173.24 | J46: =+'App.2-B_Fixed Asset Cont 2011'!M46 -> -105990.53 | K46: -20382 | M46: -126372.53 | N46: 49800.71
A47: 8 | B47: 1955 | C47: Communication Equipment (Smart Meters) | H47: 0 | J47: =+'App.2-B_Fixed Asset Cont 2011'!M47 -> 0 | M47: 0 | N47: 0
A48: 8 | B48: 1960 | C48: Miscellaneous Equipment | D48: 0.1 | E48: =+'App.2-B_Fixed Asset Cont 2011'!H48 -> 43493.47 | F48: =40000-23875 -> 16125 | H48: 59618.47 | J48: =+'App.2-B_Fixed Asset Cont 2011'!M48 -> -29742.11 | K48: =-4342+(1193.75) -> -3148.25 | M48: -32890.36 | N48: 26728.11
A49: 47 | B49: 1975 | C49: Load Management Controls Utility Premises | D49: 0.1 | E49: =+'App.2-B_Fixed Asset Cont 2011'!H49 -> 258630.5 | H49: 258630.5 | J49: =+'App.2-B_Fixed Asset Cont 2011'!M49 -> -258630.5 | M49: -258630.5 | N49: 0
A50: 47 | B50: 1980 | C50: System Supervisor Equipment | H50: 0 | J50: =+'App.2-B_Fixed Asset Cont 2011'!M50 -> 0 | M50: 0 | N50: 0
A51: 47 | B51: 1985 | C51: Miscellaneous Fixed Assets | D51: 0.1 | E51: =+'App.2-B_Fixed Asset Cont 2011'!H51 -> 1427 | H51: 1427 | J51: =+'App.2-B_Fixed Asset Cont 2011'!M51 -> -1426.68 | M51: -1426.68 | N51: 0.32
A52: 47 | B52: 1995 | C52: Contributions & Grants | D52: 0.04 | E52: =+'App.2-B_Fixed Asset Cont 2011'!H52 -> -8188457.35 | F52: =-433861+104488 -> -329373 | H52: -8517830.35 | J52: =+'App.2-B_Fixed Asset Cont 2011'!M52 -> 1719806.55 | K52: =336986-(104488/50) -> 334896.24 | M52: 2054702.79 | N52: -6463127.56
B53: etc. | H53: 0 | M53: 0 | N53: 0
C55: Total | E55: =SUM(E16:E54) -> 46355641.4 | F55: =SUM(F16:F54) -> 3400198 | G55: -126000 | H55: 49629839.4 | J55: =SUM(J16:J54) -> -17079279.25 | K55: =SUM(K16:K54) -> -2173092.879 | L55: 126000 | M55: -19126372.13 | N55: 30503467.27
J57: Less: Fully Allocated Depreciation
A58: 10 | C58: Transportation | F58: 3951756 | J58: Transportation
A59: 8 | C59: Stores Equipment | F59: =+F58-F55 -> 551558 | J59: Stores Equipment
J60: Net Depreciation | L60: =L55-L58-L59 -> 126000
A62: Notes:
A64: 1 | B64: Tables in the format outlined above covering all fixed asset accounts should be submitted for the Test Year, Bridge Year and all relevant historical years. At a minimum , the applicant must provide data for the earlier of: 1) all historical years back to its last rebasing; or 2) at least three years of historical actuals, in addition to Bridge Year and Test Year forecasts.
A67: 2 | B67: The "CCA Class" for fixed assets should agree with the CCA Class used for tax purposes in Tax Returns. Fixed Assets sub-components may be used where the underlying asset components are classified under multiple CCA Classes for tax purposes. If an applicant uses any different classes from those shown in the table, an explanation should be provided. (also see note 3 below).
A70: 3 | B70: The table may need to be customized for a utility's asset categories or for any new asset accounts announced or authorized by the Board.
A72: 4 | B72: The depreciation column (D) is not required as the relevant information will be provided in the following 2-C series of appendices.

Sheet App.2-B_Fixed Asset Cont 2012SM
M1: File Number: | N1: ='LDC Info'!$E$18 -> EB2012-0176
A9: Appendix 2-B
A10: Fixed Asset Continuity Schedule - CGAAP - Smart Meter Capital Additions Included In Schedule
F12: Year | G12: 2012
E14: Cost | K14: Accumulated Depreciation
A15: CCA Class | B15: OEB | C15: Description | D15: Depreciation Rate | E15: Opening Balance | F15: Additions | G15: Disposals | H15: Closing Balance | J15: Opening Balance | K15: Additions | L15: Disposals | M15: Closing Balance | N15: Net Book Value
A16: 12 | B16: 1611 | C16: Computer Software (Formally known as Account 1925) | H16: =E16+F16+G16 -> 0 | M16: =J16+K16+L16 -> 0 | N16: =H16+M16 -> 0
A17: CEC | B17: 1612 | C17: Land Rights (Formally known as Account 1906) | H17: =E17+F17+G17 -> 0 | M17: =J17+K17+L17 -> 0 | N17: =H17+M17 -> 0
A18: N/A | B18: 1805 | C18: Land | E18: =+'App.2-B_Fixed Asset Cont 2011'!H18 -> 227768.86 | H18: =E18+F18+G18 -> 227768.86 | M18: =J18+K18+L18 -> 0 | N18: =H18+M18 -> 227768.86
A19: 47 | B19: 1808 | C19: Buildings | D19: 0.02 | E19: =+'App.2-B_Fixed Asset Cont 2011'!H19 -> 2486318 | F19: =+'App.2-B_Fixed Asset Cont 2012'!F19 -> 0 | H19: =E19+F19+G19 -> 2486318 | J19: =+'App.2-B_Fixed Asset Cont 2011'!M19 -> -225197.49 | K19: =+'App.2-B_Fixed Asset Cont 2012'!K19 -> -49887 | M19: =J19+K19+L19 -> -275084.49 | N19: =H19+M19 -> 2211233.51
A20: 13 | B20: 1810 | C20: Leasehold Improvements | H20: 0 | J20: =+'App.2-B_Fixed Asset Cont 2011'!M20 -> 0 | M20: 0 | N20: 0
A21: 47 | B21: 1815 | C21: Transformer Station Equipment >50 kV | H21: 0 | J21: =+'App.2-B_Fixed Asset Cont 2011'!M21 -> 0 | M21: 0 | N21: 0
A22: 47 | B22: 1820 | C22: Distribution Station Equipment <50 kV | D22: 0.0333 | E22: =+'App.2-B_Fixed Asset Cont 2011'!H22 -> 4269129.02 | F22: =+'App.2-B_Fixed Asset Cont 2012'!F22 -> 0 | H22: 4269129.02 | J22: =+'App.2-B_Fixed Asset Cont 2011'!M22 -> -1575655.41 | K22: =+'App.2-B_Fixed Asset Cont 2012'!K22 -> -139327.6833 | M22: -1714983.093 | N22: 2554145.927
A23: 47 | B23: 1825 | C23: Storage Battery Equipment | H23: 0 | J23: =+'App.2-B_Fixed Asset Cont 2011'!M23 -> 0 | M23: 0 | N23: 0
A24: 47 | B24: 1830 | C24: Poles, Towers & Fixtures | D24: 0.04 | E24: =+'App.2-B_Fixed Asset Cont 2011'!H24 -> 7106082.56 | F24: =+'App.2-B_Fixed Asset Cont 2012'!F24 -> 631753 | H24: 7737835.56 | J24: =+'App.2-B_Fixed Asset Cont 2011'!M24 -> -2348061.45 | K24: =+'App.2-B_Fixed Asset Cont 2012'!K24 -> -315022.94 | M24: -2663084.39 | N24: 5074751.17
A25: 47 | B25: 1835 | C25: Overhead Conductors & Devices | D25: 0.04 | E25: =+'App.2-B_Fixed Asset Cont 2011'!H25 -> 9746857.45 | F25: =+'App.2-B_Fixed Asset Cont 2012'!F25 -> 695590 | H25: 10442447.45 | J25: =+'App.2-B_Fixed Asset Cont 2011'!M25 -> -3339848.33 | K25: =+'App.2-B_Fixed Asset Cont 2012'!K25 -> -438983.86 | M25: -3778832.19 | N25: 6663615.26
A26: 47 | B26: 1840 | C26: Underground Conduit | D26: 0.04 | E26: =+'App.2-B_Fixed Asset Cont 2011'!H26 -> 3044635.92 | F26: =+'App.2-B_Fixed Asset Cont 2012'!F26 -> 248742 | H26: 3293377.92 | J26: =+'App.2-B_Fixed Asset Cont 2011'!M26 -> -959558.04 | K26: =+'App.2-B_Fixed Asset Cont 2012'!K26 -> -135949.22 | M26: -1095507.26 | N26: 2197870.66
A27: 47 | B27: 1845 | C27: Underground Conductors & Devices | D27: 0.04 | E27: =+'App.2-B_Fixed Asset Cont 2011'!H27 -> 8848610.79 | F27: =+'App.2-B_Fixed Asset Cont 2012'!F27 -> 440600 | H27: 9289210.79 | J27: =+'App.2-B_Fixed Asset Cont 2011'!M27 -> -2651520.74 | K27: =+'App.2-B_Fixed Asset Cont 2012'!K27 -> -392088.64 | M27: -3043609.38 | N27: 6245601.41
A28: 47 | B28: 1850 | C28: Line Transformers | D28: 0.04 | E28: =+'App.2-B_Fixed Asset Cont 2011'!H28 -> 8007560.75 | F28: =+'App.2-B_Fixed Asset Cont 2012'!F28 -> 492643 | H28: 8500203.75 | J28: =+'App.2-B_Fixed Asset Cont 2011'!M28 -> -2691469.22 | K28: =+'App.2-B_Fixed Asset Cont 2012'!K28 -> -358781.74 | M28: -3050250.96 | N28: 5449952.79
A29: 47 | B29: 1855 | C29: Services (Overhead & Underground) | D29: 0.04 | E29: =+'App.2-B_Fixed Asset Cont 2011'!H29 -> 4430482.2 | F29: =+'App.2-B_Fixed Asset Cont 2012'!F29 -> 726714 | H29: 5157196.2 | J29: =+'App.2-B_Fixed Asset Cont 2011'!M29 -> -1314820.05 | K29: =+'App.2-B_Fixed Asset Cont 2012'!K29 -> -202829.14 | M29: -1517649.19 | N29: 3639547.01
A30: 47 | B30: 1860 | C30: Meters | D30: 0.04 | E30: =+'App.2-B_Fixed Asset Cont 2011'!H30 -> 1579563.66 | H30: 1579563.66 | J30: =+'App.2-B_Fixed Asset Cont 2011'!M30 -> -417283.04 | K30: =+'App.2-B_Fixed Asset Cont 2012'!K30 -> -67812 | M30: -485095.04 | N30: 1094468.62
A31: 8 | B31: 1860 | C31: Meters (Smart Meters) | D31: 0.0667 | E31: =+'App.2-B_Fixed Asset Cont 2011'!H31 -> 105634 | F31: =+'App.2-B_Fixed Asset Cont 2012'!F31 -> 32593 | H31: 138227 | J31: =+'App.2-B_Fixed Asset Cont 2011'!M31 -> -2150.23 | K31: =+'App.2-B_Fixed Asset Cont 2012'!K31 -> -8216.033333 | M31: -10366.26333 | N31: 127860.7367
B32: 3 Lines | C32: Smart Meter Additions Recorded in 1555
A33: 8 | B33: 1860 | C33: Meters (Smart Meters) | D33: 0.0667 | E33: =+'App.2-B_Fixed Asset Cont 2011SM'!H33 -> 3369141 | F33: 80000 | G33: -3000 | H33: =E33+F33+G33 -> 3446141 | J33: =+'App.2-B_Fixed Asset Cont 2011SM'!M33 -> -428803 | K33: -227276 | M33: =J33+K33+L33 -> -656079 | N33: =H33+M33 -> 2790062
A34: 45.1 | B34: 1920 | C34: Computer Hardware (Smart Meters) | D34: 0.2 | E34: =+'App.2-B_Fixed Asset Cont 2011SM'!H34 -> 62873 | H34: 62873 | J34: =+'App.2-B_Fixed Asset Cont 2011SM'!M34 -> -22618 | K34: -12575 | M34: -35193 | N34: 27680
A35: 12 | B35: 1925 | C35: Computer Software (Smart Meters) | D35: 0.3333 | E35: =+'App.2-B_Fixed Asset Cont 2011SM'!H35 -> 162913 | F35: =65000+46304 -> 111304 | H35: 274217 | J35: =+'App.2-B_Fixed Asset Cont 2011SM'!M35 -> -38135 | K35: -43713 | M35: -81848 | N35: 192369
A36: N/A | B36: 1905 | C36: Land | H36: 0 | J36: =+'App.2-B_Fixed Asset Cont 2011'!M32 -> 0 | M36: 0 | N36: 0
A37: 47 | B37: 1908 | C37: Buildings & Fixtures | H37: 0 | J37: =+'App.2-B_Fixed Asset Cont 2011'!M33 -> 0 | M37: 0 | N37: 0
A38: 13 | B38: 1910 | C38: Leasehold Improvements | H38: 0 | J38: =+'App.2-B_Fixed Asset Cont 2011'!M34 -> 0 | M38: 0 | N38: 0
A39: 8 | B39: 1915 | C39: Office Furniture & Equipment (10 years) | D39: 0.1 | E39: =+'App.2-B_Fixed Asset Cont 2011'!H35 -> 262476.15 | F39: =+'App.2-B_Fixed Asset Cont 2012'!F35 -> 2642 | H39: 265118.15 | J39: =+'App.2-B_Fixed Asset Cont 2011'!M35 -> -186028.6 | K39: =+'App.2-B_Fixed Asset Cont 2012'!K35 -> -14966.1 | M39: -200994.7 | N39: 64123.45
A40: 8 | B40: 1915 | C40: Office Furniture & Equipment (5 years) | H40: 0 | J40: =+'App.2-B_Fixed Asset Cont 2011'!M36 -> 0 | M40: 0 | N40: 0
A41: 10 | B41: 1920 | C41: Computer Equipment - Hardware | D41: 0.2 | E41: =+'App.2-B_Fixed Asset Cont 2011'!H37 -> 275946.03 | H41: 275946.03 | J41: =+'App.2-B_Fixed Asset Cont 2011'!M37 -> -152871.07 | M41: -152871.07 | N41: 123074.96
A42: 45 | B42: 1920 | C42: Computer Equip.-Hardware(Post Mar. 22/04) | D42: 0.2 | E42: =+'App.2-B_Fixed Asset Cont 2011'!H38 -> 52211.63 | H42: 52211.63 | J42: =+'App.2-B_Fixed Asset Cont 2011'!M38 -> -146240.59 | M42: -146240.59 | N42: -94028.96
A43: 45.1 | B43: 1920 | C43: Computer Equip.-Hardware(Post Mar. 19/07) | D43: 0.2 | E43: =+'App.2-B_Fixed Asset Cont 2011'!H39 -> 153836.7 | F43: =+'App.2-B_Fixed Asset Cont 2012'!F39 -> 9258 | H43: 163094.7 | J43: =+'App.2-B_Fixed Asset Cont 2011'!M39 -> -107493.88 | K43: =+'App.2-B_Fixed Asset Cont 2012'!K39 -> -25829.8 | M43: -133323.68 | N43: 29771.02
A44: 12 | B44: 1925 | C44: Computer Software (Formally known as Account 1925) | D44: 0.3333 | E44: =+'App.2-B_Fixed Asset Cont 2011'!H40 -> 944456.07 | F44: =+'App.2-B_Fixed Asset Cont 2012'!F40 -> 24179 | H44: 968635.07 | J44: =+'App.2-B_Fixed Asset Cont 2011'!M40 -> -813572.16 | K44: =+'App.2-B_Fixed Asset Cont 2012'!K40 -> -65975.5 | M44: -879547.66 | N44: 89087.41
A45: 10 | B45: 1930 | C45: Transportation Equipment | D45: 0.125 | E45: =+'App.2-B_Fixed Asset Cont 2011'!H41 -> 1984171.03 | F45: =+'App.2-B_Fixed Asset Cont 2012'!F41 -> 393169 | G45: -126000 | H45: 2251340.03 | J45: =+'App.2-B_Fixed Asset Cont 2011'!M41 -> -1188623.2 | K45: =+'App.2-B_Fixed Asset Cont 2012'!K41 -> -226309.0625 | L45: 126000 | M45: -1288932.263 | N45: 962407.7675
A46: 8 | B46: 1935 | C46: Stores Equipment | D46: 0.1 | E46: =+'App.2-B_Fixed Asset Cont 2011'!H42 -> 85037.21 | H46: 85037.21 | J46: =+'App.2-B_Fixed Asset Cont 2011'!M42 -> -26165.99 | K46: -8296 | M46: -34461.99 | N46: 50575.22
A47: 8 | B47: 1940 | C47: Tools, Shop & Garage Equipment | D47: 0.1 | E47: =+'App.2-B_Fixed Asset Cont 2011'!H43 -> 296780.97 | F47: =+'App.2-B_Fixed Asset Cont 2012'!F43 -> 15563 | H47: 312343.97 | J47: =+'App.2-B_Fixed Asset Cont 2011'!M43 -> -184379.91 | K47: =+'App.2-B_Fixed Asset Cont 2012'!K43 -> -19542.15 | M47: -203922.06 | N47: 108421.91
A48: 8 | B48: 1945 | C48: Measurement & Testing Equipment | D48: 0.1 | E48: =+'App.2-B_Fixed Asset Cont 2011'!H44 -> 67543.58 | H48: 67543.58 | J48: =+'App.2-B_Fixed Asset Cont 2011'!M44 -> -34989.46 | K48: -6645 | M48: -41634.46 | N48: 25909.12
A49: 8 | B49: 1950 | C49: Power Operated Equipment | D49: 0.125 | E49: =+'App.2-B_Fixed Asset Cont 2011'!H45 -> 89271.96 | H49: 89271.96 | J49: =+'App.2-B_Fixed Asset Cont 2011'!M45 -> -37367.12 | K49: -7997 | M49: -45364.12 | N49: 43907.84
A50: 8 | B50: 1955 | C50: Communications Equipment | D50: 0.1 | E50: =+'App.2-B_Fixed Asset Cont 2011'!H46 -> 176173.24 | H50: 176173.24 | J50: =+'App.2-B_Fixed Asset Cont 2011'!M46 -> -105990.53 | K50: -20382 | M50: -126372.53 | N50: 49800.71
A51: 8 | B51: 1955 | C51: Communication Equipment (Smart Meters) | H51: 0 | J51: =+'App.2-B_Fixed Asset Cont 2011'!M47 -> 0 | M51: 0 | N51: 0
A52: 8 | B52: 1960 | C52: Miscellaneous Equipment | D52: 0.1 | E52: =+'App.2-B_Fixed Asset Cont 2011'!H48 -> 43493.47 | F52: =+'App.2-B_Fixed Asset Cont 2012'!F48 -> 16125 | H52: 59618.47 | J52: =+'App.2-B_Fixed Asset Cont 2011'!M48 -> -29742.11 | K52: =+'App.2-B_Fixed Asset Cont 2012'!K48 -> -3148.25 | M52: -32890.36 | N52: 26728.11
A53: 47 | B53: 1975 | C53: Load Management Controls Utility Premises | D53: 0.1 | E53: =+'App.2-B_Fixed Asset Cont 2011'!H49 -> 258630.5 | H53: 258630.5 | J53: =+'App.2-B_Fixed Asset Cont 2011'!M49 -> -258630.5 | M53: -258630.5 | N53: 0
A54: 47 | B54: 1980 | C54: System Supervisor Equipment | H54: 0 | J54: =+'App.2-B_Fixed Asset Cont 2011'!M50 -> 0 | M54: 0 | N54: 0
A55: 47 | B55: 1985 | C55: Miscellaneous Fixed Assets | D55: 0.1 | E55: =+'App.2-B_Fixed Asset Cont 2011'!H51 -> 1427 | H55: 1427 | J55: =+'App.2-B_Fixed Asset Cont 2011'!M51 -> -1426.68 | M55: -1426.68 | N55: 0.32
A56: 47 | B56: 1995 | C56: Contributions & Grants | D56: 0.04 | E56: =+'App.2-B_Fixed Asset Cont 2011'!H52 -> -8188457.35 | F56: =+'App.2-B_Fixed Asset Cont 2012'!F52 -> -329373 | H56: -8517830.35 | J56: =+'App.2-B_Fixed Asset Cont 2011'!M52 -> 1719806.55 | K56: =+'App.2-B_Fixed Asset Cont 2012'!K52 -> 334896.24 | M56: 2054702.79 | N56: -6463127.56
B57: etc. | H57: 0 | M57: 0 | N57: 0
C59: Total | E59: =SUM(E16:E58) -> 49950568.4 | F59: =SUM(F16:F58) -> 3591502 | G59: -129000 | H59: 53413070.4 | J59: =SUM(J16:J58) -> -17568835.25 | K59: =SUM(K16:K58) -> -2456656.879 | L59: 126000 | M59: -19899492.13 | N59: 33513578.27
J61: Less: Fully Allocated Depreciation
A62: 10 | C62: Transportation | J62: Transportation
A63: 8 | C63: Stores Equipment | J63: Stores Equipment
J64: Net Depreciation | L64: =L59-L62-L63 -> 126000
A66: Notes:
A68: 1 | B68: Tables in the format outlined above covering all fixed asset accounts should be submitted for the Test Year, Bridge Year and all relevant historical years. At a minimum , the applicant must provide data for the earlier of: 1) all historical years back to its last rebasing; or 2) at least three years of historical actuals, in addition to Bridge Year and Test Year forecasts.
A71: 2 | B71: The "CCA Class" for fixed assets should agree with the CCA Class used for tax purposes in Tax Returns. Fixed Assets sub-components may be used where the underlying asset components are classified under multiple CCA Classes for tax purposes. If an applicant uses any different classes from those shown in the table, an explanation should be provided. (also see note 3 below).
A74: 3 | B74: The table may need to be customized for a utility's asset categories or for any new asset accounts announced or authorized by the Board.
A76: 4 | B76: The depreciation column (D) is not required as the relevant information will be provided in the following 2-C series of appendices.

Sheet App.2-B_FA Cont MIFRS 2012
M1: File Number: | N1: ='LDC Info'!$E$18 -> EB2012-0176
M2: Exhibit:
M3: Tab:
M4: Schedule:
M5: Page:
M7: Date:
A9: Appendix 2-B
A10: Fixed Asset Continuity Schedule - MIFRS
F12: Year | G12: 2012
E14: Cost | K14: Accumulated Depreciation
A15: CCA Class | B15: OEB | C15: Description | D15: Depreciation Rate | E15: Opening Balance | F15: Additions | G15: Disposals | H15: Closing Balance | J15: Opening Balance | K15: Additions | L15: Disposals | M15: Closing Balance | N15: Net Book Value
A16: 12 | B16: 1611 | C16: Computer Software (Formally known as Account 1925) | H16: =E16+F16+G16 -> 0 | M16: =J16+K16+L16 -> 0 | N16: =H16+M16 -> 0
A17: CEC | B17: 1612 | C17: Land Rights (Formally known as Account 1906) | H17: =E17+F17+G17 -> 0 | M17: =J17+K17+L17 -> 0 | N17: =H17+M17 -> 0
A18: N/A | B18: 1805 | C18: Land | E18: =+'App.2-B_Fixed Asset Cont 2011'!H18 -> 227768.86 | H18: =E18+F18+G18 -> 227768.86 | M18: =J18+K18+L18 -> 0 | N18: =H18+M18 -> 227768.86
A19: 47 | B19: 1808 | C19: Buildings | D19: =100/O19%/10000 -> 0.02 | E19: =+'App.2-B_Fixed Asset Cont 2011'!H19 -> 2486318 | F19: =5000-5000 -> 0 | H19: =E19+F19+G19 -> 2486318 | J19: =+'App.2-B_Fixed Asset Cont 2011'!M19 -> -225197.49 | K19: =+-49979+(5000/100) -> -49929 | M19: =J19+K19+L19 -> -275126.49 | N19: =H19+M19 -> 2211191.51 | O19: 50
A20: 13 | B20: 1810 | C20: Leasehold Improvements | H20: 0 | J20: =+'App.2-B_Fixed Asset Cont 2011'!M20 -> 0 | M20: 0 | N20: 0
A21: 47 | B21: 1815 | C21: Transformer Station Equipment >50 kV | H21: 0 | J21: =+'App.2-B_Fixed Asset Cont 2011'!M21 -> 0 | M21: 0 | N21: 0
A22: 47 | B22: 1820 | C22: Distribution Station Equipment <50 kV | D22: =100/O22%/10000 -> 0.02222222222 | E22: =+'App.2-B_Fixed Asset Cont 2011'!H22 -> 4269129.02 | F22: =463809-463809 -> 0 | H22: 4269129.02 | J22: =+'App.2-B_Fixed Asset Cont 2011'!M22 -> -1575655.41 | K22: =-293076+463809/90 -> -287922.5667 | M22: -1863577.977 | N22: 2405551.043 | O22: 45
A23: 47 | B23: 1825 | C23: Storage Battery Equipment | H23: 0 | J23: =+'App.2-B_Fixed Asset Cont 2011'!M23 -> 0 | M23: 0 | N23: 0
A24: 47 | B24: 1830 | C24: Poles, Towers & Fixtures | D24: =100/O24%/10000 -> 0.01666666667 | E24: =+'App.2-B_Fixed Asset Cont 2011'!H24 -> 7106082.56 | F24: =734446-197653 -> 536793 | H24: 7642875.56 | J24: =+'App.2-B_Fixed Asset Cont 2011'!M24 -> -2348061.45 | K24: =-101800+(197653/50) -> -97846.94 | M24: -2445908.39 | N24: 5196967.17 | O24: 60
A25: 47 | B25: 1835 | C25: Overhead Conductors & Devices | D25: 0.01538461538 | E25: =+'App.2-B_Fixed Asset Cont 2011'!H25 -> 9746857.45 | F25: =707985-114805 -> 593180 | H25: 10340037.45 | J25: =+'App.2-B_Fixed Asset Cont 2011'!M25 -> -3339848.33 | K25: =-124763+(114805/130) -> -123879.8846 | M25: -3463728.215 | N25: 6876309.235 | O25: 65
A26: 47 | B26: 1840 | C26: Underground Conduit | D26: 0.01176470588 | E26: =+'App.2-B_Fixed Asset Cont 2011'!H26 -> 3044635.92 | F26: =239152-37332 -> 201820 | H26: 3246455.92 | J26: =+'App.2-B_Fixed Asset Cont 2011'!M26 -> -959558.04 | K26: =-29018+(37332/170) -> -28798.4 | M26: -988356.44 | N26: 2258099.48 | O26: 85
A27: 47 | B27: 1845 | C27: Underground Conductors & Devices | D27: 0.01666666667 | E27: =+'App.2-B_Fixed Asset Cont 2011'!H27 -> 8848610.79 | F27: =368494-12003 -> 356491 | H27: 9205101.79 | J27: =+'App.2-B_Fixed Asset Cont 2011'!M27 -> -2651520.74 | K27: =-127289+(12003/120) -> -127188.975 | M27: -2778709.715 | N27: 6426392.075 | O27: 60
A28: 47 | B28: 1850 | C28: Line Transformers | D28: 0.025 | E28: =+'App.2-B_Fixed Asset Cont 2011'!H28 -> 8007560.75 | F28: =504230-82311 -> 421919 | H28: 8429479.75 | J28: =+'App.2-B_Fixed Asset Cont 2011'!M28 -> -2691469.22 | K28: =-216368+(82311/80) -> -215339.1125 | M28: -2906808.332 | N28: 5522671.418 | O28: 40
A29: 47 | B29: 1855 | C29: Services (Overhead & Underground) | D29: 0.01818181818 | E29: =+'App.2-B_Fixed Asset Cont 2011'!H29 -> 4430482.2 | F29: =527103+85080 -> 612183 | H29: 5042665.2 | J29: =+'App.2-B_Fixed Asset Cont 2011'!M29 -> -1314820.05 | K29: =-76296+(85080/110) -> -75522.54545 | M29: -1390342.595 | N29: 3652322.605 | O29: 55
A30: 47 | B30: 1860 | C30: Meters | D30: 0.03333333333 | E30: =+'App.2-B_Fixed Asset Cont 2011'!H30 -> 1579563.66 | H30: 1579563.66 | J30: =+'App.2-B_Fixed Asset Cont 2011'!M30 -> -417283.04 | K30: -50089 | M30: -467372.04 | N30: 1112191.62 | O30: 30
A31: 8 | B31: 1860 | C31: Meters (Smart Meters) | D31: 0.06666666667 | E31: =+'App.2-B_Fixed Asset Cont 2011'!H31 -> 105634 | F31: =29737-4147 -> 25590 | H31: 131224 | J31: =+'App.2-B_Fixed Asset Cont 2011'!M31 -> -2150.23 | K31: =-8038+(4147/30) -> -7899.766667 | M31: -10049.99667 | N31: 121174.0033 | O31: 15
A32: N/A | B32: 1905 | C32: Land | H32: 0 | J32: =+'App.2-B_Fixed Asset Cont 2011'!M32 -> 0 | M32: 0 | N32: 0
A33: 47 | B33: 1908 | C33: Buildings & Fixtures | H33: 0 | J33: =+'App.2-B_Fixed Asset Cont 2011'!M33 -> 0 | M33: 0 | N33: 0
A34: 13 | B34: 1910 | C34: Leasehold Improvements | H34: 0 | J34: =+'App.2-B_Fixed Asset Cont 2011'!M34 -> 0 | M34: 0 | N34: 0
A35: 8 | B35: 1915 | C35: Office Furniture & Equipment (10 years) | D35: =100/O35%/10000 -> 0.1 | E35: =+'App.2-B_Fixed Asset Cont 2011'!H35 -> 262476.15 | F35: =5000-2358 -> 2642 | H35: 265118.15 | J35: =+'App.2-B_Fixed Asset Cont 2011'!M35 -> -186028.6 | K35: =-7895+(117.9) -> -7777.1 | M35: -193805.7 | N35: 71312.45 | O35: 10
A36: 8 | B36: 1915 | C36: Office Furniture & Equipment (5 years) | H36: 0 | J36: =+'App.2-B_Fixed Asset Cont 2011'!M36 -> 0 | M36: 0 | N36: 0
A37: 10 | B37: 1920 | C37: Computer Equipment - Hardware | D37: 0.2 | E37: =+'App.2-B_Fixed Asset Cont 2011'!H37 -> 275946.03 | H37: 275946.03 | J37: =+'App.2-B_Fixed Asset Cont 2011'!M37 -> -152871.07 | M37: -152871.07 | N37: 123074.96
A38: 45 | B38: 1920 | C38: Computer Equip.-Hardware(Post Mar. 22/04) | D38: 0.2 | E38: =+'App.2-B_Fixed Asset Cont 2011'!H38 -> 52211.63 | H38: 52211.63 | J38: =+'App.2-B_Fixed Asset Cont 2011'!M38 -> -146240.59 | M38: -146240.59 | N38: -94028.96
A39: 45.1 | B39: 1920 | C39: Computer Equip.-Hardware(Post Mar. 19/07) | D39: =100/O39%/10000 -> 0.2 | E39: =+'App.2-B_Fixed Asset Cont 2011'!H39 -> 153836.7 | F39: =22000-12742 -> 9258 | H39: 163094.7 | J39: =+'App.2-B_Fixed Asset Cont 2011'!M39 -> -107493.88 | K39: =-1274-16004+(12742/10) -> -16003.8 | M39: -123497.68 | N39: 39597.02 | O39: 5
A40: 12 | B40: 1925 | C40: Computer Software (Formally known as Account 1925) | D40: 0.2 | E40: =+'App.2-B_Fixed Asset Cont 2011'!H40 -> 944456.07 | F40: =50000-25821 -> 24179 | H40: 968635.07 | J40: =+'App.2-B_Fixed Asset Cont 2011'!M40 -> -813572.16 | K40: =-36848+(2582.1) -> -34265.9 | M40: -847838.06 | N40: 120797.01 | O40: 5
A41: 10 | B41: 1930 | C41: Transportation Equipment | D41: 0.08 | E41: =+'App.2-B_Fixed Asset Cont 2011'!H41 -> 1984171.03 | F41: =450000-56831 -> 393169 | G41: -126000 | H41: 2251340.03 | J41: =+'App.2-B_Fixed Asset Cont 2011'!M41 -> -1188623.2 | K41: =-97893+(56831/25) -> -95619.76 | L41: 126000 | M41: -1158242.96 | N41: 1093097.07 | O41: 12.5
A42: 8 | B42: 1935 | C42: Stores Equipment | D42: 0.1 | E42: =+'App.2-B_Fixed Asset Cont 2011'!H42 -> 85037.21 | H42: 85037.21 | J42: =+'App.2-B_Fixed Asset Cont 2011'!M42 -> -26165.99 | K42: -5887 | M42: -32052.99 | N42: 52984.22 | O42: 10
A43: 8 | B43: 1940 | C43: Tools, Shop & Garage Equipment | D43: 0.1 | E43: =+'App.2-B_Fixed Asset Cont 2011'!H43 -> 296780.97 | F43: =72000-56437 -> 15563 | H43: 312343.97 | J43: =+'App.2-B_Fixed Asset Cont 2011'!M43 -> -184379.91 | K43: =-14840+(56437/20) -> -12018.15 | M43: -196398.06 | N43: 115945.91 | O43: 10
A44: 8 | B44: 1945 | C44: Measurement & Testing Equipment | D44: 0.1 | E44: =+'App.2-B_Fixed Asset Cont 2011'!H44 -> 67543.58 | H44: 67543.58 | J44: =+'App.2-B_Fixed Asset Cont 2011'!M44 -> -34989.46 | K44: -3255 | M44: -38244.46 | N44: 29299.12 | O44: 10
A45: 8 | B45: 1950 | C45: Power Operated Equipment | D45: 0.1 | E45: =+'App.2-B_Fixed Asset Cont 2011'!H45 -> 89271.96 | H45: 89271.96 | J45: =+'App.2-B_Fixed Asset Cont 2011'!M45 -> -37367.12 | K45: -5190 | M45: -42557.12 | N45: 46714.84 | O45: 10
A46: 8 | B46: 1955 | C46: Communications Equipment | D46: 0.1 | E46: =+'App.2-B_Fixed Asset Cont 2011'!H46 -> 176173.24 | H46: 176173.24 | J46: =+'App.2-B_Fixed Asset Cont 2011'!M46 -> -105990.53 | K46: -8288 | M46: -114278.53 | N46: 61894.71 | O46: 10
A47: 8 | B47: 1955 | C47: Communication Equipment (Smart Meters) | H47: 0 | J47: =+'App.2-B_Fixed Asset Cont 2011'!M47 -> 0 | M47: 0 | N47: 0
A48: 8 | B48: 1960 | C48: Miscellaneous Equipment | D48: =100/O48%/10000 -> 0.1 | E48: =+'App.2-B_Fixed Asset Cont 2011'!H48 -> 43493.47 | F48: =40000-23875 -> 16125 | H48: 59618.47 | J48: =+'App.2-B_Fixed Asset Cont 2011'!M48 -> -29742.11 | K48: =-3462+(23875/20) -> -2268.25 | M48: -32010.36 | N48: 27608.11 | O48: 10
A49: 47 | B49: 1975 | C49: Load Management Controls Utility Premises | D49: 0.1 | E49: =+'App.2-B_Fixed Asset Cont 2011'!H49 -> 258630.5 | H49: 258630.5 | J49: =+'App.2-B_Fixed Asset Cont 2011'!M49 -> -258630.5 | M49: -258630.5 | N49: 0
A50: 47 | B50: 1980 | C50: System Supervisor Equipment | H50: 0 | J50: =+'App.2-B_Fixed Asset Cont 2011'!M50 -> 0 | M50: 0 | N50: 0
A51: 47 | B51: 1985 | C51: Miscellaneous Fixed Assets | D51: 0.1 | E51: =+'App.2-B_Fixed Asset Cont 2011'!H51 -> 1427 | H51: 1427 | J51: =+'App.2-B_Fixed Asset Cont 2011'!M51 -> -1426.68 | M51: -1426.68 | N51: 0.32
A52: 47 | B52: 1995 | C52: Contributions & Grants | D52: =100/O52%/10000 ->  | E52: =+'App.2-B_Fixed Asset Cont 2011'!H52 -> -8188457.35 | F52: =-366832+37459 -> -329373 | H52: -8517830.35 | J52: =+'App.2-B_Fixed Asset Cont 2011'!M52 -> 1719806.55 | K52: =140936-(37459/102.5) -> 140570.5463 | M52: 1860377.096 | N52: -6657453.254
B53: etc. | H53: 0 | M53: 0 | N53: 0
C55: Total | E55: =SUM(E16:E54) -> 46355641.4 | F55: =SUM(F16:F54) -> 2879539 | G55: -126000 | H55: 49109180.4 | J55: =SUM(J16:J54) -> -17079279.25 | K55: =SUM(K16:K54) -> -1114418.605 | L55: 126000 | M55: -18067697.85 | N55: 31041482.55
J57: Less: Fully Allocated Depreciation
A58: 10 | C58: Transportation | J58: Transportation
A59: 8 | C59: Stores Equipment | J59: Stores Equipment
J60: Net Depreciation | L60: =L55-L58-L59 -> 126000
A62: Notes:
A64: 1 | B64: Tables in the format outlined above covering all fixed asset accounts should be submitted for the Test Year, Bridge Year and all relevant historical years. At a minimum , the applicant must provide data for the earlier of: 1) all historical years back to its last rebasing; or 2) at least three years of historical actuals, in addition to Bridge Year and Test Year forecasts.
A67: 2 | B67: The "CCA Class" for fixed assets should agree with the CCA Class used for tax purposes in Tax Returns. Fixed Assets sub-components may be used where the underlying asset components are classified under multiple CCA Classes for tax purposes. If an applicant uses any different classes from those shown in the table, an explanation should be provided. (also see note 3 below).
A70: 3 | B70: The table may need to be customized for a utility's asset categories or for any new asset accounts announced or authorized by the Board.
A72: 4 | B72: The depreciation column (D) is not required as the relevant information will be provided in the following 2-C series of appendices.

Sheet App.2-B_FA Cont MIFRS 2012SM
M1: File Number: | N1: ='LDC Info'!$E$18 -> EB2012-0176
M2: Exhibit:
M3: Tab:
M4: Schedule:
M5: Page:
M7: Date:
A9: Appendix 2-B
A10: Fixed Asset Continuity Schedule - MIFRS - Smart Meter Capital Additions Included In Schedule
F12: Year | G12: 2012
E14: Cost | K14: Accumulated Depreciation
A15: CCA Class | B15: OEB | C15: Description | D15: Depreciation Rate | E15: Opening Balance | F15: Additions | G15: Disposals | H15: Closing Balance | J15: Opening Balance | K15: Additions | L15: Disposals | M15: Closing Balance | N15: Net Book Value
A16: 12 | B16: 1611 | C16: Computer Software (Formally known as Account 1925) | H16: =E16+F16+G16 -> 0 | M16: =J16+K16+L16 -> 0 | N16: =H16+M16 -> 0
A17: CEC | B17: 1612 | C17: Land Rights (Formally known as Account 1906) | H17: =E17+F17+G17 -> 0 | M17: =J17+K17+L17 -> 0 | N17: =H17+M17 -> 0
A18: N/A | B18: 1805 | C18: Land | E18: =+'App.2-B_Fixed Asset Cont 2011'!H18 -> 227768.86 | H18: =E18+F18+G18 -> 227768.86 | M18: =J18+K18+L18 -> 0 | N18: =H18+M18 -> 227768.86
A19: 47 | B19: 1808 | C19: Buildings | D19: 0.02 | E19: =+'App.2-B_Fixed Asset Cont 2011'!H19 -> 2486318 | F19: =+'App.2-B_FA Cont MIFRS 2012'!F19 -> 0 | H19: =E19+F19+G19 -> 2486318 | J19: =+'App.2-B_Fixed Asset Cont 2011'!M19 -> -225197.49 | K19: =+'App.2-B_FA Cont MIFRS 2012'!K19 -> -49929 | M19: =J19+K19+L19 -> -275126.49 | N19: =H19+M19 -> 2211191.51 | O19: 50
A20: 13 | B20: 1810 | C20: Leasehold Improvements | H20: 0 | J20: =+'App.2-B_Fixed Asset Cont 2011'!M20 -> 0 | M20: 0 | N20: 0
A21: 47 | B21: 1815 | C21: Transformer Station Equipment >50 kV | H21: 0 | J21: =+'App.2-B_Fixed Asset Cont 2011'!M21 -> 0 | M21: 0 | N21: 0
A22: 47 | B22: 1820 | C22: Distribution Station Equipment <50 kV | D22: 0.0222 | E22: =+'App.2-B_Fixed Asset Cont 2011'!H22 -> 4269129.02 | F22: =+'App.2-B_FA Cont MIFRS 2012'!F22 -> 0 | H22: 4269129.02 | J22: =+'App.2-B_Fixed Asset Cont 2011'!M22 -> -1575655.41 | K22: =+'App.2-B_FA Cont MIFRS 2012'!K22 -> -287922.5667 | M22: -1863577.977 | N22: 2405551.043 | O22: 45
A23: 47 | B23: 1825 | C23: Storage Battery Equipment | H23: 0 | J23: =+'App.2-B_Fixed Asset Cont 2011'!M23 -> 0 | M23: 0 | N23: 0
A24: 47 | B24: 1830 | C24: Poles, Towers & Fixtures | D24: 0.0167 | E24: =+'App.2-B_Fixed Asset Cont 2011'!H24 -> 7106082.56 | F24: =+'App.2-B_FA Cont MIFRS 2012'!F24 -> 536793 | H24: 7642875.56 | J24: =+'App.2-B_Fixed Asset Cont 2011'!M24 -> -2348061.45 | K24: =+'App.2-B_FA Cont MIFRS 2012'!K24 -> -97846.94 | M24: -2445908.39 | N24: 5196967.17 | O24: 60
A25: 47 | B25: 1835 | C25: Overhead Conductors & Devices | D25: 0.0154 | E25: =+'App.2-B_Fixed Asset Cont 2011'!H25 -> 9746857.45 | F25: =+'App.2-B_FA Cont MIFRS 2012'!F25 -> 593180 | H25: 10340037.45 | J25: =+'App.2-B_Fixed Asset Cont 2011'!M25 -> -3339848.33 | K25: =+'App.2-B_FA Cont MIFRS 2012'!K25 -> -123879.8846 | M25: -3463728.215 | N25: 6876309.235 | O25: 65
A26: 47 | B26: 1840 | C26: Underground Conduit | D26: 0.0118 | E26: =+'App.2-B_Fixed Asset Cont 2011'!H26 -> 3044635.92 | F26: =+'App.2-B_FA Cont MIFRS 2012'!F26 -> 201820 | H26: 3246455.92 | J26: =+'App.2-B_Fixed Asset Cont 2011'!M26 -> -959558.04 | K26: =+'App.2-B_FA Cont MIFRS 2012'!K26 -> -28798.4 | M26: -988356.44 | N26: 2258099.48 | O26: 85
A27: 47 | B27: 1845 | C27: Underground Conductors & Devices | D27: 0.0167 | E27: =+'App.2-B_Fixed Asset Cont 2011'!H27 -> 8848610.79 | F27: =+'App.2-B_FA Cont MIFRS 2012'!F27 -> 356491 | H27: 9205101.79 | J27: =+'App.2-B_Fixed Asset Cont 2011'!M27 -> -2651520.74 | K27: =+'App.2-B_FA Cont MIFRS 2012'!K27 -> -127188.975 | M27: -2778709.715 | N27: 6426392.075 | O27: 60
A28: 47 | B28: 1850 | C28: Line Transformers | D28: 0.025 | E28: =+'App.2-B_Fixed Asset Cont 2011'!H28 -> 8007560.75 | F28: =+'App.2-B_FA Cont MIFRS 2012'!F28 -> 421919 | H28: 8429479.75 | J28: =+'App.2-B_Fixed Asset Cont 2011'!M28 -> -2691469.22 | K28: =+'App.2-B_FA Cont MIFRS 2012'!K28 -> -215339.1125 | M28: -2906808.332 | N28: 5522671.418 | O28: 40
A29: 47 | B29: 1855 | C29: Services (Overhead & Underground) | D29: 0.0182 | E29: =+'App.2-B_Fixed Asset Cont 2011'!H29 -> 4430482.2 | F29: =+'App.2-B_FA Cont MIFRS 2012'!F29 -> 612183 | H29: 5042665.2 | J29: =+'App.2-B_Fixed Asset Cont 2011'!M29 -> -1314820.05 | K29: =+'App.2-B_FA Cont MIFRS 2012'!K29 -> -75522.54545 | M29: -1390342.595 | N29: 3652322.605 | O29: 55
A30: 47 | B30: 1860 | C30: Meters | D30: 0.0333 | E30: =+'App.2-B_Fixed Asset Cont 2011'!H30 -> 1579563.66 | H30: 1579563.66 | J30: =+'App.2-B_Fixed Asset Cont 2011'!M30 -> -417283.04 | K30: =+'App.2-B_FA Cont MIFRS 2012'!K30 -> -50089 | M30: -467372.04 | N30: 1112191.62 | O30: 30
A31: 8 | B31: 1860 | C31: Meters (Smart Meters) | D31: 0.0667 | E31: =+'App.2-B_Fixed Asset Cont 2011'!H31 -> 105634 | F31: =+'App.2-B_FA Cont MIFRS 2012'!F31 -> 25590 | H31: 131224 | J31: =+'App.2-B_Fixed Asset Cont 2011'!M31 -> -2150.23 | K31: =+'App.2-B_FA Cont MIFRS 2012'!K31 -> -7899.766667 | M31: -10049.99667 | N31: 121174.0033 | O31: 15
B32: 3 Lines | C32: Smart Meter Additions Recorded in 1555
A33: 8 | B33: 1860 | C33: Meters (Smart Meters) | D33: 0.0667 | E33: =+'App.2-B_Fixed Asset Cont 2011SM'!H33 -> 3369141 | F33: =+'App.2-B_Fixed Asset Cont 2012SM'!F33 -> 80000 | G33: -3000 | H33: 3446141 | J33: =+'App.2-B_Fixed Asset Cont 2011SM'!M33 -> -428803 | K33: =+'App.2-B_Fixed Asset Cont 2012SM'!K33 -> -227276 | M33: -656079 | N33: 2790062 | O33: 15
A34: 45.1 | B34: 1920 | C34: Computer Hardware (Smart Meters) | D34: 0.2 | E34: =+'App.2-B_Fixed Asset Cont 2011SM'!H34 -> 62873 | H34: 62873 | J34: =+'App.2-B_Fixed Asset Cont 2011SM'!M34 -> -22618 | K34: =+'App.2-B_Fixed Asset Cont 2012SM'!K34 -> -12575 | M34: -35193 | N34: 27680 | O34: 5
A35: 12 | B35: 1925 | C35: Computer Software (Smart Meters) | D35: 0.2 | E35: =+'App.2-B_Fixed Asset Cont 2011SM'!H35 -> 162913 | F35: =+'App.2-B_Fixed Asset Cont 2012SM'!F35 -> 111304 | H35: 274217 | J35: =+'App.2-B_Fixed Asset Cont 2011SM'!M35 -> -38135 | K35: =+'App.2-B_Fixed Asset Cont 2012SM'!K35 -> -43713 | M35: -81848 | N35: 192369 | O35: 5
A36: N/A | B36: 1905 | C36: Land | H36: 0 | J36: =+'App.2-B_Fixed Asset Cont 2011'!M32 -> 0 | M36: 0 | N36: 0
A37: 47 | B37: 1908 | C37: Buildings & Fixtures | H37: 0 | J37: =+'App.2-B_Fixed Asset Cont 2011'!M33 -> 0 | M37: 0 | N37: 0
A38: 13 | B38: 1910 | C38: Leasehold Improvements | H38: 0 | J38: =+'App.2-B_Fixed Asset Cont 2011'!M34 -> 0 | M38: 0 | N38: 0
A39: 8 | B39: 1915 | C39: Office Furniture & Equipment (10 years) | D39: 0.1 | E39: =+'App.2-B_Fixed Asset Cont 2011'!H35 -> 262476.15 | F39: =+'App.2-B_FA Cont MIFRS 2012'!F35 -> 2642 | H39: 265118.15 | J39: =+'App.2-B_Fixed Asset Cont 2011'!M35 -> -186028.6 | K39: =+'App.2-B_FA Cont MIFRS 2012'!K35 -> -7777.1 | M39: -193805.7 | N39: 71312.45 | O39: 10
A40: 8 | B40: 1915 | C40: Office Furniture & Equipment (5 years) | H40: 0 | J40: =+'App.2-B_Fixed Asset Cont 2011'!M36 -> 0 | M40: 0 | N40: 0
A41: 10 | B41: 1920 | C41: Computer Equipment - Hardware | D41: 0.2 | E41: =+'App.2-B_Fixed Asset Cont 2011'!H37 -> 275946.03 | H41: 275946.03 | J41: =+'App.2-B_Fixed Asset Cont 2011'!M37 -> -152871.07 | M41: -152871.07 | N41: 123074.96
A42: 45 | B42: 1920 | C42: Computer Equip.-Hardware(Post Mar. 22/04) | D42: 0.2 | E42: =+'App.2-B_Fixed Asset Cont 2011'!H38 -> 52211.63 | H42: 52211.63 | J42: =+'App.2-B_Fixed Asset Cont 2011'!M38 -> -146240.59 | M42: -146240.59 | N42: -94028.96
A43: 45.1 | B43: 1920 | C43: Computer Equip.-Hardware(Post Mar. 19/07) | D43: 0.2 | E43: =+'App.2-B_Fixed Asset Cont 2011'!H39 -> 153836.7 | F43: =+'App.2-B_FA Cont MIFRS 2012'!F39 -> 9258 | H43: 163094.7 | J43: =+'App.2-B_Fixed Asset Cont 2011'!M39 -> -107493.88 | K43: =+'App.2-B_FA Cont MIFRS 2012'!K39 -> -16003.8 | M43: -123497.68 | N43: 39597.02 | O43: 5
A44: 12 | B44: 1925 | C44: Computer Software (Formally known as Account 1925) | D44: 0.2 | E44: =+'App.2-B_Fixed Asset Cont 2011'!H40 -> 944456.07 | F44: =+'App.2-B_FA Cont MIFRS 2012'!F40 -> 24179 | H44: 968635.07 | J44: =+'App.2-B_Fixed Asset Cont 2011'!M40 -> -813572.16 | K44: =+'App.2-B_FA Cont MIFRS 2012'!K40 -> -34265.9 | M44: -847838.06 | N44: 120797.01 | O44: 5
A45: 10 | B45: 1930 | C45: Transportation Equipment | D45: 0.1 | E45: =+'App.2-B_Fixed Asset Cont 2011'!H41 -> 1984171.03 | F45: =+'App.2-B_FA Cont MIFRS 2012'!F41 -> 393169 | G45: -126000 | H45: 2251340.03 | J45: =+'App.2-B_Fixed Asset Cont 2011'!M41 -> -1188623.2 | K45: =+'App.2-B_FA Cont MIFRS 2012'!K41 -> -95619.76 | L45: 126000 | M45: -1158242.96 | N45: 1093097.07 | O45: 12.5
A46: 8 | B46: 1935 | C46: Stores Equipment | D46: 0.1 | E46: =+'App.2-B_Fixed Asset Cont 2011'!H42 -> 85037.21 | H46: 85037.21 | J46: =+'App.2-B_Fixed Asset Cont 2011'!M42 -> -26165.99 | K46: =+'App.2-B_FA Cont MIFRS 2012'!K42 -> -5887 | M46: -32052.99 | N46: 52984.22 | O46: 10
A47: 8 | B47: 1940 | C47: Tools, Shop & Garage Equipment | D47: 0.1 | E47: =+'App.2-B_Fixed Asset Cont 2011'!H43 -> 296780.97 | F47: =+'App.2-B_FA Cont MIFRS 2012'!F43 -> 15563 | H47: 312343.97 | J47: =+'App.2-B_Fixed Asset Cont 2011'!M43 -> -184379.91 | K47: =+'App.2-B_FA Cont MIFRS 2012'!K43 -> -12018.15 | M47: -196398.06 | N47: 115945.91 | O47: 10
A48: 8 | B48: 1945 | C48: Measurement & Testing Equipment | D48: 0.1 | E48: =+'App.2-B_Fixed Asset Cont 2011'!H44 -> 67543.58 | H48: 67543.58 | J48: =+'App.2-B_Fixed Asset Cont 2011'!M44 -> -34989.46 | K48: =+'App.2-B_FA Cont MIFRS 2012'!K44 -> -3255 | M48: -38244.46 | N48: 29299.12 | O48: 10
A49: 8 | B49: 1950 | C49: Power Operated Equipment | D49: 0.1 | E49: =+'App.2-B_Fixed Asset Cont 2011'!H45 -> 89271.96 | H49: 89271.96 | J49: =+'App.2-B_Fixed Asset Cont 2011'!M45 -> -37367.12 | K49: =+'App.2-B_FA Cont MIFRS 2012'!K45 -> -5190 | M49: -42557.12 | N49: 46714.84 | O49: 10
A50: 8 | B50: 1955 | C50: Communications Equipment | D50: 0.1 | E50: =+'App.2-B_Fixed Asset Cont 2011'!H46 -> 176173.24 | H50: 176173.24 | J50: =+'App.2-B_Fixed Asset Cont 2011'!M46 -> -105990.53 | K50: =+'App.2-B_FA Cont MIFRS 2012'!K46 -> -8288 | M50: -114278.53 | N50: 61894.71 | O50: 10
A51: 8 | B51: 1955 | C51: Communication Equipment (Smart Meters) | H51: 0 | J51: =+'App.2-B_Fixed Asset Cont 2011'!M47 -> 0 | M51: 0 | N51: 0
A52: 8 | B52: 1960 | C52: Miscellaneous Equipment | D52: 0.1 | E52: =+'App.2-B_Fixed Asset Cont 2011'!H48 -> 43493.47 | F52: =+'App.2-B_FA Cont MIFRS 2012'!F48 -> 16125 | H52: 59618.47 | J52: =+'App.2-B_Fixed Asset Cont 2011'!M48 -> -29742.11 | K52: =+'App.2-B_FA Cont MIFRS 2012'!K48 -> -2268.25 | M52: -32010.36 | N52: 27608.11 | O52: 10
A53: 47 | B53: 1975 | C53: Load Management Controls Utility Premises | D53: 0.1 | E53: =+'App.2-B_Fixed Asset Cont 2011'!H49 -> 258630.5 | H53: 258630.5 | J53: =+'App.2-B_Fixed Asset Cont 2011'!M49 -> -258630.5 | M53: -258630.5 | N53: 0
A54: 47 | B54: 1980 | C54: System Supervisor Equipment | H54: 0 | J54: =+'App.2-B_Fixed Asset Cont 2011'!M50 -> 0 | M54: 0 | N54: 0
A55: 47 | B55: 1985 | C55: Miscellaneous Fixed Assets | D55: 0.1 | E55: =+'App.2-B_Fixed Asset Cont 2011'!H51 -> 1427 | H55: 1427 | J55: =+'App.2-B_Fixed Asset Cont 2011'!M51 -> -1426.68 | M55: -1426.68 | N55: 0.32
A56: 47 | B56: 1995 | C56: Contributions & Grants | D56: 0.0195 | E56: =+'App.2-B_Fixed Asset Cont 2011'!H52 -> -8188457.35 | F56: =+'App.2-B_FA Cont MIFRS 2012'!F52 -> -329373 | H56: -8517830.35 | J56: =+'App.2-B_Fixed Asset Cont 2011'!M52 -> 1719806.55 | K56: =+'App.2-B_FA Cont MIFRS 2012'!K52 -> 140570.5463 | M56: 1860377.096 | N56: -6657453.254 | O56: 51.25
B57: etc. | H57: 0 | M57: 0 | N57: 0
C59: Total | E59: =SUM(E16:E58) -> 49950568.4 | F59: =SUM(F16:F58) -> 3070843 | G59: -129000 | H59: 52892411.4 | J59: =SUM(J16:J58) -> -17568835.25 | K59: =SUM(K16:K58) -> -1397982.605 | L59: 126000 | M59: -18840817.85 | N59: 34051593.55
J61: Less: Fully Allocated Depreciation
A62: 10 | C62: Transportation | J62: Transportation
A63: 8 | C63: Stores Equipment | J63: Stores Equipment
J64: Net Depreciation | L64: =L59-L62-L63 -> 126000
A66: Notes:
A68: 1 | B68: Tables in the format outlined above covering all fixed asset accounts should be submitted for the Test Year, Bridge Year and all relevant historical years. At a minimum , the applicant must provide data for the earlier of: 1) all historical years back to its last rebasing; or 2) at least three years of historical actuals, in addition to Bridge Year and Test Year forecasts.
A71: 2 | B71: The "CCA Class" for fixed assets should agree with the CCA Class used for tax purposes in Tax Returns. Fixed Assets sub-components may be used where the underlying asset components are classified under multiple CCA Classes for tax purposes. If an applicant uses any different classes from those shown in the table, an explanation should be provided. (also see note 3 below).
A74: 3 | B74: The table may need to be customized for a utility's asset categories or for any new asset accounts announced or authorized by the Board.
A76: 4 | B76: The depreciation column (D) is not required as the relevant information will be provided in the following 2-C series of appendices.

Sheet App.2-B_Fixed Asset Cont 2013
M1: File Number: | N1: ='LDC Info'!$E$18 -> EB2012-0176
M2: Exhibit:
M3: Tab:
M4: Schedule:
M5: Page:
M7: Date:
A9: Appendix 2-B
A10: Fixed Asset Continuity Schedule - CGAAP
F12: Year | G12: 2013
E14: Cost | K14: Accumulated Depreciation
A15: CCA Class | B15: OEB | C15: Description | D15: Depreciation Rate | E15: Opening Balance | F15: Additions | G15: Disposals | H15: Closing Balance | J15: Opening Balance | K15: Additions | L15: Disposals | M15: Closing Balance | N15: Net Book Value
A16: 12 | B16: 1611 | C16: Computer Software (Formally known as Account 1925) | H16: =E16+F16+G16 -> 0 | M16: =J16+K16+L16 -> 0 | N16: =H16+M16 -> 0
A17: CEC | B17: 1612 | C17: Land Rights (Formally known as Account 1906) | H17: =E17+F17+G17 -> 0 | M17: =J17+K17+L17 -> 0 | N17: =H17+M17 -> 0
A18: N/A | B18: 1805 | C18: Land | E18: =+'App.2-B_Fixed Asset Cont 2012'!H18 -> 227768.86 | H18: =E18+F18+G18 -> 227768.86 | M18: =J18+K18+L18 -> 0 | N18: =H18+M18 -> 227768.86
A19: 47 | B19: 1808 | C19: Buildings | D19: 0.02 | E19: =+'App.2-B_Fixed Asset Cont 2012'!H19 -> 2486318 | F19: 9000 | H19: =E19+F19+G19 -> 2495318 | J19: =+'App.2-B_Fixed Asset Cont 2012'!M19 -> -275084.49 | K19: =-50077+(5000/50) -> -49977 | M19: =J19+K19+L19 -> -325061.49 | N19: =H19+M19 -> 2170256.51
A20: 13 | B20: 1810 | C20: Leasehold Improvements | H20: 0 | M20: 0 | N20: 0
A21: 47 | B21: 1815 | C21: Transformer Station Equipment >50 kV | H21: 0 | M21: 0 | N21: 0
A22: 47 | B22: 1820 | C22: Distribution Station Equipment <50 kV | D22: 0.0333 | E22: =+'App.2-B_Fixed Asset Cont 2012'!H22 -> 4269129.02 | F22: =594855+506839 -> 1101694 | H22: 5370823.02 | J22: =+'App.2-B_Fixed Asset Cont 2012'!M22 -> -1714983.093 | K22: =-166136-506839/60 -> -174583.3167 | M22: -1889566.41 | N22: 3481256.61
A23: 47 | B23: 1825 | C23: Storage Battery Equipment | H23: 0 | M23: 0 | N23: 0
A24: 47 | B24: 1830 | C24: Poles, Towers & Fixtures | D24: 0.04 | E24: =+'App.2-B_Fixed Asset Cont 2012'!H24 -> 7737835.56 | F24: =958576+4700-57951 -> 905325 | H24: 8643160.56 | J24: =+'App.2-B_Fixed Asset Cont 2012'!M24 -> -2663084.39 | K24: =-364607+(257153/25)+(57951/50) -> -353161.86 | M24: -3016246.25 | N24: 5626914.31
A25: 47 | B25: 1835 | C25: Overhead Conductors & Devices | D25: 0.04 | E25: =+'App.2-B_Fixed Asset Cont 2012'!H25 -> 10442447.45 | F25: =893675+34770 -> 928445 | H25: 11370892.45 | J25: =+'App.2-B_Fixed Asset Cont 2012'!M25 -> -3778832.19 | K25: =-476505+143407/25-(34770/50) -> -471464.12 | M25: -4250296.31 | N25: 7120596.14
A26: 47 | B26: 1840 | C26: Underground Conduit | D26: 0.04 | E26: =+'App.2-B_Fixed Asset Cont 2012'!H26 -> 3293377.92 | F26: =409989+5795 -> 415784 | H26: 3709161.92 | J26: =+'App.2-B_Fixed Asset Cont 2012'!M26 -> -1095507.26 | K26: =-150801+(41939/25)-(5795/50) -> -149239.34 | M26: -1244746.6 | N26: 2464415.32
A27: 47 | B27: 1845 | C27: Underground Conductors & Devices | D27: 0.04 | E27: =+'App.2-B_Fixed Asset Cont 2012'!H27 -> 9289210.79 | F27: =505661+11590 -> 517251 | H27: 9806461.79 | J27: =+'App.2-B_Fixed Asset Cont 2012'!M27 -> -3043609.38 | K27: =-411569+(13868/25)-(11590/50) -> -411246.08 | M27: -3454855.46 | N27: 6351606.33
A28: 47 | B28: 1850 | C28: Line Transformers | D28: 0.04 | E28: =+'App.2-B_Fixed Asset Cont 2012'!H28 -> 8500203.75 | F28: =627227-5795 -> 621432 | H28: 9121635.75 | J28: =+'App.2-B_Fixed Asset Cont 2012'!M28 -> -3050250.96 | K28: =-385180+(100013/25)+(5795/50) -> -381063.58 | M28: -3431314.54 | N28: 5690321.21
A29: 47 | B29: 1855 | C29: Services (Overhead & Underground) | D29: 0.04 | E29: =+'App.2-B_Fixed Asset Cont 2012'!H29 -> 5157196.2 | F29: =658066+11590 -> 669656 | H29: 5826852.2 | J29: =+'App.2-B_Fixed Asset Cont 2012'!M29 -> -1517649.19 | K29: =-226946-89457/25-(11590/50) -> -230756.08 | M29: -1748405.27 | N29: 4078446.93
A30: 47 | B30: 1860 | C30: Meters | D30: 0.04 | E30: =+'App.2-B_Fixed Asset Cont 2012'!H30 -> 1579563.66 | H30: 1579563.66 | J30: =+'App.2-B_Fixed Asset Cont 2012'!M30 -> -485095.04 | K30: -67812 | M30: -552907.04 | N30: 1026656.62
A31: 8 | B31: 1860 | C31: Meters (Smart Meters) | D31: 0.0667 | E31: =+'App.2-B_Fixed Asset Cont 2012'!H31 -> 138227 | F31: =316432+180000 -> 496432 | H31: 634659 | J31: =+'App.2-B_Fixed Asset Cont 2012'!M31 -> -10366.26333 | K31: =-20245-(180000/30)+(6059/15) -> -25841.06667 | M31: -36207.33 | N31: 598451.67
A32: N/A | B32: 1905 | C32: Land | H32: 0 | M32: 0 | N32: 0
A33: 47 | B33: 1908 | C33: Buildings & Fixtures | H33: 0 | M33: 0 | N33: 0
A34: 13 | B34: 1910 | C34: Leasehold Improvements | H34: 0 | M34: 0 | N34: 0
A35: 8 | B35: 1915 | C35: Office Furniture & Equipment (10 years) | D35: 0.1 | E35: =+'App.2-B_Fixed Asset Cont 2012'!H35 -> 265118.15 | F35: 2000 | H35: 267118.15 | J35: =+'App.2-B_Fixed Asset Cont 2012'!M35 -> -200994.7 | K35: =-14437+(2358/10) -> -14201.2 | M35: -215195.9 | N35: 51922.25
A36: 8 | B36: 1915 | C36: Office Furniture & Equipment (5 years) | H36: 0 | M36: 0 | N36: 0
A37: 10 | B37: 1920 | C37: Computer Equipment - Hardware | D37: 0.2 | E37: =+'App.2-B_Fixed Asset Cont 2012'!H37 -> 275946.03 | H37: 275946.03 | J37: =+'App.2-B_Fixed Asset Cont 2012'!M37 -> -152871.07 | M37: -152871.07 | N37: 123074.96
A38: 45 | B38: 1920 | C38: Computer Equip.-Hardware(Post Mar. 22/04) | D38: 0.2 | E38: =+'App.2-B_Fixed Asset Cont 2012'!H38 -> 52211.63 | H38: 52211.63 | J38: =+'App.2-B_Fixed Asset Cont 2012'!M38 -> -146240.59 | M38: -146240.59 | N38: -94028.96
A39: 45.1 | B39: 1920 | C39: Computer Equip.-Hardware(Post Mar. 19/07) | D39: 0.2 | E39: =+'App.2-B_Fixed Asset Cont 2012'!H39 -> 163094.7 | F39: 28600 | H39: 191694.7 | J39: =+'App.2-B_Fixed Asset Cont 2012'!M39 -> -133323.68 | K39: =-28162+(12742/5) -> -25613.6 | M39: -158937.28 | N39: 32757.42
A40: 12 | B40: 1925 | C40: Computer Software (Formally known as Account 1925) | D40: 0.3333 | E40: =+'App.2-B_Fixed Asset Cont 2012'!H40 -> 968635.07 | F40: 45000 | H40: 1013635.07 | J40: =+'App.2-B_Fixed Asset Cont 2012'!M40 -> -879547.66 | K40: =-68144+(25821/3) -> -59537 | M40: -939084.66 | N40: 74550.41
A41: 10 | B41: 1930 | C41: Transportation Equipment | D41: 0.125 | E41: =+'App.2-B_Fixed Asset Cont 2012'!H41 -> 2251340.03 | F41: 400000 | G41: -50000 | H41: 2601340.03 | J41: =+'App.2-B_Fixed Asset Cont 2012'!M41 -> -1288932.263 | K41: =-254125+(56831/8) -> -247021.125 | L41: 50000 | M41: -1485953.388 | N41: 1115386.643
A42: 8 | B42: 1935 | C42: Stores Equipment | D42: 0.1 | E42: =+'App.2-B_Fixed Asset Cont 2012'!H42 -> 85037.21 | H42: 85037.21 | J42: =+'App.2-B_Fixed Asset Cont 2012'!M42 -> -34461.99 | K42: -8296 | M42: -42757.99 | N42: 42279.22
A43: 8 | B43: 1940 | C43: Tools, Shop & Garage Equipment | D43: 0.1 | E43: =+'App.2-B_Fixed Asset Cont 2012'!H43 -> 312343.97 | F43: 72000 | H43: 384343.97 | J43: =+'App.2-B_Fixed Asset Cont 2012'!M43 -> -203922.06 | K43: =-27972+(56437/10) -> -22328.3 | M43: -226250.36 | N43: 158093.61
A44: 8 | B44: 1945 | C44: Measurement & Testing Equipment | D44: 0.1 | E44: =+'App.2-B_Fixed Asset Cont 2012'!H44 -> 67543.58 | H44: 67543.58 | J44: =+'App.2-B_Fixed Asset Cont 2012'!M44 -> -41634.46 | K44: -6645 | M44: -48279.46 | N44: 19264.12
A45: 8 | B45: 1950 | C45: Power Operated Equipment | D45: 0.125 | E45: =+'App.2-B_Fixed Asset Cont 2012'!H45 -> 89271.96 | H45: 89271.96 | J45: =+'App.2-B_Fixed Asset Cont 2012'!M45 -> -45364.12 | K45: -7997 | M45: -53361.12 | N45: 35910.84
A46: 8 | B46: 1955 | C46: Communications Equipment | D46: 0.1 | E46: =+'App.2-B_Fixed Asset Cont 2012'!H46 -> 176173.24 | H46: 176173.24 | J46: =+'App.2-B_Fixed Asset Cont 2012'!M46 -> -126372.53 | K46: -20092 | M46: -146464.53 | N46: 29708.71
A47: 8 | B47: 1955 | C47: Communication Equipment (Smart Meters) | H47: 0 | M47: 0 | N47: 0
A48: 8 | B48: 1960 | C48: Miscellaneous Equipment | D48: 0.1 | E48: =+'App.2-B_Fixed Asset Cont 2012'!H48 -> 59618.47 | F48: 45000 | H48: 104618.47 | J48: =+'App.2-B_Fixed Asset Cont 2012'!M48 -> -32890.36 | K48: =-4592+(23875/10) -> -2204.5 | M48: -35094.86 | N48: 69523.61
A49: 47 | B49: 1975 | C49: Load Management Controls Utility Premises | D49: 0.1 | E49: =+'App.2-B_Fixed Asset Cont 2012'!H49 -> 258630.5 | H49: 258630.5 | J49: =+'App.2-B_Fixed Asset Cont 2012'!M49 -> -258630.5 | M49: -258630.5 | N49: 0
A50: 47 | B50: 1980 | C50: System Supervisor Equipment | H50: 0 | M50: 0 | N50: 0
A51: 47 | B51: 1985 | C51: Miscellaneous Fixed Assets | D51: 0.1 | E51: =+'App.2-B_Fixed Asset Cont 2012'!H51 -> 1427 | H51: 1427 | J51: =+'App.2-B_Fixed Asset Cont 2012'!M51 -> -1426.68 | M51: -1426.68 | N51: 0.32
A52: 47 | B52: 1995 | C52: Contributions & Grants | D52: 0.04 | E52: =+'App.2-B_Fixed Asset Cont 2012'!H52 -> -8517830.35 | F52: -417663 | H52: -8935493.35 | J52: =+'App.2-B_Fixed Asset Cont 2012'!M52 -> 2054702.79 | K52: =354039-(104488/25) -> 349859.48 | M52: 2404562.27 | N52: -6530931.08
B53: etc. | H53: 0 | M53: 0 | N53: 0
C55: Total | E55: =SUM(E16:E54) -> 49629839.4 | F55: =SUM(F16:F54) -> 5839956 | G55: -50000 | H55: 55419795.4 | J55: =SUM(J16:J54) -> -19126372.13 | K55: =SUM(K16:K54) -> -2379220.688 | L55: 50000 | M55: -21455592.82 | N55: 33964202.58
C56: Smart Meter Additions (from 1555)
A57: 8 | B57: 1860 | C57: Meters (Smart Meters) | D57: 0.0667 | E57: =+'App.2-B_FA Cont MIFRS 2012SM'!H33 -> 3446141 | H57: =E57+F57+G57 -> 3446141 | J57: =+'App.2-B_Fixed Asset Cont 2012SM'!M33 -> -656079 | K57: -229743 | M57: =J57+K57+L57 -> -885822 | N57: =H57+M57 -> 2560319
A58: 45.1 | B58: 1920 | C58: Computer Hardware (Smart Meters) | D58: 0.2 | E58: =+'App.2-B_FA Cont MIFRS 2012SM'!H34 -> 62873 | H58: 62873 | J58: =+'App.2-B_Fixed Asset Cont 2012SM'!M34 -> -35193 | K58: -12575 | M58: -47768 | N58: 15105
A59: 12 | B59: 1925 | C59: Computer Software (Smart Meters) | D59: 0.3333 | E59: =+'App.2-B_FA Cont MIFRS 2012SM'!H35 -> 274217 | H59: =E59+F59+G59 -> 274217 | J59: =+'App.2-B_Fixed Asset Cont 2012SM'!M35 -> -81848 | K59: -54843 | M59: =J59+K59+L59 -> -136691 | N59: =H59+M59 -> 137526
C60: Revised Total | E60: =SUM(E55:E59) -> 53413070.4 | F60: =SUM(F55:F59) -> 5839956 | G60: -50000 | H60: 59203026.4 | J60: =SUM(J55:J59) -> -19899492.13 | K60: =SUM(K55:K59) -> -2676381.688 | L60: 50000 | M60: -22525873.82 | N60: 36677152.58
J62: Less: Fully Allocated Depreciation
A63: 10 | C63: Transportation | J63: Transportation
A64: 8 | C64: Stores Equipment | J64: Stores Equipment
J65: Net Depreciation | L65: =L55-L63-L64 -> 50000
A67: Notes:
A69: 1 | B69: Tables in the format outlined above covering all fixed asset accounts should be submitted for the Test Year, Bridge Year and all relevant historical years. At a minimum , the applicant must provide data for the earlier of: 1) all historical years back to its last rebasing; or 2) at least three years of historical actuals, in addition to Bridge Year and Test Year forecasts.
A72: 2 | B72: The "CCA Class" for fixed assets should agree with the CCA Class used for tax purposes in Tax Returns. Fixed Assets sub-components may be used where the underlying asset components are classified under multiple CCA Classes for tax purposes. If an applicant uses any different classes from those shown in the table, an explanation should be provided. (also see note 3 below).
A75: 3 | B75: The table may need to be customized for a utility's asset categories or for any new asset accounts announced or authorized by the Board.
A77: 4 | B77: The depreciation column (D) is not required as the relevant information will be provided in the following 2-C series of appendices.

Sheet App.2-B_Fixed Asset Cont 2013SM
M1: File Number: | N1: ='LDC Info'!$E$18 -> EB2012-0176
M2: Exhibit:
M3: Tab:
M4: Schedule:
M5: Page:
M7: Date:
A9: Appendix 2-B
A10: Fixed Asset Continuity Schedule - CGAAP - Smart Meter Capital Additions Included In Schedule
F12: Year | G12: 2013
E14: Cost | K14: Accumulated Depreciation
A15: CCA Class | B15: OEB | C15: Description | D15: Depreciation Rate | E15: Opening Balance | F15: Additions | G15: Disposals | H15: Closing Balance | J15: Opening Balance | K15: Additions | L15: Disposals | M15: Closing Balance | N15: Net Book Value
A16: 12 | B16: 1611 | C16: Computer Software (Formally known as Account 1925) | H16: =E16+F16+G16 -> 0 | M16: =J16+K16+L16 -> 0 | N16: =H16+M16 -> 0
A17: CEC | B17: 1612 | C17: Land Rights (Formally known as Account 1906) | H17: =E17+F17+G17 -> 0 | M17: =J17+K17+L17 -> 0 | N17: =H17+M17 -> 0
A18: N/A | B18: 1805 | C18: Land | E18: =+'App.2-B_Fixed Asset Cont 2012'!H18 -> 227768.86 | H18: =E18+F18+G18 -> 227768.86 | M18: =J18+K18+L18 -> 0 | N18: =H18+M18 -> 227768.86
A19: 47 | B19: 1808 | C19: Buildings | D19: 0.02 | E19: =+'App.2-B_Fixed Asset Cont 2012'!H19 -> 2486318 | F19: 9000 | H19: =E19+F19+G19 -> 2495318 | J19: =+'App.2-B_Fixed Asset Cont 2012'!M19 -> -275084.49 | K19: =+'App.2-B_Fixed Asset Cont 2013'!K19 -> -49977 | M19: =J19+K19+L19 -> -325061.49 | N19: =H19+M19 -> 2170256.51
A20: 13 | B20: 1810 | C20: Leasehold Improvements | H20: 0 | M20: 0 | N20: 0
A21: 47 | B21: 1815 | C21: Transformer Station Equipment >50 kV | H21: 0 | M21: 0 | N21: 0
A22: 47 | B22: 1820 | C22: Distribution Station Equipment <50 kV | D22: 0.0333 | E22: =+'App.2-B_Fixed Asset Cont 2012'!H22 -> 4269129.02 | F22: =+'App.2-B_Fixed Asset Cont 2013'!F22 -> 1101694 | H22: 5370823.02 | J22: =+'App.2-B_Fixed Asset Cont 2012'!M22 -> -1714983.093 | K22: =+'App.2-B_Fixed Asset Cont 2013'!K22 -> -174583.3167 | M22: -1889566.41 | N22: 3481256.61
A23: 47 | B23: 1825 | C23: Storage Battery Equipment | H23: 0 | M23: 0 | N23: 0
A24: 47 | B24: 1830 | C24: Poles, Towers & Fixtures | D24: 0.04 | E24: =+'App.2-B_Fixed Asset Cont 2012'!H24 -> 7737835.56 | F24: =+'App.2-B_Fixed Asset Cont 2013'!F24 -> 905325 | H24: 8643160.56 | J24: =+'App.2-B_Fixed Asset Cont 2012'!M24 -> -2663084.39 | K24: =+'App.2-B_Fixed Asset Cont 2013'!K24 -> -353161.86 | M24: -3016246.25 | N24: 5626914.31
A25: 47 | B25: 1835 | C25: Overhead Conductors & Devices | D25: 0.04 | E25: =+'App.2-B_Fixed Asset Cont 2012'!H25 -> 10442447.45 | F25: =+'App.2-B_Fixed Asset Cont 2013'!F25 -> 928445 | H25: 11370892.45 | J25: =+'App.2-B_Fixed Asset Cont 2012'!M25 -> -3778832.19 | K25: =+'App.2-B_Fixed Asset Cont 2013'!K25 -> -471464.12 | M25: -4250296.31 | N25: 7120596.14
A26: 47 | B26: 1840 | C26: Underground Conduit | D26: 0.04 | E26: =+'App.2-B_Fixed Asset Cont 2012'!H26 -> 3293377.92 | F26: =+'App.2-B_Fixed Asset Cont 2013'!F26 -> 415784 | H26: 3709161.92 | J26: =+'App.2-B_Fixed Asset Cont 2012'!M26 -> -1095507.26 | K26: =+'App.2-B_Fixed Asset Cont 2013'!K26 -> -149239.34 | M26: -1244746.6 | N26: 2464415.32
A27: 47 | B27: 1845 | C27: Underground Conductors & Devices | D27: 0.04 | E27: =+'App.2-B_Fixed Asset Cont 2012'!H27 -> 9289210.79 | F27: =+'App.2-B_Fixed Asset Cont 2013'!F27 -> 517251 | H27: 9806461.79 | J27: =+'App.2-B_Fixed Asset Cont 2012'!M27 -> -3043609.38 | K27: =+'App.2-B_Fixed Asset Cont 2013'!K27 -> -411246.08 | M27: -3454855.46 | N27: 6351606.33
A28: 47 | B28: 1850 | C28: Line Transformers | D28: 0.04 | E28: =+'App.2-B_Fixed Asset Cont 2012'!H28 -> 8500203.75 | F28: =+'App.2-B_Fixed Asset Cont 2013'!F28 -> 621432 | H28: 9121635.75 | J28: =+'App.2-B_Fixed Asset Cont 2012'!M28 -> -3050250.96 | K28: =+'App.2-B_Fixed Asset Cont 2013'!K28 -> -381063.58 | M28: -3431314.54 | N28: 5690321.21
A29: 47 | B29: 1855 | C29: Services (Overhead & Underground) | D29: 0.04 | E29: =+'App.2-B_Fixed Asset Cont 2012'!H29 -> 5157196.2 | F29: =+'App.2-B_Fixed Asset Cont 2013'!F29 -> 669656 | H29: 5826852.2 | J29: =+'App.2-B_Fixed Asset Cont 2012'!M29 -> -1517649.19 | K29: =+'App.2-B_Fixed Asset Cont 2013'!K29 -> -230756.08 | M29: -1748405.27 | N29: 4078446.93
A30: 47 | B30: 1860 | C30: Meters | D30: 0.04 | E30: =+'App.2-B_Fixed Asset Cont 2012'!H30 -> 1579563.66 | H30: 1579563.66 | J30: =+'App.2-B_Fixed Asset Cont 2012'!M30 -> -485095.04 | K30: =+'App.2-B_Fixed Asset Cont 2013'!K30 -> -67812 | M30: -552907.04 | N30: 1026656.62
A31: 8 | B31: 1860 | C31: Meters (Smart Meters) | D31: 0.0667 | E31: =+'App.2-B_Fixed Asset Cont 2012'!H31 -> 138227 | F31: =+'App.2-B_Fixed Asset Cont 2013'!F31 -> 496432 | H31: 634659 | J31: =+'App.2-B_Fixed Asset Cont 2012'!M31 -> -10366.26333 | K31: =+'App.2-B_Fixed Asset Cont 2013'!K31 -> -25841.06667 | M31: -36207.33 | N31: 598451.67
B32: 3 lines | C32: Smart Meter Additions (from 1555)
A33: 8 | B33: 1860 | C33: Meters (Smart Meters) | D33: 0.0667 | E33: ='App.2-B_FA Cont MIFRS 2012SM'!H33 -> 3446141 | H33: =E33+F33+G33 -> 3446141 | J33: ='App.2-B_FA Cont MIFRS 2012SM'!M33 -> -656079 | K33: =+'App.2-B_Fixed Asset Cont 2013'!K57 -> -229743 | M33: =J33+K33+L33 -> -885822 | N33: =H33+M33 -> 2560319
A34: 45.1 | B34: 1920 | C34: Computer Hardware (Smart Meters) | D34: 0.2 | E34: ='App.2-B_FA Cont MIFRS 2012SM'!H34 -> 62873 | H34: 62873 | J34: ='App.2-B_FA Cont MIFRS 2012SM'!M34 -> -35193 | K34: =+'App.2-B_Fixed Asset Cont 2013'!K58 -> -12575 | M34: -47768 | N34: 15105
A35: 12 | B35: 1925 | C35: Computer Software (Smart Meters) | D35: 0.3333 | E35: ='App.2-B_FA Cont MIFRS 2012SM'!H35 -> 274217 | H35: 274217 | J35: ='App.2-B_FA Cont MIFRS 2012SM'!M35 -> -81848 | K35: =+'App.2-B_Fixed Asset Cont 2013'!K59 -> -54843 | M35: -136691 | N35: 137526
A36: N/A | B36: 1905 | C36: Land | H36: 0 | M36: 0 | N36: 0
A37: 47 | B37: 1908 | C37: Buildings & Fixtures | H37: 0 | M37: 0 | N37: 0
A38: 13 | B38: 1910 | C38: Leasehold Improvements | H38: 0 | M38: 0 | N38: 0
A39: 8 | B39: 1915 | C39: Office Furniture & Equipment (10 years) | D39: 0.1 | E39: =+'App.2-B_Fixed Asset Cont 2012'!H35 -> 265118.15 | F39: 2000 | H39: 267118.15 | J39: =+'App.2-B_Fixed Asset Cont 2012'!M35 -> -200994.7 | K39: =+'App.2-B_Fixed Asset Cont 2013'!K35 -> -14201.2 | M39: -215195.9 | N39: 51922.25
A40: 8 | B40: 1915 | C40: Office Furniture & Equipment (5 years) | H40: 0 | M40: 0 | N40: 0
A41: 10 | B41: 1920 | C41: Computer Equipment - Hardware | D41: 0.2 | E41: =+'App.2-B_Fixed Asset Cont 2012'!H37 -> 275946.03 | H41: 275946.03 | J41: =+'App.2-B_Fixed Asset Cont 2012'!M37 -> -152871.07 | M41: -152871.07 | N41: 123074.96
A42: 45 | B42: 1920 | C42: Computer Equip.-Hardware(Post Mar. 22/04) | D42: 0.2 | E42: =+'App.2-B_Fixed Asset Cont 2012'!H38 -> 52211.63 | H42: 52211.63 | J42: =+'App.2-B_Fixed Asset Cont 2012'!M38 -> -146240.59 | M42: -146240.59 | N42: -94028.96
A43: 45.1 | B43: 1920 | C43: Computer Equip.-Hardware(Post Mar. 19/07) | D43: 0.2 | E43: =+'App.2-B_Fixed Asset Cont 2012'!H39 -> 163094.7 | F43: 28600 | H43: 191694.7 | J43: =+'App.2-B_Fixed Asset Cont 2012'!M39 -> -133323.68 | K43: =+'App.2-B_Fixed Asset Cont 2013'!K39 -> -25613.6 | M43: -158937.28 | N43: 32757.42
A44: 12 | B44: 1925 | C44: Computer Software (Formally known as Account 1925) | D44: 0.3333 | E44: =+'App.2-B_Fixed Asset Cont 2012'!H40 -> 968635.07 | F44: 45000 | H44: 1013635.07 | J44: =+'App.2-B_Fixed Asset Cont 2012'!M40 -> -879547.66 | K44: =+'App.2-B_Fixed Asset Cont 2013'!K40 -> -59537 | M44: -939084.66 | N44: 74550.41
A45: 10 | B45: 1930 | C45: Transportation Equipment | D45: 0.125 | E45: =+'App.2-B_Fixed Asset Cont 2012'!H41 -> 2251340.03 | F45: 400000 | G45: -50000 | H45: 2601340.03 | J45: =+'App.2-B_Fixed Asset Cont 2012'!M41 -> -1288932.263 | K45: =+'App.2-B_Fixed Asset Cont 2013'!K41 -> -247021.125 | L45: 50000 | M45: -1485953.388 | N45: 1115386.643
A46: 8 | B46: 1935 | C46: Stores Equipment | D46: 0.1 | E46: =+'App.2-B_Fixed Asset Cont 2012'!H42 -> 85037.21 | H46: 85037.21 | J46: =+'App.2-B_Fixed Asset Cont 2012'!M42 -> -34461.99 | K46: =+'App.2-B_Fixed Asset Cont 2013'!K42 -> -8296 | M46: -42757.99 | N46: 42279.22
A47: 8 | B47: 1940 | C47: Tools, Shop & Garage Equipment | D47: 0.1 | E47: =+'App.2-B_Fixed Asset Cont 2012'!H43 -> 312343.97 | F47: 72000 | H47: 384343.97 | J47: =+'App.2-B_Fixed Asset Cont 2012'!M43 -> -203922.06 | K47: =+'App.2-B_Fixed Asset Cont 2013'!K43 -> -22328.3 | M47: -226250.36 | N47: 158093.61
A48: 8 | B48: 1945 | C48: Measurement & Testing Equipment | D48: 0.1 | E48: =+'App.2-B_Fixed Asset Cont 2012'!H44 -> 67543.58 | H48: 67543.58 | J48: =+'App.2-B_Fixed Asset Cont 2012'!M44 -> -41634.46 | K48: =+'App.2-B_Fixed Asset Cont 2013'!K44 -> -6645 | M48: -48279.46 | N48: 19264.12
A49: 8 | B49: 1950 | C49: Power Operated Equipment | D49: 0.125 | E49: =+'App.2-B_Fixed Asset Cont 2012'!H45 -> 89271.96 | H49: 89271.96 | J49: =+'App.2-B_Fixed Asset Cont 2012'!M45 -> -45364.12 | K49: =+'App.2-B_Fixed Asset Cont 2013'!K45 -> -7997 | M49: -53361.12 | N49: 35910.84
A50: 8 | B50: 1955 | C50: Communications Equipment | D50: 0.1 | E50: =+'App.2-B_Fixed Asset Cont 2012'!H46 -> 176173.24 | H50: 176173.24 | J50: =+'App.2-B_Fixed Asset Cont 2012'!M46 -> -126372.53 | K50: =+'App.2-B_Fixed Asset Cont 2013'!K46 -> -20092 | M50: -146464.53 | N50: 29708.71
A51: 8 | B51: 1955 | C51: Communication Equipment (Smart Meters) | H51: 0 | M51: 0 | N51: 0
A52: 8 | B52: 1960 | C52: Miscellaneous Equipment | D52: 0.1 | E52: =+'App.2-B_Fixed Asset Cont 2012'!H48 -> 59618.47 | F52: 45000 | H52: 104618.47 | J52: =+'App.2-B_Fixed Asset Cont 2012'!M48 -> -32890.36 | K52: =+'App.2-B_Fixed Asset Cont 2013'!K48 -> -2204.5 | M52: -35094.86 | N52: 69523.61
A53: 47 | B53: 1975 | C53: Load Management Controls Utility Premises | D53: 0.1 | E53: =+'App.2-B_Fixed Asset Cont 2012'!H49 -> 258630.5 | H53: 258630.5 | J53: =+'App.2-B_Fixed Asset Cont 2012'!M49 -> -258630.5 | M53: -258630.5 | N53: 0
A54: 47 | B54: 1980 | C54: System Supervisor Equipment | H54: 0 | M54: 0 | N54: 0
A55: 47 | B55: 1985 | C55: Miscellaneous Fixed Assets | D55: 0.1 | E55: =+'App.2-B_Fixed Asset Cont 2012'!H51 -> 1427 | H55: 1427 | J55: =+'App.2-B_Fixed Asset Cont 2012'!M51 -> -1426.68 | M55: -1426.68 | N55: 0.32
A56: 47 | B56: 1995 | C56: Contributions & Grants | D56: 0.04 | E56: =+'App.2-B_Fixed Asset Cont 2012'!H52 -> -8517830.35 | F56: -417663 | H56: -8935493.35 | J56: =+'App.2-B_Fixed Asset Cont 2012'!M52 -> 2054702.79 | K56: =+'App.2-B_Fixed Asset Cont 2013'!K52 -> 349859.48 | M56: 2404562.27 | N56: -6530931.08
B57: etc. | H57: 0 | M57: 0 | N57: 0
C59: Total | E59: =SUM(E16:E58) -> 53413070.4 | F59: =SUM(F16:F58) -> 5839956 | G59: -50000 | H59: 59203026.4 | J59: =SUM(J16:J58) -> -19899492.13 | K59: =SUM(K16:K58) -> -2676381.688 | L59: 50000 | M59: -22525873.82 | N59: 36677152.58
J61: Less: Fully Allocated Depreciation
A62: 10 | C62: Transportation | J62: Transportation
A63: 8 | C63: Stores Equipment | J63: Stores Equipment
J64: Net Depreciation | L64: =L59-L62-L63 -> 50000
A66: Notes:
A68: 1 | B68: Tables in the format outlined above covering all fixed asset accounts should be submitted for the Test Year, Bridge Year and all relevant historical years. At a minimum , the applicant must provide data for the earlier of: 1) all historical years back to its last rebasing; or 2) at least three years of historical actuals, in addition to Bridge Year and Test Year forecasts.
A71: 2 | B71: The "CCA Class" for fixed assets should agree with the CCA Class used for tax purposes in Tax Returns. Fixed Assets sub-components may be used where the underlying asset components are classified under multiple CCA Classes for tax purposes. If an applicant uses any different classes from those shown in the table, an explanation should be provided. (also see note 3 below).
A74: 3 | B74: The table may need to be customized for a utility's asset categories or for any new asset accounts announced or authorized by the Board.
A76: 4 | B76: The depreciation column (D) is not required as the relevant information will be provided in the following 2-C series of appendices.

Sheet App.2-EB_PP&E Deferral Acct
H1: File Number: | I1: ='[2]LDC Info'!$E$18 -> EB2012-0176
H2: Exhibit:
H3: Tab:
H4: Schedule:
H5: Page:
H7: Date:
A9: Appendix 2-EB
A10: IFRS-CGAAP Transitional PP&E Amounts
A11: 2013 Adopters of IFRS for Financial Reporting Purposes
A13: For applicants that adopt IFRS on January 1, 2013 for financial reporting purposes
A15: Note: this sheet should be filled out if the applicant adopts IFRS for its financial reporting purpose as of January 1, 2013.
B17: 2009 Rebasing Year | C17: 2010 | D17: 2011 | E17: 2012 | F17: 2013 Rebasing Year | G17: 2014 | H17: 2015 | I17: 2016
A18: Reporting Basis | B18: CGAAP | C18: IRM | D18: IRM | E18: IRM | F18: MIFRS | G18: IRM | H18: IRM | I18: IRM
A19: Forecast vs. Actual Used in Rebasing Year | B19: Forecast | C19: Actual | D19: Actual | E19: Forecast | F19: Forecast
D20: $ | E20: $ | F20: $ | G20: $ | H20: $ | I20: $
A21: PP&E Values under CGAAP
A22: Opening net PP&E - Note 1 | C22: =+B26 -> 27202854 | D22: =+C26 -> 27955073.39 | E22: =+D26 -> 29276361.8 | F22: =+E26 -> 30503466.92
A23: Additions | C23: =+'[2]App.2-B_Fixed Asset Cont 2010'!F55 -> 2741802.22 | D23: =+'[2]App.2-B_Fixed Asset Cont 2011'!F55 -> 3527103.22 | E23: =+'App.2-B_Fixed Asset Cont 2012'!F55 -> 3400198 | F23: =+'App.2-B_Fixed Asset Cont 2013'!F55+'App.2-B_Fixed Asset Cont 2013'!E57+'App.2-B_Fixed Asset Cont 2013'!E58+'App.2-B_Fixed Asset Cont 2013'!E59 -> 9623187
A24: Disposals | C24: =+'[2]App.2-B_Fixed Asset Cont 2010'!G55+'[2]App.2-B_Fixed Asset Cont 2010'!L55 -> -134258.86 | D24: =+'[2]App.2-B_Fixed Asset Cont 2011'!G55+'[2]App.2-B_Fixed Asset Cont 2011'!L55 -> -194977.88 | E24: =+'App.2-B_Fixed Asset Cont 2012'!G55+'App.2-B_Fixed Asset Cont 2012'!L55 -> 0 | F24: =+'[2]App.2-B_Fixed Asset Cont 2013'!G60+'[2]App.2-B_Fixed Asset Cont 2013'!L60 -> 0
A25: Depreciation (amounts should be negative) | C25: =+'[2]App.2-B_Fixed Asset Cont 2010'!K55 -> -1855323.97 | D25: =+'[2]App.2-B_Fixed Asset Cont 2011'!K55 -> -2010836.93 | E25: =+'App.2-B_Fixed Asset Cont 2012'!K55 -> -2173092.879 | F25: =+'App.2-B_Fixed Asset Cont 2013'!K60+'App.2-B_Fixed Asset Cont 2013'!J57+'App.2-B_Fixed Asset Cont 2013'!J58+'App.2-B_Fixed Asset Cont 2013'!J59 -> -3449501.688
A26: Closing net PP&E (1) | B26: 27202854 | C26: =SUM(C22:C25) -> 27955073.39 | D26: =SUM(D22:D25) -> 29276361.8 | E26: =SUM(E22:E25) -> 30503466.92 | F26: =SUM(F22:F25) -> 36677152.23
A28: PP&E Values under MIFRS (Starts from 2012, the transition year)
A29: Opening net PP&E - Note 1 | C29: =+C22 -> 27202854 | D29: 27955073.39 | E29: =+D33 -> 29276361.8 | F29: =+E33 -> 31041482.2
A30: Additions | C30: 2741802.22 | D30: 3527103.22 | E30: =+'App.2-B_FA Cont MIFRS 2012'!F55 -> 2879539 | F30: =+'App.2-B_FA Cont MIFRS 2013'!F60+'App.2-B_FA Cont MIFRS 2013'!E57+'App.2-B_FA Cont MIFRS 2013'!E58+'App.2-B_FA Cont MIFRS 2013'!E59 -> 8737271
A31: Disposals | C31: -134258.86 | D31: -194977.88 | E31: 0 | F31: 0
A32: Depreciation (amounts should be negative) | C32: -1855323.97 | D32: -2010836.93 | E32: =+'App.2-B_FA Cont MIFRS 2012'!K55 -> -1114418.605 | F32: =+'App.2-B_FA Cont MIFRS 2013'!K60+'App.2-B_FA Cont MIFRS 2013'!J57+'App.2-B_FA Cont MIFRS 2013'!J58+'App.2-B_FA Cont MIFRS 2013'!J59 -> -2243081.793
A33: Closing net PP&E (2) | B33: =+B26 -> 27202854 | C33: 27955073.39 | D33: 29276361.8 | E33: =SUM(E29:E32) -> 31041482.2 | F33: =SUM(F29:F32) -> 37535671.4
A35: Difference in Closing net PP&E, CGAAP vs. MIFRS (Shown as adjustment to rate base on rebasing) | E35: =E26-E33 -> -538015.2746
A37: Account 1575 - IFRS-CGAAP Transitional PP&E Amounts
A38: Opening balance | E38: =D42 -> 0 | F38: =E42 -> -538015.2746 | G38: =F42 -> -403511.456 | H38: =G42 -> -269007.6373 | I38: =H42 -> -134503.8187
A39: Amounts added in the year | E39: =E35-D35 -> -538015.2746
A40: Sub-total | E40: =E38+E39 -> -538015.2746 | F40: =F38+F39 -> -538015.2746 | G40: =G38+G39 -> -403511.456 | H40: =H38+H39 -> -269007.6373 | I40: =I38+I39 -> -134503.8187
A41: Amount of amortization, included in depreciation expense - Note 2 | F41: =IF(ISERROR(-E35/I46), 0, -E35/I46) -> 134503.8187 | G41: =+F41 -> 134503.8187 | H41: =+F41 -> 134503.8187 | I41: =+F41 -> 134503.8187
A42: Closing balance in deferral account | E42: =E40+E41 -> -538015.2746 | F42: =IF(ISERROR(F40+F41), 0, F40+F41) -> -403511.456 | G42: =G40+G41 -> -269007.6373 | H42: =H40+H41 -> -134503.8187 | I42: =I40+I41 -> 0
A44: Effect on Revenue Requirement
A45: Amortization of deferred balance as above - Note 2 | F45: =IF(ISERROR(E35/I46), 0, E35/I46) -> -134503.8187 | H45: WACC | I45: 0.066
A46: Return on Rate Base Associated with deferred PP&E balance at WACC - Note 3 | F46: =E35*I45 -> -35509.00812 | H46: Disposition Period - Note 4 | I46: 4 | J46: Years
A47: Amount included in Revenue Requirement on rebasing | F47: =F45+F46 -> -170012.8268
A49: Notes:
A50: 1 For an applicant that adopts IFRS on January 1, 2013, the PP&E values as of January 1, 2012 under both CGAAP and MIFRS should be the same.
A51: 2 Amortization of the deferred balance in Account 1575 will start from the rebasing year.
A52: Assume the utility requests for a certain disposition period, the amortization that should be included in the depreciation expense is calculated as:
A53: the opening balance of Account 1575 / the approved disposition period
A54: 3 Return on rate base associated with deferred balance is calculated as:
A55: the deferred account opening balance as of 2013 rebasing year x WACC
A56: * Please note that the calculation should be adjusted once WACC is updated and finalized in the rate application.
A57: 4 Consistent with the 4 year normal rate cycle, the model is using a 4 year amortization period as a default selection to "clear" the PP&E deferral account through a one-time adjustment to ratebase to capture and remove the impact of the accounting policy changes as caused by the transition from CGAAP to MIFRS.

Sheet App.2-B_FA Cont MIFRS 2013
M1: File Number: | N1: ='LDC Info'!$E$18 -> EB2012-0176
M2: Exhibit:
M3: Tab:
M4: Schedule:
M5: Page:
M7: Date:
A9: Appendix 2-B
A10: Fixed Asset Continuity Schedule - MIFRS
F12: Year | G12: 2013
E14: Cost | K14: Accumulated Depreciation
A15: CCA Class | B15: OEB | C15: Description | D15: Depreciation Rate | E15: Opening Balance | F15: Additions | G15: Disposals | H15: Closing Balance | J15: Opening Balance | K15: Additions | L15: Disposals | M15: Closing Balance | N15: Net Book Value
A16: 12 | B16: 1611 | C16: Computer Software (Formally known as Account 1925) | H16: =E16+F16+G16 -> 0 | M16: =J16+K16+L16 -> 0 | N16: =H16+M16 -> 0
A17: CEC | B17: 1612 | C17: Land Rights (Formally known as Account 1906) | H17: =E17+F17+G17 -> 0 | M17: =J17+K17+L17 -> 0 | N17: =H17+M17 -> 0
A18: N/A | B18: 1805 | C18: Land | E18: =+'App.2-B_FA Cont MIFRS 2012'!H18 -> 227768.86 | H18: =E18+F18+G18 -> 227768.86 | M18: =J18+K18+L18 -> 0 | N18: =H18+M18 -> 227768.86
A19: 47 | B19: 1808 | C19: Buildings | D19: =100/O19%/10000 -> 0.02 | E19: =+'App.2-B_FA Cont MIFRS 2012'!H19 -> 2486318 | F19: 9000 | H19: =E19+F19+G19 -> 2495318 | J19: =+'App.2-B_FA Cont MIFRS 2012'!M19 -> -275126.49 | K19: -50119 | M19: =J19+K19+L19 -> -325245.49 | N19: =H19+M19 -> 2170072.51 | O19: 50
A20: 13 | B20: 1810 | C20: Leasehold Improvements | E20: =+'App.2-B_FA Cont MIFRS 2012'!H20 -> 0 | H20: 0 | J20: =+'App.2-B_FA Cont MIFRS 2012'!M20 -> 0 | M20: 0 | N20: 0
A21: 47 | B21: 1815 | C21: Transformer Station Equipment >50 kV | E21: =+'App.2-B_FA Cont MIFRS 2012'!H21 -> 0 | H21: 0 | J21: =+'App.2-B_FA Cont MIFRS 2012'!M21 -> 0 | M21: 0 | N21: 0
A22: 47 | B22: 1820 | C22: Distribution Station Equipment <50 kV | D22: =100/O22%/10000 -> 0.02222222222 | E22: =+'App.2-B_FA Cont MIFRS 2012'!H22 -> 4269129.02 | F22: =520121+463809 -> 983930 | H22: 5253059.02 | J22: =+'App.2-B_FA Cont MIFRS 2012'!M22 -> -1863577.977 | K22: =-230732-463809/90 -> -235885.4333 | M22: -2099463.41 | N22: 3153595.61 | O22: 45
A23: 47 | B23: 1825 | C23: Storage Battery Equipment | E23: =+'App.2-B_FA Cont MIFRS 2012'!H23 -> 0 | H23: 0 | J23: =+'App.2-B_FA Cont MIFRS 2012'!M23 -> 0 | M23: 0 | N23: 0
A24: 47 | B24: 1830 | C24: Poles, Towers & Fixtures | D24: =100/O24%/10000 -> 0.01666666667 | E24: =+'App.2-B_FA Cont MIFRS 2012'!H24 -> 7642875.56 | F24: =781179+4700-33488 -> 752391 | H24: 8395266.56 | J24: =+'App.2-B_FA Cont MIFRS 2012'!M24 -> -2445908.39 | K24: =-114430-47+(197653/60)+(33488/120) -> -110903.7167 | M24: -2556812.107 | N24: 5838454.453 | O24: 60
A25: 47 | B25: 1835 | C25: Overhead Conductors & Devices | D25: 0.01538461538 | E25: =+'App.2-B_FA Cont MIFRS 2012'!H25 -> 10340037.45 | F25: =748211+19958 -> 768169 | H25: 11108206.45 | J25: =+'App.2-B_FA Cont MIFRS 2012'!M25 -> -3463728.215 | K25: =-135965+(114805/65)-(19958/130) -> -134352.2923 | M25: -3598080.507 | N25: 7510125.943 | O25: 65
A26: 47 | B26: 1840 | C26: Underground Conduit | D26: 0.01176470588 | E26: =+'App.2-B_FA Cont MIFRS 2012'!H26 -> 3246455.92 | F26: =335057+3886 -> 338943 | H26: 3585398.92 | J26: =+'App.2-B_FA Cont MIFRS 2012'!M26 -> -988356.44 | K26: =-32396+(37332/85)-(3886/170) -> -31979.65882 | M26: -1020336.099 | N26: 2565062.821 | O26: 85
A27: 47 | B27: 1845 | C27: Underground Conductors & Devices | D27: 0.01666666667 | E27: =+'App.2-B_FA Cont MIFRS 2012'!H27 -> 9205101.79 | F27: =404073+7436 -> 411509 | H27: 9616610.79 | J27: =+'App.2-B_FA Cont MIFRS 2012'!M27 -> -2778709.715 | K27: =-133727+(12003/60)-(7436/120) -> -133588.9167 | M27: -2912298.632 | N27: 6704312.158 | O27: 60
A28: 47 | B28: 1850 | C28: Line Transformers | D28: 0.025 | E28: =+'App.2-B_FA Cont MIFRS 2012'!H28 -> 8429479.75 | F28: =529371-4891 -> 524480 | H28: 8953959.75 | J28: =+'App.2-B_FA Cont MIFRS 2012'!M28 -> -2906808.332 | K28: =-229328+(82311/40)+(4891/80) -> -227209.0875 | M28: -3134017.42 | N28: 5819942.33 | O28: 40
A29: 47 | B29: 1855 | C29: Services (Overhead & Underground) | D29: 0.01818181818 | E29: =+'App.2-B_FA Cont MIFRS 2012'!H29 -> 5042665.2 | F29: =532665+7099 -> 539764 | H29: 5582429.2 | J29: =+'App.2-B_FA Cont MIFRS 2012'!M29 -> -1390342.595 | K29: =-85957+(85080/55)-(7099/110) -> -84474.62727 | M29: -1474817.223 | N29: 4107611.977 | O29: 55
A30: 47 | B30: 1860 | C30: Meters | D30: 0.03333333333 | E30: =+'App.2-B_FA Cont MIFRS 2012'!H30 -> 1579563.66 | H30: 1579563.66 | J30: =+'App.2-B_FA Cont MIFRS 2012'!M30 -> -467372.04 | K30: -50099 | M30: -517471.04 | N30: 1062092.62 | O30: 30
A31: 8 | B31: 1860 | C31: Meters (Smart Meters) | D31: 0.06666666667 | E31: =+'App.2-B_FA Cont MIFRS 2012'!H31 -> 131224 | F31: =168851+180000+58143 -> 406994 | H31: 538218 | J31: =+'App.2-B_FA Cont MIFRS 2012'!M31 -> -10049.99667 | K31: =-14566-6000-4361+(4147/15) -> -24650.53333 | M31: -34700.53 | N31: 503517.47 | O31: 15
A32: N/A | B32: 1905 | C32: Land | E32: =+'App.2-B_FA Cont MIFRS 2012'!H32 -> 0 | H32: 0 | J32: =+'App.2-B_FA Cont MIFRS 2012'!M32 -> 0 | M32: 0 | N32: 0
A33: 47 | B33: 1908 | C33: Buildings & Fixtures | E33: =+'App.2-B_FA Cont MIFRS 2012'!H33 -> 0 | H33: 0 | J33: =+'App.2-B_FA Cont MIFRS 2012'!M33 -> 0 | M33: 0 | N33: 0
A34: 13 | B34: 1910 | C34: Leasehold Improvements | E34: =+'App.2-B_FA Cont MIFRS 2012'!H34 -> 0 | H34: 0 | J34: =+'App.2-B_FA Cont MIFRS 2012'!M34 -> 0 | M34: 0 | N34: 0
A35: 8 | B35: 1915 | C35: Office Furniture & Equipment (10 years) | D35: =100/O35%/10000 -> 0.1 | E35: =+'App.2-B_FA Cont MIFRS 2012'!H35 -> 265118.15 | F35: 2000 | H35: 267118.15 | J35: =+'App.2-B_FA Cont MIFRS 2012'!M35 -> -193805.7 | K35: =-8245+(2358/10) -> -8009.2 | M35: -201814.9 | N35: 65303.25 | O35: 10
A36: 8 | B36: 1915 | C36: Office Furniture & Equipment (5 years) | E36: =+'App.2-B_FA Cont MIFRS 2012'!H36 -> 0 | H36: 0 | J36: =+'App.2-B_FA Cont MIFRS 2012'!M36 -> 0 | M36: 0 | N36: 0
A37: 10 | B37: 1920 | C37: Computer Equipment - Hardware | D37: 0.2 | E37: =+'App.2-B_FA Cont MIFRS 2012'!H37 -> 275946.03 | H37: 275946.03 | J37: =+'App.2-B_FA Cont MIFRS 2012'!M37 -> -152871.07 | M37: -152871.07 | N37: 123074.96
A38: 45 | B38: 1920 | C38: Computer Equip.-Hardware(Post Mar. 22/04) | D38: 0.2 | E38: =+'App.2-B_FA Cont MIFRS 2012'!H38 -> 52211.63 | H38: 52211.63 | J38: =+'App.2-B_FA Cont MIFRS 2012'!M38 -> -146240.59 | M38: -146240.59 | N38: -94028.96
A39: 45.1 | B39: 1920 | C39: Computer Equip.-Hardware(Post Mar. 19/07) | D39: =100/O39%/10000 -> 0.2 | E39: =+'App.2-B_FA Cont MIFRS 2012'!H39 -> 163094.7 | F39: 28600 | H39: 191694.7 | J39: =+'App.2-B_FA Cont MIFRS 2012'!M39 -> -123497.68 | K39: =-2548-19789+(12742/5) -> -19788.6 | M39: -143286.28 | N39: 48408.42 | O39: 5
A40: 12 | B40: 1925 | C40: Computer Software (Formally known as Account 1925) | D40: 0.2 | E40: =+'App.2-B_FA Cont MIFRS 2012'!H40 -> 968635.07 | F40: 45000 | H40: 1013635.07 | J40: =+'App.2-B_FA Cont MIFRS 2012'!M40 -> -847838.06 | K40: =-47960+(25821/5) -> -42795.8 | M40: -890633.86 | N40: 123001.21 | O40: 5
A41: 10 | B41: 1930 | C41: Transportation Equipment | D41: 0.08 | E41: =+'App.2-B_FA Cont MIFRS 2012'!H41 -> 2251340.03 | F41: 400000 | G41: -50000 | H41: 2601340.03 | J41: =+'App.2-B_FA Cont MIFRS 2012'!M41 -> -1158242.96 | K41: =-126308+(56831/12.5) -> -121761.52 | L41: 50000 | M41: -1230004.48 | N41: 1371335.55 | O41: 12.5
A42: 8 | B42: 1935 | C42: Stores Equipment | D42: 0.1 | E42: =+'App.2-B_FA Cont MIFRS 2012'!H42 -> 85037.21 | H42: 85037.21 | J42: =+'App.2-B_FA Cont MIFRS 2012'!M42 -> -32052.99 | K42: -5887 | M42: -37939.99 | N42: 47097.22 | O42: 10
A43: 8 | B43: 1940 | C43: Tools, Shop & Garage Equipment | D43: 0.1 | E43: =+'App.2-B_FA Cont MIFRS 2012'!H43 -> 312343.97 | F43: 72000 | H43: 384343.97 | J43: =+'App.2-B_FA Cont MIFRS 2012'!M43 -> -196398.06 | K43: =-22040+5644 -> -16396 | M43: -212794.06 | N43: 171549.91 | O43: 10
A44: 8 | B44: 1945 | C44: Measurement & Testing Equipment | D44: 0.1 | E44: =+'App.2-B_FA Cont MIFRS 2012'!H44 -> 67543.58 | H44: 67543.58 | J44: =+'App.2-B_FA Cont MIFRS 2012'!M44 -> -38244.46 | K44: -3255 | M44: -41499.46 | N44: 26044.12 | O44: 10
A45: 8 | B45: 1950 | C45: Power Operated Equipment | D45: 0.1 | E45: =+'App.2-B_FA Cont MIFRS 2012'!H45 -> 89271.96 | H45: 89271.96 | J45: =+'App.2-B_FA Cont MIFRS 2012'!M45 -> -42557.12 | K45: -5190 | M45: -47747.12 | N45: 41524.84 | O45: 10
A46: 8 | B46: 1955 | C46: Communications Equipment | D46: 0.1 | E46: =+'App.2-B_FA Cont MIFRS 2012'!H46 -> 176173.24 | H46: 176173.24 | J46: =+'App.2-B_FA Cont MIFRS 2012'!M46 -> -114278.53 | K46: -8288 | M46: -122566.53 | N46: 53606.71 | O46: 10
A47: 8 | B47: 1955 | C47: Communication Equipment (Smart Meters) | E47: =+'App.2-B_FA Cont MIFRS 2012'!H47 -> 0 | H47: 0 | J47: =+'App.2-B_FA Cont MIFRS 2012'!M47 -> 0 | M47: 0 | N47: 0
A48: 8 | B48: 1960 | C48: Miscellaneous Equipment | D48: =100/O48%/10000 -> 0.1 | E48: =+'App.2-B_FA Cont MIFRS 2012'!H48 -> 59618.47 | F48: 45000 | H48: 104618.47 | J48: =+'App.2-B_FA Cont MIFRS 2012'!M48 -> -32010.36 | K48: =-7712+(23875/10) -> -5324.5 | M48: -37334.86 | N48: 67283.61 | O48: 10
A49: 47 | B49: 1975 | C49: Load Management Controls Utility Premises | D49: 0.1 | E49: =+'App.2-B_FA Cont MIFRS 2012'!H49 -> 258630.5 | H49: 258630.5 | J49: =+'App.2-B_FA Cont MIFRS 2012'!M49 -> -258630.5 | M49: -258630.5 | N49: 0
A50: 47 | B50: 1980 | C50: System Supervisor Equipment | E50: =+'App.2-B_FA Cont MIFRS 2012'!H50 -> 0 | H50: 0 | J50: =+'App.2-B_FA Cont MIFRS 2012'!M50 -> 0 | M50: 0 | N50: 0
A51: 47 | B51: 1985 | C51: Miscellaneous Fixed Assets | D51: 0.1 | E51: =+'App.2-B_FA Cont MIFRS 2012'!H51 -> 1427 | H51: 1427 | J51: =+'App.2-B_FA Cont MIFRS 2012'!M51 -> -1426.68 | M51: -1426.68 | N51: 0.32
A52: 47 | B52: 1995 | C52: Contributions & Grants | D52: =100/O52%/10000 -> 0.01951219512 | E52: =+'App.2-B_FA Cont MIFRS 2012'!H52 -> -8517830.35 | F52: =-373740 -> -373740 | H52: -8891570.35 | J52: =+'App.2-B_FA Cont MIFRS 2012'!M52 -> 1860377.096 | K52: =147888-(37459/51.25) -> 147157.0927 | M52: 2007534.189 | N52: -6884036.161 | O52: 51.25
B53: etc. | H53: 0 | M53: 0 | N53: 0
C55: Total | E55: =SUM(E16:E54) -> 49109180.4 | F55: =SUM(F16:F54) -> 4954040 | G55: -50000 | H55: 54013220.4 | J55: =SUM(J16:J54) -> -18067697.85 | K55: =SUM(K16:K54) -> -1172800.793 | L55: 50000 | M55: -19190498.65 | N55: 34822721.75
C56: Smart Meter Additions (from 1555)
A57: 8 | B57: 1860 | C57: Meters (Smart Meters) | D57: 0.0667 | E57: =+'App.2-B_Fixed Asset Cont 2013'!E57 -> 3446141 | H57: =E57+F57+G57 -> 3446141 | J57: =+'App.2-B_Fixed Asset Cont 2013'!J57 -> -656079 | K57: =+'App.2-B_Fixed Asset Cont 2013'!K57 -> -229743 | M57: =J57+K57+L57 -> -885822 | N57: =H57+M57 -> 2560319
A58: 45.1 | B58: 1920 | C58: Computer Hardware (Smart Meters) | D58: 0.2 | E58: =+'App.2-B_Fixed Asset Cont 2013'!E58 -> 62873 | H58: 62873 | J58: =+'App.2-B_Fixed Asset Cont 2013'!J58 -> -35193 | K58: =+'App.2-B_Fixed Asset Cont 2013'!K58 -> -12575 | M58: -47768 | N58: 15105
A59: 12 | B59: 1925 | C59: Computer Software (Smart Meters) | D59: 0.3333 | E59: =+'App.2-B_Fixed Asset Cont 2013'!E59 -> 274217 | H59: 274217 | J59: =+'App.2-B_Fixed Asset Cont 2013'!J59 -> -81848 | K59: =+'App.2-B_Fixed Asset Cont 2013'!K59 -> -54843 | M59: -136691 | N59: 137526
C60: Revised Total | E60: =SUM(E55:E59) -> 52892411.4 | F60: =SUM(F55:F59) -> 4954040 | G60: =SUM(G55:G59) -> -50000 | H60: =SUM(H55:H59) -> 57796451.4 | J60: =SUM(J55:J59) -> -18840817.85 | K60: =SUM(K55:K59) -> -1469961.793 | L60: =SUM(L55:L59) -> 50000 | M60: =SUM(M55:M59) -> -20260779.65 | N60: =SUM(N55:N59) -> 37535671.75
J62: Less: Fully Allocated Depreciation
A63: 10 | C63: Transportation | J63: Transportation
A64: 8 | C64: Stores Equipment | J64: Stores Equipment
J65: Net Depreciation | L65: =L55-L63-L64 -> 50000
A67: Notes:
A69: 1 | B69: Tables in the format outlined above covering all fixed asset accounts should be submitted for the Test Year, Bridge Year and all relevant historical years. At a minimum , the applicant must provide data for the earlier of: 1) all historical years back to its last rebasing; or 2) at least three years of historical actuals, in addition to Bridge Year and Test Year forecasts.
A72: 2 | B72: The "CCA Class" for fixed assets should agree with the CCA Class used for tax purposes in Tax Returns. Fixed Assets sub-components may be used where the underlying asset components are classified under multiple CCA Classes for tax purposes. If an applicant uses any different classes from those shown in the table, an explanation should be provided. (also see note 3 below).
A75: 3 | B75: The table may need to be customized for a utility's asset categories or for any new asset accounts announced or authorized by the Board.
A77: 4 | B77: The depreciation column (D) is not required as the relevant information will be provided in the following 2-C series of appendices.

Sheet App.2-CA_CGAAP_DepExp_2011 (hidden)
K1: File Number: | L1: ='LDC Info'!$E$18 -> EB2012-0176
K2: Exhibit:
K3: Tab:
K4: Schedule:
K5: Page:
K7: Date:
A9: Appendix 2-CA
A10: Depreciation and Amortization Expense
A11: Assumes the applicant adopted IFRS for financial reporting purposes January 1, 2012
C12: Year | D12: 2011 | E12: CGAAP
A14: Account | B14: Description | C14: Opening Regulatory Gross PP&E as at Jan 1, 2011 | D14: Less Fully Depreciated | E14: Net for Depreciation | F14: Additions | G14: Total for Depreciation | H14: Years | I14: Depreciation Rate | J14: Depreciation Expense | K14: 2011 Depreciation Expense per Appendix 2-B Fixed Assets, Column K (l) | L14: Variance 2
C15: (a) | D15: (b) | E15: (c) | F15: (d) | G15: (e) = (c) + ½ x (d) 1 | H15: (f) | I15: (g) = 1 / (f) | J15: (h) = (e) / (f) | L15: (m) = (h) - (l)
A16: 1611 | B16: Computer Software (Formally known as Account 1925) | E16: =C16-D16 -> 0 | G16: =E16+0.5*F16 -> 0 | I16: =IF(H16=0,0,1/H16) -> 0 | J16: =IF(H16=0,0,G16/H16) -> 0 | L16: =IF(ISERROR(+J16-K16), 0, +J16-K16) -> 0
A17: 1612 | B17: Land Rights (Formally known as Account 1906) | E17: =C17-D17 -> 0 | G17: =E17+0.5*F17 -> 0 | I17: 0 | J17: 0 | L17: 0
A18: 1805 | B18: Land | E18: 0 | G18: 0 | I18: 0 | J18: 0 | L18: 0
A19: 1808 | B19: Buildings | E19: 0 | G19: 0 | I19: 0 | J19: 0 | L19: 0
A20: 1810 | B20: Leasehold Improvements | E20: 0 | G20: 0 | I20: 0 | J20: 0 | L20: 0
A21: 1815 | B21: Transformer Station Equipment >50 kV | E21: 0 | G21: 0 | I21: 0 | J21: 0 | L21: 0
A22: 1820 | B22: Distribution Station Equipment <50 kV | E22: 0 | G22: 0 | I22: 0 | J22: 0 | L22: 0
A23: 1825 | B23: Storage Battery Equipment | E23: 0 | G23: 0 | I23: 0 | J23: 0 | L23: 0
A24: 1830 | B24: Poles, Towers & Fixtures | E24: 0 | G24: 0 | I24: 0 | J24: 0 | L24: 0
A25: 1835 | B25: Overhead Conductors & Devices | E25: 0 | G25: 0 | I25: 0 | J25: 0 | L25: 0
A26: 1840 | B26: Underground Conduit | E26: 0 | G26: 0 | I26: 0 | J26: 0 | L26: 0
A27: 1845 | B27: Underground Conductors & Devices | E27: 0 | G27: 0 | I27: 0 | J27: 0 | L27: 0
A28: 1850 | B28: Line Transformers | E28: 0 | G28: 0 | I28: 0 | J28: 0 | L28: 0
A29: 1855 | B29: Services (Overhead & Underground) | E29: 0 | G29: 0 | I29: 0 | J29: 0 | L29: 0
A30: 1860 | B30: Meters | E30: 0 | G30: 0 | I30: 0 | J30: 0 | L30: 0
A31: 1860 | B31: Meters (Smart Meters) | E31: 0 | G31: 0 | I31: 0 | J31: 0 | L31: 0
A32: 1905 | B32: Land | E32: 0 | G32: 0 | I32: 0 | J32: 0 | L32: 0
A33: 1908 | B33: Buildings & Fixtures | E33: 0 | G33: 0 | I33: 0 | J33: 0 | L33: 0
A34: 1910 | B34: Leasehold Improvements | E34: 0 | G34: 0 | I34: 0 | J34: 0 | L34: 0
A35: 1915 | B35: Office Furniture & Equipment (10 years) | E35: 0 | G35: 0 | I35: 0 | J35: 0 | L35: 0
A36: 1915 | B36: Office Furniture & Equipment (5 years) | E36: 0 | G36: 0 | I36: 0 | J36: 0 | L36: 0
A37: 1920 | B37: Computer Equipment - Hardware | E37: 0 | G37: 0 | I37: 0 | J37: 0 | L37: 0
A38: 1920 | B38: Computer Equip.-Hardware(Post Mar. 22/04) | E38: 0 | G38: 0 | I38: 0 | J38: 0 | L38: 0
A39: 1920 | B39: Computer Equip.-Hardware(Post Mar. 19/07) | E39: 0 | G39: 0 | I39: 0 | J39: 0 | L39: 0
A40: 1930 | B40: Transportation Equipment | E40: 0 | G40: 0 | I40: 0 | J40: 0 | L40: 0
A41: 1935 | B41: Stores Equipment | E41: 0 | G41: 0 | I41: 0 | J41: 0 | L41: 0
A42: 1940 | B42: Tools, Shop & Garage Equipment | E42: 0 | G42: 0 | I42: 0 | J42: 0 | L42: 0
A43: 1945 | B43: Measurement & Testing Equipment | E43: 0 | G43: 0 | I43: 0 | J43: 0 | L43: 0
A44: 1950 | B44: Power Operated Equipment | E44: 0 | G44: 0 | I44: 0 | J44: 0 | L44: 0
A45: 1955 | B45: Communications Equipment | E45: 0 | G45: 0 | I45: 0 | J45: 0 | L45: 0
A46: 1955 | B46: Communication Equipment (Smart Meters) | E46: 0 | G46: 0 | I46: 0 | J46: 0 | L46: 0
A47: 1960 | B47: Miscellaneous Equipment | E47: 0 | G47: 0 | I47: 0 | J47: 0 | L47: 0
A48: 1975 | B48: Load Management Controls Utility Premises | E48: 0 | G48: 0 | I48: 0 | J48: 0 | L48: 0
A49: 1980 | B49: System Supervisor Equipment | E49: 0 | G49: 0 | I49: 0 | J49: 0 | L49: 0
A50: 1985 | B50: Miscellaneous Fixed Assets | E50: 0 | G50: 0 | I50: 0 | J50: 0 | L50: 0
A51: 1995 | B51: Contributions & Grants | E51: 0 | G51: 0 | I51: 0 | J51: 0 | L51: 0
A52: etc. | E52: 0 | G52: 0 | I52: 0 | J52: 0 | L52: 0
E53: 0 | G53: 0 | I53: 0 | J53: 0 | L53: 0
B54: Total | C54: =SUM(C16:C53) -> 0 | D54: =SUM(D16:D53) -> 0 | E54: =SUM(E16:E53) -> 0 | F54: =SUM(F16:F53) -> 0 | G54: =SUM(G16:G53) -> 0 | J54: =SUM(J16:J53) -> 0 | K54: =SUM(K16:K53) -> 0 | L54: =SUM(L16:L53) -> 0
A56: Notes:
A58: 1 | B58: Board policy of the "half-year" rule - the applicant must ensure that additions in the year attract a half-year depreciation expense in the first year. Deviations from this standard practice must be supported in the application.
A59: 2 | B59: The applicant must provide an explanation of material variances in evidence
A61: General | B61: Applicants must provide a breakdown of depreciation and amortization expense in the above format for all relevant accounts. Asset Retirement Obligations (AROs), depreciation and accretion expense should be disclosed separately consistent with the Notes of historical Audited Financial Statements.

Sheet App.2-CB_MIFRS_DepExp_2011 (hidden)
N1: File Number: | O1: ='LDC Info'!$E$18 -> EB2012-0176
N2: Exhibit:
N3: Tab:
N4: Schedule:
N5: Page:
N7: Date:
A9: Appendix 2-CB
A10: Depreciation and Amortization Expense
A11: Assumes the applicant adopted IFRS for financial reporting purposes January 1, 2012
C12: Year | D12: 2011 | E12: MIFRS
A14: Account | B14: Description | C14: Opening NBV as at Jan 1, 2011 5 | D14: Additions | E14: Average Remaining Life of Opening NBV 4 | F14: Years (new additions only) 3 | G14: Depreciation Rate on New Additions | H14: Depreciation Expense on Opening NBV | I14: Depreciation Expense on Additions 1 | J14: 2011 Depreciation Expense | K14: 2011 Depreciation Expense per Appendix 2-B Fixed Assets, Column K (l) | L14: Variance 2 | M14: Depreciation Expense on 2011 Full Year Additions | N14: Less Depreciation Expense on Assets Fully Depreciated during the year (o) | O14: 2011 Full Year Depreciation 6
C15: (a) | D15: (d) | E15: (i) | F15: (f) | G15: (g) = 1 / (f) | H15: (j) = (a) / (i) | I15: (h)=((d)*0.5)/(f) | J15: (k) = (j) + (h) | L15: (m) = (k) - (l) | M15: (n) = (d)/(f) | O15: (p) = (j) + (n) - (o)
A16: 1611 | B16: Computer Software (Formally known as Account 1925) | G16: =IF(F16=0,0,1/F16) -> 0 | H16: =IF(E16=0,0,+C16/E16) -> 0 | I16: =IF(F16=0,0,+(D16*0.5)/F16) -> 0 | J16: =IF(ISERROR(+H16+I16), 0, +H16+I16) -> 0 | L16: =IF(ISERROR(+J16-K16), 0, +J16-K16) -> 0 | M16: =IF(F16=0,0,+(D16)/F16) -> 0 | O16: =IF(ISERROR(+M16+H16-N16), 0, +M16+H16-N16) -> 0
A17: 1612 | B17: Land Rights (Formally known as Account 1906) | G17: 0 | H17: 0 | I17: 0 | J17: 0 | L17: 0 | M17: 0 | O17: =IF(ISERROR(+M17+H17-N17), 0, +M17+H17-N17) -> 0
A18: 1805 | B18: Land | G18: 0 | H18: 0 | I18: 0 | J18: 0 | L18: 0 | M18: 0 | O18: 0
A19: 1808 | B19: Buildings | G19: 0 | H19: 0 | I19: 0 | J19: 0 | L19: 0 | M19: 0 | O19: 0
A20: 1810 | B20: Leasehold Improvements | G20: 0 | H20: 0 | I20: 0 | J20: 0 | L20: 0 | M20: 0 | O20: 0
A21: 1815 | B21: Transformer Station Equipment >50 kV | G21: 0 | H21: 0 | I21: 0 | J21: 0 | L21: 0 | M21: 0 | O21: 0
A22: 1820 | B22: Distribution Station Equipment <50 kV | G22: 0 | H22: 0 | I22: 0 | J22: 0 | L22: 0 | M22: 0 | O22: 0
A23: 1825 | B23: Storage Battery Equipment | G23: 0 | H23: 0 | I23: 0 | J23: 0 | L23: 0 | M23: 0 | O23: 0
A24: 1830 | B24: Poles, Towers & Fixtures | G24: 0 | H24: 0 | I24: 0 | J24: 0 | L24: 0 | M24: 0 | O24: 0
A25: 1835 | B25: Overhead Conductors & Devices | G25: 0 | H25: 0 | I25: 0 | J25: 0 | L25: 0 | M25: 0 | O25: 0
A26: 1840 | B26: Underground Conduit | G26: 0 | H26: 0 | I26: 0 | J26: 0 | L26: 0 | M26: 0 | O26: 0
A27: 1845 | B27: Underground Conductors & Devices | G27: 0 | H27: 0 | I27: 0 | J27: 0 | L27: 0 | M27: 0 | O27: 0
A28: 1850 | B28: Line Transformers | G28: 0 | H28: 0 | I28: 0 | J28: 0 | L28: 0 | M28: 0 | O28: 0
A29: 1855 | B29: Services (Overhead & Underground) | G29: 0 | H29: 0 | I29: 0 | J29: 0 | L29: 0 | M29: 0 | O29: 0
A30: 1860 | B30: Meters | G30: 0 | H30: 0 | I30: 0 | J30: 0 | L30: 0 | M30: 0 | O30: 0
A31: 1860 | B31: Meters (Smart Meters) | G31: 0 | H31: 0 | I31: 0 | J31: 0 | L31: 0 | M31: 0 | O31: 0
A32: 1905 | B32: Land | G32: 0 | H32: 0 | I32: 0 | J32: 0 | L32: 0 | M32: 0 | O32: 0
A33: 1908 | B33: Buildings & Fixtures | G33: 0 | H33: 0 | I33: 0 | J33: 0 | L33: 0 | M33: 0 | O33: 0
A34: 1910 | B34: Leasehold Improvements | G34: 0 | H34: 0 | I34: 0 | J34: 0 | L34: 0 | M34: 0 | O34: 0
A35: 1915 | B35: Office Furniture & Equipment (10 years) | G35: 0 | H35: 0 | I35: 0 | J35: 0 | L35: 0 | M35: 0 | O35: 0
A36: 1915 | B36: Office Furniture & Equipment (5 years) | G36: 0 | H36: 0 | I36: 0 | J36: 0 | L36: 0 | M36: 0 | O36: 0
A37: 1920 | B37: Computer Equipment - Hardware | G37: 0 | H37: 0 | I37: 0 | J37: 0 | L37: 0 | M37: 0 | O37: 0
A38: 1920 | B38: Computer Equip.-Hardware(Post Mar. 22/04) | G38: 0 | H38: 0 | I38: 0 | J38: 0 | L38: 0 | M38: 0 | O38: 0
A39: 1920 | B39: Computer Equip.-Hardware(Post Mar. 19/07) | G39: 0 | H39: 0 | I39: 0 | J39: 0 | L39: 0 | M39: 0 | O39: 0
A40: 1930 | B40: Transportation Equipment | G40: 0 | H40: 0 | I40: 0 | J40: 0 | L40: 0 | M40: 0 | O40: 0
A41: 1935 | B41: Stores Equipment | G41: 0 | H41: 0 | I41: 0 | J41: 0 | L41: 0 | M41: 0 | O41: 0
A42: 1940 | B42: Tools, Shop & Garage Equipment | G42: 0 | H42: 0 | I42: 0 | J42: 0 | L42: 0 | M42: 0 | O42: 0
A43: 1945 | B43: Measurement & Testing Equipment | G43: 0 | H43: 0 | I43: 0 | J43: 0 | L43: 0 | M43: 0 | O43: 0
A44: 1950 | B44: Power Operated Equipment | G44: 0 | H44: 0 | I44: 0 | J44: 0 | L44: 0 | M44: 0 | O44: 0
A45: 1955 | B45: Communications Equipment | G45: 0 | H45: 0 | I45: 0 | J45: 0 | L45: 0 | M45: 0 | O45: 0
A46: 1955 | B46: Communication Equipment (Smart Meters) | G46: 0 | H46: 0 | I46: 0 | J46: 0 | L46: 0 | M46: 0 | O46: 0
A47: 1960 | B47: Miscellaneous Equipment | G47: 0 | H47: 0 | I47: 0 | J47: 0 | L47: 0 | M47: 0 | O47: 0
A48: 1975 | B48: Load Management Controls Utility Premises | G48: 0 | H48: 0 | I48: 0 | J48: 0 | L48: 0 | M48: 0 | O48: 0
A49: 1980 | B49: System Supervisor Equipment | G49: 0 | H49: 0 | I49: 0 | J49: 0 | L49: 0 | M49: 0 | O49: 0
A50: 1985 | B50: Miscellaneous Fixed Assets | G50: 0 | H50: 0 | I50: 0 | J50: 0 | L50: 0 | M50: 0 | O50: 0
A51: 1995 | B51: Contributions & Grants | G51: 0 | H51: 0 | I51: 0 | J51: 0 | L51: 0 | M51: 0 | O51: 0
A52: etc. | G52: 0 | H52: 0 | I52: 0 | J52: 0 | L52: 0 | M52: 0 | O52: 0
G53: 0 | H53: 0 | I53: 0 | J53: 0 | L53: 0 | M53: 0 | O53: 0
B54: Total | C54: =SUM(C16:C53) -> 0 | D54: =SUM(D16:D53) -> 0 | H54: =SUM(H16:H53) -> 0 | I54: 0 | J54: 0 | K54: 0 | L54: 0 | M54: 0 | N54: =SUM(N16:N53) -> 0 | O54: 0
A56: Notes:
A58: 1 | B58: Board policy of the "half-year" rule - the applicant must ensure that additions in the year attract a half-year depreciation expense in the first year. Deviations from this standard practice must be supported in the application.
A59: 2 | B59: The applicant must provide an explanation of material variances in evidence
A60: 3 | B60: The applicant should ensure that the years for new additions of assets are the asset useful lives determined by management in accordance with IFRS.
A61: 4 | B61: A recalculation should be performed to determine the average remaining life of opening balance of assets (i.e. excluding 2011 additions) under IFRS. For example, Asset A had a useful life of 20 years under CGAAP. On January 1, 2011, the date of transition, Asset A was 3 years depreciated. As a result, Asset A would have a remaining service life of 17 years (20 years less 3 years) under CGAAP as of January 1, 2011. Due to the transition to IFRS, management re-assessed the asset useful lives under IFRS principles and concluded that the revised useful life of Asset A is now 30 years. Therefore, the average remaining useful life of opening balance of Asset A is determined to be 27 years (30 years less 3 years) under IFRS as of January 1, 2011.
A62: 5 | B62: NBV must exclude assets still on the books but which have been fully amortized or depreciated.
A63: 6 | B63: This column refers to the calculated full year depreciation but excludes the depreciation expense on assets fully depreciated during the year. This column is used for the purpose of calculating depreciation expense in the following year on the next worksheet.
A65: General: | B65: Applicants must provide a breakdown of depreciation and amortization expense in the above format for all relevant accounts. Asset Retirement Obligations (AROs), depreciation and accretion expense should be disclosed separately consistent with the Notes of historical Audited Financial Statements.

Sheet App.2-CC_MIFRS_DepExp_2012 (hidden)
J1: File Number: | K1: ='LDC Info'!$E$18 -> EB2012-0176
J2: Exhibit:
J3: Tab:
J4: Schedule:
J5: Page:
J7: Date:
A9: Appendix 2-CC
A10: Depreciation and Amortization Expense
A11: Assumes the applicant adopted IFRS for financial reporting purposes January 1, 2012
C12: 2012 | D12: MIFRS
A14: Account | B14: Description | C14: Additions | D14: Years (new additions only) | E14: Depreciation Rate on New Additions | F14: 2012 Depreciation Expense 1 | G14: 2012 Depreciation Expense per Apppendix 2-B Fixed Assets, Column K (l) | H14: Variance 2 | I14: Depreciation Expense on 2012 Full Year Additions | J14: Less Depreciation Expense on Assets Fully Depreciated during the year (o) | K14: 2012 Full Year Depreciation 3
C15: (d) | D15: (f) | E15: (g) = 1 / (f) | F15: (h)=2011 Full Year Deprecation + ((d)*0.5)/(f) | H15: (m) = (h) - (l) | I15: (n)=((d))/(f) | K15: (o) = 2011 Full Year Depreciation + (n) - (o)
A16: 1611 | B16: Computer Software (Formally known as Account 1925) | E16: =IF(D16=0,0,1/D16) -> 0 | F16: =IF(D16=0,+'App.2-CB_MIFRS_DepExp_2011'!O16,+'App.2-CB_MIFRS_DepExp_2011'!O16+((C16*0.5)/D16)) -> 0 | H16: =IF(ISERROR(+F16-G16), 0, +F16-G16) -> 0 | I16: =IF(D16=0,0,+(C16)/D16) -> 0 | K16: =IF(ISERROR(+I16+'App.2-CB_MIFRS_DepExp_2011'!O16-J16), 0, +I16+'App.2-CB_MIFRS_DepExp_2011'!O16-J16) -> 0
A17: 1612 | B17: Land Rights (Formally known as Account 1906) | E17: 0 | F17: =IF(D17=0,+'App.2-CB_MIFRS_DepExp_2011'!O17,+'App.2-CB_MIFRS_DepExp_2011'!O17+((C17*0.5)/D17)) -> 0 | H17: 0 | I17: 0 | K17: =IF(ISERROR(+I17+'App.2-CB_MIFRS_DepExp_2011'!O17-J17), 0, +I17+'App.2-CB_MIFRS_DepExp_2011'!O17-J17) -> 0
A18: 1805 | B18: Land | E18: 0 | F18: =IF(D18=0,+'App.2-CB_MIFRS_DepExp_2011'!O18,+'App.2-CB_MIFRS_DepExp_2011'!O18+((C18*0.5)/D18)) -> 0 | H18: 0 | I18: 0 | K18: =IF(ISERROR(+I18+'App.2-CB_MIFRS_DepExp_2011'!O18-J18), 0, +I18+'App.2-CB_MIFRS_DepExp_2011'!O18-J18) -> 0
A19: 1808 | B19: Buildings | E19: 0 | F19: =IF(D19=0,+'App.2-CB_MIFRS_DepExp_2011'!O19,+'App.2-CB_MIFRS_DepExp_2011'!O19+((C19*0.5)/D19)) -> 0 | H19: 0 | I19: 0 | K19: =IF(ISERROR(+I19+'App.2-CB_MIFRS_DepExp_2011'!O19-J19), 0, +I19+'App.2-CB_MIFRS_DepExp_2011'!O19-J19) -> 0
A20: 1810 | B20: Leasehold Improvements | E20: 0 | F20: =IF(D20=0,+'App.2-CB_MIFRS_DepExp_2011'!O20,+'App.2-CB_MIFRS_DepExp_2011'!O20+((C20*0.5)/D20)) -> 0 | H20: 0 | I20: 0 | K20: =IF(ISERROR(+I20+'App.2-CB_MIFRS_DepExp_2011'!O20-J20), 0, +I20+'App.2-CB_MIFRS_DepExp_2011'!O20-J20) -> 0
A21: 1815 | B21: Transformer Station Equipment >50 kV | E21: 0 | F21: =IF(D21=0,+'App.2-CB_MIFRS_DepExp_2011'!O21,+'App.2-CB_MIFRS_DepExp_2011'!O21+((C21*0.5)/D21)) -> 0 | H21: 0 | I21: 0 | K21: =IF(ISERROR(+I21+'App.2-CB_MIFRS_DepExp_2011'!O21-J21), 0, +I21+'App.2-CB_MIFRS_DepExp_2011'!O21-J21) -> 0
A22: 1820 | B22: Distribution Station Equipment <50 kV | E22: 0 | F22: =IF(D22=0,+'App.2-CB_MIFRS_DepExp_2011'!O22,+'App.2-CB_MIFRS_DepExp_2011'!O22+((C22*0.5)/D22)) -> 0 | H22: 0 | I22: 0 | K22: =IF(ISERROR(+I22+'App.2-CB_MIFRS_DepExp_2011'!O22-J22), 0, +I22+'App.2-CB_MIFRS_DepExp_2011'!O22-J22) -> 0
A23: 1825 | B23: Storage Battery Equipment | E23: 0 | F23: =IF(D23=0,+'App.2-CB_MIFRS_DepExp_2011'!O23,+'App.2-CB_MIFRS_DepExp_2011'!O23+((C23*0.5)/D23)) -> 0 | H23: 0 | I23: 0 | K23: =IF(ISERROR(+I23+'App.2-CB_MIFRS_DepExp_2011'!O23-J23), 0, +I23+'App.2-CB_MIFRS_DepExp_2011'!O23-J23) -> 0
A24: 1830 | B24: Poles, Towers & Fixtures | E24: 0 | F24: =IF(D24=0,+'App.2-CB_MIFRS_DepExp_2011'!O24,+'App.2-CB_MIFRS_DepExp_2011'!O24+((C24*0.5)/D24)) -> 0 | H24: 0 | I24: 0 | K24: =IF(ISERROR(+I24+'App.2-CB_MIFRS_DepExp_2011'!O24-J24), 0, +I24+'App.2-CB_MIFRS_DepExp_2011'!O24-J24) -> 0
A25: 1835 | B25: Overhead Conductors & Devices | E25: 0 | F25: =IF(D25=0,+'App.2-CB_MIFRS_DepExp_2011'!O25,+'App.2-CB_MIFRS_DepExp_2011'!O25+((C25*0.5)/D25)) -> 0 | H25: 0 | I25: 0 | K25: =IF(ISERROR(+I25+'App.2-CB_MIFRS_DepExp_2011'!O25-J25), 0, +I25+'App.2-CB_MIFRS_DepExp_2011'!O25-J25) -> 0
A26: 1840 | B26: Underground Conduit | E26: 0 | F26: =IF(D26=0,+'App.2-CB_MIFRS_DepExp_2011'!O26,+'App.2-CB_MIFRS_DepExp_2011'!O26+((C26*0.5)/D26)) -> 0 | H26: 0 | I26: 0 | K26: =IF(ISERROR(+I26+'App.2-CB_MIFRS_DepExp_2011'!O26-J26), 0, +I26+'App.2-CB_MIFRS_DepExp_2011'!O26-J26) -> 0
A27: 1845 | B27: Underground Conductors & Devices | E27: 0 | F27: =IF(D27=0,+'App.2-CB_MIFRS_DepExp_2011'!O27,+'App.2-CB_MIFRS_DepExp_2011'!O27+((C27*0.5)/D27)) -> 0 | H27: 0 | I27: 0 | K27: =IF(ISERROR(+I27+'App.2-CB_MIFRS_DepExp_2011'!O27-J27), 0, +I27+'App.2-CB_MIFRS_DepExp_2011'!O27-J27) -> 0
A28: 1850 | B28: Line Transformers | E28: 0 | F28: =IF(D28=0,+'App.2-CB_MIFRS_DepExp_2011'!O28,+'App.2-CB_MIFRS_DepExp_2011'!O28+((C28*0.5)/D28)) -> 0 | H28: 0 | I28: 0 | K28: =IF(ISERROR(+I28+'App.2-CB_MIFRS_DepExp_2011'!O28-J28), 0, +I28+'App.2-CB_MIFRS_DepExp_2011'!O28-J28) -> 0
A29: 1855 | B29: Services (Overhead & Underground) | E29: 0 | F29: =IF(D29=0,+'App.2-CB_MIFRS_DepExp_2011'!O29,+'App.2-CB_MIFRS_DepExp_2011'!O29+((C29*0.5)/D29)) -> 0 | H29: 0 | I29: 0 | K29: =IF(ISERROR(+I29+'App.2-CB_MIFRS_DepExp_2011'!O29-J29), 0, +I29+'App.2-CB_MIFRS_DepExp_2011'!O29-J29) -> 0
A30: 1860 | B30: Meters | E30: 0 | F30: =IF(D30=0,+'App.2-CB_MIFRS_DepExp_2011'!O30,+'App.2-CB_MIFRS_DepExp_2011'!O30+((C30*0.5)/D30)) -> 0 | H30: 0 | I30: 0 | K30: =IF(ISERROR(+I30+'App.2-CB_MIFRS_DepExp_2011'!O30-J30), 0, +I30+'App.2-CB_MIFRS_DepExp_2011'!O30-J30) -> 0
A31: 1860 | B31: Meters (Smart Meters) | E31: 0 | F31: =IF(D31=0,+'App.2-CB_MIFRS_DepExp_2011'!O31,+'App.2-CB_MIFRS_DepExp_2011'!O31+((C31*0.5)/D31)) -> 0 | H31: 0 | I31: 0 | K31: =IF(ISERROR(+I31+'App.2-CB_MIFRS_DepExp_2011'!O31-J31), 0, +I31+'App.2-CB_MIFRS_DepExp_2011'!O31-J31) -> 0
A32: 1905 | B32: Land | E32: 0 | F32: =IF(D32=0,+'App.2-CB_MIFRS_DepExp_2011'!O32,+'App.2-CB_MIFRS_DepExp_2011'!O32+((C32*0.5)/D32)) -> 0 | H32: 0 | I32: 0 | K32: =IF(ISERROR(+I32+'App.2-CB_MIFRS_DepExp_2011'!O32-J32), 0, +I32+'App.2-CB_MIFRS_DepExp_2011'!O32-J32) -> 0
A33: 1908 | B33: Buildings & Fixtures | E33: 0 | F33: =IF(D33=0,+'App.2-CB_MIFRS_DepExp_2011'!O33,+'App.2-CB_MIFRS_DepExp_2011'!O33+((C33*0.5)/D33)) -> 0 | H33: 0 | I33: 0 | K33: =IF(ISERROR(+I33+'App.2-CB_MIFRS_DepExp_2011'!O33-J33), 0, +I33+'App.2-CB_MIFRS_DepExp_2011'!O33-J33) -> 0
A34: 1910 | B34: Leasehold Improvements | E34: 0 | F34: =IF(D34=0,+'App.2-CB_MIFRS_DepExp_2011'!O34,+'App.2-CB_MIFRS_DepExp_2011'!O34+((C34*0.5)/D34)) -> 0 | H34: 0 | I34: 0 | K34: =IF(ISERROR(+I34+'App.2-CB_MIFRS_DepExp_2011'!O34-J34), 0, +I34+'App.2-CB_MIFRS_DepExp_2011'!O34-J34) -> 0
A35: 1915 | B35: Office Furniture & Equipment (10 years) | E35: 0 | F35: =IF(D35=0,+'App.2-CB_MIFRS_DepExp_2011'!O35,+'App.2-CB_MIFRS_DepExp_2011'!O35+((C35*0.5)/D35)) -> 0 | H35: 0 | I35: 0 | K35: =IF(ISERROR(+I35+'App.2-CB_MIFRS_DepExp_2011'!O35-J35), 0, +I35+'App.2-CB_MIFRS_DepExp_2011'!O35-J35) -> 0
A36: 1915 | B36: Office Furniture & Equipment (5 years) | E36: 0 | F36: =IF(D36=0,+'App.2-CB_MIFRS_DepExp_2011'!O36,+'App.2-CB_MIFRS_DepExp_2011'!O36+((C36*0.5)/D36)) -> 0 | H36: 0 | I36: 0 | K36: =IF(ISERROR(+I36+'App.2-CB_MIFRS_DepExp_2011'!O36-J36), 0, +I36+'App.2-CB_MIFRS_DepExp_2011'!O36-J36) -> 0
A37: 1920 | B37: Computer Equipment - Hardware | E37: 0 | F37: =IF(D37=0,+'App.2-CB_MIFRS_DepExp_2011'!O37,+'App.2-CB_MIFRS_DepExp_2011'!O37+((C37*0.5)/D37)) -> 0 | H37: 0 | I37: 0 | K37: =IF(ISERROR(+I37+'App.2-CB_MIFRS_DepExp_2011'!O37-J37), 0, +I37+'App.2-CB_MIFRS_DepExp_2011'!O37-J37) -> 0
A38: 1920 | B38: Computer Equip.-Hardware(Post Mar. 22/04) | E38: 0 | F38: =IF(D38=0,+'App.2-CB_MIFRS_DepExp_2011'!O38,+'App.2-CB_MIFRS_DepExp_2011'!O38+((C38*0.5)/D38)) -> 0 | H38: 0 | I38: 0 | K38: =IF(ISERROR(+I38+'App.2-CB_MIFRS_DepExp_2011'!O38-J38), 0, +I38+'App.2-CB_MIFRS_DepExp_2011'!O38-J38) -> 0
A39: 1920 | B39: Computer Equip.-Hardware(Post Mar. 19/07) | E39: 0 | F39: =IF(D39=0,+'App.2-CB_MIFRS_DepExp_2011'!O39,+'App.2-CB_MIFRS_DepExp_2011'!O39+((C39*0.5)/D39)) -> 0 | H39: 0 | I39: 0 | K39: =IF(ISERROR(+I39+'App.2-CB_MIFRS_DepExp_2011'!O39-J39), 0, +I39+'App.2-CB_MIFRS_DepExp_2011'!O39-J39) -> 0
A40: 1930 | B40: Transportation Equipment | E40: 0 | F40: =IF(D40=0,+'App.2-CB_MIFRS_DepExp_2011'!O40,+'App.2-CB_MIFRS_DepExp_2011'!O40+((C40*0.5)/D40)) -> 0 | H40: 0 | I40: 0 | K40: =IF(ISERROR(+I40+'App.2-CB_MIFRS_DepExp_2011'!O40-J40), 0, +I40+'App.2-CB_MIFRS_DepExp_2011'!O40-J40) -> 0
A41: 1935 | B41: Stores Equipment | E41: 0 | F41: =IF(D41=0,+'App.2-CB_MIFRS_DepExp_2011'!O41,+'App.2-CB_MIFRS_DepExp_2011'!O41+((C41*0.5)/D41)) -> 0 | H41: 0 | I41: 0 | K41: =IF(ISERROR(+I41+'App.2-CB_MIFRS_DepExp_2011'!O41-J41), 0, +I41+'App.2-CB_MIFRS_DepExp_2011'!O41-J41) -> 0
A42: 1940 | B42: Tools, Shop & Garage Equipment | E42: 0 | F42: =IF(D42=0,+'App.2-CB_MIFRS_DepExp_2011'!O42,+'App.2-CB_MIFRS_DepExp_2011'!O42+((C42*0.5)/D42)) -> 0 | H42: 0 | I42: 0 | K42: =IF(ISERROR(+I42+'App.2-CB_MIFRS_DepExp_2011'!O42-J42), 0, +I42+'App.2-CB_MIFRS_DepExp_2011'!O42-J42) -> 0
A43: 1945 | B43: Measurement & Testing Equipment | E43: 0 | F43: =IF(D43=0,+'App.2-CB_MIFRS_DepExp_2011'!O43,+'App.2-CB_MIFRS_DepExp_2011'!O43+((C43*0.5)/D43)) -> 0 | H43: 0 | I43: 0 | K43: =IF(ISERROR(+I43+'App.2-CB_MIFRS_DepExp_2011'!O43-J43), 0, +I43+'App.2-CB_MIFRS_DepExp_2011'!O43-J43) -> 0
A44: 1950 | B44: Power Operated Equipment | E44: 0 | F44: =IF(D44=0,+'App.2-CB_MIFRS_DepExp_2011'!O44,+'App.2-CB_MIFRS_DepExp_2011'!O44+((C44*0.5)/D44)) -> 0 | H44: 0 | I44: 0 | K44: =IF(ISERROR(+I44+'App.2-CB_MIFRS_DepExp_2011'!O44-J44), 0, +I44+'App.2-CB_MIFRS_DepExp_2011'!O44-J44) -> 0
A45: 1955 | B45: Communications Equipment | E45: 0 | F45: =IF(D45=0,+'App.2-CB_MIFRS_DepExp_2011'!O45,+'App.2-CB_MIFRS_DepExp_2011'!O45+((C45*0.5)/D45)) -> 0 | H45: 0 | I45: 0 | K45: =IF(ISERROR(+I45+'App.2-CB_MIFRS_DepExp_2011'!O45-J45), 0, +I45+'App.2-CB_MIFRS_DepExp_2011'!O45-J45) -> 0
A46: 1955 | B46: Communication Equipment (Smart Meters) | E46: 0 | F46: =IF(D46=0,+'App.2-CB_MIFRS_DepExp_2011'!O46,+'App.2-CB_MIFRS_DepExp_2011'!O46+((C46*0.5)/D46)) -> 0 | H46: 0 | I46: 0 | K46: =IF(ISERROR(+I46+'App.2-CB_MIFRS_DepExp_2011'!O46-J46), 0, +I46+'App.2-CB_MIFRS_DepExp_2011'!O46-J46) -> 0
A47: 1960 | B47: Miscellaneous Equipment | E47: 0 | F47: =IF(D47=0,+'App.2-CB_MIFRS_DepExp_2011'!O47,+'App.2-CB_MIFRS_DepExp_2011'!O47+((C47*0.5)/D47)) -> 0 | H47: 0 | I47: 0 | K47: =IF(ISERROR(+I47+'App.2-CB_MIFRS_DepExp_2011'!O47-J47), 0, +I47+'App.2-CB_MIFRS_DepExp_2011'!O47-J47) -> 0
A48: 1975 | B48: Load Management Controls Utility Premises | E48: 0 | F48: =IF(D48=0,+'App.2-CB_MIFRS_DepExp_2011'!O48,+'App.2-CB_MIFRS_DepExp_2011'!O48+((C48*0.5)/D48)) -> 0 | H48: 0 | I48: 0 | K48: =IF(ISERROR(+I48+'App.2-CB_MIFRS_DepExp_2011'!O48-J48), 0, +I48+'App.2-CB_MIFRS_DepExp_2011'!O48-J48) -> 0
A49: 1980 | B49: System Supervisor Equipment | E49: 0 | F49: =IF(D49=0,+'App.2-CB_MIFRS_DepExp_2011'!O49,+'App.2-CB_MIFRS_DepExp_2011'!O49+((C49*0.5)/D49)) -> 0 | H49: 0 | I49: 0 | K49: =IF(ISERROR(+I49+'App.2-CB_MIFRS_DepExp_2011'!O49-J49), 0, +I49+'App.2-CB_MIFRS_DepExp_2011'!O49-J49) -> 0
A50: 1985 | B50: Miscellaneous Fixed Assets | E50: 0 | F50: =IF(D50=0,+'App.2-CB_MIFRS_DepExp_2011'!O50,+'App.2-CB_MIFRS_DepExp_2011'!O50+((C50*0.5)/D50)) -> 0 | H50: 0 | I50: 0 | K50: =IF(ISERROR(+I50+'App.2-CB_MIFRS_DepExp_2011'!O50-J50), 0, +I50+'App.2-CB_MIFRS_DepExp_2011'!O50-J50) -> 0
A51: 1995 | B51: Contributions & Grants | E51: 0 | F51: =IF(D51=0,+'App.2-CB_MIFRS_DepExp_2011'!O51,+'App.2-CB_MIFRS_DepExp_2011'!O51+((C51*0.5)/D51)) -> 0 | H51: 0 | I51: 0 | K51: =IF(ISERROR(+I51+'App.2-CB_MIFRS_DepExp_2011'!O51-J51), 0, +I51+'App.2-CB_MIFRS_DepExp_2011'!O51-J51) -> 0
A52: etc. | E52: 0 | F52: =IF(D52=0,+'App.2-CB_MIFRS_DepExp_2011'!O52,+'App.2-CB_MIFRS_DepExp_2011'!O52+((C52*0.5)/D52)) -> 0 | H52: 0 | I52: 0 | K52: =IF(ISERROR(+I52+'App.2-CB_MIFRS_DepExp_2011'!O52-J52), 0, +I52+'App.2-CB_MIFRS_DepExp_2011'!O52-J52) -> 0
E53: 0 | F53: =IF(D53=0,+'App.2-CB_MIFRS_DepExp_2011'!O53,+'App.2-CB_MIFRS_DepExp_2011'!O53+((C53*0.5)/D53)) -> 0 | H53: 0 | I53: 0 | K53: =IF(ISERROR(+I53+'App.2-CB_MIFRS_DepExp_2011'!O53-J53), 0, +I53+'App.2-CB_MIFRS_DepExp_2011'!O53-J53) -> 0
B54: Total | C54: =SUM(C16:C53) -> 0 | F54: =SUM(F16:F53) -> 0 | G54: 0 | H54: 0 | I54: 0 | J54: 0 | K54: 0
A56: Notes:
A57: 1 | B57: Board policy of the "half-year" rule - the applicant must ensure that additions in the year attract a half-year depreciation expense in the first year. Deviations from this standard practice must be supported in the application.
A58: 2 | B58: The applicant must provide an explanation of material variances in evidence
A59: 3 | B59: This column refers to the calculated full year depreciation but excludes the depreciation expense on assets fully depreciated during the year. This column is used for the purpose of calculating depreciation expense in the following year on the next worksheet.
A61: General: | B61: Applicants must provide a breakdown of depreciation and amortization expense in the above format for all relevant accounts. Asset Retirement Obligations (AROs), depreciation and accretion expense should be disclosed separately consistent with the Notes of historical Audited Financial Statements.

Sheet App.2-CD_MIFRS_DepExp_2013 (hidden)
G1: File Number: | H1: ='LDC Info'!$E$18 -> EB2012-0176
G2: Exhibit:
G3: Tab:
G4: Schedule:
G5: Page:
G7: Date:
A9: Appendix 2-CD
A10: Depreciation and Amortization Expense
A11: Assumes the applicant adopted IFRS for financial reporting purposes January 1, 2012
C12: 2013 | D12: MIFRS
A14: Account | B14: Description | C14: Additions | D14: Years (new additions only) | E14: Depreciation Rate on New Additions | F14: 2013 Depreciation Expense 1 | G14: 2013 Depreciation Expense per Appendix 2-B Fixed Assets, Column K (l) | H14: Variance 2
C15: (d) | D15: (f) | E15: (g) = 1 / (f) | F15: (h)=2012 Full Year Depreciation + ((d)*0.5)/(f) | H15: (m) = (h) - (l)
A16: 1611 | B16: Computer Software (Formally known as Account 1925) | E16: =IF(D16=0,0,1/D16) -> 0 | F16: =IF(D16=0,'App.2-CC_MIFRS_DepExp_2012'!K16,+'App.2-CC_MIFRS_DepExp_2012'!K16+((C16*0.5)/D16)) -> 0 | H16: =IF(ISERROR(+F16-G16), 0, +F16-G16) -> 0
A17: 1612 | B17: Land Rights (Formally known as Account 1906) | E17: 0 | F17: =IF(D17=0,'App.2-CC_MIFRS_DepExp_2012'!K17,+'App.2-CC_MIFRS_DepExp_2012'!K17+((C17*0.5)/D17)) -> 0 | H17: 0
A18: 1805 | B18: Land | E18: 0 | F18: =IF(D18=0,'App.2-CC_MIFRS_DepExp_2012'!K18,+'App.2-CC_MIFRS_DepExp_2012'!K18+((C18*0.5)/D18)) -> 0 | H18: 0
A19: 1808 | B19: Buildings | E19: 0 | F19: =IF(D19=0,'App.2-CC_MIFRS_DepExp_2012'!K19,+'App.2-CC_MIFRS_DepExp_2012'!K19+((C19*0.5)/D19)) -> 0 | H19: 0
A20: 1810 | B20: Leasehold Improvements | E20: 0 | F20: =IF(D20=0,'App.2-CC_MIFRS_DepExp_2012'!K20,+'App.2-CC_MIFRS_DepExp_2012'!K20+((C20*0.5)/D20)) -> 0 | H20: 0
A21: 1815 | B21: Transformer Station Equipment >50 kV | E21: 0 | F21: =IF(D21=0,'App.2-CC_MIFRS_DepExp_2012'!K21,+'App.2-CC_MIFRS_DepExp_2012'!K21+((C21*0.5)/D21)) -> 0 | H21: 0
A22: 1820 | B22: Distribution Station Equipment <50 kV | E22: 0 | F22: =IF(D22=0,'App.2-CC_MIFRS_DepExp_2012'!K22,+'App.2-CC_MIFRS_DepExp_2012'!K22+((C22*0.5)/D22)) -> 0 | H22: 0
A23: 1825 | B23: Storage Battery Equipment | E23: 0 | F23: =IF(D23=0,'App.2-CC_MIFRS_DepExp_2012'!K23,+'App.2-CC_MIFRS_DepExp_2012'!K23+((C23*0.5)/D23)) -> 0 | H23: 0
A24: 1830 | B24: Poles, Towers & Fixtures | E24: 0 | F24: =IF(D24=0,'App.2-CC_MIFRS_DepExp_2012'!K24,+'App.2-CC_MIFRS_DepExp_2012'!K24+((C24*0.5)/D24)) -> 0 | H24: 0
A25: 1835 | B25: Overhead Conductors & Devices | E25: 0 | F25: =IF(D25=0,'App.2-CC_MIFRS_DepExp_2012'!K25,+'App.2-CC_MIFRS_DepExp_2012'!K25+((C25*0.5)/D25)) -> 0 | H25: 0
A26: 1840 | B26: Underground Conduit | E26: 0 | F26: =IF(D26=0,'App.2-CC_MIFRS_DepExp_2012'!K26,+'App.2-CC_MIFRS_DepExp_2012'!K26+((C26*0.5)/D26)) -> 0 | H26: 0
A27: 1845 | B27: Underground Conductors & Devices | E27: 0 | F27: =IF(D27=0,'App.2-CC_MIFRS_DepExp_2012'!K27,+'App.2-CC_MIFRS_DepExp_2012'!K27+((C27*0.5)/D27)) -> 0 | H27: 0
A28: 1850 | B28: Line Transformers | E28: 0 | F28: =IF(D28=0,'App.2-CC_MIFRS_DepExp_2012'!K28,+'App.2-CC_MIFRS_DepExp_2012'!K28+((C28*0.5)/D28)) -> 0 | H28: 0
A29: 1855 | B29: Services (Overhead & Underground) | E29: 0 | F29: =IF(D29=0,'App.2-CC_MIFRS_DepExp_2012'!K29,+'App.2-CC_MIFRS_DepExp_2012'!K29+((C29*0.5)/D29)) -> 0 | H29: 0
A30: 1860 | B30: Meters | E30: 0 | F30: =IF(D30=0,'App.2-CC_MIFRS_DepExp_2012'!K30,+'App.2-CC_MIFRS_DepExp_2012'!K30+((C30*0.5)/D30)) -> 0 | H30: 0
A31: 1860 | B31: Meters (Smart Meters) | E31: 0 | F31: =IF(D31=0,'App.2-CC_MIFRS_DepExp_2012'!K31,+'App.2-CC_MIFRS_DepExp_2012'!K31+((C31*0.5)/D31)) -> 0 | H31: 0
A32: 1905 | B32: Land | E32: 0 | F32: =IF(D32=0,'App.2-CC_MIFRS_DepExp_2012'!K32,+'App.2-CC_MIFRS_DepExp_2012'!K32+((C32*0.5)/D32)) -> 0 | H32: 0
A33: 1908 | B33: Buildings & Fixtures | E33: 0 | F33: =IF(D33=0,'App.2-CC_MIFRS_DepExp_2012'!K33,+'App.2-CC_MIFRS_DepExp_2012'!K33+((C33*0.5)/D33)) -> 0 | H33: 0
A34: 1910 | B34: Leasehold Improvements | E34: 0 | F34: =IF(D34=0,'App.2-CC_MIFRS_DepExp_2012'!K34,+'App.2-CC_MIFRS_DepExp_2012'!K34+((C34*0.5)/D34)) -> 0 | H34: 0
A35: 1915 | B35: Office Furniture & Equipment (10 years) | E35: 0 | F35: =IF(D35=0,'App.2-CC_MIFRS_DepExp_2012'!K35,+'App.2-CC_MIFRS_DepExp_2012'!K35+((C35*0.5)/D35)) -> 0 | H35: 0
A36: 1915 | B36: Office Furniture & Equipment (5 years) | E36: 0 | F36: =IF(D36=0,'App.2-CC_MIFRS_DepExp_2012'!K36,+'App.2-CC_MIFRS_DepExp_2012'!K36+((C36*0.5)/D36)) -> 0 | H36: 0
A37: 1920 | B37: Computer Equipment - Hardware | E37: 0 | F37: =IF(D37=0,'App.2-CC_MIFRS_DepExp_2012'!K37,+'App.2-CC_MIFRS_DepExp_2012'!K37+((C37*0.5)/D37)) -> 0 | H37: 0
A38: 1920 | B38: Computer Equip.-Hardware(Post Mar. 22/04) | E38: 0 | F38: =IF(D38=0,'App.2-CC_MIFRS_DepExp_2012'!K38,+'App.2-CC_MIFRS_DepExp_2012'!K38+((C38*0.5)/D38)) -> 0 | H38: 0
A39: 1920 | B39: Computer Equip.-Hardware(Post Mar. 19/07) | E39: 0 | F39: =IF(D39=0,'App.2-CC_MIFRS_DepExp_2012'!K39,+'App.2-CC_MIFRS_DepExp_2012'!K39+((C39*0.5)/D39)) -> 0 | H39: 0
A40: 1930 | B40: Transportation Equipment | E40: 0 | F40: =IF(D40=0,'App.2-CC_MIFRS_DepExp_2012'!K40,+'App.2-CC_MIFRS_DepExp_2012'!K40+((C40*0.5)/D40)) -> 0 | H40: 0
A41: 1935 | B41: Stores Equipment | E41: 0 | F41: =IF(D41=0,'App.2-CC_MIFRS_DepExp_2012'!K41,+'App.2-CC_MIFRS_DepExp_2012'!K41+((C41*0.5)/D41)) -> 0 | H41: 0
A42: 1940 | B42: Tools, Shop & Garage Equipment | E42: 0 | F42: =IF(D42=0,'App.2-CC_MIFRS_DepExp_2012'!K42,+'App.2-CC_MIFRS_DepExp_2012'!K42+((C42*0.5)/D42)) -> 0 | H42: 0
A43: 1945 | B43: Measurement & Testing Equipment | E43: 0 | F43: =IF(D43=0,'App.2-CC_MIFRS_DepExp_2012'!K43,+'App.2-CC_MIFRS_DepExp_2012'!K43+((C43*0.5)/D43)) -> 0 | H43: 0
A44: 1950 | B44: Power Operated Equipment | E44: 0 | F44: =IF(D44=0,'App.2-CC_MIFRS_DepExp_2012'!K44,+'App.2-CC_MIFRS_DepExp_2012'!K44+((C44*0.5)/D44)) -> 0 | H44: 0
A45: 1955 | B45: Communications Equipment | E45: 0 | F45: =IF(D45=0,'App.2-CC_MIFRS_DepExp_2012'!K45,+'App.2-CC_MIFRS_DepExp_2012'!K45+((C45*0.5)/D45)) -> 0 | H45: 0
A46: 1955 | B46: Communication Equipment (Smart Meters) | E46: 0 | F46: =IF(D46=0,'App.2-CC_MIFRS_DepExp_2012'!K46,+'App.2-CC_MIFRS_DepExp_2012'!K46+((C46*0.5)/D46)) -> 0 | H46: 0
A47: 1960 | B47: Miscellaneous Equipment | E47: 0 | F47: =IF(D47=0,'App.2-CC_MIFRS_DepExp_2012'!K47,+'App.2-CC_MIFRS_DepExp_2012'!K47+((C47*0.5)/D47)) -> 0 | H47: 0
A48: 1975 | B48: Load Management Controls Utility Premises | E48: 0 | F48: =IF(D48=0,'App.2-CC_MIFRS_DepExp_2012'!K48,+'App.2-CC_MIFRS_DepExp_2012'!K48+((C48*0.5)/D48)) -> 0 | H48: 0
A49: 1980 | B49: System Supervisor Equipment | E49: 0 | F49: =IF(D49=0,'App.2-CC_MIFRS_DepExp_2012'!K49,+'App.2-CC_MIFRS_DepExp_2012'!K49+((C49*0.5)/D49)) -> 0 | H49: 0
A50: 1985 | B50: Miscellaneous Fixed Assets | E50: 0 | F50: =IF(D50=0,'App.2-CC_MIFRS_DepExp_2012'!K50,+'App.2-CC_MIFRS_DepExp_2012'!K50+((C50*0.5)/D50)) -> 0 | H50: 0
A51: 1995 | B51: Contributions & Grants | E51: 0 | F51: =IF(D51=0,'App.2-CC_MIFRS_DepExp_2012'!K51,+'App.2-CC_MIFRS_DepExp_2012'!K51+((C51*0.5)/D51)) -> 0 | H51: 0
A52: etc. | E52: 0 | F52: =IF(D52=0,'App.2-CC_MIFRS_DepExp_2012'!K52,+'App.2-CC_MIFRS_DepExp_2012'!K52+((C52*0.5)/D52)) -> 0 | H52: 0
E53: 0 | F53: =IF(D53=0,'App.2-CC_MIFRS_DepExp_2012'!K53,+'App.2-CC_MIFRS_DepExp_2012'!K53+((C53*0.5)/D53)) -> 0 | H53: 0
B54: Total | C54: =SUM(C16:C53) -> 0 | F54: =SUM(F16:F53) -> 0 | G54: =SUM(G16:G53) -> 0 | H54: =SUM(H16:H53) -> 0
B55: Depreciation expense adjustment resulting from amortization of Account 1575 | F55: 0
B56: Total Depreciation expense to be included in the test year revenue requirement | F56: =+F54+F55 -> 0
A57: Notes:
A58: 1 | B58: Board policy of the "half-year" rule - the applicant must ensure that additions in the year attract a half-year depreciation expense in the first year. Deviations from this standard practice must be supported in the application.
A59: 2 | B59: The applicant must provide an explanation of material variances in evidence
A61: General: | B61: Applicants must provide a breakdown of depreciation and amortization expense in the above format for all relevant accounts. Asset Retirement Obligations (AROs), depreciation and accretion expense should be disclosed separately consistent with the Notes of historical Audited Financial Statements.

Sheet App.2-B_FA Cont MIFRS 2013SM
M1: File Number: | N1: ='LDC Info'!$E$18 -> EB2012-0176
M2: Exhibit:
M3: Tab:
M4: Schedule:
M5: Page:
M7: Date:
A9: Appendix 2-B
A10: Fixed Asset Continuity Schedule - MIFRS - Smart Meter Capital Additions Included In Schedule
F12: Year | G12: 2013
E14: Cost | K14: Accumulated Depreciation
A15: CCA Class | B15: OEB | C15: Description | D15: Depreciation Rate | E15: Opening Balance | F15: Additions | G15: Disposals | H15: Closing Balance | J15: Opening Balance | K15: Additions | L15: Disposals | M15: Closing Balance | N15: Net Book Value
A16: 12 | B16: 1611 | C16: Computer Software (Formally known as Account 1925) | H16: =E16+F16+G16 -> 0 | M16: =J16+K16+L16 -> 0 | N16: =H16+M16 -> 0
A17: CEC | B17: 1612 | C17: Land Rights (Formally known as Account 1906) | H17: =E17+F17+G17 -> 0 | M17: =J17+K17+L17 -> 0 | N17: =H17+M17 -> 0
A18: N/A | B18: 1805 | C18: Land | E18: =+'App.2-B_FA Cont MIFRS 2012'!H18 -> 227768.86 | H18: =E18+F18+G18 -> 227768.86 | M18: =J18+K18+L18 -> 0 | N18: =H18+M18 -> 227768.86
A19: 47 | B19: 1808 | C19: Buildings | D19: 0.02 | E19: =+'App.2-B_FA Cont MIFRS 2012'!H19 -> 2486318 | F19: 9000 | H19: =E19+F19+G19 -> 2495318 | J19: =+'App.2-B_FA Cont MIFRS 2012'!M19 -> -275126.49 | K19: =+'App.2-B_FA Cont MIFRS 2013'!K19 -> -50119 | M19: =J19+K19+L19 -> -325245.49 | N19: =H19+M19 -> 2170072.51
A20: 13 | B20: 1810 | C20: Leasehold Improvements | E20: =+'App.2-B_FA Cont MIFRS 2012'!H20 -> 0 | H20: 0 | J20: =+'App.2-B_FA Cont MIFRS 2012'!M20 -> 0 | M20: 0 | N20: 0
A21: 47 | B21: 1815 | C21: Transformer Station Equipment >50 kV | E21: =+'App.2-B_FA Cont MIFRS 2012'!H21 -> 0 | H21: 0 | J21: =+'App.2-B_FA Cont MIFRS 2012'!M21 -> 0 | M21: 0 | N21: 0
A22: 47 | B22: 1820 | C22: Distribution Station Equipment <50 kV | D22: 0.0222 | E22: =+'App.2-B_FA Cont MIFRS 2012'!H22 -> 4269129.02 | F22: =+'App.2-B_FA Cont MIFRS 2013'!F22 -> 983930 | H22: 5253059.02 | J22: =+'App.2-B_FA Cont MIFRS 2012'!M22 -> -1863577.977 | K22: =+'App.2-B_FA Cont MIFRS 2013'!K22 -> -235885.4333 | M22: -2099463.41 | N22: 3153595.61
A23: 47 | B23: 1825 | C23: Storage Battery Equipment | E23: =+'App.2-B_FA Cont MIFRS 2012'!H23 -> 0 | H23: 0 | J23: =+'App.2-B_FA Cont MIFRS 2012'!M23 -> 0 | M23: 0 | N23: 0
A24: 47 | B24: 1830 | C24: Poles, Towers & Fixtures | D24: 0.01666666667 | E24: =+'App.2-B_FA Cont MIFRS 2012'!H24 -> 7642875.56 | F24: =+'App.2-B_FA Cont MIFRS 2013'!F24 -> 752391 | H24: 8395266.56 | J24: =+'App.2-B_FA Cont MIFRS 2012'!M24 -> -2445908.39 | K24: =+'App.2-B_FA Cont MIFRS 2013'!K24 -> -110903.7167 | M24: -2556812.107 | N24: 5838454.453
A25: 47 | B25: 1835 | C25: Overhead Conductors & Devices | D25: 0.01538461538 | E25: =+'App.2-B_FA Cont MIFRS 2012'!H25 -> 10340037.45 | F25: =+'App.2-B_FA Cont MIFRS 2013'!F25 -> 768169 | H25: 11108206.45 | J25: =+'App.2-B_FA Cont MIFRS 2012'!M25 -> -3463728.215 | K25: =+'App.2-B_FA Cont MIFRS 2013'!K25 -> -134352.2923 | M25: -3598080.507 | N25: 7510125.943
A26: 47 | B26: 1840 | C26: Underground Conduit | D26: 0.01176470588 | E26: =+'App.2-B_FA Cont MIFRS 2012'!H26 -> 3246455.92 | F26: =+'App.2-B_FA Cont MIFRS 2013'!F26 -> 338943 | H26: 3585398.92 | J26: =+'App.2-B_FA Cont MIFRS 2012'!M26 -> -988356.44 | K26: =+'App.2-B_FA Cont MIFRS 2013'!K26 -> -31979.65882 | M26: -1020336.099 | N26: 2565062.821
A27: 47 | B27: 1845 | C27: Underground Conductors & Devices | D27: 0.01666666667 | E27: =+'App.2-B_FA Cont MIFRS 2012'!H27 -> 9205101.79 | F27: =+'App.2-B_FA Cont MIFRS 2013'!F27 -> 411509 | H27: 9616610.79 | J27: =+'App.2-B_FA Cont MIFRS 2012'!M27 -> -2778709.715 | K27: =+'App.2-B_FA Cont MIFRS 2013'!K27 -> -133588.9167 | M27: -2912298.632 | N27: 6704312.158
A28: 47 | B28: 1850 | C28: Line Transformers | D28: 0.025 | E28: =+'App.2-B_FA Cont MIFRS 2012'!H28 -> 8429479.75 | F28: =+'App.2-B_FA Cont MIFRS 2013'!F28 -> 524480 | H28: 8953959.75 | J28: =+'App.2-B_FA Cont MIFRS 2012'!M28 -> -2906808.332 | K28: =+'App.2-B_FA Cont MIFRS 2013'!K28 -> -227209.0875 | M28: -3134017.42 | N28: 5819942.33
A29: 47 | B29: 1855 | C29: Services (Overhead & Underground) | D29: 0.01818181818 | E29: =+'App.2-B_FA Cont MIFRS 2012'!H29 -> 5042665.2 | F29: =+'App.2-B_FA Cont MIFRS 2013'!F29 -> 539764 | H29: 5582429.2 | J29: =+'App.2-B_FA Cont MIFRS 2012'!M29 -> -1390342.595 | K29: =+'App.2-B_FA Cont MIFRS 2013'!K29 -> -84474.62727 | M29: -1474817.223 | N29: 4107611.977
A30: 47 | B30: 1860 | C30: Meters | D30: 0.03333333333 | E30: =+'App.2-B_FA Cont MIFRS 2012'!H30 -> 1579563.66 | H30: 1579563.66 | J30: =+'App.2-B_FA Cont MIFRS 2012'!M30 -> -467372.04 | K30: =+'App.2-B_FA Cont MIFRS 2013'!K30 -> -50099 | M30: -517471.04 | N30: 1062092.62
A31: 8 | B31: 1860 | C31: Meters (Smart Meters) | D31: 0.06666666667 | E31: =+'App.2-B_FA Cont MIFRS 2012'!H31 -> 131224 | F31: =+'App.2-B_FA Cont MIFRS 2013'!F31 -> 406994 | H31: 538218 | J31: =+'App.2-B_FA Cont MIFRS 2012'!M31 -> -10049.99667 | K31: =+'App.2-B_FA Cont MIFRS 2013'!K31 -> -24650.53333 | M31: -34700.53 | N31: 503517.47
B32: 3 lines | C32: Smart Meter Additions (from 1555)
A33: 8 | B33: 1860 | C33: Meters (Smart Meters) | D33: 0.0667 | E33: ='App.2-B_FA Cont MIFRS 2012SM'!H33 -> 3446141 | H33: =E33+F33+G33 -> 3446141 | J33: ='App.2-B_FA Cont MIFRS 2012SM'!M33 -> -656079 | K33: =+'App.2-B_Fixed Asset Cont 2013'!K57 -> -229743 | M33: =J33+K33+L33 -> -885822 | N33: =H33+M33 -> 2560319
A34: 45.1 | B34: 1920 | C34: Computer Hardware (Smart Meters) | D34: 0.2 | E34: ='App.2-B_FA Cont MIFRS 2012SM'!H34 -> 62873 | H34: 62873 | J34: ='App.2-B_FA Cont MIFRS 2012SM'!M34 -> -35193 | K34: =+'App.2-B_Fixed Asset Cont 2013'!K58 -> -12575 | M34: -47768 | N34: 15105
A35: 12 | B35: 1925 | C35: Computer Software (Smart Meters) | D35: 0.2 | E35: ='App.2-B_FA Cont MIFRS 2012SM'!H35 -> 274217 | H35: 274217 | J35: ='App.2-B_FA Cont MIFRS 2012SM'!M35 -> -81848 | K35: =+'App.2-B_Fixed Asset Cont 2013'!K59 -> -54843 | M35: -136691 | N35: 137526
A36: N/A | B36: 1905 | C36: Land | E36: =+'App.2-B_FA Cont MIFRS 2012'!H32 -> 0 | H36: 0 | J36: =+'App.2-B_FA Cont MIFRS 2012'!M32 -> 0 | M36: 0 | N36: 0
A37: 47 | B37: 1908 | C37: Buildings & Fixtures | E37: =+'App.2-B_FA Cont MIFRS 2012'!H33 -> 0 | H37: 0 | J37: =+'App.2-B_FA Cont MIFRS 2012'!M33 -> 0 | M37: 0 | N37: 0
A38: 13 | B38: 1910 | C38: Leasehold Improvements | E38: =+'App.2-B_FA Cont MIFRS 2012'!H34 -> 0 | H38: 0 | J38: =+'App.2-B_FA Cont MIFRS 2012'!M34 -> 0 | M38: 0 | N38: 0
A39: 8 | B39: 1915 | C39: Office Furniture & Equipment (10 years) | D39: 0.1 | E39: =+'App.2-B_FA Cont MIFRS 2012'!H35 -> 265118.15 | F39: =+'App.2-B_FA Cont MIFRS 2013'!F35 -> 2000 | H39: 267118.15 | J39: =+'App.2-B_FA Cont MIFRS 2012'!M35 -> -193805.7 | K39: =+'App.2-B_FA Cont MIFRS 2013'!K35 -> -8009.2 | M39: -201814.9 | N39: 65303.25
A40: 8 | B40: 1915 | C40: Office Furniture & Equipment (5 years) | E40: =+'App.2-B_FA Cont MIFRS 2012'!H36 -> 0 | H40: 0 | J40: =+'App.2-B_FA Cont MIFRS 2012'!M36 -> 0 | M40: 0 | N40: 0
A41: 10 | B41: 1920 | C41: Computer Equipment - Hardware | D41: 0.2 | E41: =+'App.2-B_FA Cont MIFRS 2012'!H37 -> 275946.03 | H41: 275946.03 | J41: =+'App.2-B_FA Cont MIFRS 2012'!M37 -> -152871.07 | M41: -152871.07 | N41: 123074.96
A42: 45 | B42: 1920 | C42: Computer Equip.-Hardware(Post Mar. 22/04) | D42: 0.2 | E42: =+'App.2-B_FA Cont MIFRS 2012'!H38 -> 52211.63 | H42: 52211.63 | J42: =+'App.2-B_FA Cont MIFRS 2012'!M38 -> -146240.59 | M42: -146240.59 | N42: -94028.96
A43: 45.1 | B43: 1920 | C43: Computer Equip.-Hardware(Post Mar. 19/07) | D43: 0.2 | E43: =+'App.2-B_FA Cont MIFRS 2012'!H39 -> 163094.7 | F43: =+'App.2-B_FA Cont MIFRS 2013'!F39 -> 28600 | H43: 191694.7 | J43: =+'App.2-B_FA Cont MIFRS 2012'!M39 -> -123497.68 | K43: =+'App.2-B_FA Cont MIFRS 2013'!K39 -> -19788.6 | M43: -143286.28 | N43: 48408.42
A44: 12 | B44: 1925 | C44: Computer Software (Formally known as Account 1925) | D44: 0.2 | E44: =+'App.2-B_FA Cont MIFRS 2012'!H40 -> 968635.07 | F44: =+'App.2-B_FA Cont MIFRS 2013'!F40 -> 45000 | H44: 1013635.07 | J44: =+'App.2-B_FA Cont MIFRS 2012'!M40 -> -847838.06 | K44: =+'App.2-B_FA Cont MIFRS 2013'!K40 -> -42795.8 | M44: -890633.86 | N44: 123001.21
A45: 10 | B45: 1930 | C45: Transportation Equipment | D45: 0.08 | E45: =+'App.2-B_FA Cont MIFRS 2012'!H41 -> 2251340.03 | F45: =+'App.2-B_FA Cont MIFRS 2013'!F41 -> 400000 | G45: -50000 | H45: 2601340.03 | J45: =+'App.2-B_FA Cont MIFRS 2012'!M41 -> -1158242.96 | K45: =+'App.2-B_FA Cont MIFRS 2013'!K41 -> -121761.52 | L45: 50000 | M45: -1230004.48 | N45: 1371335.55
A46: 8 | B46: 1935 | C46: Stores Equipment | D46: 0.1 | E46: =+'App.2-B_FA Cont MIFRS 2012'!H42 -> 85037.21 | H46: 85037.21 | J46: =+'App.2-B_FA Cont MIFRS 2012'!M42 -> -32052.99 | K46: =+'App.2-B_FA Cont MIFRS 2013'!K42 -> -5887 | M46: -37939.99 | N46: 47097.22
A47: 8 | B47: 1940 | C47: Tools, Shop & Garage Equipment | D47: 0.1 | E47: =+'App.2-B_FA Cont MIFRS 2012'!H43 -> 312343.97 | F47: =+'App.2-B_FA Cont MIFRS 2013'!F43 -> 72000 | H47: 384343.97 | J47: =+'App.2-B_FA Cont MIFRS 2012'!M43 -> -196398.06 | K47: =+'App.2-B_FA Cont MIFRS 2013'!K43 -> -16396 | M47: -212794.06 | N47: 171549.91
A48: 8 | B48: 1945 | C48: Measurement & Testing Equipment | D48: 0.1 | E48: =+'App.2-B_FA Cont MIFRS 2012'!H44 -> 67543.58 | H48: 67543.58 | J48: =+'App.2-B_FA Cont MIFRS 2012'!M44 -> -38244.46 | K48: =+'App.2-B_FA Cont MIFRS 2013'!K44 -> -3255 | M48: -41499.46 | N48: 26044.12
A49: 8 | B49: 1950 | C49: Power Operated Equipment | D49: 0.1 | E49: =+'App.2-B_FA Cont MIFRS 2012'!H45 -> 89271.96 | H49: 89271.96 | J49: =+'App.2-B_FA Cont MIFRS 2012'!M45 -> -42557.12 | K49: =+'App.2-B_FA Cont MIFRS 2013'!K45 -> -5190 | M49: -47747.12 | N49: 41524.84
A50: 8 | B50: 1955 | C50: Communications Equipment | D50: 0.1 | E50: =+'App.2-B_FA Cont MIFRS 2012'!H46 -> 176173.24 | H50: 176173.24 | J50: =+'App.2-B_FA Cont MIFRS 2012'!M46 -> -114278.53 | K50: =+'App.2-B_FA Cont MIFRS 2013'!K46 -> -8288 | M50: -122566.53 | N50: 53606.71
A51: 8 | B51: 1955 | C51: Communication Equipment (Smart Meters) | E51: =+'App.2-B_FA Cont MIFRS 2012'!H47 -> 0 | H51: 0 | J51: =+'App.2-B_FA Cont MIFRS 2012'!M47 -> 0 | M51: 0 | N51: 0
A52: 8 | B52: 1960 | C52: Miscellaneous Equipment | D52: 0.1 | E52: =+'App.2-B_FA Cont MIFRS 2012'!H48 -> 59618.47 | F52: =+'App.2-B_FA Cont MIFRS 2013'!F48 -> 45000 | H52: 104618.47 | J52: =+'App.2-B_FA Cont MIFRS 2012'!M48 -> -32010.36 | K52: =+'App.2-B_FA Cont MIFRS 2013'!K48 -> -5324.5 | M52: -37334.86 | N52: 67283.61
A53: 47 | B53: 1975 | C53: Load Management Controls Utility Premises | D53: 0.1 | E53: =+'App.2-B_FA Cont MIFRS 2012'!H49 -> 258630.5 | H53: 258630.5 | J53: =+'App.2-B_FA Cont MIFRS 2012'!M49 -> -258630.5 | M53: -258630.5 | N53: 0
A54: 47 | B54: 1980 | C54: System Supervisor Equipment | E54: =+'App.2-B_FA Cont MIFRS 2012'!H50 -> 0 | H54: 0 | J54: =+'App.2-B_FA Cont MIFRS 2012'!M50 -> 0 | M54: 0 | N54: 0
A55: 47 | B55: 1985 | C55: Miscellaneous Fixed Assets | D55: 0.1 | E55: =+'App.2-B_FA Cont MIFRS 2012'!H51 -> 1427 | H55: 1427 | J55: =+'App.2-B_FA Cont MIFRS 2012'!M51 -> -1426.68 | M55: -1426.68 | N55: 0.32
A56: 47 | B56: 1995 | C56: Contributions & Grants | D56: 0.0195 | E56: =+'App.2-B_FA Cont MIFRS 2012'!H52 -> -8517830.35 | F56: =+'App.2-B_FA Cont MIFRS 2013'!F52 -> -373740 | H56: -8891570.35 | J56: =+'App.2-B_FA Cont MIFRS 2012'!M52 -> 1860377.096 | K56: =+'App.2-B_FA Cont MIFRS 2013'!K52 -> 147157.0927 | M56: 2007534.189 | N56: -6884036.161
B57: etc. | H57: 0 | M57: 0 | N57: 0
C59: Total | E59: =SUM(E16:E58) -> 52892411.4 | F59: =SUM(F16:F58) -> 4954040 | G59: -50000 | H59: 57796451.4 | J59: =SUM(J16:J58) -> -18840817.85 | K59: =SUM(K16:K58) -> -1469961.793 | L59: 50000 | M59: -20260779.65 | N59: 37535671.75
J61: Less: Fully Allocated Depreciation
A62: 10 | C62: Transportation | J62: Transportation
A63: 8 | C63: Stores Equipment | J63: Stores Equipment
J64: Net Depreciation | L64: =L59-L62-L63 -> 50000
A66: Notes:
A68: 1 | B68: Tables in the format outlined above covering all fixed asset accounts should be submitted for the Test Year, Bridge Year and all relevant historical years. At a minimum , the applicant must provide data for the earlier of: 1) all historical years back to its last rebasing; or 2) at least three years of historical actuals, in addition to Bridge Year and Test Year forecasts.
A71: 2 | B71: The "CCA Class" for fixed assets should agree with the CCA Class used for tax purposes in Tax Returns. Fixed Assets sub-components may be used where the underlying asset components are classified under multiple CCA Classes for tax purposes. If an applicant uses any different classes from those shown in the table, an explanation should be provided. (also see note 3 below).
A74: 3 | B74: The table may need to be customized for a utility's asset categories or for any new asset accounts announced or authorized by the Board.
A76: 4 | B76: The depreciation column (D) is not required as the relevant information will be provided in the following 2-C series of appendices.

Sheet App.2-CE_CGAAP_DepExp_2011 (hidden)
K1: File Number: | L1: ='LDC Info'!$E$18 -> EB2012-0176
K2: Exhibit:
K3: Tab:
K4: Schedule:
K5: Page:
K7: Date:
A9: Appendix 2-CE
A10: Depreciation and Amortization Expense
A11: Assumes the applicant adopted IFRS for financial reporting purposes January 1, 2013
C12: Year | D12: 2011 | E12: CGAAP
A14: Account | B14: Description | C14: Opening Regulatory Gross PP&E as at Jan 1, 2011 | D14: Less Fully Depreciated | E14: Net for Depreciation | F14: Additions | G14: Total for Depreciation | H14: Years | I14: Depreciation Rate | J14: 2011 Depreciation Expense | K14: 2011 Depreciation Expense per Appendix 2-B Fixed Assets, Column K (l) | L14: Variance 2
C15: (a) | D15: (b) | E15: (c) | F15: (d) | G15: (e) = (c) + ½ x (d) 1 | H15: (f) | I15: (g) = 1 / (f) | J15: (h) = (e) / (f) | L15: (m) = (h) - (l)
A16: 1611 | B16: Computer Software (Formally known as Account 1925) | C16: =+'App.2-B_Fixed Asset Cont 2011'!E16 -> 0 | E16: =C16-D16 -> 0 | F16: =+'App.2-B_Fixed Asset Cont 2011'!F16 -> 0 | G16: =E16+0.5*F16 -> 0 | I16: =IF(H16=0,"",1/H16) ->  | J16: =IF(H16=0,0,G16/H16) -> 0 | K16: =+'App.2-B_Fixed Asset Cont 2011'!K16 -> 0 | L16: =IF(ISERROR(+J16+K16), "", +J16+K16) -> 0
A17: 1612 | B17: Land Rights (Formally known as Account 1906) | C17: =+'App.2-B_Fixed Asset Cont 2011'!E17 -> 0 | E17: =C17-D17 -> 0 | F17: =+'App.2-B_Fixed Asset Cont 2011'!F17 -> 0 | G17: =E17+0.5*F17 -> 0 | J17: 0 | K17: =+'App.2-B_Fixed Asset Cont 2011'!K17 -> 0 | L17: =IF(ISERROR(+J17+K17), "", +J17+K17) -> 0
A18: 1805 | B18: Land | C18: =+'App.2-B_Fixed Asset Cont 2011'!E18 -> 227768.86 | E18: 227768.86 | F18: =+'App.2-B_Fixed Asset Cont 2011'!F18 -> 0 | G18: 227768.86 | J18: 0 | K18: =+'App.2-B_Fixed Asset Cont 2011'!K18 -> 0 | L18: =IF(ISERROR(+J18+K18), "", +J18+K18) -> 0
A19: 1808 | B19: Buildings | C19: =+'App.2-B_Fixed Asset Cont 2011'!E19 -> 2486318 | E19: 2486318 | F19: =+'App.2-B_Fixed Asset Cont 2011'!F19 -> 0 | G19: 2486318 | H19: 50 | I19: 0.02 | J19: 49726.36 | K19: =+'App.2-B_Fixed Asset Cont 2011'!K19 -> -49886.67 | L19: =IF(ISERROR(+J19+K19), "", +J19+K19) -> -160.31
A20: 1810 | B20: Leasehold Improvements | C20: =+'App.2-B_Fixed Asset Cont 2011'!E20 -> 0 | E20: 0 | F20: =+'App.2-B_Fixed Asset Cont 2011'!F20 -> 0 | G20: 0 | J20: 0 | K20: =+'App.2-B_Fixed Asset Cont 2011'!K20 -> 0 | L20: =IF(ISERROR(+J20+K20), "", +J20+K20) -> 0
A21: 1815 | B21: Transformer Station Equipment >50 kV | C21: =+'App.2-B_Fixed Asset Cont 2011'!E21 -> 0 | E21: 0 | F21: =+'App.2-B_Fixed Asset Cont 2011'!F21 -> 0 | G21: 0 | J21: 0 | K21: =+'App.2-B_Fixed Asset Cont 2011'!K21 -> 0 | L21: 0
A22: 1820 | B22: Distribution Station Equipment <50 kV | C22: =+'App.2-B_Fixed Asset Cont 2011'!E22 -> 3818489.54 | E22: 3818489.54 | F22: =+'App.2-B_Fixed Asset Cont 2011'!F22 -> 450639.48 | G22: 4043809.28 | H22: 30 | I22: 0.03333333333 | J22: 134793.6427 | K22: =+'App.2-B_Fixed Asset Cont 2011'!K22 -> -136439.37 | L22: -1645.727333
A23: 1825 | B23: Storage Battery Equipment | C23: =+'App.2-B_Fixed Asset Cont 2011'!E23 -> 0 | E23: 0 | F23: =+'App.2-B_Fixed Asset Cont 2011'!F23 -> 0 | G23: 0 | J23: 0 | K23: =+'App.2-B_Fixed Asset Cont 2011'!K23 -> 0 | L23: 0
A24: 1830 | B24: Poles, Towers & Fixtures | C24: =+'App.2-B_Fixed Asset Cont 2011'!E24 -> 6563767.39 | E24: 6563767.39 | F24: =+'App.2-B_Fixed Asset Cont 2011'!F24 -> 542315.17 | G24: 6834924.975 | H24: 23 | I24: 0.04347826087 | J24: 297170.6511 | K24: =+'App.2-B_Fixed Asset Cont 2011'!K24 -> -294873 | L24: 2297.651087
A25: 1835 | B25: Overhead Conductors & Devices | C25: =+'App.2-B_Fixed Asset Cont 2011'!E25 -> 9073534.28 | E25: 9073534.28 | F25: =+'App.2-B_Fixed Asset Cont 2011'!F25 -> 673323.17 | G25: 9410195.865 | H25: 23 | I25: 0.04347826087 | J25: 409138.9507 | K25: =+'App.2-B_Fixed Asset Cont 2011'!K25 -> -411444.53 | L25: -2305.579348
A26: 1840 | B26: Underground Conduit | C26: =+'App.2-B_Fixed Asset Cont 2011'!E26 -> 2706285.59 | E26: 2706285.59 | F26: =+'App.2-B_Fixed Asset Cont 2011'!F26 -> 338350.33 | G26: 2875460.755 | H26: 23 | I26: 0.04347826087 | J26: 125020.0328 | K26: =+'App.2-B_Fixed Asset Cont 2011'!K26 -> -124188.43 | L26: 831.6028261
A27: 1845 | B27: Underground Conductors & Devices | C27: =+'App.2-B_Fixed Asset Cont 2011'!E27 -> 8297546.35 | E27: 8297546.35 | F27: =+'App.2-B_Fixed Asset Cont 2011'!F27 -> 551064.44 | G27: 8573078.57 | H27: 23 | I27: 0.04347826087 | J27: 372742.5465 | K27: =+'App.2-B_Fixed Asset Cont 2011'!K27 -> -372006.35 | L27: 736.1965217
A28: 1850 | B28: Line Transformers | C28: =+'App.2-B_Fixed Asset Cont 2011'!E28 -> 7500290.76 | E28: 7500290.76 | F28: =+'App.2-B_Fixed Asset Cont 2011'!F28 -> 507269.99 | G28: 7753925.755 | H28: 23 | I28: 0.04347826087 | J28: 337127.2067 | K28: =+'App.2-B_Fixed Asset Cont 2011'!K28 -> -338711.37 | L28: -1584.163261
A29: 1855 | B29: Services (Overhead & Underground) | C29: =+'App.2-B_Fixed Asset Cont 2011'!E29 -> 3957038.32 | E29: 3957038.32 | F29: =+'App.2-B_Fixed Asset Cont 2011'!F29 -> 473443.88 | G29: 4193760.26 | H29: 23.5 | I29: 0.04255319149 | J29: 178457.8834 | K29: =+'App.2-B_Fixed Asset Cont 2011'!K29 -> -178825.3 | L29: -367.4165957
A30: 1860 | B30: Meters | C30: =+'App.2-B_Fixed Asset Cont 2011'!E30 -> 1820049.54 | D30: 305370 | E30: 1514679.54 | F30: =+'App.2-B_Fixed Asset Cont 2011'!F30 -> 64884 | G30: 1547121.54 | H30: 24.5 | I30: 0.04081632653 | J30: 63147.81796 | K30: =+'App.2-B_Fixed Asset Cont 2011'!K30 -> -61785 | L30: 1362.817959
A31: 1860 | B31: Meters (Smart Meters) | C31: =+'App.2-B_Fixed Asset Cont 2011'!E31 -> 0 | E31: 0 | F31: =+'App.2-B_Fixed Asset Cont 2011'!F31 -> 105634 | G31: 52817 | H31: 25 | I31: 0.04 | J31: 2112.68 | K31: =+'App.2-B_Fixed Asset Cont 2011'!K31 -> -2150.23 | L31: -37.55
A32: 1905 | B32: Land | C32: =+'App.2-B_Fixed Asset Cont 2011'!E32 -> 0 | E32: 0 | F32: =+'App.2-B_Fixed Asset Cont 2011'!F32 -> 0 | G32: 0 | J32: 0 | K32: =+'App.2-B_Fixed Asset Cont 2011'!K32 -> 0 | L32: 0
A33: 1908 | B33: Buildings & Fixtures | C33: =+'App.2-B_Fixed Asset Cont 2011'!E33 -> 0 | E33: 0 | F33: =+'App.2-B_Fixed Asset Cont 2011'!F33 -> 0 | G33: 0 | J33: 0 | K33: =+'App.2-B_Fixed Asset Cont 2011'!K33 -> 0 | L33: 0
A34: 1910 | B34: Leasehold Improvements | C34: =+'App.2-B_Fixed Asset Cont 2011'!E34 -> 0 | E34: 0 | F34: =+'App.2-B_Fixed Asset Cont 2011'!F34 -> 0 | G34: 0 | J34: 0 | K34: =+'App.2-B_Fixed Asset Cont 2011'!K34 -> 0 | L34: 0
A35: 1915 | B35: Office Furniture & Equipment (10 years) | C35: =+'App.2-B_Fixed Asset Cont 2011'!E35 -> 251887.35 | D35: 111863 | E35: 140024.35 | F35: =+'App.2-B_Fixed Asset Cont 2011'!F35 -> 10588.8 | G35: 145318.75 | H35: 10 | I35: 0.1 | J35: 14531.875 | K35: =+'App.2-B_Fixed Asset Cont 2011'!K35 -> -14530.6 | L35: 1.275
A36: 1915 | B36: Office Furniture & Equipment (5 years) | C36: =+'App.2-B_Fixed Asset Cont 2011'!E36 -> 0 | E36: 0 | F36: =+'App.2-B_Fixed Asset Cont 2011'!F36 -> 0 | G36: 0 | J36: 0 | K36: =+'App.2-B_Fixed Asset Cont 2011'!K36 -> 0 | L36: 0
A37: 1920 | B37: Computer Equipment - Hardware | C37: =+'App.2-B_Fixed Asset Cont 2011'!E37 -> 275946.03 | D37: 275946 | E37: 0.02999999997 | F37: =+'App.2-B_Fixed Asset Cont 2011'!F37 -> 0 | G37: 0.02999999997 | H37: 5 | I37: 0.2 | J37: 0.005999999994 | K37: =+'App.2-B_Fixed Asset Cont 2011'!K37 -> 0 | L37: 0.005999999994
A38: 1920 | B38: Computer Equip.-Hardware(Post Mar. 22/04) | C38: =+'App.2-B_Fixed Asset Cont 2011'!E38 -> 52211.63 | D38: 52212 | E38: -0.37 | F38: =+'App.2-B_Fixed Asset Cont 2011'!F38 -> 0 | G38: -0.37 | H38: 5 | I38: 0.2 | J38: -0.074 | K38: =+'App.2-B_Fixed Asset Cont 2011'!K38 -> 0 | L38: -0.074
A39: 1920 | B39: Computer Equip.-Hardware(Post Mar. 19/07) | C39: =+'App.2-B_Fixed Asset Cont 2011'!E39 -> 108451.22 | E39: 108451.22 | F39: =+'App.2-B_Fixed Asset Cont 2011'!F39 -> 45385.48 | G39: 131143.96 | H39: 5 | I39: 0.2 | J39: 26228.792 | K39: =+'App.2-B_Fixed Asset Cont 2011'!K39 -> -26228.24 | L39: 0.552
A40: 1925 | B40: Computer Software (Formally known as Account 1925) | C40: =+'App.2-B_Fixed Asset Cont 2011'!E40 -> 854691.24 | D40: =677090+24891 -> 701981 | E40: 152710.24 | F40: =+'App.2-B_Fixed Asset Cont 2011'!F40 -> 89764.83 | G40: 197592.655 | H40: 3 | I40: 0.3333333333 | J40: 65864.21833 | K40: =+'App.2-B_Fixed Asset Cont 2011'!K40 -> -65863.26 | L40: 0.9583333333
A41: 1930 | B41: Transportation Equipment | C41: =+'App.2-B_Fixed Asset Cont 2011'!E41 -> 1838671.03 | D41: =369181+138750 -> 507931 | E41: 1330740.03 | F41: =+'App.2-B_Fixed Asset Cont 2011'!F41 -> 284250 | G41: 1472865.03 | H41: 8 | I41: 0.125 | J41: 184108.1288 | K41: =+'App.2-B_Fixed Asset Cont 2011'!K41 -> -184108.13 | L41: -0.001250000001
A42: 1935 | B42: Stores Equipment | C42: =+'App.2-B_Fixed Asset Cont 2011'!E42 -> 90937.21 | D42: =2078+5900 -> 7978 | E42: 82959.21 | F42: =+'App.2-B_Fixed Asset Cont 2011'!F42 -> 0 | G42: 82959.21 | H42: 10 | I42: 0.1 | J42: 8295.921 | K42: =+'App.2-B_Fixed Asset Cont 2011'!K42 -> -8295.89 | L42: 0.031
A43: 1940 | B43: Tools, Shop & Garage Equipment | C43: =+'App.2-B_Fixed Asset Cont 2011'!E43 -> 278276.02 | D43: 102262 | E43: 176014.02 | F43: =+'App.2-B_Fixed Asset Cont 2011'!F43 -> 18504.95 | G43: 185266.495 | H43: 10 | I43: 0.1 | J43: 18526.6495 | K43: =+'App.2-B_Fixed Asset Cont 2011'!K43 -> -18526.1 | L43: 0.5495
A44: 1945 | B44: Measurement & Testing Equipment | C44: =+'App.2-B_Fixed Asset Cont 2011'!E44 -> 63138.5 | E44: 63138.5 | F44: =+'App.2-B_Fixed Asset Cont 2011'!F44 -> 4405.08 | G44: 65341.04 | H44: 10 | I44: 0.1 | J44: 6534.104 | K44: =+'App.2-B_Fixed Asset Cont 2011'!K44 -> -6533.03 | L44: 1.074
A45: 1950 | B45: Power Operated Equipment | C45: =+'App.2-B_Fixed Asset Cont 2011'!E45 -> 100271.96 | D45: =9299+11000 -> 20299 | E45: 79972.96 | F45: =+'App.2-B_Fixed Asset Cont 2011'!F45 -> 0 | G45: 79972.96 | H45: 10 | I45: 0.1 | J45: 7997.296 | K45: =+'App.2-B_Fixed Asset Cont 2011'!K45 -> -7997.33 | L45: -0.034
A46: 1955 | B46: Communications Equipment | C46: =+'App.2-B_Fixed Asset Cont 2011'!E46 -> 176173.24 | D46: 77145 | E46: 99028.24 | F46: =+'App.2-B_Fixed Asset Cont 2011'!F46 -> 0 | G46: 99028.24 | H46: 5 | I46: 0.2 | J46: 19805.648 | K46: =+'App.2-B_Fixed Asset Cont 2011'!K46 -> -20382.11 | L46: -576.462
A47: 1955 | B47: Communication Equipment (Smart Meters) | C47: =+'App.2-B_Fixed Asset Cont 2011'!E47 -> 0 | E47: 0 | F47: =+'App.2-B_Fixed Asset Cont 2011'!F47 -> 0 | G47: 0 | J47: 0 | K47: =+'App.2-B_Fixed Asset Cont 2011'!K47 -> 0 | L47: 0
A48: 1960 | B48: Miscellaneous Equipment | C48: =+'App.2-B_Fixed Asset Cont 2011'!E48 -> 43493.47 | D48: 6562 | E48: 36931.47 | F48: =+'App.2-B_Fixed Asset Cont 2011'!F48 -> 0 | G48: 36931.47 | H48: 10 | I48: 0.1 | J48: 3693.147 | K48: =+'App.2-B_Fixed Asset Cont 2011'!K48 -> -3693.18 | L48: -0.033
A49: 1975 | B49: Load Management Controls Utility Premises | C49: =+'App.2-B_Fixed Asset Cont 2011'!E49 -> 258630.5 | D49: 258631 | E49: -0.5 | F49: =+'App.2-B_Fixed Asset Cont 2011'!F49 -> 0 | G49: -0.5 | H49: 10 | I49: 0.1 | J49: -0.05 | K49: =+'App.2-B_Fixed Asset Cont 2011'!K49 -> 0 | L49: -0.05
A50: 1980 | B50: System Supervisor Equipment | C50: =+'App.2-B_Fixed Asset Cont 2011'!E50 -> 0 | E50: 0 | F50: =+'App.2-B_Fixed Asset Cont 2011'!F50 -> 0 | G50: 0 | J50: 0 | K50: =+'App.2-B_Fixed Asset Cont 2011'!K50 -> 0 | L50: 0
A51: 1985 | B51: Miscellaneous Fixed Assets | C51: =+'App.2-B_Fixed Asset Cont 2011'!E51 -> 1427 | D51: 1427 | E51: 0 | F51: =+'App.2-B_Fixed Asset Cont 2011'!F51 -> 0 | G51: 0 | H51: 10 | I51: 0.1 | J51: 0 | K51: =+'App.2-B_Fixed Asset Cont 2011'!K51 -> 0 | L51: 0
A52: 1995 | B52: Contributions & Grants | C52: =+'App.2-B_Fixed Asset Cont 2011'!E52 -> -7555736.97 | D52: -632720 | E52: -6923016.97 | F52: =+'App.2-B_Fixed Asset Cont 2011'!F52 -> -632720.38 | G52: -7239377.16 | H52: 23 | I52: 0.04347826087 | J52: -314755.5287 | K52: =+'App.2-B_Fixed Asset Cont 2011'!K52 -> 315631.19 | L52: 875.6613043
A53: etc. | E53: 0 | G53: 0 | J53: 0 | L53: =IF(ISERROR(+J53-K53), "", +J53-K53) -> 0
E54: 0 | G54: 0 | J54: 0 | L54: 0
B55: Total | C55: =SUM(C16:C54) -> 43289558.06 | D55: =SUM(D16:D54) -> 1796887 | E55: =SUM(E16:E54) -> 41492671.06 | F55: =SUM(F16:F54) -> 3527103.22 | G55: =SUM(G16:G54) -> 43256222.67 | J55: =SUM(J16:J54) -> 2010267.905 | K55: =SUM(K16:K54) -> -2010836.93 | L55: =SUM(L16:L54) -> -569.0252561
A57: Notes:
A58: 1 | B58: Board policy of the "half-year" rule - the applicant must ensure that additions in the year attract a half-year depreciation expense in the first year. Deviations from this standard practice must be supported in the application.
A59: 2 | B59: The applicant must provide an explanation of material variances in evidence
A60: General: | B60: Applicants must provide a breakdown of depreciation and amortization expense in the above format for all relevant accounts. Asset Retirement Obligations (AROs), depreciation and accretion expense should be disclosed separately consistent with the Notes of historical Audited Financial Statements.

Sheet App.2-CF_CGAAP_DepExp_2012 (hidden)
K1: File Number: | L1: ='LDC Info'!$E$18 -> EB2012-0176
K2: Exhibit:
K3: Tab:
K4: Schedule:
K5: Page:
K7: Date:
A9: Appendix 2-CF
A10: Depreciation and Amortization Expense
A11: Assumes the applicant adopted IFRS for financial reporting purposes January 1, 2013
C12: Year | D12: 2012 | E12: CGAAP
A14: Account | B14: Description | C14: Opening Regulatory Gross PP&E as at Jan 1, 2012 | D14: Less Fully Depreciated | E14: Net for Depreciation | F14: Additions | G14: Total for Depreciation | H14: Years | I14: Depreciation Rate | J14: 2012 Depreciation Expense | K14: 2012 Depreciation Expense per Appendix 2-B Fixed Assets, Column K (l) | L14: Variance 2
C15: (a) | D15: (b) | E15: (c) | F15: (d) | G15: (e) = (c) + ½ x (d) 1 | H15: (f) | I15: (g) = 1 / (f) | J15: (h) = (e) / (f) | L15: (m) = (h) - (l)
A16: 1611 | B16: Computer Software (Formally known as Account 1925) | C16: =+'App.2-B_Fixed Asset Cont 2012'!E16 -> 0 | E16: =C16-D16 -> 0 | F16: =+'App.2-B_Fixed Asset Cont 2012'!F16 -> 0 | G16: =E16+0.5*F16 -> 0 | H16: =+'App.2-CE_CGAAP_DepExp_2011'!H16 -> 0 | I16: =IF(H16=0,0,1/H16) -> 0 | J16: =IF(H16=0,0,G16/H16) -> 0 | K16: =+'App.2-B_Fixed Asset Cont 2012'!K16 -> 0 | L16: =IF(ISERROR(+J16+K16), 0, +J16+K16) -> 0
A17: 1612 | B17: Land Rights (Formally known as Account 1906) | C17: =+'App.2-B_Fixed Asset Cont 2012'!E17 -> 0 | E17: =C17-D17 -> 0 | F17: =+'App.2-B_Fixed Asset Cont 2012'!F17 -> 0 | G17: =E17+0.5*F17 -> 0 | H17: =+'App.2-CE_CGAAP_DepExp_2011'!H17 -> 0 | I17: 0 | J17: 0 | K17: =+'App.2-B_Fixed Asset Cont 2012'!K17 -> 0 | L17: =IF(ISERROR(+J17+K17), 0, +J17+K17) -> 0
A18: 1805 | B18: Land | C18: =+'App.2-B_Fixed Asset Cont 2012'!E18 -> 227768.86 | E18: 227768.86 | F18: =+'App.2-B_Fixed Asset Cont 2012'!F18 -> 0 | G18: 227768.86 | H18: =+'App.2-CE_CGAAP_DepExp_2011'!H18 -> 0 | I18: 0 | J18: 0 | K18: =+'App.2-B_Fixed Asset Cont 2012'!K18 -> 0 | L18: 0
A19: 1808 | B19: Buildings | C19: =+'App.2-B_Fixed Asset Cont 2012'!E19 -> 2486318 | E19: 2486318 | F19: =+'App.2-B_Fixed Asset Cont 2012'!F19 -> 0 | G19: 2486318 | H19: =+'App.2-CE_CGAAP_DepExp_2011'!H19 -> 50 | I19: 0.02 | J19: 49726.36 | K19: =+'App.2-B_Fixed Asset Cont 2012'!K19 -> -49887 | L19: -160.64
A20: 1810 | B20: Leasehold Improvements | C20: =+'App.2-B_Fixed Asset Cont 2012'!E20 -> 0 | E20: 0 | F20: =+'App.2-B_Fixed Asset Cont 2012'!F20 -> 0 | G20: 0 | H20: =+'App.2-CE_CGAAP_DepExp_2011'!H20 -> 0 | I20: 0 | J20: 0 | K20: =+'App.2-B_Fixed Asset Cont 2012'!K20 -> 0 | L20: 0
A21: 1815 | B21: Transformer Station Equipment >50 kV | C21: =+'App.2-B_Fixed Asset Cont 2012'!E21 -> 0 | E21: 0 | F21: =+'App.2-B_Fixed Asset Cont 2012'!F21 -> 0 | G21: 0 | H21: =+'App.2-CE_CGAAP_DepExp_2011'!H21 -> 0 | I21: 0 | J21: 0 | K21: =+'App.2-B_Fixed Asset Cont 2012'!K21 -> 0 | L21: 0
A22: 1820 | B22: Distribution Station Equipment <50 kV | C22: =+'App.2-B_Fixed Asset Cont 2012'!E22 -> 4269129.02 | E22: 4269129.02 | F22: =+'App.2-B_Fixed Asset Cont 2012'!F22-89310 -> -89310 | G22: 4224474.02 | H22: =+'App.2-CE_CGAAP_DepExp_2011'!H22 -> 30 | I22: 0.03333333333 | J22: 140815.8007 | K22: =+'App.2-B_Fixed Asset Cont 2012'!K22 -> -139327.6833 | L22: 1488.117333
A23: 1825 | B23: Storage Battery Equipment | C23: =+'App.2-B_Fixed Asset Cont 2012'!E23 -> 0 | E23: 0 | F23: =+'App.2-B_Fixed Asset Cont 2012'!F23 -> 0 | G23: 0 | H23: =+'App.2-CE_CGAAP_DepExp_2011'!H23 -> 0 | I23: 0 | J23: 0 | K23: =+'App.2-B_Fixed Asset Cont 2012'!K23 -> 0 | L23: 0
A24: 1830 | B24: Poles, Towers & Fixtures | C24: =+'App.2-B_Fixed Asset Cont 2012'!E24 -> 7106082.56 | E24: 7106082.56 | F24: =+'App.2-B_Fixed Asset Cont 2012'!F24 -> 631753 | G24: 7421959.06 | H24: =+'App.2-CE_CGAAP_DepExp_2011'!H24 -> 23 | I24: 0.04347826087 | J24: 322693.8722 | K24: =+'App.2-B_Fixed Asset Cont 2012'!K24 -> -315022.94 | L24: 7670.932174
A25: 1835 | B25: Overhead Conductors & Devices | C25: =+'App.2-B_Fixed Asset Cont 2012'!E25 -> 9746857.45 | E25: 9746857.45 | F25: =+'App.2-B_Fixed Asset Cont 2012'!F25 -> 695590 | G25: 10094652.45 | H25: =+'App.2-CE_CGAAP_DepExp_2011'!H25 -> 23 | I25: 0.04347826087 | J25: 438897.9326 | K25: =+'App.2-B_Fixed Asset Cont 2012'!K25 -> -438983.86 | L25: -85.9273913
A26: 1840 | B26: Underground Conduit | C26: =+'App.2-B_Fixed Asset Cont 2012'!E26 -> 3044635.92 | E26: 3044635.92 | F26: =+'App.2-B_Fixed Asset Cont 2012'!F26 -> 248742 | G26: 3169006.92 | H26: =+'App.2-CE_CGAAP_DepExp_2011'!H26 -> 23 | I26: 0.04347826087 | J26: 137782.9096 | K26: =+'App.2-B_Fixed Asset Cont 2012'!K26 -> -135949.22 | L26: 1833.689565
A27: 1845 | B27: Underground Conductors & Devices | C27: =+'App.2-B_Fixed Asset Cont 2012'!E27 -> 8848610.79 | E27: 8848610.79 | F27: =+'App.2-B_Fixed Asset Cont 2012'!F27 -> 440600 | G27: 9068910.79 | H27: =+'App.2-CE_CGAAP_DepExp_2011'!H27 -> 23 | I27: 0.04347826087 | J27: 394300.4691 | K27: =+'App.2-B_Fixed Asset Cont 2012'!K27 -> -392088.64 | L27: 2211.82913
A28: 1850 | B28: Line Transformers | C28: =+'App.2-B_Fixed Asset Cont 2012'!E28 -> 8007560.75 | E28: 8007560.75 | F28: =+'App.2-B_Fixed Asset Cont 2012'!F28 -> 492643 | G28: 8253882.25 | H28: =+'App.2-CE_CGAAP_DepExp_2011'!H28 -> 23 | I28: 0.04347826087 | J28: 358864.4457 | K28: =+'App.2-B_Fixed Asset Cont 2012'!K28 -> -358781.74 | L28: 82.70565217
A29: 1855 | B29: Services (Overhead & Underground) | C29: =+'App.2-B_Fixed Asset Cont 2012'!E29 -> 4430482.2 | E29: 4430482.2 | F29: =+'App.2-B_Fixed Asset Cont 2012'!F29 -> 726714 | G29: 4793839.2 | H29: 23.5 | I29: 0.04255319149 | J29: 203993.1574 | K29: =+'App.2-B_Fixed Asset Cont 2012'!K29 -> -202829.14 | L29: 1164.017447
A30: 1860 | B30: Meters | C30: =+'App.2-B_Fixed Asset Cont 2012'!E30 -> 1579563.66 | E30: 1579563.66 | F30: =+'App.2-B_Fixed Asset Cont 2012'!F30+89310 -> 89310 | G30: 1624218.66 | H30: =+'App.2-CE_CGAAP_DepExp_2011'!H30 -> 24.5 | I30: 0.04081632653 | J30: 66294.63918 | K30: =+'App.2-B_Fixed Asset Cont 2012'!K30 -> -67812 | L30: -1517.360816
A31: 1860 | B31: Meters (Smart Meters) | C31: =+'App.2-B_Fixed Asset Cont 2012'!E31 -> 105634 | E31: 105634 | F31: =+'App.2-B_Fixed Asset Cont 2012'!F31 -> 32593 | G31: 121930.5 | H31: 15 | I31: 0.06666666667 | J31: 8128.7 | K31: =+'App.2-B_Fixed Asset Cont 2012'!K31 -> -8216.033333 | L31: -87.33333333
A32: 1905 | B32: Land | C32: =+'App.2-B_Fixed Asset Cont 2012'!E32 -> 0 | E32: 0 | F32: =+'App.2-B_Fixed Asset Cont 2012'!F32 -> 0 | G32: 0 | H32: =+'App.2-CE_CGAAP_DepExp_2011'!H32 -> 0 | I32: 0 | J32: 0 | K32: =+'App.2-B_Fixed Asset Cont 2012'!K32 -> 0 | L32: 0
A33: 1908 | B33: Buildings & Fixtures | C33: =+'App.2-B_Fixed Asset Cont 2012'!E33 -> 0 | E33: 0 | F33: =+'App.2-B_Fixed Asset Cont 2012'!F33 -> 0 | G33: 0 | H33: =+'App.2-CE_CGAAP_DepExp_2011'!H33 -> 0 | I33: 0 | J33: 0 | K33: =+'App.2-B_Fixed Asset Cont 2012'!K33 -> 0 | L33: 0
A34: 1910 | B34: Leasehold Improvements | C34: =+'App.2-B_Fixed Asset Cont 2012'!E34 -> 0 | E34: 0 | F34: =+'App.2-B_Fixed Asset Cont 2012'!F34 -> 0 | G34: 0 | H34: =+'App.2-CE_CGAAP_DepExp_2011'!H34 -> 0 | I34: 0 | J34: 0 | K34: =+'App.2-B_Fixed Asset Cont 2012'!K34 -> 0 | L34: 0
A35: 1915 | B35: Office Furniture & Equipment (10 years) | C35: =+'App.2-B_Fixed Asset Cont 2012'!E35 -> 262476.15 | D35: 114122 | E35: 148354.15 | F35: =+'App.2-B_Fixed Asset Cont 2012'!F35 -> 2642 | G35: 149675.15 | H35: =+'App.2-CE_CGAAP_DepExp_2011'!H35 -> 10 | I35: 0.1 | J35: 14967.515 | K35: =+'App.2-B_Fixed Asset Cont 2012'!K35 -> -14966.1 | L35: 1.415
A36: 1915 | B36: Office Furniture & Equipment (5 years) | C36: =+'App.2-B_Fixed Asset Cont 2012'!E36 -> 0 | E36: 0 | F36: =+'App.2-B_Fixed Asset Cont 2012'!F36 -> 0 | G36: 0 | H36: =+'App.2-CE_CGAAP_DepExp_2011'!H36 -> 0 | I36: 0 | J36: 0 | K36: =+'App.2-B_Fixed Asset Cont 2012'!K36 -> 0 | L36: 0
A37: 1920 | B37: Computer Equipment - Hardware | C37: =+'App.2-B_Fixed Asset Cont 2012'!E37 -> 275946.03 | D37: 275946 | E37: 0.02999999997 | F37: =+'App.2-B_Fixed Asset Cont 2012'!F37 -> 0 | G37: 0.02999999997 | H37: =+'App.2-CE_CGAAP_DepExp_2011'!H37 -> 5 | I37: 0.2 | J37: 0.005999999994 | K37: =+'App.2-B_Fixed Asset Cont 2012'!K37 -> 0 | L37: 0.005999999994
A38: 1920 | B38: Computer Equip.-Hardware(Post Mar. 22/04) | C38: =+'App.2-B_Fixed Asset Cont 2012'!E38 -> 52211.63 | D38: 52212 | E38: -0.37 | F38: =+'App.2-B_Fixed Asset Cont 2012'!F38 -> 0 | G38: -0.37 | H38: =+'App.2-CE_CGAAP_DepExp_2011'!H38 -> 5 | I38: 0.2 | J38: -0.074 | K38: =+'App.2-B_Fixed Asset Cont 2012'!K38 -> 0 | L38: -0.074
A39: 1920 | B39: Computer Equip.-Hardware(Post Mar. 19/07) | C39: =+'App.2-B_Fixed Asset Cont 2012'!E39 -> 153836.7 | D39: 29316 | E39: 124520.7 | F39: =+'App.2-B_Fixed Asset Cont 2012'!F39 -> 9258 | G39: 129149.7 | H39: =+'App.2-CE_CGAAP_DepExp_2011'!H39 -> 5 | I39: 0.2 | J39: 25829.94 | K39: =+'App.2-B_Fixed Asset Cont 2012'!K39 -> -25829.8 | L39: 0.14
A40: 1925 | B40: Computer Software (Formally known as Account 1925) | C40: =+'App.2-B_Fixed Asset Cont 2012'!E40 -> 944456.07 | D40: =726871+11744+20000 -> 758615 | E40: 185841.07 | F40: =+'App.2-B_Fixed Asset Cont 2012'!F40 -> 24179 | G40: 197930.57 | H40: =+'App.2-CE_CGAAP_DepExp_2011'!H40 -> 3 | I40: 0.3333333333 | J40: 65976.85667 | K40: =+'App.2-B_Fixed Asset Cont 2012'!K40 -> -65975.5 | L40: 1.356666667
A41: 1930 | B41: Transportation Equipment | C41: =+'App.2-B_Fixed Asset Cont 2012'!E41 -> 1984171.03 | D41: =369181+1072 -> 370253 | E41: 1613918.03 | F41: =+'App.2-B_Fixed Asset Cont 2012'!F41 -> 393169 | G41: 1810502.53 | H41: =+'App.2-CE_CGAAP_DepExp_2011'!H41 -> 8 | I41: 0.125 | J41: 226312.8163 | K41: =+'App.2-B_Fixed Asset Cont 2012'!K41 -> -226309.0625 | L41: 3.75375
A42: 1935 | B42: Stores Equipment | C42: =+'App.2-B_Fixed Asset Cont 2012'!E42 -> 85037.21 | D42: 2078 | E42: 82959.21 | F42: =+'App.2-B_Fixed Asset Cont 2012'!F42 -> 0 | G42: 82959.21 | H42: =+'App.2-CE_CGAAP_DepExp_2011'!H42 -> 10 | I42: 0.1 | J42: 8295.921 | K42: =+'App.2-B_Fixed Asset Cont 2012'!K42 -> -8296 | L42: -0.079
A43: 1940 | B43: Tools, Shop & Garage Equipment | C43: =+'App.2-B_Fixed Asset Cont 2012'!E43 -> 296780.97 | D43: 109125 | E43: 187655.97 | F43: =+'App.2-B_Fixed Asset Cont 2012'!F43 -> 15563 | G43: 195437.47 | H43: =+'App.2-CE_CGAAP_DepExp_2011'!H43 -> 10 | I43: 0.1 | J43: 19543.747 | K43: =+'App.2-B_Fixed Asset Cont 2012'!K43 -> -19542.15 | L43: 1.597
A44: 1945 | B44: Measurement & Testing Equipment | C44: =+'App.2-B_Fixed Asset Cont 2012'!E44 -> 67543.58 | D44: 1095 | E44: 66448.58 | F44: =+'App.2-B_Fixed Asset Cont 2012'!F44 -> 0 | G44: 66448.58 | H44: =+'App.2-CE_CGAAP_DepExp_2011'!H44 -> 10 | I44: 0.1 | J44: 6644.858 | K44: =+'App.2-B_Fixed Asset Cont 2012'!K44 -> -6645 | L44: -0.142
A45: 1950 | B45: Power Operated Equipment | C45: =+'App.2-B_Fixed Asset Cont 2012'!E45 -> 89271.96 | D45: 9299 | E45: 79972.96 | F45: =+'App.2-B_Fixed Asset Cont 2012'!F45 -> 0 | G45: 79972.96 | H45: =+'App.2-CE_CGAAP_DepExp_2011'!H45 -> 10 | I45: 0.1 | J45: 7997.296 | K45: =+'App.2-B_Fixed Asset Cont 2012'!K45 -> -7997 | L45: 0.296
A46: 1955 | B46: Communications Equipment | C46: =+'App.2-B_Fixed Asset Cont 2012'!E46 -> 176173.24 | D46: 74263 | E46: 101910.24 | F46: =+'App.2-B_Fixed Asset Cont 2012'!F46 -> 0 | G46: 101910.24 | H46: =+'App.2-CE_CGAAP_DepExp_2011'!H46 -> 5 | I46: 0.2 | J46: 20382.048 | K46: =+'App.2-B_Fixed Asset Cont 2012'!K46 -> -20382 | L46: 0.048
A47: 1955 | B47: Communication Equipment (Smart Meters) | C47: =+'App.2-B_Fixed Asset Cont 2012'!E47 -> 0 | E47: 0 | F47: =+'App.2-B_Fixed Asset Cont 2012'!F47 -> 0 | G47: 0 | H47: =+'App.2-CE_CGAAP_DepExp_2011'!H47 -> 0 | I47: 0 | J47: 0 | K47: =+'App.2-B_Fixed Asset Cont 2012'!K47 -> 0 | L47: 0
A48: 1960 | B48: Miscellaneous Equipment | C48: =+'App.2-B_Fixed Asset Cont 2012'!E48 -> 43493.47 | D48: =21142-1072 -> 20070 | E48: 23423.47 | F48: =+'App.2-B_Fixed Asset Cont 2012'!F48 -> 16125 | G48: 31485.97 | H48: =+'App.2-CE_CGAAP_DepExp_2011'!H48 -> 10 | I48: 0.1 | J48: 3148.597 | K48: =+'App.2-B_Fixed Asset Cont 2012'!K48 -> -3148.25 | L48: 0.347
A49: 1975 | B49: Load Management Controls Utility Premises | C49: =+'App.2-B_Fixed Asset Cont 2012'!E49 -> 258630.5 | D49: 258631 | E49: -0.5 | F49: =+'App.2-B_Fixed Asset Cont 2012'!F49 -> 0 | G49: -0.5 | H49: =+'App.2-CE_CGAAP_DepExp_2011'!H49 -> 10 | I49: 0.1 | J49: -0.05 | K49: =+'App.2-B_Fixed Asset Cont 2012'!K49 -> 0 | L49: -0.05
A50: 1980 | B50: System Supervisor Equipment | C50: =+'App.2-B_Fixed Asset Cont 2012'!E50 -> 0 | E50: 0 | F50: =+'App.2-B_Fixed Asset Cont 2012'!F50 -> 0 | G50: 0 | H50: =+'App.2-CE_CGAAP_DepExp_2011'!H50 -> 0 | I50: 0 | J50: 0 | K50: =+'App.2-B_Fixed Asset Cont 2012'!K50 -> 0 | L50: 0
A51: 1985 | B51: Miscellaneous Fixed Assets | C51: =+'App.2-B_Fixed Asset Cont 2012'!E51 -> 1427 | D51: 1427 | E51: 0 | F51: =+'App.2-B_Fixed Asset Cont 2012'!F51 -> 0 | G51: 0 | H51: =+'App.2-CE_CGAAP_DepExp_2011'!H51 -> 10 | I51: 0.1 | J51: 0 | K51: =+'App.2-B_Fixed Asset Cont 2012'!K51 -> 0 | L51: 0
A52: 1995 | B52: Contributions & Grants | C52: =+'App.2-B_Fixed Asset Cont 2012'!E52 -> -8188457.35 | D52: -632720 | E52: -7555737.35 | F52: =+'App.2-B_Fixed Asset Cont 2012'!F52 -> -329373 | G52: -7720423.85 | H52: =+'App.2-CE_CGAAP_DepExp_2011'!H52 -> 23 | I52: 0.04347826087 | J52: -335670.6022 | K52: =+'App.2-B_Fixed Asset Cont 2012'!K52 -> 334896.24 | L52: -774.3621739
A53: etc. | E53: 0 | G53: 0 | I53: 0 | J53: 0 | L53: =IF(ISERROR(+J53-K53), 0, +J53-K53) -> 0
E54: 0 | G54: 0 | I54: 0 | J54: 0 | L54: 0
B55: Total | C55: =SUM(C16:C54) -> 46355641.4 | D55: =SUM(D16:D54) -> 1443732 | E55: =SUM(E16:E54) -> 44911909.4 | F55: =SUM(F16:F54) -> 3400198 | G55: =SUM(G16:G54) -> 46612008.4 | J55: =SUM(J16:J54) -> 2184927.161 | K55: =SUM(K16:K54) -> -2173092.879 | L55: =SUM(L16:L54) -> 11834.282
A57: Notes:
A58: 1 | B58: Board policy of the "half-year" rule - the applicant must ensure that additions in the year attract a half-year depreciation expense in the first year. Deviations from this standard practice must be supported in the application.
A59: 2 | B59: The applicant must provide an explanation of material variances in evidence
A61: General: | B61: Applicants must provide a breakdown of depreciation and amortization expense in the above format for all relevant accounts. Asset Retirement Obligations (AROs), depreciation and accretion expense should be disclosed separately consistent with the Notes of historical Audited Financial Statements.

Sheet App.2-CJ_CGAAP_DepExp_2013 (hidden)
K1: File Number: | L1: ='LDC Info'!$E$18 -> EB2012-0176
K2: Exhibit:
K3: Tab:
K4: Schedule:
K5: Page:
K7: Date:
A9: Appendix 2-CJ
A10: Depreciation and Amortization Expense
A11: Assumes the applicant adopted IFRS for financial reporting purposes January 1, 2013
C12: Year | D12: 2013 | E12: CGAAP
A14: Account | B14: Description | C14: Opening Regulatory Gross PP&E as at Jan 1, 2013 | D14: Less Fully Depreciated | E14: Net for Depreciation | F14: Additions | G14: Total for Depreciation | H14: Years | I14: Depreciation Rate | J14: 2013 Depreciation Expense | K14: 2013 Depreciation Expense per Appendix 2-B Fixed Assets, Column K (l) | L14: Variance 2
C15: (a) | D15: (b) | E15: (c) | F15: (d) | G15: (e) = (c) + ½ x (d) 1 | H15: (f) | I15: (g) = 1 / (f) | J15: (h) = (e) / (f) | L15: (m) = (h) - (l)
A16: 1611 | B16: Computer Software (Formally known as Account 1925) | C16: =+'App.2-B_Fixed Asset Cont 2013'!E16 -> 0 | E16: =C16-D16 -> 0 | F16: =+'App.2-B_Fixed Asset Cont 2013'!F16 -> 0 | G16: =E16+0.5*F16 -> 0 | H16: =+'App.2-CE_CGAAP_DepExp_2011'!H16 -> 0 | I16: =IF(H16=0,0,1/H16) -> 0 | J16: =IF(H16=0,0,G16/H16) -> 0 | K16: =+'App.2-B_Fixed Asset Cont 2013'!K16 -> 0 | L16: =IF(ISERROR(+J16+K16), 0, +J16+K16) -> 0
A17: 1612 | B17: Land Rights (Formally known as Account 1906) | C17: =+'App.2-B_Fixed Asset Cont 2013'!E17 -> 0 | E17: =C17-D17 -> 0 | F17: =+'App.2-B_Fixed Asset Cont 2013'!F17 -> 0 | G17: =E17+0.5*F17 -> 0 | H17: =+'App.2-CE_CGAAP_DepExp_2011'!H17 -> 0 | I17: 0 | J17: 0 | K17: =+'App.2-B_Fixed Asset Cont 2013'!K17 -> 0 | L17: =IF(ISERROR(+J17+K17), 0, +J17+K17) -> 0
A18: 1805 | B18: Land | C18: =+'App.2-B_Fixed Asset Cont 2013'!E18 -> 227768.86 | E18: 227768.86 | F18: =+'App.2-B_Fixed Asset Cont 2013'!F18 -> 0 | G18: 227768.86 | H18: =+'App.2-CE_CGAAP_DepExp_2011'!H18 -> 0 | I18: 0 | J18: 0 | K18: =+'App.2-B_Fixed Asset Cont 2013'!K18 -> 0 | L18: 0
A19: 1808 | B19: Buildings | C19: =+'App.2-B_Fixed Asset Cont 2013'!E19 -> 2486318 | E19: 2486318 | F19: =+'App.2-B_Fixed Asset Cont 2013'!F19 -> 9000 | G19: 2490818 | H19: =+'App.2-CE_CGAAP_DepExp_2011'!H19 -> 50 | I19: 0.02 | J19: 49816.36 | K19: =+'App.2-B_Fixed Asset Cont 2013'!K19 -> -49977 | L19: -160.64
A20: 1810 | B20: Leasehold Improvements | C20: =+'App.2-B_Fixed Asset Cont 2013'!E20 -> 0 | E20: 0 | F20: =+'App.2-B_Fixed Asset Cont 2013'!F20 -> 0 | G20: 0 | H20: =+'App.2-CE_CGAAP_DepExp_2011'!H20 -> 0 | I20: 0 | J20: 0 | K20: =+'App.2-B_Fixed Asset Cont 2013'!K20 -> 0 | L20: 0
A21: 1815 | B21: Transformer Station Equipment >50 kV | C21: =+'App.2-B_Fixed Asset Cont 2013'!E21 -> 0 | E21: 0 | F21: =+'App.2-B_Fixed Asset Cont 2013'!F21 -> 0 | G21: 0 | H21: =+'App.2-CE_CGAAP_DepExp_2011'!H21 -> 0 | I21: 0 | J21: 0 | K21: =+'App.2-B_Fixed Asset Cont 2013'!K21 -> 0 | L21: 0
A22: 1820 | B22: Distribution Station Equipment <50 kV | C22: =+'App.2-B_Fixed Asset Cont 2013'!E22 -> 4269129.02 | E22: 4269129.02 | F22: =+'App.2-B_Fixed Asset Cont 2013'!F22 -> 1101694 | G22: 4819976.02 | H22: =+'App.2-CE_CGAAP_DepExp_2011'!H22 -> 30 | I22: 0.03333333333 | J22: 160665.8673 | K22: =+'App.2-B_Fixed Asset Cont 2013'!K22 -> -174583.3167 | L22: -13917.44933
A23: 1825 | B23: Storage Battery Equipment | C23: =+'App.2-B_Fixed Asset Cont 2013'!E23 -> 0 | E23: 0 | F23: =+'App.2-B_Fixed Asset Cont 2013'!F23 -> 0 | G23: 0 | H23: =+'App.2-CE_CGAAP_DepExp_2011'!H23 -> 0 | I23: 0 | J23: 0 | K23: =+'App.2-B_Fixed Asset Cont 2013'!K23 -> 0 | L23: 0
A24: 1830 | B24: Poles, Towers & Fixtures | C24: =+'App.2-B_Fixed Asset Cont 2013'!E24 -> 7737835.56 | E24: 7737835.56 | F24: =+'App.2-B_Fixed Asset Cont 2013'!F24 -> 905325 | G24: 8190498.06 | H24: 23.25 | I24: 0.04301075269 | J24: 352279.4865 | K24: =+'App.2-B_Fixed Asset Cont 2013'!K24 -> -353161.86 | L24: -882.3735484
A25: 1835 | B25: Overhead Conductors & Devices | C25: =+'App.2-B_Fixed Asset Cont 2013'!E25 -> 10442447.45 | E25: 10442447.45 | F25: =+'App.2-B_Fixed Asset Cont 2013'!F25 -> 928445 | G25: 10906669.95 | H25: 23.25 | I25: 0.04301075269 | J25: 469104.0839 | K25: =+'App.2-B_Fixed Asset Cont 2013'!K25 -> -471464.12 | L25: -2360.036129
A26: 1840 | B26: Underground Conduit | C26: =+'App.2-B_Fixed Asset Cont 2013'!E26 -> 3293377.92 | E26: 3293377.92 | F26: =+'App.2-B_Fixed Asset Cont 2013'!F26 -> 415784 | G26: 3501269.92 | H26: 23.25 | I26: 0.04301075269 | J26: 150592.2546 | K26: =+'App.2-B_Fixed Asset Cont 2013'!K26 -> -149239.34 | L26: 1352.914624
A27: 1845 | B27: Underground Conductors & Devices | C27: =+'App.2-B_Fixed Asset Cont 2013'!E27 -> 9289210.79 | E27: 9289210.79 | F27: =+'App.2-B_Fixed Asset Cont 2013'!F27 -> 517251 | G27: 9547836.29 | H27: 23.25 | I27: 0.04301075269 | J27: 410659.6254 | K27: =+'App.2-B_Fixed Asset Cont 2013'!K27 -> -411246.08 | L27: -586.4546237
A28: 1850 | B28: Line Transformers | C28: =+'App.2-B_Fixed Asset Cont 2013'!E28 -> 8500203.75 | E28: 8500203.75 | F28: =+'App.2-B_Fixed Asset Cont 2013'!F28 -> 621432 | G28: 8810919.75 | H28: 23.25 | I28: 0.04301075269 | J28: 378964.2903 | K28: =+'App.2-B_Fixed Asset Cont 2013'!K28 -> -381063.58 | L28: -2099.289677
A29: 1855 | B29: Services (Overhead & Underground) | C29: =+'App.2-B_Fixed Asset Cont 2013'!E29 -> 5157196.2 | E29: 5157196.2 | F29: =+'App.2-B_Fixed Asset Cont 2013'!F29 -> 669656 | G29: 5492024.2 | H29: 24 | I29: 0.04166666667 | J29: 228834.3417 | K29: =+'App.2-B_Fixed Asset Cont 2013'!K29 -> -230756.08 | L29: -1921.738333
A30: 1860 | B30: Meters | C30: =+'App.2-B_Fixed Asset Cont 2013'!E30 -> 1579563.66 | E30: 1579563.66 | F30: =+'App.2-B_Fixed Asset Cont 2013'!F30 -> 0 | G30: 1579563.66 | H30: =+'[6]App.2-CE_CGAAP_DepExp_2011'!H30 -> 24.5 | I30: 0.04081632653 | J30: 64471.98612 | K30: =+'App.2-B_Fixed Asset Cont 2013'!K30 -> -67812 | L30: -3340.013878
A31: 1860 | B31: Meters (Smart Meters) | C31: =+'App.2-B_Fixed Asset Cont 2013'!E31 -> 138227 | E31: 138227 | F31: =+'App.2-B_Fixed Asset Cont 2013'!F31 -> 496432 | G31: 386443 | H31: 15 | I31: 0.06666666667 | J31: 25762.86667 | K31: =+'App.2-B_Fixed Asset Cont 2013'!K31 -> -25841.06667 | L31: -78.2
A32: 1905 | B32: Land | C32: =+'App.2-B_Fixed Asset Cont 2013'!E32 -> 0 | E32: 0 | F32: =+'App.2-B_Fixed Asset Cont 2013'!F32 -> 0 | G32: 0 | H32: =+'App.2-CE_CGAAP_DepExp_2011'!H32 -> 0 | I32: 0 | J32: 0 | K32: =+'App.2-B_Fixed Asset Cont 2013'!K32 -> 0 | L32: 0
A33: 1908 | B33: Buildings & Fixtures | C33: =+'App.2-B_Fixed Asset Cont 2013'!E33 -> 0 | E33: 0 | F33: =+'App.2-B_Fixed Asset Cont 2013'!F33 -> 0 | G33: 0 | H33: =+'App.2-CE_CGAAP_DepExp_2011'!H33 -> 0 | I33: 0 | J33: 0 | K33: =+'App.2-B_Fixed Asset Cont 2013'!K33 -> 0 | L33: 0
A34: 1910 | B34: Leasehold Improvements | C34: =+'App.2-B_Fixed Asset Cont 2013'!E34 -> 0 | E34: 0 | F34: =+'App.2-B_Fixed Asset Cont 2013'!F34 -> 0 | G34: 0 | H34: =+'App.2-CE_CGAAP_DepExp_2011'!H34 -> 0 | I34: 0 | J34: 0 | K34: =+'App.2-B_Fixed Asset Cont 2013'!K34 -> 0 | L34: 0
A35: 1915 | B35: Office Furniture & Equipment (10 years) | C35: =+'App.2-B_Fixed Asset Cont 2013'!E35 -> 265118.15 | D35: 124075 | E35: 141043.15 | F35: =+'App.2-B_Fixed Asset Cont 2013'!F35 -> 2000 | G35: 142043.15 | H35: =+'App.2-CE_CGAAP_DepExp_2011'!H35 -> 10 | I35: 0.1 | J35: 14204.315 | K35: =+'App.2-B_Fixed Asset Cont 2013'!K35 -> -14201.2 | L35: 3.115
A36: 1915 | B36: Office Furniture & Equipment (5 years) | C36: =+'App.2-B_Fixed Asset Cont 2013'!E36 -> 0 | E36: 0 | F36: =+'App.2-B_Fixed Asset Cont 2013'!F36 -> 0 | G36: 0 | H36: =+'App.2-CE_CGAAP_DepExp_2011'!H36 -> 0 | I36: 0 | J36: 0 | K36: =+'App.2-B_Fixed Asset Cont 2013'!K36 -> 0 | L36: 0
A37: 1920 | B37: Computer Equipment - Hardware | C37: =+'App.2-B_Fixed Asset Cont 2013'!E37 -> 275946.03 | D37: 275946 | E37: 0.02999999997 | F37: =+'App.2-B_Fixed Asset Cont 2013'!F37 -> 0 | G37: 0.02999999997 | H37: =+'App.2-CE_CGAAP_DepExp_2011'!H37 -> 5 | I37: 0.2 | J37: 0.005999999994 | K37: =+'App.2-B_Fixed Asset Cont 2013'!K37 -> 0 | L37: 0.005999999994
A38: 1920 | B38: Computer Equip.-Hardware(Post Mar. 22/04) | C38: =+'App.2-B_Fixed Asset Cont 2013'!E38 -> 52211.63 | D38: 52212 | E38: -0.37 | F38: =+'App.2-B_Fixed Asset Cont 2013'!F38 -> 0 | G38: -0.37 | H38: =+'App.2-CE_CGAAP_DepExp_2011'!H38 -> 5 | I38: 0.2 | J38: -0.074 | K38: =+'App.2-B_Fixed Asset Cont 2013'!K38 -> 0 | L38: -0.074
A39: 1920 | B39: Computer Equip.-Hardware(Post Mar. 19/07) | C39: =+'App.2-B_Fixed Asset Cont 2013'!E39 -> 163094.7 | D39: 49324 | E39: 113770.7 | F39: =+'App.2-B_Fixed Asset Cont 2013'!F39 -> 28600 | G39: 128070.7 | H39: =+'App.2-CE_CGAAP_DepExp_2011'!H39 -> 5 | I39: 0.2 | J39: 25614.14 | K39: =+'App.2-B_Fixed Asset Cont 2013'!K39 -> -25613.6 | L39: 0.54
A40: 1925 | B40: Computer Software (Formally known as Account 1925) | C40: =+'App.2-B_Fixed Asset Cont 2013'!E40 -> 968635.07 | D40: =802525+10000 -> 812525 | E40: 156110.07 | F40: =+'App.2-B_Fixed Asset Cont 2013'!F40 -> 45000 | G40: 178610.07 | H40: =+'App.2-CE_CGAAP_DepExp_2011'!H40 -> 3 | I40: 0.3333333333 | J40: 59536.69 | K40: =+'App.2-B_Fixed Asset Cont 2013'!K40 -> -59537 | L40: -0.31
A41: 1930 | B41: Transportation Equipment | C41: =+'App.2-B_Fixed Asset Cont 2013'!E41 -> 2251340.03 | D41: =491171-40000 -> 451171 | E41: 1800169.03 | F41: =+'App.2-B_Fixed Asset Cont 2013'!F41 -> 400000 | G41: 2000169.03 | H41: 8 | I41: 0.125 | J41: 250021.1288 | K41: =+'App.2-B_Fixed Asset Cont 2013'!K41 -> -247021.125 | L41: 3000.00375
A42: 1935 | B42: Stores Equipment | C42: =+'App.2-B_Fixed Asset Cont 2013'!E42 -> 85037.21 | D42: 2078 | E42: 82959.21 | F42: =+'App.2-B_Fixed Asset Cont 2013'!F42 -> 0 | G42: 82959.21 | H42: =+'App.2-CE_CGAAP_DepExp_2011'!H42 -> 10 | I42: 0.1 | J42: 8295.921 | K42: =+'App.2-B_Fixed Asset Cont 2013'!K42 -> -8296 | L42: -0.079
A43: 1940 | B43: Tools, Shop & Garage Equipment | C43: =+'App.2-B_Fixed Asset Cont 2013'!E43 -> 312343.97 | D43: 125031 | E43: 187312.97 | F43: =+'App.2-B_Fixed Asset Cont 2013'!F43 -> 72000 | G43: 223312.97 | H43: =+'App.2-CE_CGAAP_DepExp_2011'!H43 -> 10 | I43: 0.1 | J43: 22331.297 | K43: =+'App.2-B_Fixed Asset Cont 2013'!K43 -> -22328.3 | L43: 2.997
A44: 1945 | B44: Measurement & Testing Equipment | C44: =+'App.2-B_Fixed Asset Cont 2013'!E44 -> 67543.58 | D44: 1095 | E44: 66448.58 | F44: =+'App.2-B_Fixed Asset Cont 2013'!F44 -> 0 | G44: 66448.58 | H44: =+'App.2-CE_CGAAP_DepExp_2011'!H44 -> 10 | I44: 0.1 | J44: 6644.858 | K44: =+'App.2-B_Fixed Asset Cont 2013'!K44 -> -6645 | L44: -0.142
A45: 1950 | B45: Power Operated Equipment | C45: =+'App.2-B_Fixed Asset Cont 2013'!E45 -> 89271.96 | D45: 9299 | E45: 79972.96 | F45: =+'App.2-B_Fixed Asset Cont 2013'!F45 -> 0 | G45: 79972.96 | H45: =+'App.2-CE_CGAAP_DepExp_2011'!H45 -> 10 | I45: 0.1 | J45: 7997.296 | K45: =+'App.2-B_Fixed Asset Cont 2013'!K45 -> -7997 | L45: 0.296
A46: 1955 | B46: Communications Equipment | C46: =+'App.2-B_Fixed Asset Cont 2013'!E46 -> 176173.24 | D46: =74263+(1441) -> 75704 | E46: 100469.24 | F46: =+'App.2-B_Fixed Asset Cont 2013'!F46 -> 0 | G46: 100469.24 | H46: =+'App.2-CE_CGAAP_DepExp_2011'!H46 -> 5 | I46: 0.2 | J46: 20093.848 | K46: =+'App.2-B_Fixed Asset Cont 2013'!K46 -> -20092 | L46: 1.848
A47: 1955 | B47: Communication Equipment (Smart Meters) | C47: =+'App.2-B_Fixed Asset Cont 2013'!E47 -> 0 | E47: 0 | F47: =+'App.2-B_Fixed Asset Cont 2013'!F47 -> 0 | G47: 0 | H47: =+'App.2-CE_CGAAP_DepExp_2011'!H47 -> 0 | I47: 0 | J47: 0 | K47: =+'App.2-B_Fixed Asset Cont 2013'!K47 -> 0 | L47: 0
A48: 1960 | B48: Miscellaneous Equipment | C48: =+'App.2-B_Fixed Asset Cont 2013'!E48 -> 59618.47 | D48: =21142-1072+40000 -> 60070 | E48: -451.53 | F48: =+'App.2-B_Fixed Asset Cont 2013'!F48 -> 45000 | G48: 22048.47 | H48: =+'App.2-CE_CGAAP_DepExp_2011'!H48 -> 10 | I48: 0.1 | J48: 2204.847 | K48: =+'App.2-B_Fixed Asset Cont 2013'!K48 -> -2204.5 | L48: 0.347
A49: 1975 | B49: Load Management Controls Utility Premises | C49: =+'App.2-B_Fixed Asset Cont 2013'!E49 -> 258630.5 | D49: 258631 | E49: -0.5 | F49: =+'App.2-B_Fixed Asset Cont 2013'!F49 -> 0 | G49: -0.5 | H49: =+'App.2-CE_CGAAP_DepExp_2011'!H49 -> 10 | I49: 0.1 | J49: -0.05 | K49: =+'App.2-B_Fixed Asset Cont 2013'!K49 -> 0 | L49: -0.05
A50: 1980 | B50: System Supervisor Equipment | C50: =+'App.2-B_Fixed Asset Cont 2013'!E50 -> 0 | E50: 0 | F50: =+'App.2-B_Fixed Asset Cont 2013'!F50 -> 0 | G50: 0 | H50: =+'App.2-CE_CGAAP_DepExp_2011'!H50 -> 0 | I50: 0 | J50: 0 | K50: =+'App.2-B_Fixed Asset Cont 2013'!K50 -> 0 | L50: 0
A51: 1985 | B51: Miscellaneous Fixed Assets | C51: =+'App.2-B_Fixed Asset Cont 2013'!E51 -> 1427 | D51: 1427 | E51: 0 | F51: =+'App.2-B_Fixed Asset Cont 2013'!F51 -> 0 | G51: 0 | H51: =+'App.2-CE_CGAAP_DepExp_2011'!H51 -> 10 | I51: 0.1 | J51: 0 | K51: =+'App.2-B_Fixed Asset Cont 2013'!K51 -> 0 | L51: 0
A52: 1995 | B52: Contributions & Grants | C52: =+'App.2-B_Fixed Asset Cont 2013'!E52 -> -8517830.35 | D52: -688000 | E52: -7829830.35 | F52: =+'App.2-B_Fixed Asset Cont 2013'!F52 -> -417663 | G52: -8038661.85 | H52: =+'App.2-CE_CGAAP_DepExp_2011'!H52 -> 23 | I52: 0.04347826087 | J52: -349507.037 | K52: =+'App.2-B_Fixed Asset Cont 2013'!K52 -> 349859.48 | L52: 352.4430435
A53: etc. | E53: 0 | G53: 0 | I53: 0 | J53: 0 | L53: =IF(ISERROR(+J53-K53), 0, +J53-K53) -> 0
E54: 0 | G54: 0 | I54: 0 | J54: 0 | L54: 0
B55: Total | C55: =SUM(C16:C54) -> 49629839.4 | D55: =SUM(D16:D54) -> 1610588 | E55: =SUM(E16:E54) -> 48019251.4 | F55: =SUM(F16:F54) -> 5839956 | G55: =SUM(G16:G54) -> 50939229.4 | J55: =SUM(J16:J54) -> 2358588.348 | K55: =SUM(K16:K54) -> -2379220.688 | L55: =SUM(L16:L54) -> -20632.34011
B56: Smart Meter Additions
B57: Meters (Smart Meters) | E57: =C57-D57 -> 0 | F57: =+'App.2-B_Fixed Asset Cont 2013'!H57 -> 3446141 | G57: =E57+F57 -> 3446141 | H57: 15 | I57: =IF(H57=0,0,1/H57) -> 0.06666666667 | J57: =IF(H57=0,0,G57/H57) -> 229742.7333 | K57: =+'App.2-B_Fixed Asset Cont 2013'!K57 -> -229743 | L57: =IF(ISERROR(+J57+K57), 0, +J57+K57) -> -0.2666666667
B58: Computer Hardware (Smart Meters) | E58: 0 | F58: =+'App.2-B_Fixed Asset Cont 2013'!H58 -> 62873 | G58: =E58+F58 -> 62873 | H58: 5 | I58: 0.2 | J58: 12574.6 | K58: =+'App.2-B_Fixed Asset Cont 2013'!K58 -> -12575 | L58: =IF(ISERROR(+J58+K58), 0, +J58+K58) -> -0.4
B59: Computer Software (Smart Meters) | E59: 0 | F59: =+'App.2-B_Fixed Asset Cont 2013'!H59 -> 274217 | G59: =E59+F59 -> 274217 | H59: 3 | I59: 0.3333333333 | J59: 91405.66667 | K59: =+'App.2-B_Fixed Asset Cont 2013'!K59 -> -54843 | L59: 36562.66667 | M59: different depreciation rates between SM model and CGAAP
B60: Revised Total | C60: =SUM(C55:C59) -> 49629839.4 | D60: =SUM(D55:D59) -> 1610588 | E60: =SUM(E55:E59) -> 48019251.4 | F60: =SUM(F55:F59) -> 9623187 | G60: =SUM(G55:G59) -> 54722460.4 | J60: =SUM(J55:J59) -> 2692311.348 | K60: =SUM(K55:K59) -> -2676381.688 | L60: =SUM(L55:L59) -> 15929.65989
A61: Notes:
A62: 1 | B62: Board policy of the "half-year" rule - the applicant must ensure that additions in the year attract a half-year depreciation expense in the first year. Deviations from this standard practice must be supported in the application.
A63: 2 | B63: The applicant must provide an explanation of material variances in evidence
A65: General: | B65: Applicants must provide a breakdown of depreciation and amortization expense in the above format for all relevant accounts. Asset Retirement Obligations (AROs), depreciation and accretion expense should be disclosed separately consistent with the Notes of historical Audited Financial Statements.

Sheet App.2-CG_MIFRS_DepExp_2012 (hidden)
N1: File Number: | O1: ='LDC Info'!$E$18 -> EB2012-0176
N2: Exhibit:
N3: Tab:
N4: Schedule:
N5: Page:
N7: Date:
A9: Appendix 2-CG
A10: Depreciation and Amortization Expense
A11: Assumes the applicant adopted IFRS for financial reporting purposes January 1, 2013
C12: Year | D12: 2012 | E12: MIFRS
A14: Account | B14: Description | C14: Opening NBV as at Jan 1, 2012 5 | D14: Additions | E14: Average Remaining Life of Opening NBV 4 | F14: Years (new additions only) 3 | G14: Depreciation Rate on New Additions | H14: Depreciation Expense on Opening NBV | I14: Depreciation Expense on Additions 1 | J14: 2012 Depreciation Expense | K14: 2012 Depreciation Expense per Appendix 2-B Fixed Assets, Column K (l) | L14: Variance 2 | M14: Depreciation Expense on 2012 Full Year Additions | N14: Less Depreciation Expense on Assets Fully Depreciated during the year (o) | O14: 2012 Full Year Depreciation 6
C15: (a) | D15: (d) | E15: (i) | F15: (f) | G15: (g) = 1 / (f) | H15: (j) = (a) / (i) | I15: (h)=((d)*0.5)/(f) | J15: (k) = (j) + (h) | L15: (m) = (k) - (l) | M15: (n)=((d))/(f) | O15: (p) = (j) + (n) - (o)
A16: 1611 | B16: Computer Software (Formally known as Account 1925) | G16: =IF(F16=0,0,1/F16) -> 0 | H16: =IF(E16=0,0,+C16/E16) -> 0 | I16: =IF(F16=0,0,+(D16*0.5)/F16) -> 0 | J16: =IF(ISERROR(+H16+I16), 0, +H16+I16) -> 0 | L16: =IF(ISERROR(+J16-K16), 0, +J16-K16) -> 0 | M16: =IF(F16=0,0,+(D16)/F16) -> 0 | O16: =IF(ISERROR(+M16+H16-N16), 0, +M16+H16-N16) -> 0
A17: 1612 | B17: Land Rights (Formally known as Account 1906) | G17: 0 | H17: 0 | I17: 0 | J17: 0 | L17: 0 | M17: 0 | O17: =IF(ISERROR(+M17+H17-N17), 0, +M17+H17-N17) -> 0
A18: 1805 | B18: Land | C18: 227769 | G18: 0 | H18: 0 | I18: 0 | J18: 0 | L18: 0 | M18: 0 | O18: 0
A19: 1808 | B19: Buildings | C19: =2261121 -> 2261121 | D19: =+'App.2-B_Fixed Asset Cont 2012'!F19 -> 0 | E19: =+C19/49929 -> 45.28672715 | F19: 50 | G19: 0.02 | H19: 49929 | I19: 0 | J19: 49929 | K19: =-'App.2-B_FA Cont MIFRS 2012'!K19 -> 49929 | L19: 0 | M19: 0 | O19: 49929
A20: 1810 | B20: Leasehold Improvements | D20: =+'App.2-B_Fixed Asset Cont 2012'!F20 -> 0 | G20: 0 | H20: 0 | I20: 0 | J20: 0 | K20: =-'App.2-B_FA Cont MIFRS 2012'!K20 -> 0 | L20: 0 | M20: 0 | O20: 0
A21: 1815 | B21: Transformer Station Equipment >50 kV | D21: =+'App.2-B_Fixed Asset Cont 2012'!F21 -> 0 | G21: 0 | H21: 0 | I21: 0 | J21: 0 | K21: =-'App.2-B_FA Cont MIFRS 2012'!K21 -> 0 | L21: 0 | M21: 0 | O21: 0
A22: 1820 | B22: Distribution Station Equipment <50 kV | C22: =2621205-120659 -> 2500546 | D22: 463809 | E22: =+C22/287923 -> 8.68477336 | F22: 45 | G22: 0.02222222222 | H22: 287923 | I22: 5153.433333 | J22: 293076.4333 | K22: =-'App.2-B_FA Cont MIFRS 2012'!K22 -> 287922.5667 | L22: 5153.866667 | M22: 10306.86667 | N22: 73277 | O22: 224952.8667
A23: 1825 | B23: Storage Battery Equipment | G23: 0 | H23: 0 | I23: 0 | J23: 0 | K23: =-'App.2-B_FA Cont MIFRS 2012'!K23 -> 0 | L23: 0 | M23: 0 | O23: 0
A24: 1830 | B24: Poles, Towers & Fixtures | C24: 4758021 | D24: 734446 | E24: =+C24/95680 -> 49.72848035 | F24: 60 | G24: 0.01666666667 | H24: 95680 | I24: 6120.383333 | J24: 101800.3833 | K24: =-'App.2-B_FA Cont MIFRS 2012'!K24 -> 97846.94 | L24: 3953.443333 | M24: 12240.76667 | O24: 107920.7667
A25: 1835 | B25: Overhead Conductors & Devices | C25: 6407009 | D25: 707985 | E25: =+C25/119317 -> 53.69736919 | F25: 65 | G25: 0.01538461538 | H25: 119317 | I25: 5446.038462 | J25: 124763.0385 | K25: =-'App.2-B_FA Cont MIFRS 2012'!K25 -> 123879.8846 | L25: 883.1538462 | M25: 10892.07692 | O25: 130209.0769
A26: 1840 | B26: Underground Conduit | C26: 2085078 | D26: 239152 | E26: =+C26/27611 -> 75.51620731 | F26: 85 | G26: 0.01176470588 | H26: 27611 | I26: 1406.776471 | J26: 29017.77647 | K26: =-'App.2-B_FA Cont MIFRS 2012'!K26 -> 28798.4 | L26: 219.3764706 | M26: 2813.552941 | O26: 30424.55294
A27: 1845 | B27: Underground Conductors & Devices | C27: 6197090 | D27: 368494 | E27: =+C27/124218 -> 49.88882449 | F27: 60 | G27: 0.01666666667 | H27: 124218 | I27: 3070.783333 | J27: 127288.7833 | K27: =-'App.2-B_FA Cont MIFRS 2012'!K27 -> 127188.975 | L27: 99.80833333 | M27: 6141.566667 | O27: 130359.5667
A28: 1850 | B28: Line Transformers | C28: 5316092 | D28: 504230 | E28: =+C28/210065 -> 25.30689072 | F28: 40 | G28: 0.025 | H28: 210065 | I28: 6302.875 | J28: 216367.875 | K28: =-'App.2-B_FA Cont MIFRS 2012'!K28 -> 215339.1125 | L28: 1028.7625 | M28: 12605.75 | O28: 222670.75
A29: 1855 | B29: Services (Overhead & Underground) | C29: 3115662 | D29: 527103 | E29: =+C29/71504 -> 43.57325464 | F29: 55 | G29: 0.01818181818 | H29: 71504 | I29: 4791.845455 | J29: 76295.84545 | K29: =-'App.2-B_FA Cont MIFRS 2012'!K29 -> 75522.54545 | L29: 773.3 | M29: 9583.690909 | O29: 81087.69091
A30: 1860 | B30: Meters | C30: 1225937 | E30: =+C30/50089 -> 24.47517419 | F30: 30 | G30: 0.03333333333 | H30: 50089 | I30: 0 | J30: 50089 | K30: =-'App.2-B_FA Cont MIFRS 2012'!K30 -> 50089 | L30: 0 | M30: 0 | O30: 50089
A31: 1860 | B31: Meters (Smart Meters) | C31: 103522 | D31: 29737 | E31: =+C31/7047 -> 14.69022279 | F31: 15 | G31: 0.06666666667 | H31: 7047 | I31: 991.2333333 | J31: 8038.233333 | K31: =-'App.2-B_FA Cont MIFRS 2012'!K31 -> 7899.766667 | L31: 138.4666667 | M31: 1982.466667 | O31: 9029.466667
A32: 1905 | B32: Land | D32: =+'App.2-B_Fixed Asset Cont 2012'!F32 -> 0 | G32: 0 | H32: 0 | I32: 0 | J32: 0 | K32: =-'App.2-B_FA Cont MIFRS 2012'!K32 -> 0 | L32: 0 | M32: 0 | O32: 0
A33: 1908 | B33: Buildings & Fixtures | D33: =+'App.2-B_Fixed Asset Cont 2012'!F33 -> 0 | G33: 0 | H33: 0 | I33: 0 | J33: 0 | K33: =-'App.2-B_FA Cont MIFRS 2012'!K33 -> 0 | L33: 0 | M33: 0 | O33: 0
A34: 1910 | B34: Leasehold Improvements | D34: =+'App.2-B_Fixed Asset Cont 2012'!F34 -> 0 | G34: 0 | H34: 0 | I34: 0 | J34: 0 | K34: =-'App.2-B_FA Cont MIFRS 2012'!K34 -> 0 | L34: 0 | M34: 0 | O34: 0
A35: 1915 | B35: Office Furniture & Equipment (10 years) | C35: 76448 | D35: =+'App.2-B_Fixed Asset Cont 2012'!F35 -> 2642 | E35: =+C35/7645 -> 9.999738391 | F35: 10 | G35: 0.1 | H35: 7645 | I35: 132.1 | J35: 7777.1 | K35: =-'App.2-B_FA Cont MIFRS 2012'!K35 -> 7777.1 | L35: 0 | M35: 264.2 | O35: 7909.2
A36: 1915 | B36: Office Furniture & Equipment (5 years) | D36: =+'App.2-B_Fixed Asset Cont 2012'!F36 -> 0 | G36: 0 | H36: 0 | I36: 0 | J36: 0 | K36: =-'App.2-B_FA Cont MIFRS 2012'!K36 -> 0 | L36: 0 | M36: 0 | O36: 0
A37: 1920 | B37: Computer Equipment - Hardware | D37: =+'App.2-B_Fixed Asset Cont 2012'!F37 -> 0 | G37: 0 | H37: 0 | I37: 0 | J37: 0 | K37: =-'App.2-B_FA Cont MIFRS 2012'!K37 -> 0 | L37: 0 | M37: 0 | O37: 0
A38: 1920 | B38: Computer Equip.-Hardware(Post Mar. 22/04) | D38: =+'App.2-B_Fixed Asset Cont 2012'!F38 -> 0 | G38: 0 | H38: 0 | I38: 0 | J38: 0 | K38: =-'App.2-B_FA Cont MIFRS 2012'!K38 -> 0 | L38: 0 | M38: 0 | O38: 0
A39: 1920 | B39: Computer Equip.-Hardware(Post Mar. 19/07) | C39: 75389 | D39: =+'App.2-B_Fixed Asset Cont 2012'!F39 -> 9258 | E39: =+C39/15078 -> 4.999933678 | F39: 5 | G39: 0.2 | H39: 15078 | I39: 925.8 | J39: 16003.8 | K39: =-'App.2-B_FA Cont MIFRS 2012'!K39 -> 16003.8 | L39: 1.818989404e-12 | M39: 1851.6 | O39: 16929.6
A40: 1925 | B40: Computer Software (Formally known as Account 1925) | C40: 130884 | D40: =+'App.2-B_Fixed Asset Cont 2012'!F40 -> 24179 | E40: =+C40/31848 -> 4.109645818 | F40: 5 | G40: =IF(F40=0,0,1/F40) -> 0.2 | H40: =IF(E40=0,0,+C40/E40) -> 31848 | I40: =IF(F40=0,0,+(D40*0.5)/F40) -> 2417.9 | J40: =IF(ISERROR(+H40+I40), 0, +H40+I40) -> 34265.9 | K40: =-'App.2-B_FA Cont MIFRS 2012'!K40 -> 34265.9 | L40: =IF(ISERROR(+J40-K40), 0, +J40-K40) -> 0 | M40: =IF(F40=0,0,+(D40)/F40) -> 4835.8 | N40: -1612 | O40: 38295.8
A41: 1930 | B41: Transportation Equipment | C41: 794677 | D41: =+'App.2-B_Fixed Asset Cont 2012'!F41 -> 393169 | E41: =+C41/79893 -> 9.9467663 | F41: 12.5 | G41: 0.08 | H41: 79893 | I41: 15726.76 | J41: 95619.76 | K41: =-'App.2-B_FA Cont MIFRS 2012'!K41 -> 95619.76 | L41: 0 | M41: 31453.52 | N41: 2918 | O41: 108428.52
A42: 1935 | B42: Stores Equipment | C42: 58871 | D42: =+'App.2-B_Fixed Asset Cont 2012'!F42 -> 0 | E42: =+C42/5887 -> 10.00016987 | F42: 10 | G42: 0.1 | H42: 5887 | I42: 0 | J42: 5887 | K42: =-'App.2-B_FA Cont MIFRS 2012'!K42 -> 5887 | L42: 0 | M42: 0 | O42: 5887
A43: 1940 | B43: Tools, Shop & Garage Equipment | C43: 112401 | D43: =+'App.2-B_Fixed Asset Cont 2012'!F43 -> 15563 | E43: 10 | F43: 10 | G43: 0.1 | H43: 11240.1 | I43: 778.15 | J43: 12018.25 | K43: =-'App.2-B_FA Cont MIFRS 2012'!K43 -> 12018.15 | L43: 0.1 | M43: 1556.3 | O43: 12796.4
A44: 1945 | B44: Measurement & Testing Equipment | C44: 32554 | D44: =+'App.2-B_Fixed Asset Cont 2012'!F44 -> 0 | E44: 10 | F44: 10 | G44: 0.1 | H44: 3255.4 | I44: 0 | J44: 3255.4 | K44: =-'App.2-B_FA Cont MIFRS 2012'!K44 -> 3255 | L44: 0.4 | M44: 0 | O44: 3255.4
A45: 1950 | B45: Power Operated Equipment | C45: 51905 | D45: =+'App.2-B_Fixed Asset Cont 2012'!F45 -> 0 | E45: 10 | F45: 10 | G45: 0.1 | H45: 5190.5 | I45: 0 | J45: 5190.5 | K45: =-'App.2-B_FA Cont MIFRS 2012'!K45 -> 5190 | L45: 0.5 | M45: 0 | O45: 5190.5
A46: 1955 | B46: Communications Equipment | C46: 70183 | D46: =+'App.2-B_Fixed Asset Cont 2012'!F46 -> 0 | E46: =+C46/8288 -> 8.468026062 | F46: 10 | G46: 0.1 | H46: 8288 | I46: 0 | J46: 8288 | K46: =-'App.2-B_FA Cont MIFRS 2012'!K46 -> 8288 | L46: 0 | M46: 0 | O46: 8288
A47: 1955 | B47: Communication Equipment (Smart Meters) | D47: =+'App.2-B_Fixed Asset Cont 2012'!F47 -> 0 | G47: 0 | H47: 0 | I47: 0 | J47: 0 | K47: =-'App.2-B_FA Cont MIFRS 2012'!K47 -> 0 | L47: 0 | M47: 0 | O47: 0
A48: 1960 | B48: Miscellaneous Equipment | C48: 14623 | D48: =+'App.2-B_Fixed Asset Cont 2012'!F48 -> 16125 | E48: 10 | F48: 10 | G48: 0.1 | H48: 1462.3 | I48: 806.25 | J48: 2268.55 | K48: =-'App.2-B_FA Cont MIFRS 2012'!K48 -> 2268.25 | L48: 0.3 | M48: 1612.5 | O48: 3074.8
A49: 1975 | B49: Load Management Controls Utility Premises | D49: =+'App.2-B_Fixed Asset Cont 2012'!F49 -> 0 | G49: 0 | H49: 0 | I49: 0 | J49: 0 | K49: =-'App.2-B_FA Cont MIFRS 2012'!K49 -> 0 | L49: 0 | M49: 0 | O49: 0
A50: 1980 | B50: System Supervisor Equipment | D50: =+'App.2-B_Fixed Asset Cont 2012'!F50 -> 0 | G50: 0 | H50: 0 | I50: 0 | J50: 0 | K50: =-'App.2-B_FA Cont MIFRS 2012'!K50 -> 0 | L50: 0 | M50: 0 | O50: 0
A51: 1985 | B51: Miscellaneous Fixed Assets | D51: =+'App.2-B_Fixed Asset Cont 2012'!F51 -> 0 | G51: 0 | H51: 0 | I51: 0 | J51: 0 | K51: =-'App.2-B_FA Cont MIFRS 2012'!K51 -> 0 | L51: 0 | M51: 0 | O51: 0
A52: 1995 | B52: Contributions & Grants | C52: -6468651 | D52: =+'App.2-B_Fixed Asset Cont 2012'!F52 -> -329373 | E52: =6468651/136703 -> 47.31901275 | F52: 51.25 | G52: 0.01951219512 | H52: -136703 | I52: -3213.395122 | J52: -139916.3951 | K52: =-'App.2-B_FA Cont MIFRS 2012'!K52 -> -140570.5463 | L52: 654.1512195 | M52: -6426.790244 | O52: -143129.7902
A53: etc. | G53: 0 | H53: 0 | I53: 0 | J53: 0 | L53: 0 | M53: 0 | O53: 0
G54: 0 | H54: 0 | I54: 0 | J54: 0 | L54: 0 | M54: 0 | O54: 0
B55: Total | C55: =SUM(C16:C54) -> 29147131 | D55: =SUM(D16:D54) -> 3706519 | H55: =SUM(H16:H54) -> 1076467.3 | I55: 50856.9336 | J55: 1127324.234 | K55: 1114418.605 | L55: 12905.62904 | M55: 101713.8672 | N55: =SUM(N16:N54) -> 74583 | O55: 1103598.167
A57: Notes:
A59: 1 | B59: Board policy of the "half-year" rule - the applicant must ensure that additions in the year attract a half-year depreciation expense in the first year. Deviations from this standard practice must be supported in the application.
A60: 2 | B60: The applicant must provide an explanation of material variances in evidence
A61: 3 | B61: The applicant should ensure that the years for new additions of assets are the asset useful lives determined by management in accordance with IFRS.
A62: 4 | B62: A recalculation should be performed to determine the average remaining life of opening balance of assets (i.e. excluding 2012 additions) under IFRS. For example, Asset A had a useful life of 20 years under CGAAP. On January 1, 2012, the date of transition, Asset A was 3 years depreciated. As a result, Asset A would have a remaining service life of 17 years (20 years less 3 years) under CGAAP as of January 1, 2012. Due to the transition to IFRS, management re-assessed the asset useful lives under IFRS principles and concluded that the revised useful life of Asset A is now 30 years. Therefore, the average remaining useful life of opening balance of Asset A is determined to be 27 years (30 years less 3 years) under IFRS as of January 1, 2012.
A63: 5 | B63: NBV must exclude assets still on the books but which have been fully amortized or depreciated.
A64: 6 | B64: This column refers to the calculated full year depreciation but excludes the depreciation expense on assets fully depreciated during the year. This column is used for the purpose of calculating depreciation expense in the following year on the next worksheet.
A66: General: | B66: Applicants must provide a breakdown of depreciation and amortization expense in the above format for all relevant accounts. Asset Retirement Obligations (AROs), depreciation and accretion expense should be disclosed separately consistent with the Notes of historical Audited Financial Statements.

Sheet App.2-CH_MIFRS_DepExp_2013 (hidden)
I1: File Number: | J1: ='LDC Info'!$E$18 -> EB2012-0176
I2: Exhibit:
I3: Tab:
I4: Schedule:
I5: Page:
I7: Date:
A9: Appendix 2-CH
A10: Depreciation and Amortization Expense
A11: Assumes the applicant adopted IFRS for financial reporting purposes January 1, 2013
C12: Year | D12: 2013 | E12: MIFRS
A14: Account | B14: Description | C14: Additions | D14: Years (new additions only) | E14: Depreciation Rate on New Additions | F14: 2013 Depreciation Expense 1 | G14: 2013 Depreciation Expense per Appendix 2-B Fixed Assets, Column K (l) | H14: Variance 2
C15: (d) | D15: (f) | E15: (g) = 1 / (f) | F15: (h)=2012 Full Year Depreciation + ((d)*0.5)/(f) | H15: (m) = (h) - (l)
A16: 1611 | B16: Computer Software (Formally known as Account 1925) | E16: =IF(D16=0,0,1/D16) -> 0 | F16: =IF(D16=0,'App.2-CG_MIFRS_DepExp_2012'!O16,+'App.2-CG_MIFRS_DepExp_2012'!O16+((C16*0.5)/D16)) -> 0 | H16: =IF(ISERROR(+F16-G16), 0, +F16-G16) -> 0
A17: 1612 | B17: Land Rights (Formally known as Account 1906) | E17: 0 | F17: =IF(D17=0,'App.2-CG_MIFRS_DepExp_2012'!O17,+'App.2-CG_MIFRS_DepExp_2012'!O17+((C17*0.5)/D17)) -> 0 | H17: 0
A18: 1805 | B18: Land | E18: 0 | F18: =IF(D18=0,'App.2-CG_MIFRS_DepExp_2012'!O18,+'App.2-CG_MIFRS_DepExp_2012'!O18+((C18*0.5)/D18)) -> 0 | H18: 0
A19: 1808 | B19: Buildings | C19: =+'App.2-B_FA Cont MIFRS 2013'!F19 -> 9000 | D19: =+'App.2-CG_MIFRS_DepExp_2012'!F19 -> 50 | E19: 0.02 | F19: =IF(D19=0,'App.2-CG_MIFRS_DepExp_2012'!O19,+'App.2-CG_MIFRS_DepExp_2012'!O19+((C19*0.5)/D19)) -> 50019 | G19: =-'App.2-B_FA Cont MIFRS 2013'!K19 -> 50119 | H19: -100
A20: 1810 | B20: Leasehold Improvements | C20: =+'App.2-B_FA Cont MIFRS 2013'!F20 -> 0 | D20: =+'App.2-CG_MIFRS_DepExp_2012'!F20 -> 0 | E20: 0 | F20: =IF(D20=0,'App.2-CG_MIFRS_DepExp_2012'!O20,+'App.2-CG_MIFRS_DepExp_2012'!O20+((C20*0.5)/D20)) -> 0 | G20: =-'App.2-B_FA Cont MIFRS 2013'!K20 -> 0 | H20: 0
A21: 1815 | B21: Transformer Station Equipment >50 kV | C21: =+'App.2-B_FA Cont MIFRS 2013'!F21 -> 0 | D21: =+'App.2-CG_MIFRS_DepExp_2012'!F21 -> 0 | E21: 0 | F21: =IF(D21=0,'App.2-CG_MIFRS_DepExp_2012'!O21,+'App.2-CG_MIFRS_DepExp_2012'!O21+((C21*0.5)/D21)) -> 0 | G21: =-'App.2-B_FA Cont MIFRS 2013'!K21 -> 0 | H21: 0
A22: 1820 | B22: Distribution Station Equipment <50 kV | C22: =+'App.2-B_FA Cont MIFRS 2013'!F22 -> 983930 | D22: =+'App.2-CG_MIFRS_DepExp_2012'!F22 -> 45 | E22: 0.02222222222 | F22: =IF(D22=0,'App.2-CG_MIFRS_DepExp_2012'!O22,+'App.2-CG_MIFRS_DepExp_2012'!O22+((C22*0.5)/D22)) -> 235885.4222 | G22: =-'App.2-B_FA Cont MIFRS 2013'!K22 -> 235885.4333 | H22: -0.01111111112
A23: 1825 | B23: Storage Battery Equipment | C23: =+'App.2-B_FA Cont MIFRS 2013'!F23 -> 0 | D23: =+'App.2-CG_MIFRS_DepExp_2012'!F23 -> 0 | E23: 0 | F23: =IF(D23=0,'App.2-CG_MIFRS_DepExp_2012'!O23,+'App.2-CG_MIFRS_DepExp_2012'!O23+((C23*0.5)/D23)) -> 0 | G23: =-'App.2-B_FA Cont MIFRS 2013'!K23 -> 0 | H23: 0
A24: 1830 | B24: Poles, Towers & Fixtures | C24: =+'App.2-B_FA Cont MIFRS 2013'!F24 -> 752391 | D24: =+'App.2-CG_MIFRS_DepExp_2012'!F24 -> 60 | E24: 0.01666666667 | F24: =IF(D24=0,'App.2-CG_MIFRS_DepExp_2012'!O24,+'App.2-CG_MIFRS_DepExp_2012'!O24+((C24*0.5)/D24)) -> 114190.6917 | G24: =-'App.2-B_FA Cont MIFRS 2013'!K24 -> 110903.7167 | H24: 3286.975
A25: 1835 | B25: Overhead Conductors & Devices | C25: =+'App.2-B_FA Cont MIFRS 2013'!F25 -> 768169 | D25: =+'App.2-CG_MIFRS_DepExp_2012'!F25 -> 65 | E25: 0.01538461538 | F25: =IF(D25=0,'App.2-CG_MIFRS_DepExp_2012'!O25,+'App.2-CG_MIFRS_DepExp_2012'!O25+((C25*0.5)/D25)) -> 136118.0692 | G25: =-'App.2-B_FA Cont MIFRS 2013'!K25 -> 134352.2923 | H25: 1765.776923
A26: 1840 | B26: Underground Conduit | C26: =+'App.2-B_FA Cont MIFRS 2013'!F26 -> 338943 | D26: =+'App.2-CG_MIFRS_DepExp_2012'!F26 -> 85 | E26: 0.01176470588 | F26: =IF(D26=0,'App.2-CG_MIFRS_DepExp_2012'!O26,+'App.2-CG_MIFRS_DepExp_2012'!O26+((C26*0.5)/D26)) -> 32418.33529 | G26: =-'App.2-B_FA Cont MIFRS 2013'!K26 -> 31979.65882 | H26: 438.6764706
A27: 1845 | B27: Underground Conductors & Devices | C27: =+'App.2-B_FA Cont MIFRS 2013'!F27 -> 411509 | D27: =+'App.2-CG_MIFRS_DepExp_2012'!F27 -> 60 | E27: 0.01666666667 | F27: =IF(D27=0,'App.2-CG_MIFRS_DepExp_2012'!O27,+'App.2-CG_MIFRS_DepExp_2012'!O27+((C27*0.5)/D27)) -> 133788.8083 | G27: =-'App.2-B_FA Cont MIFRS 2013'!K27 -> 133588.9167 | H27: 199.8916667
A28: 1850 | B28: Line Transformers | C28: =+'App.2-B_FA Cont MIFRS 2013'!F28 -> 524480 | D28: =+'App.2-CG_MIFRS_DepExp_2012'!F28 -> 40 | E28: 0.025 | F28: =IF(D28=0,'App.2-CG_MIFRS_DepExp_2012'!O28,+'App.2-CG_MIFRS_DepExp_2012'!O28+((C28*0.5)/D28)) -> 229226.75 | G28: =-'App.2-B_FA Cont MIFRS 2013'!K28 -> 227209.0875 | H28: 2017.6625
A29: 1855 | B29: Services (Overhead & Underground) | C29: =+'App.2-B_FA Cont MIFRS 2013'!F29 -> 539764 | D29: =+'App.2-CG_MIFRS_DepExp_2012'!F29 -> 55 | E29: 0.01818181818 | F29: =IF(D29=0,'App.2-CG_MIFRS_DepExp_2012'!O29,+'App.2-CG_MIFRS_DepExp_2012'!O29+((C29*0.5)/D29)) -> 85994.63636 | G29: =-'App.2-B_FA Cont MIFRS 2013'!K29 -> 84474.62727 | H29: 1520.009091
A30: 1860 | B30: Meters | C30: =+'App.2-B_FA Cont MIFRS 2013'!F30 -> 0 | D30: =+'App.2-CG_MIFRS_DepExp_2012'!F30 -> 30 | E30: 0.03333333333 | F30: =IF(D30=0,'App.2-CG_MIFRS_DepExp_2012'!O30,+'App.2-CG_MIFRS_DepExp_2012'!O30+((C30*0.5)/D30)) -> 50089 | G30: =-'App.2-B_FA Cont MIFRS 2013'!K30 -> 50099 | H30: -10
A31: 1860 | B31: Meters (Smart Meters) | C31: =+'App.2-B_FA Cont MIFRS 2013'!F31 -> 406994 | D31: =+'App.2-CG_MIFRS_DepExp_2012'!F31 -> 15 | E31: 0.06666666667 | F31: =IF(D31=0,'App.2-CG_MIFRS_DepExp_2012'!O31,+'App.2-CG_MIFRS_DepExp_2012'!O31+((C31*0.5)/D31)) -> 22595.93333 | G31: =-'App.2-B_FA Cont MIFRS 2013'!K31 -> 24650.53333 | H31: -2054.6
A32: 1905 | B32: Land | C32: =+'App.2-B_FA Cont MIFRS 2013'!F32 -> 0 | D32: =+'App.2-CG_MIFRS_DepExp_2012'!F32 -> 0 | E32: 0 | F32: =IF(D32=0,'App.2-CG_MIFRS_DepExp_2012'!O32,+'App.2-CG_MIFRS_DepExp_2012'!O32+((C32*0.5)/D32)) -> 0 | G32: =-'App.2-B_FA Cont MIFRS 2013'!K32 -> 0 | H32: 0
A33: 1908 | B33: Buildings & Fixtures | C33: =+'App.2-B_FA Cont MIFRS 2013'!F33 -> 0 | D33: =+'App.2-CG_MIFRS_DepExp_2012'!F33 -> 0 | E33: 0 | F33: =IF(D33=0,'App.2-CG_MIFRS_DepExp_2012'!O33,+'App.2-CG_MIFRS_DepExp_2012'!O33+((C33*0.5)/D33)) -> 0 | G33: =-'App.2-B_FA Cont MIFRS 2013'!K33 -> 0 | H33: 0
A34: 1910 | B34: Leasehold Improvements | C34: =+'App.2-B_FA Cont MIFRS 2013'!F34 -> 0 | D34: =+'App.2-CG_MIFRS_DepExp_2012'!F34 -> 0 | E34: 0 | F34: =IF(D34=0,'App.2-CG_MIFRS_DepExp_2012'!O34,+'App.2-CG_MIFRS_DepExp_2012'!O34+((C34*0.5)/D34)) -> 0 | G34: =-'App.2-B_FA Cont MIFRS 2013'!K34 -> 0 | H34: 0
A35: 1915 | B35: Office Furniture & Equipment (10 years) | C35: =+'App.2-B_FA Cont MIFRS 2013'!F35 -> 2000 | D35: =+'App.2-CG_MIFRS_DepExp_2012'!F35 -> 10 | E35: 0.1 | F35: =IF(D35=0,'App.2-CG_MIFRS_DepExp_2012'!O35,+'App.2-CG_MIFRS_DepExp_2012'!O35+((C35*0.5)/D35)) -> 8009.2 | G35: =-'App.2-B_FA Cont MIFRS 2013'!K35 -> 8009.2 | H35: 0
A36: 1915 | B36: Office Furniture & Equipment (5 years) | C36: =+'App.2-B_FA Cont MIFRS 2013'!F36 -> 0 | D36: =+'App.2-CG_MIFRS_DepExp_2012'!F36 -> 0 | E36: 0 | F36: =IF(D36=0,'App.2-CG_MIFRS_DepExp_2012'!O36,+'App.2-CG_MIFRS_DepExp_2012'!O36+((C36*0.5)/D36)) -> 0 | G36: =-'App.2-B_FA Cont MIFRS 2013'!K36 -> 0 | H36: 0
A37: 1920 | B37: Computer Equipment - Hardware | C37: =+'App.2-B_FA Cont MIFRS 2013'!F37 -> 0 | D37: =+'App.2-CG_MIFRS_DepExp_2012'!F37 -> 0 | E37: 0 | F37: =IF(D37=0,'App.2-CG_MIFRS_DepExp_2012'!O37,+'App.2-CG_MIFRS_DepExp_2012'!O37+((C37*0.5)/D37)) -> 0 | G37: =-'App.2-B_FA Cont MIFRS 2013'!K37 -> 0 | H37: 0
A38: 1920 | B38: Computer Equip.-Hardware(Post Mar. 22/04) | C38: =+'App.2-B_FA Cont MIFRS 2013'!F38 -> 0 | D38: =+'App.2-CG_MIFRS_DepExp_2012'!F38 -> 0 | E38: 0 | F38: =IF(D38=0,'App.2-CG_MIFRS_DepExp_2012'!O38,+'App.2-CG_MIFRS_DepExp_2012'!O38+((C38*0.5)/D38)) -> 0 | G38: =-'App.2-B_FA Cont MIFRS 2013'!K38 -> 0 | H38: 0
A39: 1920 | B39: Computer Equip.-Hardware(Post Mar. 19/07) | C39: =+'App.2-B_FA Cont MIFRS 2013'!F39 -> 28600 | D39: =+'App.2-CG_MIFRS_DepExp_2012'!F39 -> 5 | E39: 0.2 | F39: =IF(D39=0,'App.2-CG_MIFRS_DepExp_2012'!O39,+'App.2-CG_MIFRS_DepExp_2012'!O39+((C39*0.5)/D39)) -> 19789.6 | G39: =-'App.2-B_FA Cont MIFRS 2013'!K39 -> 19788.6 | H39: 1
A40: 1925 | B40: Computer Software (Formally known as Account 1925) | C40: =+'App.2-B_FA Cont MIFRS 2013'!F40 -> 45000 | D40: 5 | E40: =IF(D40=0,0,1/D40) -> 0.2 | F40: =IF(D40=0,'App.2-CG_MIFRS_DepExp_2012'!O40,+'App.2-CG_MIFRS_DepExp_2012'!O40+((C40*0.5)/D40)) -> 42795.8 | G40: =-'App.2-B_FA Cont MIFRS 2013'!K40 -> 42795.8 | H40: =IF(ISERROR(+F40-G40), 0, +F40-G40) -> 0
A41: 1930 | B41: Transportation Equipment | C41: =+'App.2-B_FA Cont MIFRS 2013'!F41 -> 400000 | D41: 15 | E41: 0.06666666667 | F41: =IF(D41=0,'App.2-CG_MIFRS_DepExp_2012'!O41,+'App.2-CG_MIFRS_DepExp_2012'!O41+((C41*0.5)/D41)) -> 121761.8533 | G41: =-'App.2-B_FA Cont MIFRS 2013'!K41 -> 121761.52 | H41: 0.3333333333
A42: 1935 | B42: Stores Equipment | C42: =+'App.2-B_FA Cont MIFRS 2013'!F42 -> 0 | D42: =+'App.2-CG_MIFRS_DepExp_2012'!F42 -> 10 | E42: 0.1 | F42: =IF(D42=0,'App.2-CG_MIFRS_DepExp_2012'!O42,+'App.2-CG_MIFRS_DepExp_2012'!O42+((C42*0.5)/D42)) -> 5887 | G42: =-'App.2-B_FA Cont MIFRS 2013'!K42 -> 5887 | H42: 0
A43: 1940 | B43: Tools, Shop & Garage Equipment | C43: =+'App.2-B_FA Cont MIFRS 2013'!F43 -> 72000 | D43: =+'App.2-CG_MIFRS_DepExp_2012'!F43 -> 10 | E43: 0.1 | F43: =IF(D43=0,'App.2-CG_MIFRS_DepExp_2012'!O43,+'App.2-CG_MIFRS_DepExp_2012'!O43+((C43*0.5)/D43)) -> 16396.4 | G43: =-'App.2-B_FA Cont MIFRS 2013'!K43 -> 16396 | H43: 0.4
A44: 1945 | B44: Measurement & Testing Equipment | C44: =+'App.2-B_FA Cont MIFRS 2013'!F44 -> 0 | D44: =+'App.2-CG_MIFRS_DepExp_2012'!F44 -> 10 | E44: 0.1 | F44: =IF(D44=0,'App.2-CG_MIFRS_DepExp_2012'!O44,+'App.2-CG_MIFRS_DepExp_2012'!O44+((C44*0.5)/D44)) -> 3255.4 | G44: =-'App.2-B_FA Cont MIFRS 2013'!K44 -> 3255 | H44: 0.4
A45: 1950 | B45: Power Operated Equipment | C45: =+'App.2-B_FA Cont MIFRS 2013'!F45 -> 0 | D45: =+'App.2-CG_MIFRS_DepExp_2012'!F45 -> 10 | E45: 0.1 | F45: =IF(D45=0,'App.2-CG_MIFRS_DepExp_2012'!O45,+'App.2-CG_MIFRS_DepExp_2012'!O45+((C45*0.5)/D45)) -> 5190.5 | G45: =-'App.2-B_FA Cont MIFRS 2013'!K45 -> 5190 | H45: 0.5
A46: 1955 | B46: Communications Equipment | C46: =+'App.2-B_FA Cont MIFRS 2013'!F46 -> 0 | D46: =+'App.2-CG_MIFRS_DepExp_2012'!F46 -> 10 | E46: 0.1 | F46: =IF(D46=0,'App.2-CG_MIFRS_DepExp_2012'!O46,+'App.2-CG_MIFRS_DepExp_2012'!O46+((C46*0.5)/D46)) -> 8288 | G46: =-'App.2-B_FA Cont MIFRS 2013'!K46 -> 8288 | H46: 0
A47: 1955 | B47: Communication Equipment (Smart Meters) | C47: =+'App.2-B_FA Cont MIFRS 2013'!F47 -> 0 | D47: =+'App.2-CG_MIFRS_DepExp_2012'!F47 -> 0 | E47: 0 | F47: =IF(D47=0,'App.2-CG_MIFRS_DepExp_2012'!O47,+'App.2-CG_MIFRS_DepExp_2012'!O47+((C47*0.5)/D47)) -> 0 | G47: =-'App.2-B_FA Cont MIFRS 2013'!K47 -> 0 | H47: 0
A48: 1960 | B48: Miscellaneous Equipment | C48: =+'App.2-B_FA Cont MIFRS 2013'!F48 -> 45000 | D48: =+'App.2-CG_MIFRS_DepExp_2012'!F48 -> 10 | E48: 0.1 | F48: =IF(D48=0,'App.2-CG_MIFRS_DepExp_2012'!O48,+'App.2-CG_MIFRS_DepExp_2012'!O48+((C48*0.5)/D48)) -> 5324.8 | G48: =-'App.2-B_FA Cont MIFRS 2013'!K48 -> 5324.5 | H48: 0.3
A49: 1975 | B49: Load Management Controls Utility Premises | C49: =+'App.2-B_FA Cont MIFRS 2013'!F49 -> 0 | D49: =+'App.2-CG_MIFRS_DepExp_2012'!F49 -> 0 | E49: 0 | F49: =IF(D49=0,'App.2-CG_MIFRS_DepExp_2012'!O49,+'App.2-CG_MIFRS_DepExp_2012'!O49+((C49*0.5)/D49)) -> 0 | G49: =-'App.2-B_FA Cont MIFRS 2013'!K49 -> 0 | H49: 0
A50: 1980 | B50: System Supervisor Equipment | C50: =+'App.2-B_FA Cont MIFRS 2013'!F50 -> 0 | D50: =+'App.2-CG_MIFRS_DepExp_2012'!F50 -> 0 | E50: 0 | F50: =IF(D50=0,'App.2-CG_MIFRS_DepExp_2012'!O50,+'App.2-CG_MIFRS_DepExp_2012'!O50+((C50*0.5)/D50)) -> 0 | G50: =-'App.2-B_FA Cont MIFRS 2013'!K50 -> 0 | H50: 0
A51: 1985 | B51: Miscellaneous Fixed Assets | C51: =+'App.2-B_FA Cont MIFRS 2013'!F51 -> 0 | D51: =+'App.2-CG_MIFRS_DepExp_2012'!F51 -> 0 | E51: 0 | F51: =IF(D51=0,'App.2-CG_MIFRS_DepExp_2012'!O51,+'App.2-CG_MIFRS_DepExp_2012'!O51+((C51*0.5)/D51)) -> 0 | G51: =-'App.2-B_FA Cont MIFRS 2013'!K51 -> 0 | H51: 0
A52: 1995 | B52: Contributions & Grants | C52: =+'App.2-B_FA Cont MIFRS 2013'!F52 -> -373740 | D52: =+'App.2-CG_MIFRS_DepExp_2012'!F52 -> 51.25 | E52: 0.01951219512 | F52: =IF(D52=0,'App.2-CG_MIFRS_DepExp_2012'!O52,+'App.2-CG_MIFRS_DepExp_2012'!O52+((C52*0.5)/D52)) -> -146776.0341 | G52: =-'App.2-B_FA Cont MIFRS 2013'!K52 -> -147157.0927 | H52: 381.0585366
A53: etc. | E53: 0 | F53: =IF(D53=0,'App.2-CG_MIFRS_DepExp_2012'!O53,+'App.2-CG_MIFRS_DepExp_2012'!O53+((C53*0.5)/D53)) -> 0 | H53: 0
E54: 0 | F54: =IF(D54=0,'App.2-CG_MIFRS_DepExp_2012'!O54,+'App.2-CG_MIFRS_DepExp_2012'!O54+((C54*0.5)/D54)) -> 0 | H54: 0
B55: Total | C55: =SUM(C16:C54) -> 4954040 | F55: =SUM(F16:F54) -> 1180249.166 | G55: =SUM(G16:G54) -> 1172800.793 | H55: =SUM(H16:H54) -> 7448.37241
B56: Smart Meter Additions
B57: Meters (Smart Meters) | D57: =+D31 -> 15 | E57: =IF(D57=0,0,1/D57) -> 0.06666666667 | F57: 241743 | G57: =-'App.2-B_FA Cont MIFRS 2013'!K57 -> 229743 | H57: =IF(ISERROR(+F57-G57), 0, +F57-G57) -> 12000
